Workbook

Sheet Inputs
S2: Version 6.14 27 March 2025
B4: Tariff Input Sheet
B6: Please enter the required information below:
D8: Customer Name | G8: Customer Name | I8: Enter the customer name as it is displayed on the rates bill. | AA8: Businessrate 1
D9: Account number | G9: Account Number | I9: Enter the account number as it is displayed on the rates bill. | AA9: Businessrate 2
D10: Point of delivery ID | G10: Point of delivery | I10: Enter the Point of Delivery ID as it is displayed on the rates bill. | AA10: Businessrate 3
D11: Number of PODs | H11: 1 | AA11: Businessrate 4
AA12: Homelight 20A
D13: Select your tariff classification | I13: Select either Non-Local Authority (Eskom), Local Authority (Municipality) | AA13: Homelight 60A
AA14: Homepower 1
D15: Customer Category | G15: Small Power User | AA15: Homepower 2
AA16: Homepower 3
D17: Select supply size | I17: Select the appropriate customer supply size (kVA) | AA17: Homepower 4
AA18: Homepower Bulk
D19: Select tariff | I19: Drop box selection driven by the supply voltage inputs | AA19: Landrate 1
AA20: Landrate 2
D21: Select previous tariff | G21: Businessrate 1 | AA21: Landrate 3
AA22: Landrate 4
D23: Select supply voltage | G23: =Selected_Supply_Voltage -> < 500V | P23: Calculations are based on the average number of days per month: Ave days per month = Total number of days in year (365) / months (12) = 30.416667 | AA23: Landrate Dx
AA24: Landlight 20A
D25: Enter average monthly consumption for SPU tariffs excluding Homeflex | I25: kWh / month | AA25: Landlight 60A
AA26: Public Lighting All Night
D27: For Homeflex tariff enter average monthly consumption below in cell M30: | AA27: Public Lighting 24 Hours
AA28: Public Lighting Urban Fixed
G29: High demand season [Jun - Aug] | J29: Low demand season [Sep - May] | M29: Total energy | AA29: Homeflex 1
G30: Peak energy | H30: Standard energy | I30: Off-peak energy | J30: Peak energy | K30: Standard energy | L30: Off-peak energy | AA30: Homeflex 2
G31: kWh / month | H31: kWh / month | I31: kWh / month | J31: kWh / month | K31: kWh / month | L31: kWh / month | M31: kWh / month | AA31: Homeflex 3
G32: =IFERROR(Homeflex_Total_Energy*G39,"") -> 0 | H32: 0 | I32: 0 | J32: 0 | K32: 0 | L32: 0 | AA32: Homeflex 4
D34: Select profile to use | G34: Use assumed average urban residential profile
G37: High demand season [Jun - Aug] | J37: Low demand season [Sep - May]
G38: Peak energy | H38: Standard energy | I38: Off-peak energy | J38: Peak energy | K38: Standard energy | L38: Off-peak energy
G39: =IF($G$34="Use assumed average urban residential profile",31%,"") -> 0.31 | H39: =IF($G$34="Use assumed average urban residential profile",49%,"") -> 0.49 | I39: =IF($G$34="Use assumed average urban residential profile",20%,"") -> 0.2 | J39: =IF($G$34="Use assumed average urban residential profile",30%,"") -> 0.3 | K39: =IF($G$34="Use assumed average urban residential profile",49%,"") -> 0.49 | L39: =IF($G$34="Use assumed average urban residential profile",21%,"") -> 0.21 | M39: =(SUM(G39:I39)+SUM(J39:L39))/2 -> 1 | P39: M37 should add up to 100%
D43: Use assumed average urban residential profile
D44: Use customer 's own urban residential profile

Sheet Monthly Average Bill
B4: Monthly Average Bill | I4: =D10 -> Businessrate 1 | K4: =B4 -> Monthly Average Bill | R4: =I4 -> Businessrate 1
B6: High Demand | K6: Low Demand
B8: Customer Name | D8: =Customer_Name -> Customer Name | K8: =B8 -> Customer Name | M8: =D8 -> Customer Name
B9: =Inputs!D10 -> Point of delivery ID | D9: =Delivery_ID -> Point of delivery | K9: =B9 -> Point of delivery ID | M9: =D9 -> Point of delivery
C10: Tariff | D10: =Selected_Base_Tariff -> Businessrate 1 | F10: Ave Monthly Consumption for SPU tariffs excluding Homeflex | H10: =IF(Selected_Customer_Category_ID=1,SPU_Annual_Total_Energy,0) -> 0 | I10: kWh | L10: =C10 -> Tariff | M10: =D10 -> Businessrate 1 | N10: =F10 -> Ave Monthly Consumption for SPU tariffs excluding Homeflex | P10: =H10 -> 0 | Q10: kWh
F11: Ave Homeflex Monthly Peak | H11: =IF(Selected_Customer_Category_ID=1,Homeflex_Peak_Energy_High,0) -> 0 | I11: kWh | N11: Ave Homeflex Monthly Peak | P11: =IF(Selected_Customer_Category_ID=1,Homeflex_Peak_Energy_Low,0) -> 0 | Q11: kWh
F12: Ave Homeflex Monthly Standard | H12: =IF(Selected_Customer_Category_ID=1,Homeflex_Standard_Energy_High,0) -> 0 | I12: kWh | N12: Ave Homeflex Monthly Standard | P12: =IF(Selected_Customer_Category_ID=1,Homeflex_Standard_Energy_Low,0) -> 0 | Q12: kWh
F13: Ave Homeflex Monthly Off-peak | H13: =IF(Selected_Customer_Category_ID=1,Homeflex_OffPeak_Energy_High,0) -> 0 | I13: kWh | N13: Ave Homeflex Monthly Off-peak | P13: =IF(Selected_Customer_Category_ID=1,Homeflex_OffPeak_Energy_Low,0) -> 0 | Q13: kWh
F14: Ave Homeflex Total Monthly Consumption | H14: =IF(Selected_Customer_Category_ID=1,Homeflex_Total_Energy,0) -> 0 | I14: kWh | N14: Ave Homeflex Total Monthly Consumption | P14: 0 | Q14: kWh
C15: Tariff Category | D15: =INDEX(Full_Tariff_Type,MATCH(D10,Full_Tariff_List,0)) -> Urban | F15: Days | H15: =ESKOM_Total_days -> 30.41666667 | I15: days | L15: =C15 -> Tariff Category | M15: =D15 -> Urban | N15: Days | P15: 30.41666667 | Q15: days
C16: Supply voltage | D16: =Selected_Supply_Voltage -> < 500V | L16: =C16 -> Supply voltage | M16: < 500V
C17: Tariff Classification | D17: =Selected_Tariff_Category -> Non-Local Authority | L17: Tariff Classification | M17: Non-Local Authority
C18: No of PODS | D18: =PODs -> 1 | L18: No of PODS | M18: 1
C19: Size of supply | D19: =Selected_Supply_Size -> 5kVA, 16kVA, 20A or 60A | L19: Size of supply | M19: 5kVA, 16kVA, 20A or 60A
L20: 0 | M20: 0
B22: Network charges | D22: Units | E22: =Current_Period &" Rates" -> 2024/25 Rates | F22: =New_Period &" Rates" -> 2025/26 Rates | G22: =Current_Period&" Charges" -> 2024/25 Charges | H22: =New_Period&" Charges" -> 2025/26 Charges | I22: % Change | K22: Network charges | M22: Units | N22: =Current_Period &" Rates" -> 2024/25 Rates | O22: =New_Period &" Rates" -> 2025/26 Rates | P22: =Current_Period&" Charges" -> 2024/25 Charges | Q22: =New_Period&" Charges" -> 2025/26 Charges | R22: % Change
C24: Network demand charge | D24: c/kWh | E24: ='Rates Table'!E10 -> 29.57 | F24: ='Rates Table'!AK10 -> 14.54 | G24: =IFERROR(E24*IF(OR($D$10="Homeflex 1",$D$10="Homeflex 2", $D$10="Homeflex 3",$D$10="Homeflex 4"),(Homeflex_Total_Monthly_Energy),SPU_Total_Energy),0)/100 -> 0 | H24: =IFERROR(F24*IF(OR($D$10="Homeflex 1",$D$10="Homeflex 2", $D$10="Homeflex 3",$D$10="Homeflex 4"),(Homeflex_Total_Monthly_Energy),SPU_Total_Energy),0)/100 -> 0 | I24: =IFERROR(H24/G24-1,0) -> 0 | L24: Network demand charge | M24: c/kWh | N24: =E24 -> 29.57 | O24: =F24 -> 14.54 | P24: 0 | Q24: 0 | R24: =I24 -> 0
C25: Network demand charge, Ancillary service charge and retail | D25: c/kWh | E25: ='Rates Table'!E11 -> 0 | F25: ='Rates Table'!AK11 -> 0 | G25: =IFERROR(E25*Homeflex_Total_Monthly_Energy,0)/100 -> 0 | H25: =IFERROR(F25*Homeflex_Total_Monthly_Energy,0)/100 -> 0 | I25: =IFERROR(H25/G25-1,0) -> 0 | L25: Network demand charge, Ancillary service charge and retail | M25: c/kWh | N25: =E25 -> 0 | O25: 0 | P25: 0 | Q25: 0 | R25: =I25 -> 0
C26: Network capacity charge | D26: =IF(Table_1=1,"R/kVA","R/day") -> R/day | E26: ='Rates Table'!E12 -> 42.47 | F26: ='Rates Table'!AK12 -> 20.34 | G26: =IFERROR(E26*PODs*SPU_Days,0) -> 1291.795833 | H26: =IFERROR(F26*PODs*SPU_Days,0) -> 618.675 | I26: =IFERROR(H26/G26-1,0) -> -0.5210736991 | L26: Network capacity charge | M26: =IF(Table_1=1,"R/kVA","R/day") -> R/day | N26: =E26 -> 42.47 | O26: 20.34 | P26: 1291.795833 | Q26: 618.675 | R26: =I26 -> -0.5210736991
B28: Total network charges | G28: =SUM(G24:G26) -> 1291.795833 | H28: =SUM(H24:H26) -> 618.675 | I28: =IFERROR(H28/G28-1,0) -> -0.5210736991 | K28: Total network charges | P28: =SUM(P24:P26) -> 1291.795833 | Q28: =SUM(Q24:Q26) -> 618.675 | R28: =IFERROR(Q28/P28-1,0) -> -0.5210736991
B30: Energy charges | D30: Units | E30: =E22 -> 2024/25 Rates | F30: =F22 -> 2025/26 Rates | G30: =G22 -> 2024/25 Charges | H30: =H22 -> 2025/26 Charges | I30: % Change | K30: Energy charges | M30: Units | N30: =N22 -> 2024/25 Rates | O30: =O22 -> 2025/26 Rates | P30: =P22 -> 2024/25 Charges | Q30: =Q22 -> 2025/26 Charges | R30: % Change
C32: Energy | D32: c/kWh | E32: ='Rates Table'!E18 -> 209.5 | F32: ='Rates Table'!AK18 -> 224.93 | G32: =IFERROR(E32*(SPU_Total_Energy),0)/100 -> 0 | H32: =IFERROR(F32*(SPU_Total_Energy),0)/100 -> 0 | I32: =IFERROR(H32/G32-1,0) -> 0 | L32: Energy | M32: c/kWh | N32: =E32 -> 209.5 | O32: =F32 -> 224.93 | P32: =G32 -> 0 | Q32: =H32 -> 0 | R32: =I32 -> 0
C33: Peak | D33: c/kWh | E33: ='Rates Table'!E19 -> 0 | F33: ='Rates Table'!AK19 -> 0 | G33: =IFERROR(E33*(Ave_Monthly_Peak_High),0)/100 -> 0 | H33: =IFERROR(F33*(Ave_Monthly_Peak_High),0)/100 -> 0 | I33: 0 | L33: Peak | M33: c/kWh | N33: =IFERROR('Rates SPU - Current'!$L$29*IF(OR($D$10="Homeflex 1",$D$10="Homeflex 2", $D$10="Homeflex 3",$D$10="Homeflex 4"),1,0),0) -> 0 | O33: =IFERROR('Rates SPU - New'!$L$29*IF(OR($D$10="Homeflex 1",$D$10="Homeflex 2", $D$10="Homeflex 3",$D$10="Homeflex 4"),1,0),0) -> 0 | P33: =IFERROR(N33*IF(OR($D$10="Homeflex 1",$D$10="Homeflex 2", $D$10="Homeflex 3",$D$10="Homeflex 4"),(Ave_Monthly_Peak_Low),0),0)/100 -> 0 | Q33: =IFERROR(O33*IF(OR($D$10="Homeflex 1",$D$10="Homeflex 2", $D$10="Homeflex 3",$D$10="Homeflex 4"),(Ave_Monthly_Peak_Low),0),0)/100 -> 0 | R33: =IFERROR(Q33/P33-1,0) -> 0
C34: Standard | D34: c/kWh | E34: ='Rates Table'!E20 -> 0 | F34: ='Rates Table'!AK20 -> 0 | G34: =IFERROR(E34*(Ave_Monthly_Standard_High),0)/100 -> 0 | H34: =IFERROR(F34*(Ave_Monthly_Standard_High),0)/100 -> 0 | I34: 0 | L34: Standard | M34: c/kWh | N34: =IFERROR('Rates SPU - Current'!$M$29*IF(OR($D$10="Homeflex 1",$D$10="Homeflex 2", $D$10="Homeflex 3",$D$10="Homeflex 4"),1,0),0) -> 0 | O34: =IFERROR('Rates SPU - New'!$M$29*IF(OR($D$10="Homeflex 1",$D$10="Homeflex 2", $D$10="Homeflex 3",$D$10="Homeflex 4"),1,0),0) -> 0 | P34: =IFERROR(N34*IF(OR($D$10="Homeflex 1",$D$10="Homeflex 2", $D$10="Homeflex 3",$D$10="Homeflex 4"),(Ave_Monthly_Standard_Low),0),0)/100 -> 0 | Q34: =IFERROR(O34*IF(OR($D$10="Homeflex 1",$D$10="Homeflex 2", $D$10="Homeflex 3",$D$10="Homeflex 4"),(Ave_Monthly_Standard_Low),0),0)/100 -> 0 | R34: =IFERROR(Q34/P34-1,0) -> 0
C35: Off-Peak | D35: c/kWh | E35: ='Rates Table'!E21 -> 0 | F35: ='Rates Table'!AK21 -> 0 | G35: =IFERROR(E35*(Ave_Monthly_OffPeak_High),0)/100 -> 0 | H35: =IFERROR(F35*(Ave_Monthly_OffPeak_High),0)/100 -> 0 | I35: 0 | L35: Off-Peak | M35: c/kWh | N35: =IFERROR('Rates SPU - Current'!$N$29*IF(OR($D$10="Homeflex 1",$D$10="Homeflex 2", $D$10="Homeflex 3",$D$10="Homeflex 4"),1,0),0) -> 0 | O35: =IFERROR('Rates SPU - New'!$N$29*IF(OR($D$10="Homeflex 1",$D$10="Homeflex 2", $D$10="Homeflex 3",$D$10="Homeflex 4"),1,0),0) -> 0 | P35: =IFERROR(N35*IF(OR($D$10="Homeflex 1",$D$10="Homeflex 2", $D$10="Homeflex 3",$D$10="Homeflex 4"),(Ave_Monthly_OffPeak_Low),0),0)/100 -> 0 | Q35: =IFERROR(O35*IF(OR($D$10="Homeflex 1",$D$10="Homeflex 2", $D$10="Homeflex 3",$D$10="Homeflex 4"),(Ave_Monthly_OffPeak_Low),0),0)/100 -> 0 | R35: =IFERROR(Q35/P35-1,0) -> 0
C36: Energy - Block 1 | D36: c/kWh | E36: ='Rates Table'!E22 -> 0 | F36: ='Rates Table'!AK22 -> 0 | G36: =IFERROR(E36*(SPU_Block_1),0)/100 -> 0 | H36: =IFERROR(F36*(SPU_Block_1),0)/100 -> 0 | I36: 0 | L36: Energy - Block 1 | M36: c/kWh | N36: =E36 -> 0 | O36: 0 | P36: 0 | Q36: 0 | R36: 0
C37: Energy - Block 2 | D37: c/kWh | E37: ='Rates Table'!E23 -> 0 | F37: ='Rates Table'!AK23 -> 0 | G37: =IFERROR(E37*(SPU_Block_2),0)/100 -> 0 | H37: =IFERROR(F37*(SPU_Block_2),0)/100 -> 0 | I37: 0 | L37: Energy - Block 2 | M37: c/kWh | N37: 0 | O37: 0 | P37: 0 | Q37: 0 | R37: 0
C38: Generation capacity charge | D38: R/PoD/day | E38: ='Rates Table'!E24 -> 0 | F38: ='Rates Table'!AK24 -> 1.98 | G38: =IFERROR(E38*PODs*SPU_Days,0) -> 0 | H38: =IFERROR(F38*PODs*SPU_Days,0) -> 60.225 | I38: 0 | L38: Generation capacity charge | M38: R/PoD/day | N38: 0 | O38: 1.98 | P38: 0 | Q38: 60.225 | R38: 0
C39: Legacy charge | D39: c/kWh | E39: ='Rates Table'!E25 -> 0 | F39: ='Rates Table'!AK25 -> 0 | G39: =IFERROR(E39*IF(OR($D$10="Homeflex 1",$D$10="Homeflex 2", $D$10="Homeflex 3",$D$10="Homeflex 4"),(Homeflex_Total_Monthly_Energy),SPU_Total_Energy),0)/100 -> 0 | H39: =IFERROR(F39*IF(OR($D$10="Homeflex 1",$D$10="Homeflex 2", $D$10="Homeflex 3",$D$10="Homeflex 4"),(Homeflex_Total_Monthly_Energy),SPU_Total_Energy),0)/100 -> 0 | I39: =IFERROR(H39/G39-1,0) -> 0 | L39: Legacy charge | M39: c/kWh | N39: 0 | O39: 0 | P39: 0 | Q39: 0 | R39: 0
B40: Total energy charges | G40: =SUM(G32:G39) -> 0 | H40: =SUM(H32:H39) -> 60.225 | I40: =IFERROR(H40/G40-1,0) -> 0 | K40: Total energy charges | P40: =SUM(P32:P39) -> 0 | Q40: =SUM(Q32:Q39) -> 60.225 | R40: =IFERROR(Q40/P40-1,0) -> 0
B42: Other charges | D42: Units | E42: =E22 -> 2024/25 Rates | F42: =F22 -> 2025/26 Rates | G42: =G22 -> 2024/25 Charges | H42: =H22 -> 2025/26 Charges | I42: % Change | K42: Other charges | M42: Units | N42: =N22 -> 2024/25 Rates | O42: =O22 -> 2025/26 Rates | P42: =P22 -> 2024/25 Charges | Q42: =Q22 -> 2025/26 Charges | R42: % Change
C44: Ancillary service charge | D44: c/kWh | E44: ='Rates Table'!E31 -> 0.8 | F44: ='Rates Table'!AK31 -> 0.41 | G44: =IFERROR(E44*IF(OR($D$10="Homeflex 1",$D$10="Homeflex 2", $D$10="Homeflex 3",$D$10="Homeflex 4"),(Homeflex_Total_Monthly_Energy),SPU_Total_Energy),0)/100 -> 0 | H44: =IFERROR(F44*IF(OR($D$10="Homeflex 1",$D$10="Homeflex 2", $D$10="Homeflex 3",$D$10="Homeflex 4"),(Homeflex_Total_Monthly_Energy),SPU_Total_Energy),0)/100 -> 0 | I44: =IFERROR(H44/G44-1,0) -> 0 | L44: Ancillary service charge | M44: c/kWh | N44: =E44 -> 0.8 | O44: 0.41 | P44: 0 | Q44: 0 | R44: 0
C45: Service charge | D45: =IF(Table_1=1,"R/day","R/day") -> R/day | E45: ='Rates Table'!E32 -> 36.71 | F45: ='Rates Table'!AK32 -> 14.7 | G45: =IFERROR(IF(Table_1=1,E45*PODs*SPU_Days,E45*PODs*SPU_Days),0) -> 1116.595833 | H45: =IFERROR(IF(Table_1=1,F45*PODs*SPU_Days,F45*PODs*SPU_Days),0) -> 447.125 | I45: =IFERROR(H45/G45-1,0) -> -0.5995641515 | L45: Service charge | M45: =IF(Table_1=1,"R/day","R/day") -> R/day | N45: 36.71 | O45: 14.7 | P45: 1116.595833 | Q45: 447.125 | R45: -0.5995641515
C46: Electrification and rural subsidy | D46: c/kWh | E46: ='Rates Table'!E33 -> 0 | F46: ='Rates Table'!AK33 -> 4.94 | G46: =IFERROR(E46*IF(OR($D$10="Homeflex 1",$D$10="Homeflex 2", $D$10="Homeflex 3",$D$10="Homeflex 4"),(Homeflex_Total_Monthly_Energy),SPU_Total_Energy),0)/100 -> 0 | H46: =IFERROR(F46*IF(OR($D$10="Homeflex 1",$D$10="Homeflex 2", $D$10="Homeflex 3",$D$10="Homeflex 4"),(Homeflex_Total_Monthly_Energy),SPU_Total_Energy),0)/100 -> 0 | I46: =IFERROR(H46/G46-1,0) -> 0 | L46: Ancillary service charge | M46: c/kWh | N46: =E46 -> 0 | O46: =F46 -> 4.94 | P46: =G46 -> 0 | Q46: =H46 -> 0 | R46: =I46 -> 0
B48: Total other charges | G48: =SUM(G44:G46) -> 1116.595833 | H48: =SUM(H44:H46) -> 447.125 | I48: =IFERROR(H48/G48-1,0) -> -0.5995641515 | K48: Total other charges | P48: =SUM(P44:P46) -> 1116.595833 | Q48: =SUM(Q44:Q46) -> 447.125 | R48: =IFERROR(Q48/P48-1,0) -> -0.5995641515
B50: Total excl VAT | G50: =G48+G40+G28 -> 2408.391667 | H50: =H48+H40+H28 -> 1126.025 | I50: =IFERROR(H50/G50-1,0) -> -0.5324576913 | K50: Total excl VAT | P50: =P48+P40+P28 -> 2408.391667 | Q50: =Q48+Q40+Q28 -> 1126.025 | R50: =IFERROR(Q50/P50-1,0) -> -0.5324576913
B51: VAT | D51: =VAT -> 0.15 | G51: =G50*$D51 -> 361.25875 | H51: =H50*$D51 -> 168.90375 | K51: VAT | M51: =VAT -> 0.15 | P51: =P50*$D51 -> 361.25875 | Q51: =Q50*$D51 -> 168.90375
B53: Total account | G53: =SUM(G50:G51) -> 2769.650417 | H53: =SUM(H50:H51) -> 1294.92875 | I53: =IFERROR(H53/G53-1,0) -> -0.5324576913 | K53: Total account | P53: =SUM(P50:P51) -> 2769.650417 | Q53: =SUM(Q50:Q51) -> 1294.92875 | R53: =IFERROR(Q53/P53-1,0) -> -0.5324576913
B55: Average price | D55: c/kWh | G55: =IFERROR(IF(OR($D$10="Homeflex 1",$D$10="Homeflex 2", $D$10="Homeflex 3",$D$10="Homeflex 4"),G50/Homeflex_Total_Monthly_Energy*100,G50/SPU_Total_Energy*100),0) -> 0 | H55: =IFERROR(IF(OR($D$10="Homeflex 1",$D$10="Homeflex 2", $D$10="Homeflex 3",$D$10="Homeflex 4"),H50/Homeflex_Total_Monthly_Energy*100,H50/SPU_Total_Energy*100),0) -> 0 | I55: =IFERROR(H55/G55-1,0) -> 0 | K55: Average price | M55: c/kWh | P55: =IFERROR(IF(OR($D$10="Homeflex 1",$D$10="Homeflex 2", $D$10="Homeflex 3",$D$10="Homeflex 4"),P50/Homeflex_Total_Monthly_Energy*100,P50/SPU_Total_Energy*100),0) -> 0 | Q55: =IFERROR(IF(OR($D$10="Homeflex 1",$D$10="Homeflex 2", $D$10="Homeflex 3",$D$10="Homeflex 4"),Q50/Homeflex_Total_Monthly_Energy*100,Q50/SPU_Total_Energy*100),0) -> 0 | R55: =IFERROR(Q55/P55-1,0) -> 0
B58: Summary High demand | D58: =Current_Period -> 2024/25 | E58: =New_Period -> 2025/26 | F58: % Change | K58: Summary Low demand | M58: =Current_Period -> 2024/25 | N58: =New_Period -> 2025/26 | O58: % Change
C60: Total Network Charges | D60: =G28 -> 1291.795833 | E60: =H28 -> 618.675 | F60: =I28 -> -0.5210736991 | L60: Total Network Charges | M60: =P28 -> 1291.795833 | N60: =Q28 -> 618.675 | O60: =R28 -> -0.5210736991
C61: Total Energy Charges | D61: =G40 -> 0 | E61: =H40 -> 60.225 | F61: =I40 -> 0 | L61: Total Energy Charges | M61: =P40 -> 0 | N61: =Q40 -> 60.225 | O61: =R40 -> 0
C62: Other Charges | D62: =G48 -> 1116.595833 | E62: =H48 -> 447.125 | F62: =I48 -> -0.5995641515 | L62: Other Charges | M62: =P48 -> 1116.595833 | N62: =Q48 -> 447.125 | O62: =R48 -> -0.5995641515
C65: VAT | D65: =G51 -> 361.25875 | E65: =H51 -> 168.90375 | L65: VAT | M65: =P51 -> 361.25875 | N65: =Q51 -> 168.90375
C67: Total Charges | D67: =G53 -> 2769.650417 | E67: =H53 -> 1294.92875 | F67: =IFERROR(E67/D67-1,0) -> -0.5324576913 | L67: Total Charges | M67: =P53 -> 2769.650417 | N67: =Q53 -> 1294.92875 | O67: =IFERROR(N67/M67-1,0) -> -0.5324576913
B74: Blocks
C75: Block 1 | D75: =IF(SPU_Total_Energy > SPU_Block_1_Upper, SPU_Block_1_Upper, SPU_Total_Energy) -> 0 | E75: =IF(D10 = Lists!B21, Block1_max_HL20A, Block1_max_HL60A) -> 600
C76: Block 2 | D76: =SPU_Total_Energy - D75 -> 0

Sheet Tariff Comparison
H2: Please select tariffs from the dropdown boxes to set up the Comparison Report.
B4: Comparison against other tariffs High Demand | R4: ='Monthly Average Bill'!I4 -> Businessrate 1
H6: 2 | J6: =MATCH(H8,Full_Tariff_List,0) -> 4 | L6: 1 | N6: =MATCH(L8,Full_Tariff_List,0) -> 1 | P6: 1 | R6: =MATCH(P8,Full_Tariff_List,0) -> 1
D8: ='Monthly Average Bill'!I4 -> Businessrate 1 | H8: =IFERROR(INDEX(Compare_Tariff_List,Dropdown_Compare_1),$D$8) -> Businessrate 4 | L8: =IFERROR(INDEX(Compare_Tariff_List,Dropdown_Compare_2),$D$8) -> Businessrate 1 | P8: =IFERROR(INDEX(Compare_Tariff_List,Dropdown_Compare_3),$D$8) -> Businessrate 1
D9: =IFERROR(INDEX(Compare_Long_Type,Selected_Compare_Tariff_ID),"") -> Commercial Urban | H9: =IFERROR(INDEX(Compare_Long_Type,Dropdown_Compare_1),"") -> Commercial Urban | L9: =IFERROR(INDEX(Compare_Long_Type,Dropdown_Compare_2),"") -> Commercial Urban | P9: =IFERROR(INDEX(Compare_Long_Type,Dropdown_Compare_3),"") -> Commercial Urban
B10: Comparison Tariffs | D10: =Current_Period -> 2024/25 | E10: =New_Period -> 2025/26 | F10: % Change | H10: =Current_Period -> 2024/25 | I10: =New_Period -> 2025/26 | J10: % Change | L10: =Current_Period -> 2024/25 | M10: =New_Period -> 2025/26 | N10: % Change | P10: =Current_Period -> 2024/25 | Q10: =New_Period -> 2025/26 | R10: % Change
C12: Network Charges | D12: ='Monthly Average Bill'!D60 -> 1291.795833 | E12: ='Monthly Average Bill'!E60 -> 618.675 | F12: =IFERROR(E12/D12-1,0) -> -0.5210736991 | H12: =IF(Selected_Tariff_Category_ID=2,$D12,(IFERROR(SUMIFS(SPU_Network_Costs_Current,'Workings High'!$F$7:$AI$7,J$6),""))) -> 0 | I12: =IFERROR(SUMIFS(SPU_Network_Costs_New,'Workings High'!$F$7:$AI$7,J$6),"") -> 0 | J12: =IFERROR(I12/H12-1,0) -> 0 | L12: =IF(Selected_Tariff_Category_ID=2,$D12,(IFERROR(SUMIFS(SPU_Network_Costs_Current,'Workings High'!$F$7:$AI$7,N$6),""))) -> 1291.795833 | M12: =IFERROR(SUMIFS(SPU_Network_Costs_New,'Workings High'!$F$7:$AI$7,N$6),"") -> 618.675 | N12: =IFERROR(M12/L12-1,0) -> -0.5210736991 | P12: =IF(Selected_Tariff_Category_ID=2,$D12,(IFERROR(SUMIFS(SPU_Network_Costs_Current,'Workings High'!$F$7:$AI$7,R$6),""))) -> 1291.795833 | Q12: =IFERROR(SUMIFS(SPU_Network_Costs_New,'Workings High'!$F$7:$AI$7,R$6),"") -> 618.675 | R12: =IFERROR(Q12/P12-1,0) -> -0.5210736991
C13: Energy Charges | D13: ='Monthly Average Bill'!D61 -> 0 | E13: ='Monthly Average Bill'!E61 -> 60.225 | F13: =IFERROR(E13/D13-1,0) -> 0 | H13: =IF(Selected_Tariff_Category_ID=2,$D13,(IFERROR(SUMIFS(SPU_Energy_Charges_Current,'Workings High'!$F$7:$AI$7,J$6),""))) -> 0 | I13: =IFERROR(SUMIFS(SPU_Energy_Charges_New,'Workings High'!$F$7:$AI$7,J$6),"") -> 0 | J13: =IFERROR(I13/H13-1,0) -> 0 | L13: =IF(Selected_Tariff_Category_ID=2,$D13,(IFERROR(SUMIFS(SPU_Energy_Charges_Current,'Workings High'!$F$7:$AI$7,N$6),""))) -> 0 | M13: =IFERROR(SUMIFS(SPU_Energy_Charges_New,'Workings High'!$F$7:$AI$7,N$6),"") -> 60.225 | N13: =IFERROR(M13/L13-1,0) -> 0 | P13: =IF(Selected_Tariff_Category_ID=2,$D13,(IFERROR(SUMIFS(SPU_Energy_Charges_Current,'Workings High'!$F$7:$AI$7,R$6),""))) -> 0 | Q13: =IFERROR(SUMIFS(SPU_Energy_Charges_New,'Workings High'!$F$7:$AI$7,R$6),"") -> 60.225 | R13: =IFERROR(Q13/P13-1,0) -> 0
C14: Other | D14: ='Monthly Average Bill'!D62 -> 1116.595833 | E14: ='Monthly Average Bill'!E62 -> 447.125 | F14: =IFERROR(E14/D14-1,0) -> -0.5995641515 | H14: =IF(Selected_Tariff_Category_ID=2,$D14,(IFERROR(SUMIFS(SPU_Other_Charges_Current,'Workings High'!$F$7:$AI$7,J$6),""))) -> 0 | I14: =IFERROR(SUMIFS(SPU_Other_Charges_NEw,'Workings High'!$F$7:$AI$7,J$6),"") -> 0 | J14: =IFERROR(I14/H14-1,0) -> 0 | L14: =IF(Selected_Tariff_Category_ID=2,$D14,(IFERROR(SUMIFS(SPU_Other_Charges_Current,'Workings High'!$F$7:$AI$7,N$6),""))) -> 1116.595833 | M14: =IFERROR(SUMIFS(SPU_Other_Charges_NEw,'Workings High'!$F$7:$AI$7,N$6),"") -> 447.125 | N14: =IFERROR(M14/L14-1,0) -> -0.5995641515 | P14: =IF(Selected_Tariff_Category_ID=2,$D14,(IFERROR(SUMIFS(SPU_Other_Charges_Current,'Workings High'!$F$7:$AI$7,R$6),""))) -> 1116.595833 | Q14: =IFERROR(SUMIFS(SPU_Other_Charges_NEw,'Workings High'!$F$7:$AI$7,R$6),"") -> 447.125 | R14: =IFERROR(Q14/P14-1,0) -> -0.5995641515
C16: Total | D16: ='Monthly Average Bill'!G50 -> 2408.391667 | E16: ='Monthly Average Bill'!H50 -> 1126.025 | F16: =IFERROR(E16/D16-1,0) -> -0.5324576913 | H16: =SUM(H12:H14) -> 0 | I16: =SUM(I12:I14) -> 0 | J16: =IFERROR(I16/H16-1,0) -> 0 | L16: =SUM(L12:L14) -> 2408.391667 | M16: =SUM(M12:M14) -> 1126.025 | N16: =IFERROR(M16/L16-1,0) -> -0.5324576913 | P16: =SUM(P12:P14) -> 2408.391667 | Q16: =SUM(Q12:Q14) -> 1126.025 | R16: =IFERROR(Q16/P16-1,0) -> -0.5324576913
C18: Average price c/kWh | D18: ='Monthly Average Bill'!G55 -> 0 | E18: ='Monthly Average Bill'!H55 -> 0 | F18: =IFERROR(E18/D18-1,0) -> 0 | H18: =IFERROR(H16/(IF(OR(H$8="Homeflex 1",H$8="Homeflex 2", H$8="Homeflex 3",H$8="Homeflex 4"),(Homeflex_Total_Monthly_Energy),SPU_Total_Energy))*100,0) -> 0 | I18: =IFERROR(I16/(IF(OR(H$8="Homeflex 1",H$8="Homeflex 2", H$8="Homeflex 3",H$8="Homeflex 4"),(Homeflex_Total_Monthly_Energy),SPU_Total_Energy))*100,0) -> 0 | J18: =IFERROR(I18/H18-1,0) -> 0 | L18: =IFERROR(L16/(IF(OR(L$8="Homeflex 1",L$8="Homeflex 2", L$8="Homeflex 3",L$8="Homeflex 4"),(Homeflex_Total_Monthly_Energy),SPU_Total_Energy))*100,0) -> 0 | M18: =IFERROR(M16/(IF(OR(L$8="Homeflex 1",L$8="Homeflex 2", L$8="Homeflex 3",L$8="Homeflex 4"),(Homeflex_Total_Monthly_Energy),SPU_Total_Energy))*100,0) -> 0 | N18: =IFERROR(M18/L18-1,0) -> 0 | P18: =IFERROR(P16/(IF(OR(P$8="Homeflex 1",P$8="Homeflex 2", P$8="Homeflex 3",P$8="Homeflex 4"),(Homeflex_Total_Monthly_Energy),SPU_Total_Energy))*100,0) -> 0 | Q18: =IFERROR(Q16/(IF(OR(P$8="Homeflex 1",P$8="Homeflex 2", P$8="Homeflex 3",P$8="Homeflex 4"),(Homeflex_Total_Monthly_Energy),SPU_Total_Energy))*100,0) -> 0 | R18: =IFERROR(Q18/P18-1,0) -> 0
B21: Total Comparison | D21: =Current_Period -> 2024/25 | E21: =New_Period -> 2025/26 | F21: % Change
C23: =D8 -> Businessrate 1 | D23: =D16 -> 2408.391667 | E23: =E16 -> 1126.025 | F23: =IFERROR(E23/D23-1,0) -> -0.5324576913
C24: =H8 -> Businessrate 4 | D24: =H16 -> 0 | E24: =I16 -> 0 | F24: =IFERROR(E24/D24-1,0) -> 0
C25: =L8 -> Businessrate 1 | D25: =L16 -> 2408.391667 | E25: =M16 -> 1126.025 | F25: =IFERROR(E25/D25-1,0) -> -0.5324576913
C26: =P8 -> Businessrate 1 | D26: =P16 -> 2408.391667 | E26: =Q16 -> 1126.025 | F26: =IFERROR(E26/D26-1,0) -> -0.5324576913
B35: Comparison against other tariffs Low Demand | R35: ='Monthly Average Bill'!I4 -> Businessrate 1
H37: 3 | J37: =MATCH(H39,Full_Tariff_List,0) -> 4 | L37: 5 | N37: =MATCH(L39,Full_Tariff_List,0) -> 1 | P37: 7 | R37: =MATCH(P39,Full_Tariff_List,0) -> 1
D39: ='Monthly Average Bill'!I4 -> Businessrate 1 | H39: =IFERROR(INDEX(Compare_Tariff_List,Dropdown_Compare_1),$D$8) -> Businessrate 4 | L39: =IFERROR(INDEX(Compare_Tariff_List,Dropdown_Compare_2),$D$8) -> Businessrate 1 | P39: =IFERROR(INDEX(Compare_Tariff_List,Dropdown_Compare_3),$D$8) -> Businessrate 1
D40: =IFERROR(INDEX(Compare_Long_Type,Selected_Compare_Tariff_ID),"") -> Commercial Urban | H40: =IFERROR(INDEX(Compare_Long_Type,Dropdown_Compare_1),"") -> Commercial Urban | L40: =IFERROR(INDEX(Compare_Long_Type,Dropdown_Compare_2),"") -> Commercial Urban | P40: =IFERROR(INDEX(Compare_Long_Type,Dropdown_Compare_3),"") -> Commercial Urban
B41: Comparison Tariffs | D41: =Current_Period -> 2024/25 | E41: =New_Period -> 2025/26 | F41: % Change | H41: =Current_Period -> 2024/25 | I41: =New_Period -> 2025/26 | J41: % Change | L41: =Current_Period -> 2024/25 | M41: =New_Period -> 2025/26 | N41: % Change | P41: =Current_Period -> 2024/25 | Q41: =New_Period -> 2025/26 | R41: % Change
C43: Network Charges | D43: ='Monthly Average Bill'!M60 -> 1291.795833 | E43: ='Monthly Average Bill'!N60 -> 618.675 | F43: =IFERROR(E43/D43-1,0) -> -0.5210736991 | H43: =IF(Selected_Tariff_Category_ID=2,$D43,(IFERROR(SUMIFS(SPU_Network_Costs_Current,'Workings Low'!$F$7:$AI$7,J$6),""))) -> 0 | I43: =IFERROR(SUMIFS('Workings Low'!SPU_Network_Costs_New_Low,'Workings Low'!$F$7:$AI$7,J$6),"") -> 0 | J43: =IFERROR(I43/H43-1,0) -> 0 | L43: =IF(Selected_Tariff_Category_ID=2,$D43,(IFERROR(SUMIFS(SPU_Network_Costs_Current,'Workings Low'!$F$7:$AI$7,N$6),""))) -> 1291.795833 | M43: =IFERROR(SUMIFS('Workings Low'!SPU_Network_Costs_New_Low,'Workings Low'!$F$7:$AI$7,N$6),"") -> 618.675 | N43: =IFERROR(M43/L43-1,0) -> -0.5210736991 | P43: =IF(Selected_Tariff_Category_ID=2,$D43,(IFERROR(SUMIFS(SPU_Network_Costs_Current,'Workings Low'!$F$7:$AI$7,R$6),""))) -> 1291.795833 | Q43: =IFERROR(SUMIFS('Workings Low'!SPU_Network_Costs_New_Low,'Workings Low'!$F$7:$AI$7,R$6),"") -> 618.675 | R43: =IFERROR(Q43/P43-1,0) -> -0.5210736991
C44: Energy Charges | D44: ='Monthly Average Bill'!M61 -> 0 | E44: ='Monthly Average Bill'!N61 -> 60.225 | F44: =IFERROR(E44/D44-1,0) -> 0 | H44: =IF(Selected_Tariff_Category_ID=2,$D44,(IFERROR(SUMIFS(SPU_Energy_Charges_Current,'Workings Low'!$F$7:$AI$7,J$6),""))) -> 0 | I44: =IFERROR(SUMIFS('Workings Low'!SPU_Energy_Charges_New_Low,'Workings Low'!$F$7:$AI$7,J$6),"") -> 0 | J44: =IFERROR(I44/H44-1,0) -> 0 | L44: =IF(Selected_Tariff_Category_ID=2,$D44,(IFERROR(SUMIFS(SPU_Energy_Charges_Current,'Workings Low'!$F$7:$AI$7,N$6),""))) -> 0 | M44: =IFERROR(SUMIFS('Workings Low'!SPU_Energy_Charges_New_Low,'Workings Low'!$F$7:$AI$7,N$6),"") -> 60.225 | N44: =IFERROR(M44/L44-1,0) -> 0 | P44: =IF(Selected_Tariff_Category_ID=2,$D44,(IFERROR(SUMIFS(SPU_Energy_Charges_Current,'Workings Low'!$F$7:$AI$7,R$6),""))) -> 0 | Q44: =IFERROR(SUMIFS('Workings Low'!SPU_Energy_Charges_New_Low,'Workings Low'!$F$7:$AI$7,R$6),"") -> 60.225 | R44: =IFERROR(Q44/P44-1,0) -> 0
C45: Other | D45: ='Monthly Average Bill'!M62 -> 1116.595833 | E45: ='Monthly Average Bill'!N62 -> 447.125 | F45: =IFERROR(E45/D45-1,0) -> -0.5995641515 | H45: =IF(Selected_Tariff_Category_ID=2,$D45,(IFERROR(SUMIFS(SPU_Other_Charges_Current,'Workings Low'!$F$7:$AI$7,J$6),""))) -> 0 | I45: =IFERROR(SUMIFS('Workings Low'!SPU_Other_Charges_NEw_Low,'Workings Low'!$F$7:$AI$7,J$6),"") -> 0 | J45: =IFERROR(I45/H45-1,0) -> 0 | L45: =IF(Selected_Tariff_Category_ID=2,$D45,(IFERROR(SUMIFS(SPU_Other_Charges_Current,'Workings Low'!$F$7:$AI$7,N$6),""))) -> 1116.595833 | M45: =IFERROR(SUMIFS('Workings Low'!SPU_Other_Charges_NEw_Low,'Workings Low'!$F$7:$AI$7,N$6),"") -> 447.125 | N45: =IFERROR(M45/L45-1,0) -> -0.5995641515 | P45: =IF(Selected_Tariff_Category_ID=2,$D45,(IFERROR(SUMIFS(SPU_Other_Charges_Current,'Workings Low'!$F$7:$AI$7,R$6),""))) -> 1116.595833 | Q45: =IFERROR(SUMIFS('Workings Low'!SPU_Other_Charges_NEw_Low,'Workings Low'!$F$7:$AI$7,R$6),"") -> 447.125 | R45: =IFERROR(Q45/P45-1,0) -> -0.5995641515
C47: Total | D47: ='Monthly Average Bill'!P50 -> 2408.391667 | E47: ='Monthly Average Bill'!Q50 -> 1126.025 | F47: =IFERROR(E47/D47-1,0) -> -0.5324576913 | H47: =SUM(H43:H45) -> 0 | I47: =SUM(I43:I45) -> 0 | J47: =IFERROR(I47/H47-1,0) -> 0 | L47: =SUM(L43:L45) -> 2408.391667 | M47: =SUM(M43:M45) -> 1126.025 | N47: =IFERROR(M47/L47-1,0) -> -0.5324576913 | P47: =SUM(P43:P45) -> 2408.391667 | Q47: =SUM(Q43:Q45) -> 1126.025 | R47: =IFERROR(Q47/P47-1,0) -> -0.5324576913
C49: Average price c/kWh | D49: ='Monthly Average Bill'!P55 -> 0 | E49: ='Monthly Average Bill'!Q55 -> 0 | F49: =IFERROR(E49/D49-1,0) -> 0 | H49: =IFERROR(H47/(IF(OR(H$39="Homeflex 1",H$39="Homeflex 2", H$39="Homeflex 3",H$39="Homeflex 4"),(Homeflex_Total_Monthly_Energy),SPU_Total_Energy))*100,0) -> 0 | I49: =IFERROR(I47/(IF(OR(H$39="Homeflex 1",H$39="Homeflex 2", H$39="Homeflex 3",H$39="Homeflex 4"),(Homeflex_Total_Monthly_Energy),SPU_Total_Energy))*100,0) -> 0 | J49: =IFERROR(I49/H49-1,0) -> 0 | L49: =IFERROR(L47/(IF(OR(L$39="Homeflex 1",L$39="Homeflex 2", L$39="Homeflex 3",L$39="Homeflex 4"),(Homeflex_Total_Monthly_Energy),SPU_Total_Energy))*100,0) -> 0 | M49: =IFERROR(M47/(IF(OR(L$39="Homeflex 1",L$39="Homeflex 2", L$39="Homeflex 3",L$39="Homeflex 4"),(Homeflex_Total_Monthly_Energy),SPU_Total_Energy))*100,0) -> 0 | N49: =IFERROR(M49/L49-1,0) -> 0 | P49: =IFERROR(P47/(IF(OR(P$39="Homeflex 1",P$39="Homeflex 2", P$39="Homeflex 3",P$39="Homeflex 4"),(Homeflex_Total_Monthly_Energy),SPU_Total_Energy))*100,0) -> 0 | Q49: =IFERROR(Q47/(IF(OR(P$39="Homeflex 1",P$39="Homeflex 2", P$39="Homeflex 3",P$39="Homeflex 4"),(Homeflex_Total_Monthly_Energy),SPU_Total_Energy))*100,0) -> 0 | R49: =IFERROR(Q49/P49-1,0) -> 0
B52: Total Comparison | D52: =Current_Period -> 2024/25 | E52: =New_Period -> 2025/26 | F52: % Change
C54: =D39 -> Businessrate 1 | D54: =D47 -> 2408.391667 | E54: =E47 -> 1126.025 | F54: =IFERROR(E54/D54-1,0) -> -0.5324576913
C55: =H39 -> Businessrate 4 | D55: =H47 -> 0 | E55: =I47 -> 0 | F55: =IFERROR(E55/D55-1,0) -> 0
C56: =L39 -> Businessrate 1 | D56: =L47 -> 2408.391667 | E56: =M47 -> 1126.025 | F56: =IFERROR(E56/D56-1,0) -> -0.5324576913
C57: =P39 -> Businessrate 1 | D57: =P47 -> 2408.391667 | E57: =Q47 -> 1126.025 | F57: =IFERROR(E57/D57-1,0) -> -0.5324576913
C110: Descriptions
C111: Rates Comparison
C112: Average Price

Sheet FAQ (hidden)
B4: Frequently Asked Questions

Sheet Rates Table (hidden)
E2: =Inputs!G21 -> Businessrate 1 | F2: =MATCH(E2,Full_Tariff_List,0) -> 1
B4: Rates by Tariff
B6: Tariffs | E6: =E2 -> Businessrate 1 | F6: =INDEX(Full_Tariff_List,F$7,) -> Businessrate 1 | G6: Businessrate 2 | H6: Businessrate 3 | I6: Businessrate 4 | J6: Homelight 20A | K6: Homelight 60A | L6: Homepower 1 | M6: Homepower 2 | N6: Homepower 3 | O6: Homepower 4 | P6: Homepower Bulk | Q6: Landrate 1 | R6: Landrate 2 | S6: Landrate 3 | T6: Landrate 4 | U6: Landrate Dx | V6: Landlight 20A | W6: Landlight 60A | X6: Public Lighting All Night | Y6: Public Lighting 24 Hours | Z6: Public Lighting Urban Fixed | AA6: Municflex | AB6: Municrate 1 | AC6: Municrate 2 | AD6: Municrate 3 | AE6: Municrate 4 | AF6: Homeflex 1 | AG6: Homeflex 2 | AH6: Homeflex 3 | AI6: Homeflex 4 | AK6: =Selected_Base_Tariff -> Businessrate 1 | AL6: =F6 -> Businessrate 1 | AM6: Businessrate 2 | AN6: Businessrate 3 | AO6: Businessrate 4 | AP6: Homelight 20A | AQ6: Homelight 60A | AR6: Homepower 1 | AS6: Homepower 2 | AT6: Homepower 3 | AU6: Homepower 4 | AV6: Homepower Bulk | AW6: Landrate 1 | AX6: Landrate 2 | AY6: Landrate 3 | AZ6: Landrate 4 | BA6: Landrate Dx | BB6: Landlight 20A | BC6: Landlight 60A | BD6: Public Lighting All Night | BE6: Public Lighting 24 Hours | BF6: Public Lighting Urban Fixed | BG6: Municflex | BH6: Municrate 1 | BI6: Municrate 2 | BJ6: Municrate 3 | BK6: Municrate 4 | BL6: =AF6 -> Homeflex 1 | BM6: =AG6 -> Homeflex 2 | BN6: =AH6 -> Homeflex 3 | BO6: =AI6 -> Homeflex 4
E7: =F2 -> 1 | F7: 1 | G7: =F7+1 -> 2 | H7: =G7+1 -> 3 | I7: 4 | J7: 5 | K7: 6 | L7: 7 | M7: 8 | N7: 9 | O7: 10 | P7: 11 | Q7: 12 | R7: 13 | S7: 14 | T7: 15 | U7: =T7+1 -> 16 | V7: 17 | W7: 18 | X7: 19 | Y7: 20 | Z7: 21 | AA7: 28 | AB7: =AA7+1 -> 29 | AC7: =AB7+1 -> 30 | AD7: =AC7+1 -> 31 | AE7: 32 | AF7: 33 | AG7: =AF7+1 -> 34 | AH7: =AG7+1 -> 35 | AI7: =AH7+1 -> 36 | AL7: =F7 -> 1 | AM7: =G7 -> 2 | AN7: 3 | AO7: 4 | AP7: 5 | AQ7: 6 | AR7: 7 | AS7: 8 | AT7: 9 | AU7: 10 | AV7: 11 | AW7: 12 | AX7: 13 | AY7: 14 | AZ7: 15 | BA7: 16 | BB7: 17 | BC7: 18 | BD7: 19 | BE7: 20 | BF7: 21 | BG7: 28 | BH7: 29 | BI7: 30 | BJ7: 31 | BK7: 32 | BL7: =AF7 -> 33 | BM7: =AG7 -> 34 | BN7: =AH7 -> 35 | BO7: =AI7 -> 36
B8: Network charges | D8: Units | E8: =Current_Period&" Rates" -> 2024/25 Rates | F8: 2024/25 Rates | G8: 2024/25 Rates | H8: 2024/25 Rates | I8: 2024/25 Rates | J8: 2024/25 Rates | K8: 2024/25 Rates | L8: 2024/25 Rates | M8: 2024/25 Rates | N8: 2024/25 Rates | O8: 2024/25 Rates | P8: 2024/25 Rates | Q8: 2024/25 Rates | R8: 2024/25 Rates | S8: 2024/25 Rates | T8: 2024/25 Rates | U8: 2024/25 Rates | V8: 2024/25 Rates | W8: 2024/25 Rates | X8: 2024/25 Rates | Y8: 2024/25 Rates | Z8: 2024/25 Rates | AA8: 2024/25 Rates | AB8: 2024/25 Rates | AC8: 2024/25 Rates | AD8: 2024/25 Rates | AE8: 2024/25 Rates | AF8: 2024/25 Rates | AG8: 2024/25 Rates | AH8: 2024/25 Rates | AI8: 2024/25 Rates | AK8: =New_Period&" Rates" -> 2025/26 Rates | AL8: =AK8 -> 2025/26 Rates | AM8: =AL8 -> 2025/26 Rates | AN8: 2025/26 Rates | AO8: 2025/26 Rates | AP8: 2025/26 Rates | AQ8: 2025/26 Rates | AR8: 2025/26 Rates | AS8: 2025/26 Rates | AT8: 2025/26 Rates | AU8: 2025/26 Rates | AV8: 2025/26 Rates | AW8: 2025/26 Rates | AX8: 2025/26 Rates | AY8: 2025/26 Rates | AZ8: 2025/26 Rates | BA8: =AZ8 -> 2025/26 Rates | BB8: 2025/26 Rates | BC8: 2025/26 Rates | BD8: 2025/26 Rates | BE8: 2025/26 Rates | BF8: 2025/26 Rates | BG8: =BF8 -> 2025/26 Rates | BH8: =BG8 -> 2025/26 Rates | BI8: =BH8 -> 2025/26 Rates | BJ8: =BI8 -> 2025/26 Rates | BK8: 2025/26 Rates | BL8: =BE8 -> 2025/26 Rates | BM8: 2025/26 Rates | BN8: 2025/26 Rates | BO8: 2025/26 Rates
C10: Distribution network demand charge | D10: c/kWh | E10: =SUMIFS(F10:AI10,$F$7:$AI$7,$F$2) -> 29.57 | F10: =INDEX(Rates_AllOther_Current[Network demand charge '[c/kWh']],MATCH(F$40,Rates_AllOther_Current[Code],0)) -> 29.57 | G10: =INDEX(Rates_AllOther_Current[Network demand charge '[c/kWh']],MATCH(G$40,Rates_AllOther_Current[Code],0)) -> 29.57 | H10: =INDEX(Rates_AllOther_Current[Network demand charge '[c/kWh']],MATCH(H$40,Rates_AllOther_Current[Code],0)) -> 29.57 | I10: =INDEX(Rates_AllOther_Current[Network demand charge '[c/kWh']],MATCH(I$40,Rates_AllOther_Current[Code],0)) -> 29.57 | J10: =INDEX(Rates_AllOther_Current[Network demand charge '[c/kWh']],MATCH(J$40,Rates_AllOther_Current[Code],0)) -> 0 | K10: =INDEX(Rates_AllOther_Current[Network demand charge '[c/kWh']],MATCH(K$40,Rates_AllOther_Current[Code],0)) -> 0 | L10: =INDEX(Rates_AllOther_Current[Network demand charge '[c/kWh']],MATCH(L$40,Rates_AllOther_Current[Code],0)) -> 0 | M10: =INDEX(Rates_AllOther_Current[Network demand charge '[c/kWh']],MATCH(M$40,Rates_AllOther_Current[Code],0)) -> 0 | N10: =INDEX(Rates_AllOther_Current[Network demand charge '[c/kWh']],MATCH(N$40,Rates_AllOther_Current[Code],0)) -> 0 | O10: =INDEX(Rates_AllOther_Current[Network demand charge '[c/kWh']],MATCH(O$40,Rates_AllOther_Current[Code],0)) -> 0 | P10: =INDEX(Rates_AllOther_Current[Network demand charge '[c/kWh']],MATCH(P$40,Rates_AllOther_Current[Code],0)) -> 0 | Q10: =INDEX(Rates_AllOther_Current[Network demand charge '[c/kWh']],MATCH(Q$40,Rates_AllOther_Current[Code],0)) -> 52.09 | R10: =INDEX(Rates_AllOther_Current[Network demand charge '[c/kWh']],MATCH(R$40,Rates_AllOther_Current[Code],0)) -> 52.09 | S10: =INDEX(Rates_AllOther_Current[Network demand charge '[c/kWh']],MATCH(S$40,Rates_AllOther_Current[Code],0)) -> 52.09 | T10: =INDEX(Rates_AllOther_Current[Network demand charge '[c/kWh']],MATCH(T$40,Rates_AllOther_Current[Code],0)) -> 52.09 | U10: =INDEX(Rates_AllOther_Current[Network demand charge '[c/kWh']],MATCH(U$40,Rates_AllOther_Current[Code],0)) -> 0 | V10: =INDEX(Rates_AllOther_Current[Network demand charge '[c/kWh']],MATCH(V$40,Rates_AllOther_Current[Code],0)) -> 0 | W10: =INDEX(Rates_AllOther_Current[Network demand charge '[c/kWh']],MATCH(W$40,Rates_AllOther_Current[Code],0)) -> 0 | X10: =INDEX(Rates_AllOther_Current[Network demand charge '[c/kWh']],MATCH(X$40,Rates_AllOther_Current[Code],0)) -> 0 | Y10: =INDEX(Rates_AllOther_Current[Network demand charge '[c/kWh']],MATCH(Y$40,Rates_AllOther_Current[Code],0)) -> 0 | Z10: =INDEX(Rates_AllOther_Current[Network demand charge '[c/kWh']],MATCH(Z$40,Rates_AllOther_Current[Code],0)) -> 0 | AF10: n/a | AG10: n/a | AH10: n/a | AI10: n/a | AK10: =SUMIFS(AL10:BO10,$AL$7:$BO$7,Selected_Tariff_ID) -> 14.54 | AL10: =INDEX(Rates_AllOther_New[Network demand charge '[c/kWh']],MATCH(AL$40,Rates_AllOther_New[Code],0)) -> 14.54 | AM10: =INDEX(Rates_AllOther_New[Network demand charge '[c/kWh']],MATCH(AM$40,Rates_AllOther_New[Code],0)) -> 14.54 | AN10: =INDEX(Rates_AllOther_New[Network demand charge '[c/kWh']],MATCH(AN$40,Rates_AllOther_New[Code],0)) -> 14.54 | AO10: =INDEX(Rates_AllOther_New[Network demand charge '[c/kWh']],MATCH(AO$40,Rates_AllOther_New[Code],0)) -> 14.54 | AP10: =INDEX(Rates_AllOther_New[Network demand charge '[c/kWh']],MATCH(AP$40,Rates_AllOther_New[Code],0)) -> 0 | AQ10: =INDEX(Rates_AllOther_New[Network demand charge '[c/kWh']],MATCH(AQ$40,Rates_AllOther_New[Code],0)) -> 0 | AR10: =INDEX(Rates_AllOther_New[Network demand charge '[c/kWh']],MATCH(AR$40,Rates_AllOther_New[Code],0)) -> 26.37 | AS10: =INDEX(Rates_AllOther_New[Network demand charge '[c/kWh']],MATCH(AS$40,Rates_AllOther_New[Code],0)) -> 26.37 | AT10: =INDEX(Rates_AllOther_New[Network demand charge '[c/kWh']],MATCH(AT$40,Rates_AllOther_New[Code],0)) -> 26.37 | AU10: =INDEX(Rates_AllOther_New[Network demand charge '[c/kWh']],MATCH(AU$40,Rates_AllOther_New[Code],0)) -> 26.37 | AV10: =INDEX(Rates_AllOther_New[Network demand charge '[c/kWh']],MATCH(AV$40,Rates_AllOther_New[Code],0)) -> 26.37 | AW10: =INDEX(Rates_AllOther_New[Network demand charge '[c/kWh']],MATCH(AW$40,Rates_AllOther_New[Code],0)) -> 61.66 | AX10: =INDEX(Rates_AllOther_New[Network demand charge '[c/kWh']],MATCH(AX$40,Rates_AllOther_New[Code],0)) -> 61.66 | AY10: =INDEX(Rates_AllOther_New[Network demand charge '[c/kWh']],MATCH(AY$40,Rates_AllOther_New[Code],0)) -> 61.66 | AZ10: =INDEX(Rates_AllOther_New[Network demand charge '[c/kWh']],MATCH(AZ$40,Rates_AllOther_New[Code],0)) -> 61.66 | BA10: =INDEX(Rates_AllOther_New[Network demand charge '[c/kWh']],MATCH(BA$40,Rates_AllOther_New[Code],0)) -> 0 | BB10: =INDEX(Rates_AllOther_New[Network demand charge '[c/kWh']],MATCH(BB$40,Rates_AllOther_New[Code],0)) -> 0 | BC10: =INDEX(Rates_AllOther_New[Network demand charge '[c/kWh']],MATCH(BC$40,Rates_AllOther_New[Code],0)) -> 0 | BD10: =INDEX(Rates_AllOther_New[Network demand charge '[c/kWh']],MATCH(BD$40,Rates_AllOther_New[Code],0)) -> 0 | BE10: =INDEX(Rates_AllOther_New[Network demand charge '[c/kWh']],MATCH(BE$40,Rates_AllOther_New[Code],0)) -> 0 | BF10: =INDEX(Rates_AllOther_New[Network demand charge '[c/kWh']],MATCH(BF$40,Rates_AllOther_New[Code],0)) -> 0 | BH10: =INDEX(Rates_AllOther_New[Network demand charge '[c/kWh']],MATCH(BH$40,Rates_AllOther_New[Code],0)) ->  | BI10: =INDEX(Rates_AllOther_New[Network demand charge '[c/kWh']],MATCH(BI$40,Rates_AllOther_New[Code],0)) ->  | BJ10: =INDEX(Rates_AllOther_New[Network demand charge '[c/kWh']],MATCH(BJ$40,Rates_AllOther_New[Code],0)) ->  | BK10: =INDEX(Rates_AllOther_New[Network demand charge '[c/kWh']],MATCH(BK$40,Rates_AllOther_New[Code],0)) ->  | BL10: =INDEX(Rates_AllOther_New[Network demand charge '[c/kWh']],MATCH(BL$40,Rates_AllOther_New[Code],0)) -> 26.37 | BM10: =INDEX(Rates_AllOther_New[Network demand charge '[c/kWh']],MATCH(BM$40,Rates_AllOther_New[Code],0)) -> 26.37 | BN10: =INDEX(Rates_AllOther_New[Network demand charge '[c/kWh']],MATCH(BN$40,Rates_AllOther_New[Code],0)) -> 26.37 | BO10: =INDEX(Rates_AllOther_New[Network demand charge '[c/kWh']],MATCH(BO$40,Rates_AllOther_New[Code],0)) -> 26.37
C11: Network demand charge, Ancillary service charge and retail | D11: c/kWh | E11: =SUMIFS(F11:AI11,$F$7:$AI$7,$F$2) -> 0 | AF11: =INDEX(Rates_AllOther_Current[Network demand charge, Ancillary service charge and retail '[c/kWh']],MATCH(AF$40,Rates_AllOther_Current[Code],0)) -> 126.39 | AG11: =INDEX(Rates_AllOther_Current[Network demand charge, Ancillary service charge and retail '[c/kWh']],MATCH(AG$40,Rates_AllOther_Current[Code],0)) -> 126.39 | AH11: =INDEX(Rates_AllOther_Current[Network demand charge, Ancillary service charge and retail '[c/kWh']],MATCH(AH$40,Rates_AllOther_Current[Code],0)) -> 126.39 | AI11: =INDEX(Rates_AllOther_Current[Network demand charge, Ancillary service charge and retail '[c/kWh']],MATCH(AI$40,Rates_AllOther_Current[Code],0)) -> 126.39 | AK11: =SUMIFS(AL11:BO11,$AL$7:$BO$7,Selected_Tariff_ID) -> 0 | BL11: =INDEX(Rates_AllOther_New[Network demand charge, Ancillary service charge and retail '[c/kWh']],MATCH(BL$40,Rates_AllOther_New[Code],0)) -> 0 | BM11: =INDEX(Rates_AllOther_New[Network demand charge, Ancillary service charge and retail '[c/kWh']],MATCH(BM$40,Rates_AllOther_New[Code],0)) -> 0 | BN11: =INDEX(Rates_AllOther_New[Network demand charge, Ancillary service charge and retail '[c/kWh']],MATCH(BN$40,Rates_AllOther_New[Code],0)) -> 0 | BO11: =INDEX(Rates_AllOther_New[Network demand charge, Ancillary service charge and retail '[c/kWh']],MATCH(BO$40,Rates_AllOther_New[Code],0)) -> 0
C12: Network capacity charge | D12: =IF(Table_1=1,"R/kVA","R/day") -> R/day | E12: =SUMIFS(F12:AI12,$F$7:$AI$7,$F$2) -> 42.47 | F12: =INDEX(Rates_AllOther_Current[Network capacity charge '[R/POD/day']],MATCH(F$40,Rates_AllOther_Current[Code],0)) -> 42.47 | G12: =INDEX(Rates_AllOther_Current[Network capacity charge '[R/POD/day']],MATCH(G$40,Rates_AllOther_Current[Code],0)) -> 71.57 | H12: =INDEX(Rates_AllOther_Current[Network capacity charge '[R/POD/day']],MATCH(H$40,Rates_AllOther_Current[Code],0)) -> 123.64 | I12: =INDEX(Rates_AllOther_Current[Network capacity charge '[R/POD/day']],MATCH(I$40,Rates_AllOther_Current[Code],0)) -> 0 | J12: =INDEX(Rates_AllOther_Current[Network capacity charge '[R/POD/day']],MATCH(J$40,Rates_AllOther_Current[Code],0)) -> 0 | K12: =INDEX(Rates_AllOther_Current[Network capacity charge '[R/POD/day']],MATCH(K$40,Rates_AllOther_Current[Code],0)) -> 0 | L12: =INDEX(Rates_AllOther_Current[Network capacity charge '[R/POD/day']],MATCH(L$40,Rates_AllOther_Current[Code],0)) -> 10.52 | M12: =INDEX(Rates_AllOther_Current[Network capacity charge '[R/POD/day']],MATCH(M$40,Rates_AllOther_Current[Code],0)) -> 19.71 | N12: =INDEX(Rates_AllOther_Current[Network capacity charge '[R/POD/day']],MATCH(N$40,Rates_AllOther_Current[Code],0)) -> 40.69 | O12: =INDEX(Rates_AllOther_Current[Network capacity charge '[R/POD/day']],MATCH(O$40,Rates_AllOther_Current[Code],0)) -> 6.43 | P12: =INDEX(Rates_AllOther_Current[Network capacity charge '[R/POD/day']],MATCH(P$40,Rates_AllOther_Current[Code],0)) -> 66.72 | Q12: =INDEX(Rates_AllOther_Current[Network capacity charge '[R/POD/day']],MATCH(Q$40,Rates_AllOther_Current[Code],0)) -> 55.68 | R12: =INDEX(Rates_AllOther_Current[Network capacity charge '[R/POD/day']],MATCH(R$40,Rates_AllOther_Current[Code],0)) -> 85.59 | S12: =INDEX(Rates_AllOther_Current[Network capacity charge '[R/POD/day']],MATCH(S$40,Rates_AllOther_Current[Code],0)) -> 136.84 | T12: =INDEX(Rates_AllOther_Current[Network capacity charge '[R/POD/day']],MATCH(T$40,Rates_AllOther_Current[Code],0)) -> 44.34 | U12: =INDEX(Rates_AllOther_Current[Network capacity charge '[R/POD/day']],MATCH(U$40,Rates_AllOther_Current[Code],0)) -> 0 | V12: =INDEX(Rates_AllOther_Current[Network capacity charge '[R/POD/day']],MATCH(V$40,Rates_AllOther_Current[Code],0)) -> 0 | W12: =INDEX(Rates_AllOther_Current[Network capacity charge '[R/POD/day']],MATCH(W$40,Rates_AllOther_Current[Code],0)) -> 0 | X12: =INDEX(Rates_AllOther_Current[Network capacity charge '[R/POD/day']],MATCH(X$40,Rates_AllOther_Current[Code],0)) -> 0 | Y12: =INDEX(Rates_AllOther_Current[Network capacity charge '[R/POD/day']],MATCH(Y$40,Rates_AllOther_Current[Code],0)) -> 0 | Z12: =INDEX(Rates_AllOther_Current[Network capacity charge '[R/POD/day']],MATCH(Z$40,Rates_AllOther_Current[Code],0)) -> 0 | AF12: =INDEX(Rates_AllOther_Current[Network capacity charge '[R/POD/day']],MATCH(AF$40,Rates_AllOther_Current[Code],0)) -> 10.52 | AG12: =INDEX(Rates_AllOther_Current[Network capacity charge '[R/POD/day']],MATCH(AG$40,Rates_AllOther_Current[Code],0)) -> 19.71 | AH12: =INDEX(Rates_AllOther_Current[Network capacity charge '[R/POD/day']],MATCH(AH$40,Rates_AllOther_Current[Code],0)) -> 40.69 | AI12: =INDEX(Rates_AllOther_Current[Network capacity charge '[R/POD/day']],MATCH(AI$40,Rates_AllOther_Current[Code],0)) -> 6.43 | AK12: =SUMIFS(AL12:BO12,$AL$7:$BO$7,Selected_Tariff_ID) -> 20.34 | AL12: =INDEX(Rates_AllOther_New[Network capacity charge '[R/POD/day']],MATCH(AL$40,Rates_AllOther_New[Code],0)) -> 20.34 | AM12: =INDEX(Rates_AllOther_New[Network capacity charge '[R/POD/day']],MATCH(AM$40,Rates_AllOther_New[Code],0)) -> 30.21 | AN12: =INDEX(Rates_AllOther_New[Network capacity charge '[R/POD/day']],MATCH(AN$40,Rates_AllOther_New[Code],0)) -> 75.38 | AO12: =INDEX(Rates_AllOther_New[Network capacity charge '[R/POD/day']],MATCH(AO$40,Rates_AllOther_New[Code],0)) -> 0 | AP12: =INDEX(Rates_AllOther_New[Network capacity charge '[R/POD/day']],MATCH(AP$40,Rates_AllOther_New[Code],0)) -> 0 | AQ12: =INDEX(Rates_AllOther_New[Network capacity charge '[R/POD/day']],MATCH(AQ$40,Rates_AllOther_New[Code],0)) -> 0 | AR12: =INDEX(Rates_AllOther_New[Network capacity charge '[R/POD/day']],MATCH(AR$40,Rates_AllOther_New[Code],0)) -> 12.13 | AS12: =INDEX(Rates_AllOther_New[Network capacity charge '[R/POD/day']],MATCH(AS$40,Rates_AllOther_New[Code],0)) -> 27.07 | AT12: =INDEX(Rates_AllOther_New[Network capacity charge '[R/POD/day']],MATCH(AT$40,Rates_AllOther_New[Code],0)) -> 57.82 | AU12: =INDEX(Rates_AllOther_New[Network capacity charge '[R/POD/day']],MATCH(AU$40,Rates_AllOther_New[Code],0)) -> 8.35 | AV12: =INDEX(Rates_AllOther_New[Network capacity charge '[R/POD/day']],MATCH(AV$40,Rates_AllOther_New[Code],0)) -> 0 | AW12: =INDEX(Rates_AllOther_New[Network capacity charge '[R/POD/day']],MATCH(AW$40,Rates_AllOther_New[Code],0)) -> 62.2 | AX12: =INDEX(Rates_AllOther_New[Network capacity charge '[R/POD/day']],MATCH(AX$40,Rates_AllOther_New[Code],0)) -> 96.99 | AY12: =INDEX(Rates_AllOther_New[Network capacity charge '[R/POD/day']],MATCH(AY$40,Rates_AllOther_New[Code],0)) -> 155.32 | AZ12: =INDEX(Rates_AllOther_New[Network capacity charge '[R/POD/day']],MATCH(AZ$40,Rates_AllOther_New[Code],0)) -> 45.92 | BA12: =INDEX(Rates_AllOther_New[Network capacity charge '[R/POD/day']],MATCH(BA$40,Rates_AllOther_New[Code],0)) -> 0 | BB12: =INDEX(Rates_AllOther_New[Network capacity charge '[R/POD/day']],MATCH(BB$40,Rates_AllOther_New[Code],0)) -> 0 | BC12: =INDEX(Rates_AllOther_New[Network capacity charge '[R/POD/day']],MATCH(BC$40,Rates_AllOther_New[Code],0)) -> 0 | BD12: =INDEX(Rates_AllOther_New[Network capacity charge '[R/POD/day']],MATCH(BD$40,Rates_AllOther_New[Code],0)) -> 0 | BE12: =INDEX(Rates_AllOther_New[Network capacity charge '[R/POD/day']],MATCH(BE$40,Rates_AllOther_New[Code],0)) -> 0 | BF12: =INDEX(Rates_AllOther_New[Network capacity charge '[R/POD/day']],MATCH(BF$40,Rates_AllOther_New[Code],0)) -> 0 | BH12: =INDEX(Rates_AllOther_New[Network capacity charge '[R/POD/day']],MATCH(BH$40,Rates_AllOther_New[Code],0)) ->  | BI12: =INDEX(Rates_AllOther_New[Network capacity charge '[R/POD/day']],MATCH(BI$40,Rates_AllOther_New[Code],0)) ->  | BJ12: =INDEX(Rates_AllOther_New[Network capacity charge '[R/POD/day']],MATCH(BJ$40,Rates_AllOther_New[Code],0)) ->  | BK12: =INDEX(Rates_AllOther_New[Network capacity charge '[R/POD/day']],MATCH(BK$40,Rates_AllOther_New[Code],0)) ->  | BL12: =INDEX(Rates_AllOther_New[Network capacity charge '[R/POD/day']],MATCH(BL$40,Rates_AllOther_New[Code],0)) -> 12.13 | BM12: =INDEX(Rates_AllOther_New[Network capacity charge '[R/POD/day']],MATCH(BM$40,Rates_AllOther_New[Code],0)) -> 27.07 | BN12: =INDEX(Rates_AllOther_New[Network capacity charge '[R/POD/day']],MATCH(BN$40,Rates_AllOther_New[Code],0)) -> 57.82 | BO12: =INDEX(Rates_AllOther_New[Network capacity charge '[R/POD/day']],MATCH(BO$40,Rates_AllOther_New[Code],0)) -> 8.35
B14: Total network charges
B16: Energy charges - High | D16: Units | E16: =E$8 -> 2024/25 Rates | F16: =F$8 -> 2024/25 Rates | G16: 2024/25 Rates | H16: 2024/25 Rates | I16: 2024/25 Rates | J16: 2024/25 Rates | K16: 2024/25 Rates | L16: 2024/25 Rates | M16: 2024/25 Rates | N16: 2024/25 Rates | O16: 2024/25 Rates | P16: 2024/25 Rates | Q16: 2024/25 Rates | R16: 2024/25 Rates | S16: 2024/25 Rates | T16: 2024/25 Rates | U16: 2024/25 Rates | V16: 2024/25 Rates | W16: 2024/25 Rates | X16: 2024/25 Rates | Y16: 2024/25 Rates | Z16: 2024/25 Rates | AA16: 2024/25 Rates | AB16: 2024/25 Rates | AC16: 2024/25 Rates | AD16: 2024/25 Rates | AE16: 2024/25 Rates | AF16: 2024/25 Rates | AG16: 2024/25 Rates | AH16: 2024/25 Rates | AI16: 2024/25 Rates | AK16: =AK$8 -> 2025/26 Rates | AL16: =AL$8 -> 2025/26 Rates | AM16: 2025/26 Rates | AN16: 2025/26 Rates | AO16: 2025/26 Rates | AP16: 2025/26 Rates | AQ16: 2025/26 Rates | AR16: 2025/26 Rates | AS16: 2025/26 Rates | AT16: 2025/26 Rates | AU16: 2025/26 Rates | AV16: 2025/26 Rates | AW16: 2025/26 Rates | AX16: 2025/26 Rates | AY16: 2025/26 Rates | AZ16: 2025/26 Rates | BA16: 2025/26 Rates | BB16: 2025/26 Rates | BC16: 2025/26 Rates | BD16: 2025/26 Rates | BE16: 2025/26 Rates | BF16: 2025/26 Rates | BG16: 2025/26 Rates | BH16: 2025/26 Rates | BI16: 2025/26 Rates | BJ16: 2025/26 Rates | BK16: 2025/26 Rates | BL16: 2025/26 Rates | BM16: 2025/26 Rates | BN16: 2025/26 Rates | BO16: 2025/26 Rates
C18: Energy | D18: c/kWh | E18: =SUMIFS(F18:AI18,$F$7:$AI$7,$F$2) -> 209.5 | F18: =INDEX(Rates_AllOther_Current[Energy charge '[c/kWh']],MATCH(F$40,Rates_AllOther_Current[Code],0)) -> 209.5 | G18: =INDEX(Rates_AllOther_Current[Energy charge '[c/kWh']],MATCH(G$40,Rates_AllOther_Current[Code],0)) -> 209.5 | H18: =INDEX(Rates_AllOther_Current[Energy charge '[c/kWh']],MATCH(H$40,Rates_AllOther_Current[Code],0)) -> 209.5 | I18: =INDEX(Rates_AllOther_Current[Energy charge '[c/kWh']],MATCH(I$40,Rates_AllOther_Current[Code],0)) -> 563.81 | J18: =INDEX(Rates_AllOther_Current[Energy charge '[c/kWh']],MATCH(J$40,Rates_AllOther_Current[Code],0)) -> 0 | K18: =INDEX(Rates_AllOther_Current[Energy charge '[c/kWh']],MATCH(K$40,Rates_AllOther_Current[Code],0)) -> 0 | L18: =INDEX(Rates_AllOther_Current[Energy charge '[c/kWh']],MATCH(L$40,Rates_AllOther_Current[Code],0)) -> 0 | M18: =INDEX(Rates_AllOther_Current[Energy charge '[c/kWh']],MATCH(M$40,Rates_AllOther_Current[Code],0)) -> 0 | N18: =INDEX(Rates_AllOther_Current[Energy charge '[c/kWh']],MATCH(N$40,Rates_AllOther_Current[Code],0)) -> 0 | O18: =INDEX(Rates_AllOther_Current[Energy charge '[c/kWh']],MATCH(O$40,Rates_AllOther_Current[Code],0)) -> 0 | P18: =INDEX(Rates_AllOther_Current[Energy charge '[c/kWh']],MATCH(P$40,Rates_AllOther_Current[Code],0)) -> 322.39 | Q18: =INDEX(Rates_AllOther_Current[Energy charge '[c/kWh']],MATCH(Q$40,Rates_AllOther_Current[Code],0)) -> 208.48 | R18: =INDEX(Rates_AllOther_Current[Energy charge '[c/kWh']],MATCH(R$40,Rates_AllOther_Current[Code],0)) -> 208.48 | S18: =INDEX(Rates_AllOther_Current[Energy charge '[c/kWh']],MATCH(S$40,Rates_AllOther_Current[Code],0)) -> 208.48 | T18: =INDEX(Rates_AllOther_Current[Energy charge '[c/kWh']],MATCH(T$40,Rates_AllOther_Current[Code],0)) -> 450.29 | U18: =INDEX(Rates_AllOther_Current[Energy charge '[c/kWh']],MATCH(U$40,Rates_AllOther_Current[Code],0)) -> 0 | V18: =INDEX(Rates_AllOther_Current[Energy charge '[c/kWh']],MATCH(V$40,Rates_AllOther_Current[Code],0)) -> 599.48 | W18: =INDEX(Rates_AllOther_Current[Energy charge '[c/kWh']],MATCH(W$40,Rates_AllOther_Current[Code],0)) -> 772.81 | X18: =INDEX(Rates_AllOther_Current[Energy charge '[c/kWh']],MATCH(X$40,Rates_AllOther_Current[Code],0)) -> 166.73 | Y18: =INDEX(Rates_AllOther_Current[Energy charge '[c/kWh']],MATCH(Y$40,Rates_AllOther_Current[Code],0)) -> 223.24 | Z18: =INDEX(Rates_AllOther_Current[Energy charge '[c/kWh']],MATCH(Z$40,Rates_AllOther_Current[Code],0)) -> 0 | AF18: =INDEX(Rates_AllOther_Current[Energy charge '[c/kWh']],MATCH(AF$40,Rates_AllOther_Current[Code],0)) -> 0 | AG18: =INDEX(Rates_AllOther_Current[Energy charge '[c/kWh']],MATCH(AG$40,Rates_AllOther_Current[Code],0)) -> 0 | AH18: =INDEX(Rates_AllOther_Current[Energy charge '[c/kWh']],MATCH(AH$40,Rates_AllOther_Current[Code],0)) -> 0 | AI18: =INDEX(Rates_AllOther_Current[Energy charge '[c/kWh']],MATCH(AI$40,Rates_AllOther_Current[Code],0)) -> 0 | AK18: =SUMIFS(AL18:BO18,$AL$7:$BO$7,Selected_Tariff_ID) -> 224.93 | AL18: =INDEX(Rates_AllOther_New[Energy charge '[c/kWh']],MATCH(AL$40,Rates_AllOther_New[Code],0)) -> 224.93 | AM18: =INDEX(Rates_AllOther_New[Energy charge '[c/kWh']],MATCH(AM$40,Rates_AllOther_New[Code],0)) -> 224.93 | AN18: =INDEX(Rates_AllOther_New[Energy charge '[c/kWh']],MATCH(AN$40,Rates_AllOther_New[Code],0)) -> 224.93 | AO18: =INDEX(Rates_AllOther_New[Energy charge '[c/kWh']],MATCH(AO$40,Rates_AllOther_New[Code],0)) -> 350.09 | AP18: =INDEX(Rates_AllOther_New[Energy charge '[c/kWh']],MATCH(AP$40,Rates_AllOther_New[Code],0)) -> 216.11 | AQ18: =INDEX(Rates_AllOther_New[Energy charge '[c/kWh']],MATCH(AQ$40,Rates_AllOther_New[Code],0)) -> 274.72 | AR18: =INDEX(Rates_AllOther_New[Energy charge '[c/kWh']],MATCH(AR$40,Rates_AllOther_New[Code],0)) -> 268.78 | AS18: =INDEX(Rates_AllOther_New[Energy charge '[c/kWh']],MATCH(AS$40,Rates_AllOther_New[Code],0)) -> 268.78 | AT18: =INDEX(Rates_AllOther_New[Energy charge '[c/kWh']],MATCH(AT$40,Rates_AllOther_New[Code],0)) -> 268.78 | AU18: =INDEX(Rates_AllOther_New[Energy charge '[c/kWh']],MATCH(AU$40,Rates_AllOther_New[Code],0)) -> 268.78 | AV18: =INDEX(Rates_AllOther_New[Energy charge '[c/kWh']],MATCH(AV$40,Rates_AllOther_New[Code],0)) -> 268.78 | AW18: =INDEX(Rates_AllOther_New[Energy charge '[c/kWh']],MATCH(AW$40,Rates_AllOther_New[Code],0)) -> 224.93 | AX18: =INDEX(Rates_AllOther_New[Energy charge '[c/kWh']],MATCH(AX$40,Rates_AllOther_New[Code],0)) -> 224.93 | AY18: =INDEX(Rates_AllOther_New[Energy charge '[c/kWh']],MATCH(AY$40,Rates_AllOther_New[Code],0)) -> 224.93 | AZ18: =INDEX(Rates_AllOther_New[Energy charge '[c/kWh']],MATCH(AZ$40,Rates_AllOther_New[Code],0)) -> 369.32 | BA18: =INDEX(Rates_AllOther_New[Energy charge '[c/kWh']],MATCH(BA$40,Rates_AllOther_New[Code],0)) -> 0 | BB18: =INDEX(Rates_AllOther_New[Energy charge '[c/kWh']],MATCH(BB$40,Rates_AllOther_New[Code],0)) -> 603.54 | BC18: =INDEX(Rates_AllOther_New[Energy charge '[c/kWh']],MATCH(BC$40,Rates_AllOther_New[Code],0)) -> 836 | BD18: =INDEX(Rates_AllOther_New[Energy charge '[c/kWh']],MATCH(BD$40,Rates_AllOther_New[Code],0)) -> 242.11 | BE18: =INDEX(Rates_AllOther_New[Energy charge '[c/kWh']],MATCH(BE$40,Rates_AllOther_New[Code],0)) -> 232.22 | BF18: =INDEX(Rates_AllOther_New[Energy charge '[c/kWh']],MATCH(BF$40,Rates_AllOther_New[Code],0)) -> 0 | BH18: =INDEX(Rates_AllOther_New[Energy charge '[c/kWh']],MATCH(BH$40,Rates_AllOther_New[Code],0)) ->  | BI18: =INDEX(Rates_AllOther_New[Energy charge '[c/kWh']],MATCH(BI$40,Rates_AllOther_New[Code],0)) ->  | BJ18: =INDEX(Rates_AllOther_New[Energy charge '[c/kWh']],MATCH(BJ$40,Rates_AllOther_New[Code],0)) ->  | BK18: =INDEX(Rates_AllOther_New[Energy charge '[c/kWh']],MATCH(BK$40,Rates_AllOther_New[Code],0)) ->  | BL18: =INDEX(Rates_AllOther_New[Energy charge '[c/kWh']],MATCH(BL$40,Rates_AllOther_New[Code],0)) -> n/a | BM18: =INDEX(Rates_AllOther_New[Energy charge '[c/kWh']],MATCH(BM$40,Rates_AllOther_New[Code],0)) -> n/a | BN18: =INDEX(Rates_AllOther_New[Energy charge '[c/kWh']],MATCH(BN$40,Rates_AllOther_New[Code],0)) -> n/a | BO18: =INDEX(Rates_AllOther_New[Energy charge '[c/kWh']],MATCH(BO$40,Rates_AllOther_New[Code],0)) -> n/a
C19: Peak consumption | D19: c/kWh | E19: 0 | AF19: =INDEX(Rates_AllOther_Current[High - Peak],MATCH(AF$40,Rates_AllOther_Current[Code],0)) -> 611.94 | AG19: =INDEX(Rates_AllOther_Current[High - Peak],MATCH(AG$40,Rates_AllOther_Current[Code],0)) -> 611.94 | AH19: =INDEX(Rates_AllOther_Current[High - Peak],MATCH(AH$40,Rates_AllOther_Current[Code],0)) -> 611.94 | AI19: =INDEX(Rates_AllOther_Current[High - Peak],MATCH(AI$40,Rates_AllOther_Current[Code],0)) -> 611.94 | AK19: 0 | BL19: =INDEX(Rates_AllOther_New[High - Peak],MATCH(BL$40,Rates_AllOther_New[Code],0)) -> 706.97 | BM19: =INDEX(Rates_AllOther_New[High - Peak],MATCH(BM$40,Rates_AllOther_New[Code],0)) -> 706.97 | BN19: =INDEX(Rates_AllOther_New[High - Peak],MATCH(BN$40,Rates_AllOther_New[Code],0)) -> 706.97 | BO19: =INDEX(Rates_AllOther_New[High - Peak],MATCH(BO$40,Rates_AllOther_New[Code],0)) -> 706.97
C20: Standard consumption | D20: c/kWh | E20: 0 | AF20: =INDEX(Rates_AllOther_Current[High - Standard],MATCH(AF$40,Rates_AllOther_Current[Code],0)) -> 186.18 | AG20: =INDEX(Rates_AllOther_Current[High - Standard],MATCH(AG$40,Rates_AllOther_Current[Code],0)) -> 186.18 | AH20: =INDEX(Rates_AllOther_Current[High - Standard],MATCH(AH$40,Rates_AllOther_Current[Code],0)) -> 186.18 | AI20: =INDEX(Rates_AllOther_Current[High - Standard],MATCH(AI$40,Rates_AllOther_Current[Code],0)) -> 186.18 | AK20: 0 | BL20: =INDEX(Rates_AllOther_New[High - Standard],MATCH(BL$40,Rates_AllOther_New[Code],0)) -> 216.31 | BM20: =INDEX(Rates_AllOther_New[High - Standard],MATCH(BM$40,Rates_AllOther_New[Code],0)) -> 216.31 | BN20: =INDEX(Rates_AllOther_New[High - Standard],MATCH(BN$40,Rates_AllOther_New[Code],0)) -> 216.31 | BO20: =INDEX(Rates_AllOther_New[High - Standard],MATCH(BO$40,Rates_AllOther_New[Code],0)) -> 216.31
C21: Off-Peak consumption | D21: c/kWh | E21: 0 | AF21: =INDEX(Rates_AllOther_Current[High-Off Peak],MATCH(AF$40,Rates_AllOther_Current[Code],0)) -> 101.66 | AG21: =INDEX(Rates_AllOther_Current[High-Off Peak],MATCH(AG$40,Rates_AllOther_Current[Code],0)) -> 101.66 | AH21: =INDEX(Rates_AllOther_Current[High-Off Peak],MATCH(AH$40,Rates_AllOther_Current[Code],0)) -> 101.66 | AI21: =INDEX(Rates_AllOther_Current[High-Off Peak],MATCH(AI$40,Rates_AllOther_Current[Code],0)) -> 101.66 | AK21: 0 | BL21: =INDEX(Rates_AllOther_New[High-Off Peak],MATCH(BL$40,Rates_AllOther_New[Code],0)) -> 159.26 | BM21: =INDEX(Rates_AllOther_New[High-Off Peak],MATCH(BM$40,Rates_AllOther_New[Code],0)) -> 159.26 | BN21: =INDEX(Rates_AllOther_New[High-Off Peak],MATCH(BN$40,Rates_AllOther_New[Code],0)) -> 159.26 | BO21: =INDEX(Rates_AllOther_New[High-Off Peak],MATCH(BO$40,Rates_AllOther_New[Code],0)) -> 159.26
C22: Energy - Block 1 | D22: c/kWh | E22: 0 | F22: =INDEX(Rates_AllOther_Current[Energy charge Block 1 '[c/kWh']],MATCH(F$40,Rates_AllOther_Current[Code],0)) -> 0 | G22: =INDEX(Rates_AllOther_Current[Energy charge Block 1 '[c/kWh']],MATCH(G$40,Rates_AllOther_Current[Code],0)) -> 0 | H22: =INDEX(Rates_AllOther_Current[Energy charge Block 1 '[c/kWh']],MATCH(H$40,Rates_AllOther_Current[Code],0)) -> 0 | I22: =INDEX(Rates_AllOther_Current[Energy charge Block 1 '[c/kWh']],MATCH(I$40,Rates_AllOther_Current[Code],0)) -> 0 | J22: =INDEX(Rates_AllOther_Current[Energy charge Block 1 '[c/kWh']],MATCH(J$40,Rates_AllOther_Current[Code],0)) -> 190.28 | K22: =INDEX(Rates_AllOther_Current[Energy charge Block 1 '[c/kWh']],MATCH(K$40,Rates_AllOther_Current[Code],0)) -> 232.31 | L22: =INDEX(Rates_AllOther_Current[Energy charge Block 1 '[c/kWh']],MATCH(L$40,Rates_AllOther_Current[Code],0)) -> 245.54 | M22: =INDEX(Rates_AllOther_Current[Energy charge Block 1 '[c/kWh']],MATCH(M$40,Rates_AllOther_Current[Code],0)) -> 245.54 | N22: =INDEX(Rates_AllOther_Current[Energy charge Block 1 '[c/kWh']],MATCH(N$40,Rates_AllOther_Current[Code],0)) -> 245.54 | O22: =INDEX(Rates_AllOther_Current[Energy charge Block 1 '[c/kWh']],MATCH(O$40,Rates_AllOther_Current[Code],0)) -> 245.54 | P22: =INDEX(Rates_AllOther_Current[Energy charge Block 1 '[c/kWh']],MATCH(P$40,Rates_AllOther_Current[Code],0)) -> 0 | Q22: =INDEX(Rates_AllOther_Current[Energy charge Block 1 '[c/kWh']],MATCH(Q$40,Rates_AllOther_Current[Code],0)) -> 0 | R22: =INDEX(Rates_AllOther_Current[Energy charge Block 1 '[c/kWh']],MATCH(R$40,Rates_AllOther_Current[Code],0)) -> 0 | S22: =INDEX(Rates_AllOther_Current[Energy charge Block 1 '[c/kWh']],MATCH(S$40,Rates_AllOther_Current[Code],0)) -> 0 | T22: =INDEX(Rates_AllOther_Current[Energy charge Block 1 '[c/kWh']],MATCH(T$40,Rates_AllOther_Current[Code],0)) -> 0 | U22: =INDEX(Rates_AllOther_Current[Energy charge Block 1 '[c/kWh']],MATCH(U$40,Rates_AllOther_Current[Code],0)) -> 0 | V22: =INDEX(Rates_AllOther_Current[Energy charge Block 1 '[c/kWh']],MATCH(V$40,Rates_AllOther_Current[Code],0)) -> 0 | W22: =INDEX(Rates_AllOther_Current[Energy charge Block 1 '[c/kWh']],MATCH(W$40,Rates_AllOther_Current[Code],0)) -> 0 | X22: =INDEX(Rates_AllOther_Current[Energy charge Block 1 '[c/kWh']],MATCH(X$40,Rates_AllOther_Current[Code],0)) -> 0 | Y22: =INDEX(Rates_AllOther_Current[Energy charge Block 1 '[c/kWh']],MATCH(Y$40,Rates_AllOther_Current[Code],0)) -> 0 | Z22: =INDEX(Rates_AllOther_Current[Energy charge Block 1 '[c/kWh']],MATCH(Z$40,Rates_AllOther_Current[Code],0)) -> 0 | AF22: =INDEX(Rates_AllOther_Current[Energy charge Block 1 '[c/kWh']],MATCH(AF$40,Rates_AllOther_Current[Code],0)) -> 0 | AG22: =INDEX(Rates_AllOther_Current[Energy charge Block 1 '[c/kWh']],MATCH(AG$40,Rates_AllOther_Current[Code],0)) -> 0 | AH22: =INDEX(Rates_AllOther_Current[Energy charge Block 1 '[c/kWh']],MATCH(AH$40,Rates_AllOther_Current[Code],0)) -> 0 | AI22: =INDEX(Rates_AllOther_Current[Energy charge Block 1 '[c/kWh']],MATCH(AI$40,Rates_AllOther_Current[Code],0)) -> 0 | AK22: 0 | AL22: =INDEX(Rates_AllOther_New[Energy charge Block 1 '[c/kWh']],MATCH(AL$40,Rates_AllOther_New[Code],0)) -> 0 | AM22: =INDEX(Rates_AllOther_New[Energy charge Block 1 '[c/kWh']],MATCH(AM$40,Rates_AllOther_New[Code],0)) -> 0 | AN22: =INDEX(Rates_AllOther_New[Energy charge Block 1 '[c/kWh']],MATCH(AN$40,Rates_AllOther_New[Code],0)) -> 0 | AO22: =INDEX(Rates_AllOther_New[Energy charge Block 1 '[c/kWh']],MATCH(AO$40,Rates_AllOther_New[Code],0)) -> 0 | AP22: =INDEX(Rates_AllOther_New[Energy charge Block 1 '[c/kWh']],MATCH(AP$40,Rates_AllOther_New[Code],0)) -> 0 | AQ22: =INDEX(Rates_AllOther_New[Energy charge Block 1 '[c/kWh']],MATCH(AQ$40,Rates_AllOther_New[Code],0)) -> 0 | AR22: =INDEX(Rates_AllOther_New[Energy charge Block 1 '[c/kWh']],MATCH(AR$40,Rates_AllOther_New[Code],0)) -> 0 | AS22: =INDEX(Rates_AllOther_New[Energy charge Block 1 '[c/kWh']],MATCH(AS$40,Rates_AllOther_New[Code],0)) -> 0 | AT22: =INDEX(Rates_AllOther_New[Energy charge Block 1 '[c/kWh']],MATCH(AT$40,Rates_AllOther_New[Code],0)) -> 0 | AU22: =INDEX(Rates_AllOther_New[Energy charge Block 1 '[c/kWh']],MATCH(AU$40,Rates_AllOther_New[Code],0)) -> 0 | AV22: =INDEX(Rates_AllOther_New[Energy charge Block 1 '[c/kWh']],MATCH(AV$40,Rates_AllOther_New[Code],0)) -> 0 | AW22: =INDEX(Rates_AllOther_New[Energy charge Block 1 '[c/kWh']],MATCH(AW$40,Rates_AllOther_New[Code],0)) -> 0 | AX22: =INDEX(Rates_AllOther_New[Energy charge Block 1 '[c/kWh']],MATCH(AX$40,Rates_AllOther_New[Code],0)) -> 0 | AY22: =INDEX(Rates_AllOther_New[Energy charge Block 1 '[c/kWh']],MATCH(AY$40,Rates_AllOther_New[Code],0)) -> 0 | AZ22: =INDEX(Rates_AllOther_New[Energy charge Block 1 '[c/kWh']],MATCH(AZ$40,Rates_AllOther_New[Code],0)) -> 0 | BA22: =INDEX(Rates_AllOther_New[Energy charge Block 1 '[c/kWh']],MATCH(BA$40,Rates_AllOther_New[Code],0)) -> 0 | BB22: =INDEX(Rates_AllOther_New[Energy charge Block 1 '[c/kWh']],MATCH(BB$40,Rates_AllOther_New[Code],0)) -> 0 | BC22: =INDEX(Rates_AllOther_New[Energy charge Block 1 '[c/kWh']],MATCH(BC$40,Rates_AllOther_New[Code],0)) -> 0 | BD22: =INDEX(Rates_AllOther_New[Energy charge Block 1 '[c/kWh']],MATCH(BD$40,Rates_AllOther_New[Code],0)) -> 0 | BE22: =INDEX(Rates_AllOther_New[Energy charge Block 1 '[c/kWh']],MATCH(BE$40,Rates_AllOther_New[Code],0)) -> 0 | BF22: =INDEX(Rates_AllOther_New[Energy charge Block 1 '[c/kWh']],MATCH(BF$40,Rates_AllOther_New[Code],0)) -> 0 | BH22: =INDEX(Rates_AllOther_New[Energy charge Block 1 '[c/kWh']],MATCH(BH$40,Rates_AllOther_New[Code],0)) ->  | BI22: =INDEX(Rates_AllOther_New[Energy charge Block 1 '[c/kWh']],MATCH(BI$40,Rates_AllOther_New[Code],0)) ->  | BJ22: =INDEX(Rates_AllOther_New[Energy charge Block 1 '[c/kWh']],MATCH(BJ$40,Rates_AllOther_New[Code],0)) ->  | BK22: =INDEX(Rates_AllOther_New[Energy charge Block 1 '[c/kWh']],MATCH(BK$40,Rates_AllOther_New[Code],0)) ->  | BL22: =INDEX(Rates_AllOther_New[Energy charge Block 1 '[c/kWh']],MATCH(BL$40,Rates_AllOther_New[Code],0)) -> n/a | BM22: =INDEX(Rates_AllOther_New[Energy charge Block 1 '[c/kWh']],MATCH(BM$40,Rates_AllOther_New[Code],0)) -> n/a | BN22: =INDEX(Rates_AllOther_New[Energy charge Block 1 '[c/kWh']],MATCH(BN$40,Rates_AllOther_New[Code],0)) -> n/a | BO22: =INDEX(Rates_AllOther_New[Energy charge Block 1 '[c/kWh']],MATCH(BO$40,Rates_AllOther_New[Code],0)) -> n/a
C23: Energy - Block 2 | D23: c/kWh | E23: 0 | F23: =INDEX(Rates_AllOther_Current[Energy charge Block 2 '[c/kWh']],MATCH(F$40,Rates_AllOther_Current[Code],0)) -> 0 | G23: =INDEX(Rates_AllOther_Current[Energy charge Block 2 '[c/kWh']],MATCH(G$40,Rates_AllOther_Current[Code],0)) -> 0 | H23: =INDEX(Rates_AllOther_Current[Energy charge Block 2 '[c/kWh']],MATCH(H$40,Rates_AllOther_Current[Code],0)) -> 0 | I23: =INDEX(Rates_AllOther_Current[Energy charge Block 2 '[c/kWh']],MATCH(I$40,Rates_AllOther_Current[Code],0)) -> 0 | J23: =INDEX(Rates_AllOther_Current[Energy charge Block 2 '[c/kWh']],MATCH(J$40,Rates_AllOther_Current[Code],0)) -> 215.62 | K23: =INDEX(Rates_AllOther_Current[Energy charge Block 2 '[c/kWh']],MATCH(K$40,Rates_AllOther_Current[Code],0)) -> 394.86 | L23: =INDEX(Rates_AllOther_Current[Energy charge Block 2 '[c/kWh']],MATCH(L$40,Rates_AllOther_Current[Code],0)) -> 387.72 | M23: =INDEX(Rates_AllOther_Current[Energy charge Block 2 '[c/kWh']],MATCH(M$40,Rates_AllOther_Current[Code],0)) -> 378.05 | N23: =INDEX(Rates_AllOther_Current[Energy charge Block 2 '[c/kWh']],MATCH(N$40,Rates_AllOther_Current[Code],0)) -> 378.05 | O23: =INDEX(Rates_AllOther_Current[Energy charge Block 2 '[c/kWh']],MATCH(O$40,Rates_AllOther_Current[Code],0)) -> 394.86 | P23: =INDEX(Rates_AllOther_Current[Energy charge Block 2 '[c/kWh']],MATCH(P$40,Rates_AllOther_Current[Code],0)) -> 0 | Q23: =INDEX(Rates_AllOther_Current[Energy charge Block 2 '[c/kWh']],MATCH(Q$40,Rates_AllOther_Current[Code],0)) -> 0 | R23: =INDEX(Rates_AllOther_Current[Energy charge Block 2 '[c/kWh']],MATCH(R$40,Rates_AllOther_Current[Code],0)) -> 0 | S23: =INDEX(Rates_AllOther_Current[Energy charge Block 2 '[c/kWh']],MATCH(S$40,Rates_AllOther_Current[Code],0)) -> 0 | T23: =INDEX(Rates_AllOther_Current[Energy charge Block 2 '[c/kWh']],MATCH(T$40,Rates_AllOther_Current[Code],0)) -> 0 | U23: =INDEX(Rates_AllOther_Current[Energy charge Block 2 '[c/kWh']],MATCH(U$40,Rates_AllOther_Current[Code],0)) -> 0 | V23: =INDEX(Rates_AllOther_Current[Energy charge Block 2 '[c/kWh']],MATCH(V$40,Rates_AllOther_Current[Code],0)) -> 0 | W23: =INDEX(Rates_AllOther_Current[Energy charge Block 2 '[c/kWh']],MATCH(W$40,Rates_AllOther_Current[Code],0)) -> 0 | X23: =INDEX(Rates_AllOther_Current[Energy charge Block 2 '[c/kWh']],MATCH(X$40,Rates_AllOther_Current[Code],0)) -> 0 | Y23: =INDEX(Rates_AllOther_Current[Energy charge Block 2 '[c/kWh']],MATCH(Y$40,Rates_AllOther_Current[Code],0)) -> 0 | Z23: =INDEX(Rates_AllOther_Current[Energy charge Block 2 '[c/kWh']],MATCH(Z$40,Rates_AllOther_Current[Code],0)) -> 0 | AF23: =INDEX(Rates_AllOther_Current[Energy charge Block 2 '[c/kWh']],MATCH(AF$40,Rates_AllOther_Current[Code],0)) -> 0 | AG23: =INDEX(Rates_AllOther_Current[Energy charge Block 2 '[c/kWh']],MATCH(AG$40,Rates_AllOther_Current[Code],0)) -> 0 | AH23: =INDEX(Rates_AllOther_Current[Energy charge Block 2 '[c/kWh']],MATCH(AH$40,Rates_AllOther_Current[Code],0)) -> 0 | AI23: =INDEX(Rates_AllOther_Current[Energy charge Block 2 '[c/kWh']],MATCH(AI$40,Rates_AllOther_Current[Code],0)) -> 0 | AK23: 0 | AL23: =INDEX(Rates_AllOther_New[Energy charge Block 2 '[c/kWh']],MATCH(AL$40,Rates_AllOther_New[Code],0)) -> 0 | AM23: =INDEX(Rates_AllOther_New[Energy charge Block 2 '[c/kWh']],MATCH(AM$40,Rates_AllOther_New[Code],0)) -> 0 | AN23: =INDEX(Rates_AllOther_New[Energy charge Block 2 '[c/kWh']],MATCH(AN$40,Rates_AllOther_New[Code],0)) -> 0 | AO23: =INDEX(Rates_AllOther_New[Energy charge Block 2 '[c/kWh']],MATCH(AO$40,Rates_AllOther_New[Code],0)) -> 0 | AP23: =INDEX(Rates_AllOther_New[Energy charge Block 2 '[c/kWh']],MATCH(AP$40,Rates_AllOther_New[Code],0)) -> 0 | AQ23: =INDEX(Rates_AllOther_New[Energy charge Block 2 '[c/kWh']],MATCH(AQ$40,Rates_AllOther_New[Code],0)) -> 0 | AR23: =INDEX(Rates_AllOther_New[Energy charge Block 2 '[c/kWh']],MATCH(AR$40,Rates_AllOther_New[Code],0)) -> 0 | AS23: =INDEX(Rates_AllOther_New[Energy charge Block 2 '[c/kWh']],MATCH(AS$40,Rates_AllOther_New[Code],0)) -> 0 | AT23: =INDEX(Rates_AllOther_New[Energy charge Block 2 '[c/kWh']],MATCH(AT$40,Rates_AllOther_New[Code],0)) -> 0 | AU23: =INDEX(Rates_AllOther_New[Energy charge Block 2 '[c/kWh']],MATCH(AU$40,Rates_AllOther_New[Code],0)) -> 0 | AV23: =INDEX(Rates_AllOther_New[Energy charge Block 2 '[c/kWh']],MATCH(AV$40,Rates_AllOther_New[Code],0)) -> 0 | AW23: =INDEX(Rates_AllOther_New[Energy charge Block 2 '[c/kWh']],MATCH(AW$40,Rates_AllOther_New[Code],0)) -> 0 | AX23: =INDEX(Rates_AllOther_New[Energy charge Block 2 '[c/kWh']],MATCH(AX$40,Rates_AllOther_New[Code],0)) -> 0 | AY23: =INDEX(Rates_AllOther_New[Energy charge Block 2 '[c/kWh']],MATCH(AY$40,Rates_AllOther_New[Code],0)) -> 0 | AZ23: =INDEX(Rates_AllOther_New[Energy charge Block 2 '[c/kWh']],MATCH(AZ$40,Rates_AllOther_New[Code],0)) -> 0 | BA23: =INDEX(Rates_AllOther_New[Energy charge Block 2 '[c/kWh']],MATCH(BA$40,Rates_AllOther_New[Code],0)) -> 0 | BB23: =INDEX(Rates_AllOther_New[Energy charge Block 2 '[c/kWh']],MATCH(BB$40,Rates_AllOther_New[Code],0)) -> 0 | BC23: =INDEX(Rates_AllOther_New[Energy charge Block 2 '[c/kWh']],MATCH(BC$40,Rates_AllOther_New[Code],0)) -> 0 | BD23: =INDEX(Rates_AllOther_New[Energy charge Block 2 '[c/kWh']],MATCH(BD$40,Rates_AllOther_New[Code],0)) -> 0 | BE23: =INDEX(Rates_AllOther_New[Energy charge Block 2 '[c/kWh']],MATCH(BE$40,Rates_AllOther_New[Code],0)) -> 0 | BF23: =INDEX(Rates_AllOther_New[Energy charge Block 2 '[c/kWh']],MATCH(BF$40,Rates_AllOther_New[Code],0)) -> 0 | BH23: =INDEX(Rates_AllOther_New[Energy charge Block 2 '[c/kWh']],MATCH(BH$40,Rates_AllOther_New[Code],0)) ->  | BI23: =INDEX(Rates_AllOther_New[Energy charge Block 2 '[c/kWh']],MATCH(BI$40,Rates_AllOther_New[Code],0)) ->  | BJ23: =INDEX(Rates_AllOther_New[Energy charge Block 2 '[c/kWh']],MATCH(BJ$40,Rates_AllOther_New[Code],0)) ->  | BK23: =INDEX(Rates_AllOther_New[Energy charge Block 2 '[c/kWh']],MATCH(BK$40,Rates_AllOther_New[Code],0)) ->  | BL23: =INDEX(Rates_AllOther_New[Energy charge Block 2 '[c/kWh']],MATCH(BL$40,Rates_AllOther_New[Code],0)) -> n/a | BM23: =INDEX(Rates_AllOther_New[Energy charge Block 2 '[c/kWh']],MATCH(BM$40,Rates_AllOther_New[Code],0)) -> n/a | BN23: =INDEX(Rates_AllOther_New[Energy charge Block 2 '[c/kWh']],MATCH(BN$40,Rates_AllOther_New[Code],0)) -> n/a | BO23: =INDEX(Rates_AllOther_New[Energy charge Block 2 '[c/kWh']],MATCH(BO$40,Rates_AllOther_New[Code],0)) -> n/a
C24: Generation capacity charge | D24: R/POD/day | AK24: 1.98 | AL24: =INDEX(Rates_AllOther_New[Generation capacity charge '[R/POD/day']],MATCH(AL$40,Rates_AllOther_New[Code],0)) -> 1.98 | AM24: =INDEX(Rates_AllOther_New[Generation capacity charge '[R/POD/day']],MATCH(AM$40,Rates_AllOther_New[Code],0)) -> 2.95 | AN24: =INDEX(Rates_AllOther_New[Generation capacity charge '[R/POD/day']],MATCH(AN$40,Rates_AllOther_New[Code],0)) -> 7.37 | AO24: =INDEX(Rates_AllOther_New[Generation capacity charge '[R/POD/day']],MATCH(AO$40,Rates_AllOther_New[Code],0)) -> 0 | AP24: =INDEX(Rates_AllOther_New[Generation capacity charge '[R/POD/day']],MATCH(AP$40,Rates_AllOther_New[Code],0)) -> 0 | AQ24: =INDEX(Rates_AllOther_New[Generation capacity charge '[R/POD/day']],MATCH(AQ$40,Rates_AllOther_New[Code],0)) -> 0 | AR24: =INDEX(Rates_AllOther_New[Generation capacity charge '[R/POD/day']],MATCH(AR$40,Rates_AllOther_New[Code],0)) -> 0.72 | AS24: =INDEX(Rates_AllOther_New[Generation capacity charge '[R/POD/day']],MATCH(AS$40,Rates_AllOther_New[Code],0)) -> 1.27 | AT24: =INDEX(Rates_AllOther_New[Generation capacity charge '[R/POD/day']],MATCH(AT$40,Rates_AllOther_New[Code],0)) -> 3.1 | AU24: =INDEX(Rates_AllOther_New[Generation capacity charge '[R/POD/day']],MATCH(AU$40,Rates_AllOther_New[Code],0)) -> 0.47 | AV24: =INDEX(Rates_AllOther_New[Generation capacity charge '[R/POD/day']],MATCH(AV$40,Rates_AllOther_New[Code],0)) -> 4.78 | AW24: =INDEX(Rates_AllOther_New[Generation capacity charge '[R/POD/day']],MATCH(AW$40,Rates_AllOther_New[Code],0)) -> 2.71 | AX24: =INDEX(Rates_AllOther_New[Generation capacity charge '[R/POD/day']],MATCH(AX$40,Rates_AllOther_New[Code],0)) -> 5.37 | AY24: =INDEX(Rates_AllOther_New[Generation capacity charge '[R/POD/day']],MATCH(AY$40,Rates_AllOther_New[Code],0)) -> 10.5 | AZ24: =INDEX(Rates_AllOther_New[Generation capacity charge '[R/POD/day']],MATCH(AZ$40,Rates_AllOther_New[Code],0)) -> 1.78 | BA24: =INDEX(Rates_AllOther_New[Generation capacity charge '[R/POD/day']],MATCH(BA$40,Rates_AllOther_New[Code],0)) -> 0 | BB24: =INDEX(Rates_AllOther_New[Generation capacity charge '[R/POD/day']],MATCH(BB$40,Rates_AllOther_New[Code],0)) -> 0 | BC24: =INDEX(Rates_AllOther_New[Generation capacity charge '[R/POD/day']],MATCH(BC$40,Rates_AllOther_New[Code],0)) -> 0 | BD24: =INDEX(Rates_AllOther_New[Generation capacity charge '[R/POD/day']],MATCH(BD$40,Rates_AllOther_New[Code],0)) -> 0 | BE24: =INDEX(Rates_AllOther_New[Generation capacity charge '[R/POD/day']],MATCH(BE$40,Rates_AllOther_New[Code],0)) -> 0 | BF24: =INDEX(Rates_AllOther_New[Generation capacity charge '[R/POD/day']],MATCH(BF$40,Rates_AllOther_New[Code],0)) -> 0 | BH24: =INDEX(Rates_AllOther_New[Generation capacity charge '[R/POD/day']],MATCH(BH$40,Rates_AllOther_New[Code],0)) ->  | BI24: =INDEX(Rates_AllOther_New[Generation capacity charge '[R/POD/day']],MATCH(BI$40,Rates_AllOther_New[Code],0)) ->  | BJ24: =INDEX(Rates_AllOther_New[Generation capacity charge '[R/POD/day']],MATCH(BJ$40,Rates_AllOther_New[Code],0)) ->  | BK24: =INDEX(Rates_AllOther_New[Generation capacity charge '[R/POD/day']],MATCH(BK$40,Rates_AllOther_New[Code],0)) ->  | BL24: =INDEX(Rates_AllOther_New[Generation capacity charge '[R/POD/day']],MATCH(BL$40,Rates_AllOther_New[Code],0)) -> 0.72 | BM24: =INDEX(Rates_AllOther_New[Generation capacity charge '[R/POD/day']],MATCH(BM$40,Rates_AllOther_New[Code],0)) -> 1.27 | BN24: =INDEX(Rates_AllOther_New[Generation capacity charge '[R/POD/day']],MATCH(BN$40,Rates_AllOther_New[Code],0)) -> 3.1 | BO24: =INDEX(Rates_AllOther_New[Generation capacity charge '[R/POD/day']],MATCH(BO$40,Rates_AllOther_New[Code],0)) -> 0.47
C25: Legacy charge | D25: c/kWh | AK25: 0 | AL25: =INDEX(Rates_AllOther_New[Legacy charge '[c/kWh']],MATCH(AL$40,Rates_AllOther_New[Code],0)) -> 0 | AM25: =INDEX(Rates_AllOther_New[Legacy charge '[c/kWh']],MATCH(AM$40,Rates_AllOther_New[Code],0)) -> 0 | AN25: =INDEX(Rates_AllOther_New[Legacy charge '[c/kWh']],MATCH(AN$40,Rates_AllOther_New[Code],0)) -> 0 | AO25: =INDEX(Rates_AllOther_New[Legacy charge '[c/kWh']],MATCH(AO$40,Rates_AllOther_New[Code],0)) -> 0 | AP25: =INDEX(Rates_AllOther_New[Legacy charge '[c/kWh']],MATCH(AP$40,Rates_AllOther_New[Code],0)) -> 0 | AQ25: =INDEX(Rates_AllOther_New[Legacy charge '[c/kWh']],MATCH(AQ$40,Rates_AllOther_New[Code],0)) -> 0 | AR25: =INDEX(Rates_AllOther_New[Legacy charge '[c/kWh']],MATCH(AR$40,Rates_AllOther_New[Code],0)) -> 0 | AS25: =INDEX(Rates_AllOther_New[Legacy charge '[c/kWh']],MATCH(AS$40,Rates_AllOther_New[Code],0)) -> 0 | AT25: =INDEX(Rates_AllOther_New[Legacy charge '[c/kWh']],MATCH(AT$40,Rates_AllOther_New[Code],0)) -> 0 | AU25: =INDEX(Rates_AllOther_New[Legacy charge '[c/kWh']],MATCH(AU$40,Rates_AllOther_New[Code],0)) -> 0 | AV25: =INDEX(Rates_AllOther_New[Legacy charge '[c/kWh']],MATCH(AV$40,Rates_AllOther_New[Code],0)) -> 0 | AW25: =INDEX(Rates_AllOther_New[Legacy charge '[c/kWh']],MATCH(AW$40,Rates_AllOther_New[Code],0)) -> 0 | AX25: =INDEX(Rates_AllOther_New[Legacy charge '[c/kWh']],MATCH(AX$40,Rates_AllOther_New[Code],0)) -> 0 | AY25: =INDEX(Rates_AllOther_New[Legacy charge '[c/kWh']],MATCH(AY$40,Rates_AllOther_New[Code],0)) -> 0 | AZ25: =INDEX(Rates_AllOther_New[Legacy charge '[c/kWh']],MATCH(AZ$40,Rates_AllOther_New[Code],0)) -> 0 | BA25: =INDEX(Rates_AllOther_New[Legacy charge '[c/kWh']],MATCH(BA$40,Rates_AllOther_New[Code],0)) -> 0 | BB25: =INDEX(Rates_AllOther_New[Legacy charge '[c/kWh']],MATCH(BB$40,Rates_AllOther_New[Code],0)) -> 0 | BC25: =INDEX(Rates_AllOther_New[Legacy charge '[c/kWh']],MATCH(BC$40,Rates_AllOther_New[Code],0)) -> 0 | BD25: =INDEX(Rates_AllOther_New[Legacy charge '[c/kWh']],MATCH(BD$40,Rates_AllOther_New[Code],0)) -> 0 | BE25: =INDEX(Rates_AllOther_New[Legacy charge '[c/kWh']],MATCH(BE$40,Rates_AllOther_New[Code],0)) -> 0 | BF25: =INDEX(Rates_AllOther_New[Legacy charge '[c/kWh']],MATCH(BF$40,Rates_AllOther_New[Code],0)) -> 0 | BH25: =INDEX(Rates_AllOther_New[Legacy charge '[c/kWh']],MATCH(BH$40,Rates_AllOther_New[Code],0)) ->  | BI25: =INDEX(Rates_AllOther_New[Legacy charge '[c/kWh']],MATCH(BI$40,Rates_AllOther_New[Code],0)) ->  | BJ25: =INDEX(Rates_AllOther_New[Legacy charge '[c/kWh']],MATCH(BJ$40,Rates_AllOther_New[Code],0)) ->  | BK25: =INDEX(Rates_AllOther_New[Legacy charge '[c/kWh']],MATCH(BK$40,Rates_AllOther_New[Code],0)) ->  | BL25: =INDEX(Rates_AllOther_New[Legacy charge '[c/kWh']],MATCH(BL$40,Rates_AllOther_New[Code],0)) -> 22.78 | BM25: =INDEX(Rates_AllOther_New[Legacy charge '[c/kWh']],MATCH(BM$40,Rates_AllOther_New[Code],0)) -> 22.78 | BN25: =INDEX(Rates_AllOther_New[Legacy charge '[c/kWh']],MATCH(BN$40,Rates_AllOther_New[Code],0)) -> 22.78 | BO25: =INDEX(Rates_AllOther_New[Legacy charge '[c/kWh']],MATCH(BO$40,Rates_AllOther_New[Code],0)) -> 22.78
B27: Total energy charges
B29: Other charges | D29: Units | E29: =E$8 -> 2024/25 Rates | F29: =F$8 -> 2024/25 Rates | G29: 2024/25 Rates | H29: 2024/25 Rates | I29: 2024/25 Rates | J29: 2024/25 Rates | K29: 2024/25 Rates | L29: 2024/25 Rates | M29: 2024/25 Rates | N29: 2024/25 Rates | O29: 2024/25 Rates | P29: 2024/25 Rates | Q29: 2024/25 Rates | R29: 2024/25 Rates | S29: 2024/25 Rates | T29: 2024/25 Rates | U29: 2024/25 Rates | V29: 2024/25 Rates | W29: 2024/25 Rates | X29: 2024/25 Rates | Y29: 2024/25 Rates | Z29: 2024/25 Rates | AA29: 2024/25 Rates | AB29: 2024/25 Rates | AC29: 2024/25 Rates | AD29: 2024/25 Rates | AE29: 2024/25 Rates | AF29: 2024/25 Rates | AG29: 2024/25 Rates | AH29: 2024/25 Rates | AI29: 2024/25 Rates | AK29: =AK$8 -> 2025/26 Rates | AL29: =AL$8 -> 2025/26 Rates | AM29: 2025/26 Rates | AN29: 2025/26 Rates | AO29: 2025/26 Rates | AP29: 2025/26 Rates | AQ29: 2025/26 Rates | AR29: 2025/26 Rates | AS29: 2025/26 Rates | AT29: 2025/26 Rates | AU29: 2025/26 Rates | AV29: 2025/26 Rates | AW29: 2025/26 Rates | AX29: 2025/26 Rates | AY29: 2025/26 Rates | AZ29: 2025/26 Rates | BA29: 2025/26 Rates | BB29: 2025/26 Rates | BC29: 2025/26 Rates | BD29: 2025/26 Rates | BE29: 2025/26 Rates | BF29: 2025/26 Rates | BG29: 2025/26 Rates | BH29: 2025/26 Rates | BI29: 2025/26 Rates | BJ29: 2025/26 Rates | BK29: 2025/26 Rates | BL29: 2025/26 Rates | BM29: 2025/26 Rates | BN29: 2025/26 Rates | BO29: 2025/26 Rates
C31: Ancillary service charge | D31: c/kWh | E31: =SUMIFS(F31:AI31,$F$7:$AI$7,$F$2) -> 0.8 | F31: =INDEX(Rates_AllOther_Current[Ancillary service charge '[c/kWh']],MATCH(F$40,Rates_AllOther_Current[Code],0)) -> 0.8 | G31: =INDEX(Rates_AllOther_Current[Ancillary service charge '[c/kWh']],MATCH(G$40,Rates_AllOther_Current[Code],0)) -> 0.8 | H31: =INDEX(Rates_AllOther_Current[Ancillary service charge '[c/kWh']],MATCH(H$40,Rates_AllOther_Current[Code],0)) -> 0.8 | I31: =INDEX(Rates_AllOther_Current[Ancillary service charge '[c/kWh']],MATCH(I$40,Rates_AllOther_Current[Code],0)) -> 0.8 | J31: =INDEX(Rates_AllOther_Current[Ancillary service charge '[c/kWh']],MATCH(J$40,Rates_AllOther_Current[Code],0)) -> 0 | K31: =INDEX(Rates_AllOther_Current[Ancillary service charge '[c/kWh']],MATCH(K$40,Rates_AllOther_Current[Code],0)) -> 0 | L31: =INDEX(Rates_AllOther_Current[Ancillary service charge '[c/kWh']],MATCH(L$40,Rates_AllOther_Current[Code],0)) -> 0 | M31: =INDEX(Rates_AllOther_Current[Ancillary service charge '[c/kWh']],MATCH(M$40,Rates_AllOther_Current[Code],0)) -> 0 | N31: =INDEX(Rates_AllOther_Current[Ancillary service charge '[c/kWh']],MATCH(N$40,Rates_AllOther_Current[Code],0)) -> 0 | O31: =INDEX(Rates_AllOther_Current[Ancillary service charge '[c/kWh']],MATCH(O$40,Rates_AllOther_Current[Code],0)) -> 0 | P31: =INDEX(Rates_AllOther_Current[Ancillary service charge '[c/kWh']],MATCH(P$40,Rates_AllOther_Current[Code],0)) -> 0 | Q31: =INDEX(Rates_AllOther_Current[Ancillary service charge '[c/kWh']],MATCH(Q$40,Rates_AllOther_Current[Code],0)) -> 0.8 | R31: =INDEX(Rates_AllOther_Current[Ancillary service charge '[c/kWh']],MATCH(R$40,Rates_AllOther_Current[Code],0)) -> 0.8 | S31: =INDEX(Rates_AllOther_Current[Ancillary service charge '[c/kWh']],MATCH(S$40,Rates_AllOther_Current[Code],0)) -> 0.8 | T31: =INDEX(Rates_AllOther_Current[Ancillary service charge '[c/kWh']],MATCH(T$40,Rates_AllOther_Current[Code],0)) -> 0.8 | U31: =INDEX(Rates_AllOther_Current[Ancillary service charge '[c/kWh']],MATCH(U$40,Rates_AllOther_Current[Code],0)) -> 0 | V31: =INDEX(Rates_AllOther_Current[Ancillary service charge '[c/kWh']],MATCH(V$40,Rates_AllOther_Current[Code],0)) -> 0 | W31: =INDEX(Rates_AllOther_Current[Ancillary service charge '[c/kWh']],MATCH(W$40,Rates_AllOther_Current[Code],0)) -> 0 | X31: =INDEX(Rates_AllOther_Current[Ancillary service charge '[c/kWh']],MATCH(X$40,Rates_AllOther_Current[Code],0)) -> 0 | Y31: =INDEX(Rates_AllOther_Current[Ancillary service charge '[c/kWh']],MATCH(Y$40,Rates_AllOther_Current[Code],0)) -> 0 | Z31: =INDEX(Rates_AllOther_Current[Ancillary service charge '[c/kWh']],MATCH(Z$40,Rates_AllOther_Current[Code],0)) -> 0 | AF31: =INDEX(Rates_AllOther_Current[Ancillary service charge '[c/kWh']],MATCH(AF$40,Rates_AllOther_Current[Code],0)) -> 0 | AG31: =INDEX(Rates_AllOther_Current[Ancillary service charge '[c/kWh']],MATCH(AG$40,Rates_AllOther_Current[Code],0)) -> 0 | AH31: =INDEX(Rates_AllOther_Current[Ancillary service charge '[c/kWh']],MATCH(AH$40,Rates_AllOther_Current[Code],0)) -> 0 | AI31: =INDEX(Rates_AllOther_Current[Ancillary service charge '[c/kWh']],MATCH(AI$40,Rates_AllOther_Current[Code],0)) -> 0 | AK31: =SUMIFS(AL31:BO31,$AL$7:$BO$7,Selected_Tariff_ID) -> 0.41 | AL31: =INDEX(Rates_AllOther_New[Ancillary service charge '[c/kWh']],MATCH(AL$40,Rates_AllOther_New[Code],0)) -> 0.41 | AM31: =INDEX(Rates_AllOther_New[Ancillary service charge '[c/kWh']],MATCH(AM$40,Rates_AllOther_New[Code],0)) -> 0.41 | AN31: =INDEX(Rates_AllOther_New[Ancillary service charge '[c/kWh']],MATCH(AN$40,Rates_AllOther_New[Code],0)) -> 0.41 | AO31: =INDEX(Rates_AllOther_New[Ancillary service charge '[c/kWh']],MATCH(AO$40,Rates_AllOther_New[Code],0)) -> 0.41 | AP31: =INDEX(Rates_AllOther_New[Ancillary service charge '[c/kWh']],MATCH(AP$40,Rates_AllOther_New[Code],0)) -> 0 | AQ31: =INDEX(Rates_AllOther_New[Ancillary service charge '[c/kWh']],MATCH(AQ$40,Rates_AllOther_New[Code],0)) -> 0 | AR31: =INDEX(Rates_AllOther_New[Ancillary service charge '[c/kWh']],MATCH(AR$40,Rates_AllOther_New[Code],0)) -> 0.41 | AS31: =INDEX(Rates_AllOther_New[Ancillary service charge '[c/kWh']],MATCH(AS$40,Rates_AllOther_New[Code],0)) -> 0.41 | AT31: =INDEX(Rates_AllOther_New[Ancillary service charge '[c/kWh']],MATCH(AT$40,Rates_AllOther_New[Code],0)) -> 0.41 | AU31: =INDEX(Rates_AllOther_New[Ancillary service charge '[c/kWh']],MATCH(AU$40,Rates_AllOther_New[Code],0)) -> 0.41 | AV31: =INDEX(Rates_AllOther_New[Ancillary service charge '[c/kWh']],MATCH(AV$40,Rates_AllOther_New[Code],0)) -> 0.41 | AW31: =INDEX(Rates_AllOther_New[Ancillary service charge '[c/kWh']],MATCH(AW$40,Rates_AllOther_New[Code],0)) -> 0.41 | AX31: =INDEX(Rates_AllOther_New[Ancillary service charge '[c/kWh']],MATCH(AX$40,Rates_AllOther_New[Code],0)) -> 0.41 | AY31: =INDEX(Rates_AllOther_New[Ancillary service charge '[c/kWh']],MATCH(AY$40,Rates_AllOther_New[Code],0)) -> 0.41 | AZ31: =INDEX(Rates_AllOther_New[Ancillary service charge '[c/kWh']],MATCH(AZ$40,Rates_AllOther_New[Code],0)) -> 0.41 | BA31: =INDEX(Rates_AllOther_New[Ancillary service charge '[c/kWh']],MATCH(BA$40,Rates_AllOther_New[Code],0)) -> 0 | BB31: =INDEX(Rates_AllOther_New[Ancillary service charge '[c/kWh']],MATCH(BB$40,Rates_AllOther_New[Code],0)) -> 0 | BC31: =INDEX(Rates_AllOther_New[Ancillary service charge '[c/kWh']],MATCH(BC$40,Rates_AllOther_New[Code],0)) -> 0 | BD31: =INDEX(Rates_AllOther_New[Ancillary service charge '[c/kWh']],MATCH(BD$40,Rates_AllOther_New[Code],0)) -> 0 | BE31: =INDEX(Rates_AllOther_New[Ancillary service charge '[c/kWh']],MATCH(BE$40,Rates_AllOther_New[Code],0)) -> 0 | BF31: =INDEX(Rates_AllOther_New[Ancillary service charge '[c/kWh']],MATCH(BF$40,Rates_AllOther_New[Code],0)) -> 0 | BH31: =INDEX(Rates_AllOther_New[Ancillary service charge '[c/kWh']],MATCH(BH$40,Rates_AllOther_New[Code],0)) ->  | BI31: =INDEX(Rates_AllOther_New[Ancillary service charge '[c/kWh']],MATCH(BI$40,Rates_AllOther_New[Code],0)) ->  | BJ31: =INDEX(Rates_AllOther_New[Ancillary service charge '[c/kWh']],MATCH(BJ$40,Rates_AllOther_New[Code],0)) ->  | BK31: =INDEX(Rates_AllOther_New[Ancillary service charge '[c/kWh']],MATCH(BK$40,Rates_AllOther_New[Code],0)) ->  | BL31: =INDEX(Rates_AllOther_New[Ancillary service charge '[c/kWh']],MATCH(BL$40,Rates_AllOther_New[Code],0)) -> 0.41 | BM31: =INDEX(Rates_AllOther_New[Ancillary service charge '[c/kWh']],MATCH(BM$40,Rates_AllOther_New[Code],0)) -> 0.41 | BN31: =INDEX(Rates_AllOther_New[Ancillary service charge '[c/kWh']],MATCH(BN$40,Rates_AllOther_New[Code],0)) -> 0.41 | BO31: =INDEX(Rates_AllOther_New[Ancillary service charge '[c/kWh']],MATCH(BO$40,Rates_AllOther_New[Code],0)) -> 0.41
C32: Service charge | D32: =IF(Table_1=1,"R/day","R/day") -> R/day | E32: =SUMIFS(F32:AI32,$F$7:$AI$7,$F$2) -> 36.71 | F32: =INDEX(Rates_AllOther_Current[Service and administration charge '[R/POD/day']],MATCH(F$40,Rates_AllOther_Current[Code],0)) -> 36.71 | G32: =INDEX(Rates_AllOther_Current[Service and administration charge '[R/POD/day']],MATCH(G$40,Rates_AllOther_Current[Code],0)) -> 36.71 | H32: =INDEX(Rates_AllOther_Current[Service and administration charge '[R/POD/day']],MATCH(H$40,Rates_AllOther_Current[Code],0)) -> 36.71 | I32: =INDEX(Rates_AllOther_Current[Service and administration charge '[R/POD/day']],MATCH(I$40,Rates_AllOther_Current[Code],0)) -> 0 | J32: =INDEX(Rates_AllOther_Current[Service and administration charge '[R/POD/day']],MATCH(J$40,Rates_AllOther_Current[Code],0)) -> 0 | K32: =INDEX(Rates_AllOther_Current[Service and administration charge '[R/POD/day']],MATCH(K$40,Rates_AllOther_Current[Code],0)) -> 0 | L32: =INDEX(Rates_AllOther_Current[Service and administration charge '[R/POD/day']],MATCH(L$40,Rates_AllOther_Current[Code],0)) -> 0 | M32: =INDEX(Rates_AllOther_Current[Service and administration charge '[R/POD/day']],MATCH(M$40,Rates_AllOther_Current[Code],0)) -> 0 | N32: =INDEX(Rates_AllOther_Current[Service and administration charge '[R/POD/day']],MATCH(N$40,Rates_AllOther_Current[Code],0)) -> 0 | O32: =INDEX(Rates_AllOther_Current[Service and administration charge '[R/POD/day']],MATCH(O$40,Rates_AllOther_Current[Code],0)) -> 0 | P32: =INDEX(Rates_AllOther_Current[Service and administration charge '[R/POD/day']],MATCH(P$40,Rates_AllOther_Current[Code],0)) -> 0 | Q32: =INDEX(Rates_AllOther_Current[Service and administration charge '[R/POD/day']],MATCH(Q$40,Rates_AllOther_Current[Code],0)) -> 46.25 | R32: =INDEX(Rates_AllOther_Current[Service and administration charge '[R/POD/day']],MATCH(R$40,Rates_AllOther_Current[Code],0)) -> 46.25 | S32: =INDEX(Rates_AllOther_Current[Service and administration charge '[R/POD/day']],MATCH(S$40,Rates_AllOther_Current[Code],0)) -> 46.25 | T32: =INDEX(Rates_AllOther_Current[Service and administration charge '[R/POD/day']],MATCH(T$40,Rates_AllOther_Current[Code],0)) -> 0 | U32: =INDEX(Rates_AllOther_Current[Service and administration charge '[R/POD/day']],MATCH(U$40,Rates_AllOther_Current[Code],0)) -> 99.18 | V32: =INDEX(Rates_AllOther_Current[Service and administration charge '[R/POD/day']],MATCH(V$40,Rates_AllOther_Current[Code],0)) -> 0 | W32: =INDEX(Rates_AllOther_Current[Service and administration charge '[R/POD/day']],MATCH(W$40,Rates_AllOther_Current[Code],0)) -> 0 | X32: =INDEX(Rates_AllOther_Current[Service and administration charge '[R/POD/day']],MATCH(X$40,Rates_AllOther_Current[Code],0)) -> 0 | Y32: =INDEX(Rates_AllOther_Current[Service and administration charge '[R/POD/day']],MATCH(Y$40,Rates_AllOther_Current[Code],0)) -> 0 | Z32: =INDEX(Rates_AllOther_Current[Service and administration charge '[R/POD/day']],MATCH(Z$40,Rates_AllOther_Current[Code],0)) -> 10.96 | AF32: =INDEX(Rates_AllOther_Current[Service and administration charge '[R/POD/day']],MATCH(AF$40,Rates_AllOther_Current[Code],0)) -> 0 | AG32: =INDEX(Rates_AllOther_Current[Service and administration charge '[R/POD/day']],MATCH(AG$40,Rates_AllOther_Current[Code],0)) -> 0 | AH32: =INDEX(Rates_AllOther_Current[Service and administration charge '[R/POD/day']],MATCH(AH$40,Rates_AllOther_Current[Code],0)) -> 0 | AI32: =INDEX(Rates_AllOther_Current[Service and administration charge '[R/POD/day']],MATCH(AI$40,Rates_AllOther_Current[Code],0)) -> 0 | AK32: =SUMIFS(AL32:BO32,$AL$7:$BO$7,Selected_Tariff_ID) -> 14.7 | AL32: =INDEX(Rates_AllOther_New[Service and administration charge '[R/POD/day']],MATCH(AL$40,Rates_AllOther_New[Code],0)) -> 14.7 | AM32: =INDEX(Rates_AllOther_New[Service and administration charge '[R/POD/day']],MATCH(AM$40,Rates_AllOther_New[Code],0)) -> 14.7 | AN32: =INDEX(Rates_AllOther_New[Service and administration charge '[R/POD/day']],MATCH(AN$40,Rates_AllOther_New[Code],0)) -> 14.7 | AO32: =INDEX(Rates_AllOther_New[Service and administration charge '[R/POD/day']],MATCH(AO$40,Rates_AllOther_New[Code],0)) -> 0 | AP32: =INDEX(Rates_AllOther_New[Service and administration charge '[R/POD/day']],MATCH(AP$40,Rates_AllOther_New[Code],0)) -> 0 | AQ32: =INDEX(Rates_AllOther_New[Service and administration charge '[R/POD/day']],MATCH(AQ$40,Rates_AllOther_New[Code],0)) -> 0 | AR32: =INDEX(Rates_AllOther_New[Service and administration charge '[R/POD/day']],MATCH(AR$40,Rates_AllOther_New[Code],0)) -> 3.27 | AS32: =INDEX(Rates_AllOther_New[Service and administration charge '[R/POD/day']],MATCH(AS$40,Rates_AllOther_New[Code],0)) -> 3.27 | AT32: =INDEX(Rates_AllOther_New[Service and administration charge '[R/POD/day']],MATCH(AT$40,Rates_AllOther_New[Code],0)) -> 3.27 | AU32: =INDEX(Rates_AllOther_New[Service and administration charge '[R/POD/day']],MATCH(AU$40,Rates_AllOther_New[Code],0)) -> 3.27 | AV32: =INDEX(Rates_AllOther_New[Service and administration charge '[R/POD/day']],MATCH(AV$40,Rates_AllOther_New[Code],0)) -> 3.27 | AW32: =INDEX(Rates_AllOther_New[Service and administration charge '[R/POD/day']],MATCH(AW$40,Rates_AllOther_New[Code],0)) -> 24.5 | AX32: =INDEX(Rates_AllOther_New[Service and administration charge '[R/POD/day']],MATCH(AX$40,Rates_AllOther_New[Code],0)) -> 24.5 | AY32: =INDEX(Rates_AllOther_New[Service and administration charge '[R/POD/day']],MATCH(AY$40,Rates_AllOther_New[Code],0)) -> 24.5 | AZ32: =INDEX(Rates_AllOther_New[Service and administration charge '[R/POD/day']],MATCH(AZ$40,Rates_AllOther_New[Code],0)) -> 0 | BA32: =INDEX(Rates_AllOther_New[Service and administration charge '[R/POD/day']],MATCH(BA$40,Rates_AllOther_New[Code],0)) -> 87 | BB32: =INDEX(Rates_AllOther_New[Service and administration charge '[R/POD/day']],MATCH(BB$40,Rates_AllOther_New[Code],0)) -> 0 | BC32: =INDEX(Rates_AllOther_New[Service and administration charge '[R/POD/day']],MATCH(BC$40,Rates_AllOther_New[Code],0)) -> 0 | BD32: =INDEX(Rates_AllOther_New[Service and administration charge '[R/POD/day']],MATCH(BD$40,Rates_AllOther_New[Code],0)) -> 0 | BE32: =INDEX(Rates_AllOther_New[Service and administration charge '[R/POD/day']],MATCH(BE$40,Rates_AllOther_New[Code],0)) -> 0 | BF32: =INDEX(Rates_AllOther_New[Service and administration charge '[R/POD/day']],MATCH(BF$40,Rates_AllOther_New[Code],0)) -> 32.3 | BH32: =INDEX(Rates_AllOther_New[Service and administration charge '[R/POD/day']],MATCH(BH$40,Rates_AllOther_New[Code],0)) ->  | BI32: =INDEX(Rates_AllOther_New[Service and administration charge '[R/POD/day']],MATCH(BI$40,Rates_AllOther_New[Code],0)) ->  | BJ32: =INDEX(Rates_AllOther_New[Service and administration charge '[R/POD/day']],MATCH(BJ$40,Rates_AllOther_New[Code],0)) ->  | BK32: =INDEX(Rates_AllOther_New[Service and administration charge '[R/POD/day']],MATCH(BK$40,Rates_AllOther_New[Code],0)) ->  | BL32: =INDEX(Rates_AllOther_New[Service and administration charge '[R/POD/day']],MATCH(BL$40,Rates_AllOther_New[Code],0)) -> 3.27 | BM32: =INDEX(Rates_AllOther_New[Service and administration charge '[R/POD/day']],MATCH(BM$40,Rates_AllOther_New[Code],0)) -> 3.27 | BN32: =INDEX(Rates_AllOther_New[Service and administration charge '[R/POD/day']],MATCH(BN$40,Rates_AllOther_New[Code],0)) -> 3.27 | BO32: =INDEX(Rates_AllOther_New[Service and administration charge '[R/POD/day']],MATCH(BO$40,Rates_AllOther_New[Code],0)) -> 3.27
C33: Electrification and rural subsidy | D33: c/kWh | E33: =SUMIFS(F33:AI33,$F$7:$AI$7,$F$2) -> 0 | AK33: =SUMIFS(AL33:BO33,$AL$7:$BO$7,Selected_Tariff_ID) -> 4.94 | AL33: =INDEX(Rates_AllOther_New[Electrification and rural subsidy '[c/kWh']],MATCH(AL$40,Rates_AllOther_New[Code],0)) -> 4.94 | AM33: =INDEX(Rates_AllOther_New[Electrification and rural subsidy '[c/kWh']],MATCH(AM$40,Rates_AllOther_New[Code],0)) -> 4.94 | AN33: =INDEX(Rates_AllOther_New[Electrification and rural subsidy '[c/kWh']],MATCH(AN$40,Rates_AllOther_New[Code],0)) -> 4.94 | AO33: =INDEX(Rates_AllOther_New[Electrification and rural subsidy '[c/kWh']],MATCH(AO$40,Rates_AllOther_New[Code],0)) -> 4.94 | AP33: =INDEX(Rates_AllOther_New[Electrification and rural subsidy '[c/kWh']],MATCH(AP$40,Rates_AllOther_New[Code],0)) -> 0 | AQ33: =INDEX(Rates_AllOther_New[Electrification and rural subsidy '[c/kWh']],MATCH(AQ$40,Rates_AllOther_New[Code],0)) -> 0 | AR33: =INDEX(Rates_AllOther_New[Electrification and rural subsidy '[c/kWh']],MATCH(AR$40,Rates_AllOther_New[Code],0)) -> 0 | AS33: =INDEX(Rates_AllOther_New[Electrification and rural subsidy '[c/kWh']],MATCH(AS$40,Rates_AllOther_New[Code],0)) -> 0 | AT33: =INDEX(Rates_AllOther_New[Electrification and rural subsidy '[c/kWh']],MATCH(AT$40,Rates_AllOther_New[Code],0)) -> 0 | AU33: =INDEX(Rates_AllOther_New[Electrification and rural subsidy '[c/kWh']],MATCH(AU$40,Rates_AllOther_New[Code],0)) -> 0 | AV33: =INDEX(Rates_AllOther_New[Electrification and rural subsidy '[c/kWh']],MATCH(AV$40,Rates_AllOther_New[Code],0)) -> 0 | AW33: =INDEX(Rates_AllOther_New[Electrification and rural subsidy '[c/kWh']],MATCH(AW$40,Rates_AllOther_New[Code],0)) -> 0 | AX33: =INDEX(Rates_AllOther_New[Electrification and rural subsidy '[c/kWh']],MATCH(AX$40,Rates_AllOther_New[Code],0)) -> 0 | AY33: =INDEX(Rates_AllOther_New[Electrification and rural subsidy '[c/kWh']],MATCH(AY$40,Rates_AllOther_New[Code],0)) -> 0 | AZ33: =INDEX(Rates_AllOther_New[Electrification and rural subsidy '[c/kWh']],MATCH(AZ$40,Rates_AllOther_New[Code],0)) -> 0 | BA33: =INDEX(Rates_AllOther_New[Electrification and rural subsidy '[c/kWh']],MATCH(BA$40,Rates_AllOther_New[Code],0)) -> 0 | BB33: =INDEX(Rates_AllOther_New[Electrification and rural subsidy '[c/kWh']],MATCH(BB$40,Rates_AllOther_New[Code],0)) -> 0 | BC33: =INDEX(Rates_AllOther_New[Electrification and rural subsidy '[c/kWh']],MATCH(BC$40,Rates_AllOther_New[Code],0)) -> 0 | BD33: =INDEX(Rates_AllOther_New[Electrification and rural subsidy '[c/kWh']],MATCH(BD$40,Rates_AllOther_New[Code],0)) -> 0 | BE33: =INDEX(Rates_AllOther_New[Electrification and rural subsidy '[c/kWh']],MATCH(BE$40,Rates_AllOther_New[Code],0)) -> 0 | BF33: =INDEX(Rates_AllOther_New[Electrification and rural subsidy '[c/kWh']],MATCH(BF$40,Rates_AllOther_New[Code],0)) -> 0 | BH33: =INDEX(Rates_AllOther_New[Electrification and rural subsidy '[c/kWh']],MATCH(BH$40,Rates_AllOther_New[Code],0)) ->  | BI33: =INDEX(Rates_AllOther_New[Electrification and rural subsidy '[c/kWh']],MATCH(BI$40,Rates_AllOther_New[Code],0)) ->  | BJ33: =INDEX(Rates_AllOther_New[Electrification and rural subsidy '[c/kWh']],MATCH(BJ$40,Rates_AllOther_New[Code],0)) ->  | BK33: =INDEX(Rates_AllOther_New[Electrification and rural subsidy '[c/kWh']],MATCH(BK$40,Rates_AllOther_New[Code],0)) ->  | BL33: =INDEX(Rates_AllOther_New[Electrification and rural subsidy '[c/kWh']],MATCH(BL$40,Rates_AllOther_New[Code],0)) -> 0 | BM33: =INDEX(Rates_AllOther_New[Electrification and rural subsidy '[c/kWh']],MATCH(BM$40,Rates_AllOther_New[Code],0)) -> 0 | BN33: =INDEX(Rates_AllOther_New[Electrification and rural subsidy '[c/kWh']],MATCH(BN$40,Rates_AllOther_New[Code],0)) -> 0 | BO33: =INDEX(Rates_AllOther_New[Electrification and rural subsidy '[c/kWh']],MATCH(BO$40,Rates_AllOther_New[Code],0)) -> 0
B35: Total other charges
B37: Lookup values
C38: Rates LPU Energy Table | E38: =E6&"_"&$D51&"_"&$D50&"_"&$D49 -> Businessrate 1_Non-Local Authority_Not Applicable_< 500V | F38: =F6&"_"&$D51&"_"&$D50&"_"&$D49 -> Businessrate 1_Non-Local Authority_Not Applicable_< 500V | G38: Businessrate 2_Non-Local Authority_Not Applicable_< 500V | H38: Businessrate 3_Non-Local Authority_Not Applicable_< 500V | I38: Businessrate 4_Non-Local Authority_Not Applicable_< 500V | J38: Homelight 20A_Non-Local Authority_Not Applicable_< 500V | K38: Homelight 60A_Non-Local Authority_Not Applicable_< 500V | L38: Homepower 1_Non-Local Authority_Not Applicable_< 500V | M38: Homepower 2_Non-Local Authority_Not Applicable_< 500V | N38: Homepower 3_Non-Local Authority_Not Applicable_< 500V | O38: Homepower 4_Non-Local Authority_Not Applicable_< 500V | P38: Homepower Bulk_Non-Local Authority_Not Applicable_< 500V | Q38: Landrate 1_Non-Local Authority_Not Applicable_< 500V | R38: Landrate 2_Non-Local Authority_Not Applicable_< 500V | S38: Landrate 3_Non-Local Authority_Not Applicable_< 500V | T38: Landrate 4_Non-Local Authority_Not Applicable_< 500V | U38: Landrate Dx_Non-Local Authority_Not Applicable_< 500V | V38: Landlight 20A_Non-Local Authority_Not Applicable_< 500V | W38: Landlight 60A_Non-Local Authority_Not Applicable_< 500V | X38: Public Lighting All Night_Non-Local Authority_Not Applicable_< 500V | Y38: Public Lighting 24 Hours_Non-Local Authority_Not Applicable_< 500V | Z38: =Z6&"_"&$D51&"_"&$D50&"_"&$D49 -> Public Lighting Urban Fixed_Non-Local Authority_Not Applicable_< 500V | AA38: =AA6&"_"&$D51&"_"&$D50&"_"&$D49 -> Municflex_Non-Local Authority_Not Applicable_< 500V | AB38: Municrate 1_Non-Local Authority_Not Applicable_< 500V | AC38: Municrate 2_Non-Local Authority_Not Applicable_< 500V | AD38: Municrate 3_Non-Local Authority_Not Applicable_< 500V | AE38: =AE6&"_"&$D51&"_"&$D50&"_"&$D49 -> Municrate 4_Non-Local Authority_Not Applicable_< 500V | AF38: Homeflex 1_Non-Local Authority_Not Applicable_< 500V | AG38: Homeflex 2_Non-Local Authority_Not Applicable_< 500V | AH38: Homeflex 3_Non-Local Authority_Not Applicable_< 500V | AI38: Homeflex 4_Non-Local Authority_Not Applicable_< 500V | AK38: =AK6&"_"&$D51&"_"&$D50&"_"&$D49 -> Businessrate 1_Non-Local Authority_Not Applicable_< 500V | AL38: =F38 -> Businessrate 1_Non-Local Authority_Not Applicable_< 500V | AM38: Businessrate 2_Non-Local Authority_Not Applicable_< 500V | AN38: Businessrate 3_Non-Local Authority_Not Applicable_< 500V | AO38: Businessrate 4_Non-Local Authority_Not Applicable_< 500V | AP38: Homelight 20A_Non-Local Authority_Not Applicable_< 500V | AQ38: Homelight 60A_Non-Local Authority_Not Applicable_< 500V | AR38: Homepower 1_Non-Local Authority_Not Applicable_< 500V | AS38: Homepower 2_Non-Local Authority_Not Applicable_< 500V | AT38: Homepower 3_Non-Local Authority_Not Applicable_< 500V | AU38: Homepower 4_Non-Local Authority_Not Applicable_< 500V | AV38: =P38 -> Homepower Bulk_Non-Local Authority_Not Applicable_< 500V | AW38: Landrate 1_Non-Local Authority_Not Applicable_< 500V | AX38: Landrate 2_Non-Local Authority_Not Applicable_< 500V | AY38: Landrate 3_Non-Local Authority_Not Applicable_< 500V | AZ38: Landrate 4_Non-Local Authority_Not Applicable_< 500V | BA38: Landrate Dx_Non-Local Authority_Not Applicable_< 500V | BB38: Landlight 20A_Non-Local Authority_Not Applicable_< 500V | BC38: Landlight 60A_Non-Local Authority_Not Applicable_< 500V | BD38: Public Lighting All Night_Non-Local Authority_Not Applicable_< 500V | BE38: Public Lighting 24 Hours_Non-Local Authority_Not Applicable_< 500V | BF38: =Z38 -> Public Lighting Urban Fixed_Non-Local Authority_Not Applicable_< 500V | BG38: Municflex_Non-Local Authority_Not Applicable_< 500V | BH38: Municrate 1_Non-Local Authority_Not Applicable_< 500V | BI38: Municrate 2_Non-Local Authority_Not Applicable_< 500V | BJ38: Municrate 3_Non-Local Authority_Not Applicable_< 500V | BK38: Municrate 4_Non-Local Authority_Not Applicable_< 500V | BL38: =AF38 -> Homeflex 1_Non-Local Authority_Not Applicable_< 500V | BM38: Homeflex 2_Non-Local Authority_Not Applicable_< 500V | BN38: Homeflex 3_Non-Local Authority_Not Applicable_< 500V | BO38: Homeflex 4_Non-Local Authority_Not Applicable_< 500V
C39: Rates LPU by Voltage | E39: =E6&"_"&$D51&"_"&$D49 -> Businessrate 1_Non-Local Authority_< 500V | F39: =F6&"_"&$D51&"_"&$D49 -> Businessrate 1_Non-Local Authority_< 500V | G39: Businessrate 2_Non-Local Authority_< 500V | H39: Businessrate 3_Non-Local Authority_< 500V | I39: Businessrate 4_Non-Local Authority_< 500V | J39: Homelight 20A_Non-Local Authority_< 500V | K39: Homelight 60A_Non-Local Authority_< 500V | L39: Homepower 1_Non-Local Authority_< 500V | M39: Homepower 2_Non-Local Authority_< 500V | N39: Homepower 3_Non-Local Authority_< 500V | O39: Homepower 4_Non-Local Authority_< 500V | P39: Homepower Bulk_Non-Local Authority_< 500V | Q39: Landrate 1_Non-Local Authority_< 500V | R39: Landrate 2_Non-Local Authority_< 500V | S39: Landrate 3_Non-Local Authority_< 500V | T39: Landrate 4_Non-Local Authority_< 500V | U39: Landrate Dx_Non-Local Authority_< 500V | V39: Landlight 20A_Non-Local Authority_< 500V | W39: Landlight 60A_Non-Local Authority_< 500V | X39: Public Lighting All Night_Non-Local Authority_< 500V | Y39: Public Lighting 24 Hours_Non-Local Authority_< 500V | Z39: =Z6&"_"&$D51&"_"&$D49 -> Public Lighting Urban Fixed_Non-Local Authority_< 500V | AA39: =AA6&"_"&$D51&"_"&$D49 -> Municflex_Non-Local Authority_< 500V | AB39: Municrate 1_Non-Local Authority_< 500V | AC39: Municrate 2_Non-Local Authority_< 500V | AD39: Municrate 3_Non-Local Authority_< 500V | AE39: =AE6&"_"&$D51&"_"&$D49 -> Municrate 4_Non-Local Authority_< 500V | AF39: Homeflex 1_Non-Local Authority_< 500V | AG39: Homeflex 2_Non-Local Authority_< 500V | AH39: Homeflex 3_Non-Local Authority_< 500V | AI39: Homeflex 4_Non-Local Authority_< 500V | AK39: =AK6&"_"&$D51&"_"&$D49 -> Businessrate 1_Non-Local Authority_< 500V | AL39: Businessrate 1_Non-Local Authority_< 500V | AM39: Businessrate 2_Non-Local Authority_< 500V | AN39: Businessrate 3_Non-Local Authority_< 500V | AO39: Businessrate 4_Non-Local Authority_< 500V | AP39: Homelight 20A_Non-Local Authority_< 500V | AQ39: Homelight 60A_Non-Local Authority_< 500V | AR39: Homepower 1_Non-Local Authority_< 500V | AS39: Homepower 2_Non-Local Authority_< 500V | AT39: Homepower 3_Non-Local Authority_< 500V | AU39: Homepower 4_Non-Local Authority_< 500V | AV39: Homepower Bulk_Non-Local Authority_< 500V | AW39: Landrate 1_Non-Local Authority_< 500V | AX39: Landrate 2_Non-Local Authority_< 500V | AY39: Landrate 3_Non-Local Authority_< 500V | AZ39: Landrate 4_Non-Local Authority_< 500V | BA39: Landrate Dx_Non-Local Authority_< 500V | BB39: Landlight 20A_Non-Local Authority_< 500V | BC39: Landlight 60A_Non-Local Authority_< 500V | BD39: Public Lighting All Night_Non-Local Authority_< 500V | BE39: Public Lighting 24 Hours_Non-Local Authority_< 500V | BF39: Public Lighting Urban Fixed_Non-Local Authority_< 500V | BG39: Municflex_Non-Local Authority_< 500V | BH39: Municrate 1_Non-Local Authority_< 500V | BI39: Municrate 2_Non-Local Authority_< 500V | BJ39: Municrate 3_Non-Local Authority_< 500V | BK39: Municrate 4_Non-Local Authority_< 500V | BL39: Homeflex 1_Non-Local Authority_< 500V | BM39: Homeflex 2_Non-Local Authority_< 500V | BN39: Homeflex 3_Non-Local Authority_< 500V | BO39: Homeflex 4_Non-Local Authority_< 500V
C40: Rates SPU | E40: =E6&"_"&$D51 -> Businessrate 1_Non-Local Authority | F40: =F6&"_"&$D51 -> Businessrate 1_Non-Local Authority | G40: Businessrate 2_Non-Local Authority | H40: Businessrate 3_Non-Local Authority | I40: Businessrate 4_Non-Local Authority | J40: Homelight 20A_Non-Local Authority | K40: Homelight 60A_Non-Local Authority | L40: Homepower 1_Non-Local Authority | M40: Homepower 2_Non-Local Authority | N40: Homepower 3_Non-Local Authority | O40: Homepower 4_Non-Local Authority | P40: Homepower Bulk_Non-Local Authority | Q40: Landrate 1_Non-Local Authority | R40: Landrate 2_Non-Local Authority | S40: Landrate 3_Non-Local Authority | T40: Landrate 4_Non-Local Authority | U40: Landrate Dx_Non-Local Authority | V40: Landlight 20A_Non-Local Authority | W40: Landlight 60A_Non-Local Authority | X40: Public Lighting All Night_Non-Local Authority | Y40: Public Lighting 24 Hours_Non-Local Authority | Z40: =Z6&"_"&$D51 -> Public Lighting Urban Fixed_Non-Local Authority | AA40: =AA6&"_"&$D51 -> Municflex_Non-Local Authority | AB40: Municrate 1_Non-Local Authority | AC40: Municrate 2_Non-Local Authority | AD40: Municrate 3_Non-Local Authority | AE40: =AE6&"_"&$D51 -> Municrate 4_Non-Local Authority | AF40: Homeflex 1_Non-Local Authority | AG40: Homeflex 2_Non-Local Authority | AH40: Homeflex 3_Non-Local Authority | AI40: Homeflex 4_Non-Local Authority | AK40: =AK6&"_"&$D51 -> Businessrate 1_Non-Local Authority | AL40: Businessrate 1_Non-Local Authority | AM40: Businessrate 2_Non-Local Authority | AN40: Businessrate 3_Non-Local Authority | AO40: Businessrate 4_Non-Local Authority | AP40: Homelight 20A_Non-Local Authority | AQ40: Homelight 60A_Non-Local Authority | AR40: Homepower 1_Non-Local Authority | AS40: Homepower 2_Non-Local Authority | AT40: Homepower 3_Non-Local Authority | AU40: Homepower 4_Non-Local Authority | AV40: Homepower Bulk_Non-Local Authority | AW40: Landrate 1_Non-Local Authority | AX40: Landrate 2_Non-Local Authority | AY40: Landrate 3_Non-Local Authority | AZ40: Landrate 4_Non-Local Authority | BA40: Landrate Dx_Non-Local Authority | BB40: Landlight 20A_Non-Local Authority | BC40: Landlight 60A_Non-Local Authority | BD40: Public Lighting All Night_Non-Local Authority | BE40: Public Lighting 24 Hours_Non-Local Authority | BF40: Public Lighting Urban Fixed_Non-Local Authority | BG40: Municflex_Non-Local Authority | BH40: Municrate 1_Non-Local Authority | BI40: Municrate 2_Non-Local Authority | BJ40: Municrate 3_Non-Local Authority | BK40: Municrate 4_Non-Local Authority | BL40: Homeflex 1_Non-Local Authority | BM40: Homeflex 2_Non-Local Authority | BN40: Homeflex 3_Non-Local Authority | BO40: Homeflex 4_Non-Local Authority
C41: Admin & Service Charges | E41: =INDEX(F41:AI41,0,F2) -> Urban_Non-Local Authority_≤100kVA | F41: =$B56&"_"&$D51&"_"&$D53 -> Urban_Non-Local Authority_≤100kVA | G41: =$B56&"_"&$D51&"_"&$D53 -> Urban_Non-Local Authority_≤100kVA | H41: Urban_Non-Local Authority_≤100kVA | I41: Urban_Non-Local Authority_≤100kVA | J41: Urban_Non-Local Authority_≤100kVA | K41: Urban_Non-Local Authority_≤100kVA | L41: Urban_Non-Local Authority_≤100kVA | M41: Urban_Non-Local Authority_≤100kVA | N41: Urban_Non-Local Authority_≤100kVA | O41: Urban_Non-Local Authority_≤100kVA | P41: Urban_Non-Local Authority_≤100kVA | Q41: =$B57&"_"&$D51&"_"&$D53 -> Rural_Non-Local Authority_≤100kVA | R41: =$B57&"_"&$D51&"_"&$D53 -> Rural_Non-Local Authority_≤100kVA | S41: Rural_Non-Local Authority_≤100kVA | T41: Rural_Non-Local Authority_≤100kVA | U41: Rural_Non-Local Authority_≤100kVA | V41: Rural_Non-Local Authority_≤100kVA | W41: Rural_Non-Local Authority_≤100kVA | X41: =$B56&"_"&$D51&"_"&$D53 -> Urban_Non-Local Authority_≤100kVA | Y41: Urban_Non-Local Authority_≤100kVA | Z41: Urban_Non-Local Authority_≤100kVA | AA41: Urban_Non-Local Authority_≤100kVA | AB41: Urban_Non-Local Authority_≤100kVA | AC41: Urban_Non-Local Authority_≤100kVA | AD41: Urban_Non-Local Authority_≤100kVA | AE41: Urban_Non-Local Authority_≤100kVA | AF41: Urban_Non-Local Authority_≤100kVA | AG41: Urban_Non-Local Authority_≤100kVA | AH41: Urban_Non-Local Authority_≤100kVA | AI41: Urban_Non-Local Authority_≤100kVA | AK41: =INDEX(AL41:BO41,0,Selected_Tariff_ID) -> Urban_Non-Local Authority_≤100kVA | AL41: =F41 -> Urban_Non-Local Authority_≤100kVA | AM41: Urban_Non-Local Authority_≤100kVA | AN41: Urban_Non-Local Authority_≤100kVA | AO41: Urban_Non-Local Authority_≤100kVA | AP41: Urban_Non-Local Authority_≤100kVA | AQ41: Urban_Non-Local Authority_≤100kVA | AR41: Urban_Non-Local Authority_≤100kVA | AS41: Urban_Non-Local Authority_≤100kVA | AT41: Urban_Non-Local Authority_≤100kVA | AU41: Urban_Non-Local Authority_≤100kVA | AV41: Urban_Non-Local Authority_≤100kVA | AW41: Rural_Non-Local Authority_≤100kVA | AX41: Rural_Non-Local Authority_≤100kVA | AY41: Rural_Non-Local Authority_≤100kVA | AZ41: Rural_Non-Local Authority_≤100kVA | BA41: Rural_Non-Local Authority_≤100kVA | BB41: Rural_Non-Local Authority_≤100kVA | BC41: Rural_Non-Local Authority_≤100kVA | BD41: Urban_Non-Local Authority_≤100kVA | BE41: Urban_Non-Local Authority_≤100kVA | BF41: Urban_Non-Local Authority_≤100kVA | BG41: Urban_Non-Local Authority_≤100kVA | BH41: Urban_Non-Local Authority_≤100kVA | BI41: Urban_Non-Local Authority_≤100kVA | BJ41: Urban_Non-Local Authority_≤100kVA | BK41: Urban_Non-Local Authority_≤100kVA | BL41: Urban_Non-Local Authority_≤100kVA | BM41: Urban_Non-Local Authority_≤100kVA | BN41: Urban_Non-Local Authority_≤100kVA | BO41: Urban_Non-Local Authority_≤100kVA
B43: Check tables
C44: Table 1: 1 = LPU, 0 = SPU | E44: =SUMIFS(F44:AI44,$F$7:$AI$7,$F$2) -> 0 | F44: 0 | G44: 0 | H44: 0 | I44: 0 | J44: 0 | K44: 0 | L44: 0 | M44: 0 | N44: 0 | O44: 0 | P44: 0 | Q44: 0 | R44: 0 | S44: 0 | T44: 0 | U44: 0 | V44: 0 | W44: 0 | X44: 0 | Y44: 0 | Z44: 0 | AA44: 0 | AB44: 0 | AC44: 0 | AD44: 0 | AE44: 0 | AF44: 0 | AG44: 0 | AH44: 0 | AI44: 0 | AK44: 0 | AL44: =F44 -> 0 | AM44: 0 | AN44: 0 | AO44: 0 | AP44: 0 | AQ44: 0 | AR44: 0 | AS44: 0 | AT44: 0 | AU44: 0 | AV44: 0 | AW44: 0 | AX44: 0 | AY44: 0 | AZ44: 0 | BA44: 0 | BB44: 0 | BC44: 0 | BD44: 0 | BE44: 0 | BF44: 0 | BH44: 0 | BI44: 0 | BJ44: 0 | BK44: 0 | BL44: =AF44 -> 0 | BM44: =AG44 -> 0 | BN44: =AH44 -> 0 | BO44: =AI44 -> 0
B46: Assumptions
C47: Tariff: | D47: =Selected_Base_Tariff -> Businessrate 1
C48: Type | D48: =INDEX(Full_Tariff_Type,MATCH(D47,Full_Tariff_List,0)) -> Urban
C49: Supply voltage | D49: =Selected_Supply_Voltage -> < 500V
C50: Transmission zone | D50: =Selected_Transmission -> Not Applicable
C51: Tariff Category | D51: =Selected_Tariff_Category -> Non-Local Authority
C52: No of PODS | D52: =PODs -> 1
C53: Size of supply | D53: =IF(Selected_Customer_Category_ID=1,Lists!O21,Selected_Supply_Size) -> ≤100kVA
B56: Urban
B57: Rural

Sheet Workings High (hidden)
E2: =Inputs!G21 -> Businessrate 1 | F2: =MATCH(E2,Full_Tariff_List,0) -> 1
B4: Calculations by Tariff
B6: Tariffs | E6: =E2 -> Businessrate 1 | F6: =INDEX(Full_Tariff_List,F$7,) -> Businessrate 1 | G6: Businessrate 2 | H6: Businessrate 3 | I6: Businessrate 4 | J6: Homelight 20A | K6: Homelight 60A | L6: Homepower 1 | M6: Homepower 2 | N6: Homepower 3 | O6: Homepower 4 | P6: Homepower Bulk | Q6: Landrate 1 | R6: Landrate 2 | S6: Landrate 3 | T6: Landrate 4 | U6: Landrate Dx | V6: Landlight 20A | W6: Landlight 60A | X6: Public Lighting All Night | Y6: Public Lighting 24 Hours | Z6: Public Lighting Urban Fixed | AA6: Municflex | AB6: Municrate 1 | AC6: Municrate 2 | AD6: Municrate 3 | AE6: Municrate 4 | AF6: Homeflex 1 | AG6: Homeflex 2 | AH6: Homeflex 3 | AI6: Homeflex 4 | AK6: =Selected_Base_Tariff -> Businessrate 1 | AL6: =F6 -> Businessrate 1 | AM6: Businessrate 2 | AN6: Businessrate 3 | AO6: Businessrate 4 | AP6: Homelight 20A | AQ6: Homelight 60A | AR6: Homepower 1 | AS6: Homepower 2 | AT6: Homepower 3 | AU6: =O6 -> Homepower 4 | AV6: Homepower Bulk | AW6: Landrate 1 | AX6: Landrate 2 | AY6: Landrate 3 | AZ6: Landrate 4 | BA6: Landrate Dx | BB6: Landlight 20A | BC6: Landlight 60A | BD6: Public Lighting All Night | BE6: =Y6 -> Public Lighting 24 Hours | BF6: Public Lighting Urban Fixed | BG6: =AA6 -> Municflex | BH6: Municrate 1 | BI6: Municrate 2 | BJ6: Municrate 3 | BK6: Municrate 4 | BL6: =AF6 -> Homeflex 1 | BM6: Homeflex 2 | BN6: Homeflex 3 | BO6: Homeflex 4
E7: =F2 -> 1 | F7: 1 | G7: =F7+1 -> 2 | H7: =G7+1 -> 3 | I7: 4 | J7: 5 | K7: 6 | L7: 7 | M7: 8 | N7: 9 | O7: 10 | P7: 11 | Q7: 12 | R7: 13 | S7: 14 | T7: 15 | U7: =T7+1 -> 16 | V7: 17 | W7: 18 | X7: 19 | Y7: 20 | Z7: 21 | AA7: 28 | AB7: =AA7+1 -> 29 | AC7: =AB7+1 -> 30 | AD7: 31 | AE7: 32 | AF7: 33 | AG7: =AF7+1 -> 34 | AH7: =AG7+1 -> 35 | AI7: =AH7+1 -> 36 | AK7: 1 | AL7: 1 | AM7: 2 | AN7: 3 | AO7: 4 | AP7: 5 | AQ7: 6 | AR7: 7 | AS7: 8 | AT7: 9 | AU7: 10 | AV7: 11 | AW7: 12 | AX7: 13 | AY7: 14 | AZ7: 15 | BA7: 16 | BB7: 17 | BC7: 18 | BD7: 19 | BE7: 20 | BF7: 21 | BG7: 28 | BH7: =BG7+1 -> 29 | BI7: =BH7+1 -> 30 | BJ7: 31 | BK7: 32 | BL7: 33 | BM7: 34 | BN7: 35 | BO7: 36
B8: Network charges | D8: Units | E8: =Current_Period&" Rates" -> 2024/25 Rates | F8: =E8 -> 2024/25 Rates | G8: =F8 -> 2024/25 Rates | H8: 2024/25 Rates | I8: 2024/25 Rates | J8: 2024/25 Rates | K8: 2024/25 Rates | L8: 2024/25 Rates | M8: 2024/25 Rates | N8: 2024/25 Rates | O8: 2024/25 Rates | P8: 2024/25 Rates | Q8: 2024/25 Rates | R8: 2024/25 Rates | S8: 2024/25 Rates | T8: 2024/25 Rates | U8: =T8 -> 2024/25 Rates | V8: 2024/25 Rates | W8: 2024/25 Rates | X8: 2024/25 Rates | Y8: 2024/25 Rates | Z8: 2024/25 Rates | AA8: 2024/25 Rates | AB8: =AA8 -> 2024/25 Rates | AC8: =AB8 -> 2024/25 Rates | AD8: =AC8 -> 2024/25 Rates | AE8: =AD8 -> 2024/25 Rates | AF8: =Y8 -> 2024/25 Rates | AG8: 2024/25 Rates | AH8: 2024/25 Rates | AI8: 2024/25 Rates | AK8: =New_Period&" Rates" -> 2025/26 Rates | AL8: =AK8 -> 2025/26 Rates | AM8: =AL8 -> 2025/26 Rates | AN8: 2025/26 Rates | AO8: 2025/26 Rates | AP8: 2025/26 Rates | AQ8: 2025/26 Rates | AR8: 2025/26 Rates | AS8: 2025/26 Rates | AT8: 2025/26 Rates | AU8: 2025/26 Rates | AV8: 2025/26 Rates | AW8: 2025/26 Rates | AX8: 2025/26 Rates | AY8: 2025/26 Rates | AZ8: 2025/26 Rates | BA8: =AZ8 -> 2025/26 Rates | BB8: 2025/26 Rates | BC8: 2025/26 Rates | BD8: 2025/26 Rates | BE8: 2025/26 Rates | BF8: 2025/26 Rates | BG8: =BF8 -> 2025/26 Rates | BH8: =BG8 -> 2025/26 Rates | BI8: =BH8 -> 2025/26 Rates | BJ8: =BI8 -> 2025/26 Rates | BK8: 2025/26 Rates | BL8: =BE8 -> 2025/26 Rates | BM8: 2025/26 Rates | BN8: 2025/26 Rates | BO8: 2025/26 Rates
C10: Distribution network demand charge | D10: c/kWh | E10: =SUMIFS(F10:AI10,$F$7:$AI$7,$F$2) -> 0 | F10: =IFERROR('Rates Table'!F10*SPU_Annual_Total_Energy,0)/100 -> 0 | G10: =IFERROR('Rates Table'!G10*SPU_Annual_Total_Energy,0)/100 -> 0 | H10: =IFERROR('Rates Table'!H10*SPU_Annual_Total_Energy,0)/100 -> 0 | I10: =IFERROR('Rates Table'!I10*SPU_Annual_Total_Energy,0)/100 -> 0 | J10: =IFERROR('Rates Table'!J10*SPU_Annual_Total_Energy,0)/100 -> 0 | K10: =IFERROR('Rates Table'!K10*SPU_Annual_Total_Energy,0)/100 -> 0 | L10: =IFERROR('Rates Table'!L10*SPU_Annual_Total_Energy,0)/100 -> 0 | M10: =IFERROR('Rates Table'!M10*SPU_Annual_Total_Energy,0)/100 -> 0 | N10: =IFERROR('Rates Table'!N10*SPU_Annual_Total_Energy,0)/100 -> 0 | O10: =IFERROR('Rates Table'!O10*SPU_Annual_Total_Energy,0)/100 -> 0 | P10: =IFERROR('Rates Table'!P10*SPU_Annual_Total_Energy,0)/100 -> 0 | Q10: =IFERROR('Rates Table'!Q10*SPU_Annual_Total_Energy,0)/100 -> 0 | R10: =IFERROR('Rates Table'!R10*SPU_Annual_Total_Energy,0)/100 -> 0 | S10: =IFERROR('Rates Table'!S10*SPU_Annual_Total_Energy,0)/100 -> 0 | T10: =IFERROR('Rates Table'!T10*SPU_Annual_Total_Energy,0)/100 -> 0 | U10: =IFERROR('Rates Table'!U10*SPU_Annual_Total_Energy,0)/100 -> 0 | V10: =IFERROR('Rates Table'!V10*SPU_Annual_Total_Energy,0)/100 -> 0 | W10: =IFERROR('Rates Table'!W10*SPU_Annual_Total_Energy,0)/100 -> 0 | X10: =IFERROR('Rates Table'!X10*SPU_Annual_Total_Energy,0)/100 -> 0 | Y10: =IFERROR('Rates Table'!Y10*SPU_Annual_Total_Energy,0)/100 -> 0 | Z10: =IFERROR('Rates Table'!Z10*SPU_Annual_Total_Energy,0)/100 -> 0 | AB10: =IFERROR('Rates Table'!AB10*SPU_Annual_Total_Energy,0)/100 -> 0 | AC10: =IFERROR('Rates Table'!AC10*SPU_Annual_Total_Energy,0)/100 -> 0 | AD10: =IFERROR('Rates Table'!AD10*SPU_Annual_Total_Energy,0)/100 -> 0 | AE10: =IFERROR('Rates Table'!AF10*SPU_Annual_Total_Energy,0)/100 -> 0 | AF10: =IFERROR('Rates Table'!AF10*Homeflex_Total_Energy,0)/100 -> 0 | AG10: =IFERROR('Rates Table'!AG10*Homeflex_Total_Energy,0)/100 -> 0 | AH10: =IFERROR('Rates Table'!AH10*Homeflex_Total_Energy,0)/100 -> 0 | AI10: =IFERROR('Rates Table'!AI10*Homeflex_Total_Energy,0)/100 -> 0 | AK10: =SUMIFS(AL10:BO10,$F$7:$AI$7,Selected_Tariff_ID) -> 0 | AL10: =IFERROR('Rates Table'!AL10*SPU_Annual_Total_Energy,0)/100 -> 0 | AM10: =IFERROR('Rates Table'!AM10*SPU_Annual_Total_Energy,0)/100 -> 0 | AN10: =IFERROR('Rates Table'!AN10*SPU_Annual_Total_Energy,0)/100 -> 0 | AO10: =IFERROR('Rates Table'!AO10*SPU_Annual_Total_Energy,0)/100 -> 0 | AP10: =IFERROR('Rates Table'!AP10*SPU_Annual_Total_Energy,0)/100 -> 0 | AQ10: =IFERROR('Rates Table'!AQ10*SPU_Annual_Total_Energy,0)/100 -> 0 | AR10: =IFERROR('Rates Table'!AR10*SPU_Annual_Total_Energy,0)/100 -> 0 | AS10: =IFERROR('Rates Table'!AS10*SPU_Annual_Total_Energy,0)/100 -> 0 | AT10: =IFERROR('Rates Table'!AT10*SPU_Annual_Total_Energy,0)/100 -> 0 | AU10: =IFERROR('Rates Table'!AU10*SPU_Annual_Total_Energy,0)/100 -> 0 | AV10: =IFERROR('Rates Table'!AV10*SPU_Annual_Total_Energy,0)/100 -> 0 | AW10: =IFERROR('Rates Table'!AW10*SPU_Annual_Total_Energy,0)/100 -> 0 | AX10: =IFERROR('Rates Table'!AX10*SPU_Annual_Total_Energy,0)/100 -> 0 | AY10: =IFERROR('Rates Table'!AY10*SPU_Annual_Total_Energy,0)/100 -> 0 | AZ10: =IFERROR('Rates Table'!AZ10*SPU_Annual_Total_Energy,0)/100 -> 0 | BA10: =IFERROR('Rates Table'!BA10*SPU_Annual_Total_Energy,0)/100 -> 0 | BB10: =IFERROR('Rates Table'!BB10*SPU_Annual_Total_Energy,0)/100 -> 0 | BC10: =IFERROR('Rates Table'!BC10*SPU_Annual_Total_Energy,0)/100 -> 0 | BD10: =IFERROR('Rates Table'!BD10*SPU_Annual_Total_Energy,0)/100 -> 0 | BE10: =IFERROR('Rates Table'!BE10*SPU_Annual_Total_Energy,0)/100 -> 0 | BF10: =IFERROR('Rates Table'!BF10*SPU_Annual_Total_Energy,0)/100 -> 0 | BG10: =IFERROR('Rates Table'!BG10*SPU_Annual_Total_Energy,0)/100 -> 0 | BH10: =IFERROR('Rates Table'!BH10*SPU_Annual_Total_Energy,0)/100 -> 0 | BI10: =IFERROR('Rates Table'!BI10*SPU_Annual_Total_Energy,0)/100 -> 0 | BJ10: =IFERROR('Rates Table'!BJ10*SPU_Annual_Total_Energy,0)/100 -> 0 | BK10: =IFERROR('Rates Table'!BK10*SPU_Annual_Total_Energy,0)/100 -> 0 | BL10: =IFERROR('Rates Table'!BL10*Homeflex_Total_Energy,0)/100 -> 0 | BM10: =IFERROR('Rates Table'!BM10*Homeflex_Total_Energy,0)/100 -> 0 | BN10: =IFERROR('Rates Table'!BN10*Homeflex_Total_Energy,0)/100 -> 0 | BO10: =IFERROR('Rates Table'!BO10*Homeflex_Total_Energy,0)/100 -> 0
C11: Network demand charge, Ancillary service charge and retail | D11: c/kWh | E11: =SUMIFS(F11:AI11,$F$7:$AI$7,$F$2) -> 0 | AF11: =IFERROR('Rates Table'!AF11*Homeflex_Total_Energy,0)/100 -> 0 | AG11: =IFERROR('Rates Table'!AG11*Homeflex_Total_Energy,0)/100 -> 0 | AH11: =IFERROR('Rates Table'!AH11*Homeflex_Total_Energy,0)/100 -> 0 | AI11: =IFERROR('Rates Table'!AI11*Homeflex_Total_Energy,0)/100 -> 0 | AK11: =SUMIFS(AL11:BO11,$F$7:$AI$7,Selected_Tariff_ID) -> 0 | BL11: =IFERROR('Rates Table'!BL11*Homeflex_Total_Energy,0)/100 -> 0 | BM11: =IFERROR('Rates Table'!BM11*Homeflex_Total_Energy,0)/100 -> 0 | BN11: =IFERROR('Rates Table'!BN11*Homeflex_Total_Energy,0)/100 -> 0 | BO11: =IFERROR('Rates Table'!BO11*Homeflex_Total_Energy,0)/100 -> 0
C12: Network capacity charge | D12: =IF(Table_1=1,"R/kVA","R/day") -> R/day | E12: =SUMIFS(F12:AI12,$F$7:$AI$7,$F$2) -> 1291.795833 | F12: =IFERROR('Rates Table'!F12*PODs*ESKOM_Total_days,0) -> 1291.795833 | G12: =IFERROR('Rates Table'!G12*PODs*ESKOM_Total_days,0) -> 2176.920833 | H12: =IFERROR('Rates Table'!H12*PODs*ESKOM_Total_days,0) -> 3760.716667 | I12: =IFERROR('Rates Table'!I12*PODs*ESKOM_Total_days,0) -> 0 | J12: =IFERROR('Rates Table'!J12*PODs*ESKOM_Total_days,0) -> 0 | K12: =IFERROR('Rates Table'!K12*PODs*ESKOM_Total_days,0) -> 0 | L12: =IFERROR('Rates Table'!L12*PODs*ESKOM_Total_days,0) -> 319.9833333 | M12: =IFERROR('Rates Table'!M12*PODs*ESKOM_Total_days,0) -> 599.5125 | N12: =IFERROR('Rates Table'!N12*PODs*ESKOM_Total_days,0) -> 1237.654167 | O12: =IFERROR('Rates Table'!O12*PODs*ESKOM_Total_days,0) -> 195.5791667 | P12: =IFERROR('Rates Table'!P12*PODs*ESKOM_Total_days,0) -> 2029.4 | Q12: =IFERROR('Rates Table'!Q12*PODs*ESKOM_Total_days,0) -> 1693.6 | R12: =IFERROR('Rates Table'!R12*PODs*ESKOM_Total_days,0) -> 2603.3625 | S12: =IFERROR('Rates Table'!S12*PODs*ESKOM_Total_days,0) -> 4162.216667 | T12: =IFERROR('Rates Table'!T12*PODs*ESKOM_Total_days,0) -> 1348.675 | U12: =IFERROR('Rates Table'!U12*PODs*ESKOM_Total_days,0) -> 0 | V12: =IFERROR('Rates Table'!V12*PODs*ESKOM_Total_days,0) -> 0 | W12: =IFERROR('Rates Table'!W12*PODs*ESKOM_Total_days,0) -> 0 | X12: =IFERROR('Rates Table'!X12*PODs*ESKOM_Total_days,0) -> 0 | Y12: =IFERROR('Rates Table'!Y12*PODs*ESKOM_Total_days,0) -> 0 | Z12: =IFERROR('Rates Table'!Z12*PODs*ESKOM_Total_days,0) -> 0 | AB12: =IFERROR('Rates Table'!AB12*PODs*ESKOM_Total_days,0) -> 0 | AC12: =IFERROR('Rates Table'!AC12*PODs*ESKOM_Total_days,0) -> 0 | AD12: =IFERROR('Rates Table'!AD12*PODs*ESKOM_Total_days,0) -> 0 | AE12: =IFERROR('Rates Table'!AF12*PODs*ESKOM_Total_days,0) -> 319.9833333 | AF12: =IFERROR('Rates Table'!AF12*PODs*ESKOM_Total_days,0) -> 319.9833333 | AG12: =IFERROR('Rates Table'!AG12*PODs*ESKOM_Total_days,0) -> 599.5125 | AH12: =IFERROR('Rates Table'!AH12*PODs*ESKOM_Total_days,0) -> 1237.654167 | AI12: =IFERROR('Rates Table'!AI12*PODs*ESKOM_Total_days,0) -> 195.5791667 | AK12: =SUMIFS(AL12:BO12,$F$7:$AI$7,Selected_Tariff_ID) -> 618.675 | AL12: =IFERROR('Rates Table'!AL12*PODs*ESKOM_Total_days,0) -> 618.675 | AM12: =IFERROR('Rates Table'!AM12*PODs*ESKOM_Total_days,0) -> 918.8875 | AN12: =IFERROR('Rates Table'!AN12*PODs*ESKOM_Total_days,0) -> 2292.808333 | AO12: =IFERROR('Rates Table'!AO12*PODs*ESKOM_Total_days,0) -> 0 | AP12: =IFERROR('Rates Table'!AP12*PODs*ESKOM_Total_days,0) -> 0 | AQ12: =IFERROR('Rates Table'!AQ12*PODs*ESKOM_Total_days,0) -> 0 | AR12: =IFERROR('Rates Table'!AR12*PODs*ESKOM_Total_days,0) -> 368.9541667 | AS12: =IFERROR('Rates Table'!AS12*PODs*ESKOM_Total_days,0) -> 823.3791667 | AT12: =IFERROR('Rates Table'!AT12*PODs*ESKOM_Total_days,0) -> 1758.691667 | AU12: =IFERROR('Rates Table'!AU12*PODs*ESKOM_Total_days,0) -> 253.9791667 | AV12: =IFERROR('Rates Table'!AV12*PODs*ESKOM_Total_days,0) -> 0 | AW12: =IFERROR('Rates Table'!AW12*PODs*ESKOM_Total_days,0) -> 1891.916667 | AX12: =IFERROR('Rates Table'!AX12*PODs*ESKOM_Total_days,0) -> 2950.1125 | AY12: =IFERROR('Rates Table'!AY12*PODs*ESKOM_Total_days,0) -> 4724.316667 | AZ12: =IFERROR('Rates Table'!AZ12*PODs*ESKOM_Total_days,0) -> 1396.733333 | BA12: =IFERROR('Rates Table'!BA12*PODs*ESKOM_Total_days,0) -> 0 | BB12: =IFERROR('Rates Table'!BB12*PODs*ESKOM_Total_days,0) -> 0 | BC12: =IFERROR('Rates Table'!BC12*PODs*ESKOM_Total_days,0) -> 0 | BD12: =IFERROR('Rates Table'!BD12*PODs*ESKOM_Total_days,0) -> 0 | BE12: =IFERROR('Rates Table'!BE12*PODs*ESKOM_Total_days,0) -> 0 | BF12: =IFERROR('Rates Table'!BF12*PODs*ESKOM_Total_days,0) -> 0 | BG12: =IFERROR('Rates Table'!BG12*PODs*ESKOM_Total_days,0) -> 0 | BH12: =IFERROR('Rates Table'!BH12*PODs*ESKOM_Total_days,0) -> 0 | BI12: =IFERROR('Rates Table'!BI12*PODs*ESKOM_Total_days,0) -> 0 | BJ12: =IFERROR('Rates Table'!BJ12*PODs*ESKOM_Total_days,0) -> 0 | BK12: =IFERROR('Rates Table'!BK12*PODs*ESKOM_Total_days,0) -> 0 | BL12: =IFERROR('Rates Table'!BL12*PODs*ESKOM_Total_days,0) -> 368.9541667 | BM12: =IFERROR('Rates Table'!BM12*PODs*ESKOM_Total_days,0) -> 823.3791667 | BN12: =IFERROR('Rates Table'!BN12*PODs*ESKOM_Total_days,0) -> 1758.691667 | BO12: =IFERROR('Rates Table'!BO12*PODs*ESKOM_Total_days,0) -> 253.9791667
B14: Total network charges | E14: =SUM(E10:E12) -> 1291.795833 | F14: 1291.795833 | G14: 2176.920833 | H14: 3760.716667 | I14: 0 | J14: 0 | K14: 0 | L14: 319.9833333 | M14: 599.5125 | N14: 1237.654167 | O14: 195.5791667 | P14: 2029.4 | Q14: 1693.6 | R14: 2603.3625 | S14: 4162.216667 | T14: 1348.675 | U14: =SUM(U10:U12) -> 0 | V14: 0 | W14: 0 | X14: 0 | Y14: 0 | Z14: =SUM(Z10:Z12) -> 0 | AB14: =SUM(AB10:AB12) -> 0 | AC14: 0 | AD14: 0 | AE14: 319.9833333 | AF14: 319.9833333 | AG14: =SUM(AG10:AG12) -> 599.5125 | AH14: =SUM(AH10:AH12) -> 1237.654167 | AI14: =SUM(AI10:AI12) -> 195.5791667 | AK14: =SUM(AK10:AK12) -> 618.675 | AL14: =SUM(AL10:AL12) -> 618.675 | AM14: 918.8875 | AN14: 2292.808333 | AO14: 0 | AP14: 0 | AQ14: 0 | AR14: 368.9541667 | AS14: 823.3791667 | AT14: 1758.691667 | AU14: 253.9791667 | AV14: 0 | AW14: 1891.916667 | AX14: 2950.1125 | AY14: 4724.316667 | AZ14: 1396.733333 | BA14: =SUM(BA10:BA12) -> 0 | BB14: 0 | BC14: 0 | BD14: 0 | BE14: 0 | BF14: =SUM(BF10:BF12) -> 0 | BG14: =SUM(BG10:BG12) -> 0 | BH14: 0 | BI14: 0 | BJ14: 0 | BK14: =SUM(BK10:BK12) -> 0 | BL14: 368.9541667 | BM14: =SUM(BM10:BM12) -> 823.3791667 | BN14: =SUM(BN10:BN12) -> 1758.691667 | BO14: =SUM(BO10:BO12) -> 253.9791667
B16: Energy charges | D16: Units | E16: =E$8 -> 2024/25 Rates | F16: =F$8 -> 2024/25 Rates | G16: 2024/25 Rates | H16: 2024/25 Rates | I16: 2024/25 Rates | J16: 2024/25 Rates | K16: 2024/25 Rates | L16: 2024/25 Rates | M16: 2024/25 Rates | N16: 2024/25 Rates | O16: 2024/25 Rates | P16: 2024/25 Rates | Q16: 2024/25 Rates | R16: 2024/25 Rates | S16: 2024/25 Rates | T16: 2024/25 Rates | U16: 2024/25 Rates | V16: 2024/25 Rates | W16: 2024/25 Rates | X16: 2024/25 Rates | Y16: 2024/25 Rates | Z16: 2024/25 Rates | AA16: 2024/25 Rates | AB16: 2024/25 Rates | AC16: 2024/25 Rates | AD16: 2024/25 Rates | AE16: 2024/25 Rates | AF16: 2024/25 Rates | AG16: 2024/25 Rates | AH16: 2024/25 Rates | AI16: 2024/25 Rates | AK16: =AK$8 -> 2025/26 Rates | AL16: =AL$8 -> 2025/26 Rates | AM16: 2025/26 Rates | AN16: 2025/26 Rates | AO16: 2025/26 Rates | AP16: 2025/26 Rates | AQ16: 2025/26 Rates | AR16: 2025/26 Rates | AS16: 2025/26 Rates | AT16: 2025/26 Rates | AU16: 2025/26 Rates | AV16: 2025/26 Rates | AW16: 2025/26 Rates | AX16: 2025/26 Rates | AY16: 2025/26 Rates | AZ16: 2025/26 Rates | BA16: 2025/26 Rates | BB16: 2025/26 Rates | BC16: 2025/26 Rates | BD16: 2025/26 Rates | BE16: 2025/26 Rates | BF16: 2025/26 Rates | BG16: 2025/26 Rates | BH16: 2025/26 Rates | BI16: 2025/26 Rates | BJ16: 2025/26 Rates | BK16: 2025/26 Rates | BL16: 2025/26 Rates | BM16: 2025/26 Rates | BN16: 2025/26 Rates | BO16: 2025/26 Rates
C18: Energy | D18: c/kWh | E18: =SUMIFS(F18:AI18,$F$7:$AI$7,$F$2) -> 0 | F18: =IFERROR('Rates Table'!F18*(SPU_Annual_Total_Energy),0)/100 -> 0 | G18: =IFERROR('Rates Table'!G18*(SPU_Annual_Total_Energy),0)/100 -> 0 | H18: =IFERROR('Rates Table'!H18*(SPU_Annual_Total_Energy),0)/100 -> 0 | I18: =IFERROR('Rates Table'!I18*(SPU_Annual_Total_Energy),0)/100 -> 0 | J18: =IFERROR('Rates Table'!J18*(SPU_Annual_Total_Energy),0)/100 -> 0 | K18: =IFERROR('Rates Table'!K18*(SPU_Annual_Total_Energy),0)/100 -> 0 | L18: =IFERROR('Rates Table'!L18*(SPU_Annual_Total_Energy),0)/100 -> 0 | M18: =IFERROR('Rates Table'!M18*(SPU_Annual_Total_Energy),0)/100 -> 0 | N18: =IFERROR('Rates Table'!N18*(SPU_Annual_Total_Energy),0)/100 -> 0 | O18: =IFERROR('Rates Table'!O18*(SPU_Annual_Total_Energy),0)/100 -> 0 | P18: =IFERROR('Rates Table'!P18*(SPU_Annual_Total_Energy),0)/100 -> 0 | Q18: =IFERROR('Rates Table'!Q18*(SPU_Annual_Total_Energy),0)/100 -> 0 | R18: =IFERROR('Rates Table'!R18*(SPU_Annual_Total_Energy),0)/100 -> 0 | S18: =IFERROR('Rates Table'!S18*(SPU_Annual_Total_Energy),0)/100 -> 0 | T18: =IFERROR('Rates Table'!T18*(SPU_Annual_Total_Energy),0)/100 -> 0 | U18: =IFERROR('Rates Table'!U18*(SPU_Annual_Total_Energy),0)/100 -> 0 | V18: =IFERROR('Rates Table'!V18*(SPU_Annual_Total_Energy),0)/100 -> 0 | W18: =IFERROR('Rates Table'!W18*(SPU_Annual_Total_Energy),0)/100 -> 0 | X18: =IFERROR('Rates Table'!X18*(SPU_Annual_Total_Energy),0)/100 -> 0 | Y18: =IFERROR('Rates Table'!Y18*(SPU_Annual_Total_Energy),0)/100 -> 0 | Z18: =IFERROR('Rates Table'!Z18*(SPU_Annual_Total_Energy),0)/100 -> 0 | AB18: =IFERROR('Rates Table'!AB18*(SPU_Annual_Total_Energy),0)/100 -> 0 | AC18: =IFERROR('Rates Table'!AC18*(SPU_Annual_Total_Energy),0)/100 -> 0 | AD18: =IFERROR('Rates Table'!AD18*(SPU_Annual_Total_Energy),0)/100 -> 0 | AE18: =IFERROR('Rates Table'!AF18*(SPU_Annual_Total_Energy),0)/100 -> 0 | AF18: =IFERROR('Rates Table'!AF18*(Homeflex_Total_Energy),0)/100 -> 0 | AG18: =IFERROR('Rates Table'!AG18*(Homeflex_Total_Energy),0)/100 -> 0 | AH18: =IFERROR('Rates Table'!AH18*(Homeflex_Total_Energy),0)/100 -> 0 | AI18: =IFERROR('Rates Table'!AI18*(Homeflex_Total_Energy),0)/100 -> 0 | AK18: =SUMIFS(AL18:BO18,$F$7:$AI$7,Selected_Tariff_ID) -> 0 | AL18: =IFERROR('Rates Table'!AL18*(SPU_Annual_Total_Energy),0)/100 -> 0 | AM18: =IFERROR('Rates Table'!AM18*(SPU_Annual_Total_Energy),0)/100 -> 0 | AN18: =IFERROR('Rates Table'!AN18*(SPU_Annual_Total_Energy),0)/100 -> 0 | AO18: =IFERROR('Rates Table'!AO18*(SPU_Annual_Total_Energy),0)/100 -> 0 | AP18: =IFERROR('Rates Table'!AP18*(SPU_Annual_Total_Energy),0)/100 -> 0 | AQ18: =IFERROR('Rates Table'!AQ18*(SPU_Annual_Total_Energy),0)/100 -> 0 | AR18: =IFERROR('Rates Table'!AR18*(SPU_Annual_Total_Energy),0)/100 -> 0 | AS18: =IFERROR('Rates Table'!AS18*(SPU_Annual_Total_Energy),0)/100 -> 0 | AT18: =IFERROR('Rates Table'!AT18*(SPU_Annual_Total_Energy),0)/100 -> 0 | AU18: =IFERROR('Rates Table'!AU18*(SPU_Annual_Total_Energy),0)/100 -> 0 | AV18: =IFERROR('Rates Table'!AV18*(SPU_Annual_Total_Energy),0)/100 -> 0 | AW18: =IFERROR('Rates Table'!AW18*(SPU_Annual_Total_Energy),0)/100 -> 0 | AX18: =IFERROR('Rates Table'!AX18*(SPU_Annual_Total_Energy),0)/100 -> 0 | AY18: =IFERROR('Rates Table'!AY18*(SPU_Annual_Total_Energy),0)/100 -> 0 | AZ18: =IFERROR('Rates Table'!AZ18*(SPU_Annual_Total_Energy),0)/100 -> 0 | BA18: =IFERROR('Rates Table'!BA18*(SPU_Annual_Total_Energy),0)/100 -> 0 | BB18: =IFERROR('Rates Table'!BB18*(SPU_Annual_Total_Energy),0)/100 -> 0 | BC18: =IFERROR('Rates Table'!BC18*(SPU_Annual_Total_Energy),0)/100 -> 0 | BD18: =IFERROR('Rates Table'!BD18*(SPU_Annual_Total_Energy),0)/100 -> 0 | BE18: =IFERROR('Rates Table'!BE18*(SPU_Annual_Total_Energy),0)/100 -> 0 | BF18: =IFERROR('Rates Table'!BF18*(SPU_Annual_Total_Energy),0)/100 -> 0 | BG18: =IFERROR('Rates Table'!BG18*(SPU_Annual_Total_Energy),0)/100 -> 0 | BH18: =IFERROR('Rates Table'!BH18*(SPU_Annual_Total_Energy),0)/100 -> 0 | BI18: =IFERROR('Rates Table'!BI18*(SPU_Annual_Total_Energy),0)/100 -> 0 | BJ18: =IFERROR('Rates Table'!BJ18*(SPU_Annual_Total_Energy),0)/100 -> 0 | BK18: =IFERROR('Rates Table'!BK18*(SPU_Annual_Total_Energy),0)/100 -> 0 | BL18: =IFERROR('Rates Table'!BL18*(Homeflex_Total_Energy),0)/100 -> 0 | BM18: =IFERROR('Rates Table'!BM18*(Homeflex_Total_Energy),0)/100 -> 0 | BN18: =IFERROR('Rates Table'!BN18*(Homeflex_Total_Energy),0)/100 -> 0 | BO18: =IFERROR('Rates Table'!BO18*(Homeflex_Total_Energy),0)/100 -> 0
C19: Peak consumption | D19: c/kWh | E19: 0 | AF19: =IFERROR('Rates Table'!AF19*(Homeflex_Peak_Energy_High),0)/100 -> 0 | AG19: =IFERROR('Rates Table'!AG19*(Homeflex_Peak_Energy_High),0)/100 -> 0 | AH19: =IFERROR('Rates Table'!AH19*(Homeflex_Peak_Energy_High),0)/100 -> 0 | AI19: =IFERROR('Rates Table'!AI19*(Homeflex_Peak_Energy_High),0)/100 -> 0 | AK19: 0 | BL19: =IFERROR('Rates Table'!BL19*(Homeflex_Peak_Energy_High),0)/100 -> 0 | BM19: =IFERROR('Rates Table'!BM19*(Homeflex_Peak_Energy_High),0)/100 -> 0 | BN19: =IFERROR('Rates Table'!BN19*(Homeflex_Peak_Energy_High),0)/100 -> 0 | BO19: =IFERROR('Rates Table'!BO19*(Homeflex_Peak_Energy_High),0)/100 -> 0
C20: Standard consumption | D20: c/kWh | E20: 0 | AF20: =IFERROR('Rates Table'!AF20*(Homeflex_Standard_Energy_High),0)/100 -> 0 | AG20: =IFERROR('Rates Table'!AG20*(Homeflex_Standard_Energy_High),0)/100 -> 0 | AH20: =IFERROR('Rates Table'!AH20*(Homeflex_Standard_Energy_High),0)/100 -> 0 | AI20: =IFERROR('Rates Table'!AI20*(Homeflex_Standard_Energy_High),0)/100 -> 0 | AK20: 0 | BL20: =IFERROR('Rates Table'!BL20*(Homeflex_Standard_Energy_High),0)/100 -> 0 | BM20: =IFERROR('Rates Table'!BM20*(Homeflex_Standard_Energy_High),0)/100 -> 0 | BN20: =IFERROR('Rates Table'!BN20*(Homeflex_Standard_Energy_High),0)/100 -> 0 | BO20: =IFERROR('Rates Table'!BO20*(Homeflex_Standard_Energy_High),0)/100 -> 0
C21: Off-Peak consumption | D21: c/kWh | E21: 0 | AF21: =IFERROR('Rates Table'!AF21*(Homeflex_OffPeak_Energy_High),0)/100 -> 0 | AG21: =IFERROR('Rates Table'!AG21*(Homeflex_OffPeak_Energy_High),0)/100 -> 0 | AH21: =IFERROR('Rates Table'!AH21*(Homeflex_OffPeak_Energy_High),0)/100 -> 0 | AI21: =IFERROR('Rates Table'!AI21*(Homeflex_OffPeak_Energy_High),0)/100 -> 0 | AK21: 0 | BL21: =IFERROR('Rates Table'!BL21*(Homeflex_OffPeak_Energy_High),0)/100 -> 0 | BM21: =IFERROR('Rates Table'!BM21*(Homeflex_OffPeak_Energy_High),0)/100 -> 0 | BN21: =IFERROR('Rates Table'!BN21*(Homeflex_OffPeak_Energy_High),0)/100 -> 0 | BO21: =IFERROR('Rates Table'!BO21*(Homeflex_OffPeak_Energy_High),0)/100 -> 0
C22: Energy - Block 1 | D22: c/kWh | E22: 0 | F22: =IFERROR('Rates Table'!F22*(SPU_Block_1),0)/100 -> 0 | G22: =IFERROR('Rates Table'!G22*(SPU_Block_1),0)/100 -> 0 | H22: =IFERROR('Rates Table'!H22*(SPU_Block_1),0)/100 -> 0 | I22: =IFERROR('Rates Table'!I22*(SPU_Block_1),0)/100 -> 0 | J22: =IFERROR('Rates Table'!J22*(SPU_Block_1),0)/100 -> 0 | K22: =IFERROR('Rates Table'!K22*(SPU_Block_1),0)/100 -> 0 | L22: =IFERROR('Rates Table'!L22*(SPU_Block_1),0)/100 -> 0 | M22: =IFERROR('Rates Table'!M22*(SPU_Block_1),0)/100 -> 0 | N22: =IFERROR('Rates Table'!N22*(SPU_Block_1),0)/100 -> 0 | O22: =IFERROR('Rates Table'!O22*(SPU_Block_1),0)/100 -> 0 | P22: =IFERROR('Rates Table'!P22*(SPU_Block_1),0)/100 -> 0 | Q22: =IFERROR('Rates Table'!Q22*(SPU_Block_1),0)/100 -> 0 | R22: =IFERROR('Rates Table'!R22*(SPU_Block_1),0)/100 -> 0 | S22: =IFERROR('Rates Table'!S22*(SPU_Block_1),0)/100 -> 0 | T22: =IFERROR('Rates Table'!T22*(SPU_Block_1),0)/100 -> 0 | U22: =IFERROR('Rates Table'!U22*(SPU_Block_1),0)/100 -> 0 | V22: =IFERROR('Rates Table'!V22*(SPU_Block_1),0)/100 -> 0 | W22: =IFERROR('Rates Table'!W22*(SPU_Block_1),0)/100 -> 0 | X22: =IFERROR('Rates Table'!X22*(SPU_Block_1),0)/100 -> 0 | Y22: =IFERROR('Rates Table'!Y22*(SPU_Block_1),0)/100 -> 0 | Z22: =IFERROR('Rates Table'!Z22*(SPU_Block_1),0)/100 -> 0 | AB22: =IFERROR('Rates Table'!AB22*(SPU_Block_1),0)/100 -> 0 | AC22: =IFERROR('Rates Table'!AC22*(SPU_Block_1),0)/100 -> 0 | AD22: =IFERROR('Rates Table'!AD22*(SPU_Block_1),0)/100 -> 0 | AE22: =IFERROR('Rates Table'!AF22*(SPU_Block_1),0)/100 -> 0 | AF22: =IFERROR('Rates Table'!AF22*(SPU_Block_1),0)/100 -> 0 | AG22: =IFERROR('Rates Table'!AG22*(SPU_Block_1),0)/100 -> 0 | AH22: =IFERROR('Rates Table'!AH22*(SPU_Block_1),0)/100 -> 0 | AI22: =IFERROR('Rates Table'!AI22*(SPU_Block_1),0)/100 -> 0 | AK22: 0 | AL22: =IFERROR('Rates Table'!AL22*(SPU_Block_1),0)/100 -> 0 | AM22: =IFERROR('Rates Table'!AM22*(SPU_Block_1),0)/100 -> 0 | AN22: =IFERROR('Rates Table'!AN22*(SPU_Block_1),0)/100 -> 0 | AO22: =IFERROR('Rates Table'!AO22*(SPU_Block_1),0)/100 -> 0 | AP22: =IFERROR('Rates Table'!AP22*(SPU_Block_1),0)/100 -> 0 | AQ22: =IFERROR('Rates Table'!AQ22*(SPU_Block_1),0)/100 -> 0 | AR22: =IFERROR('Rates Table'!AR22*(SPU_Block_1),0)/100 -> 0 | AS22: =IFERROR('Rates Table'!AS22*(SPU_Block_1),0)/100 -> 0 | AT22: =IFERROR('Rates Table'!AT22*(SPU_Block_1),0)/100 -> 0 | AU22: =IFERROR('Rates Table'!AU22*(SPU_Block_1),0)/100 -> 0 | AV22: =IFERROR('Rates Table'!AV22*(SPU_Block_1),0)/100 -> 0 | AW22: =IFERROR('Rates Table'!AW22*(SPU_Block_1),0)/100 -> 0 | AX22: =IFERROR('Rates Table'!AX22*(SPU_Block_1),0)/100 -> 0 | AY22: =IFERROR('Rates Table'!AY22*(SPU_Block_1),0)/100 -> 0 | AZ22: =IFERROR('Rates Table'!AZ22*(SPU_Block_1),0)/100 -> 0 | BA22: =IFERROR('Rates Table'!BA22*(SPU_Block_1),0)/100 -> 0 | BB22: =IFERROR('Rates Table'!BB22*(SPU_Block_1),0)/100 -> 0 | BC22: =IFERROR('Rates Table'!BC22*(SPU_Block_1),0)/100 -> 0 | BD22: =IFERROR('Rates Table'!BD22*(SPU_Block_1),0)/100 -> 0 | BE22: =IFERROR('Rates Table'!BE22*(SPU_Block_1),0)/100 -> 0 | BF22: =IFERROR('Rates Table'!BF22*(SPU_Block_1),0)/100 -> 0 | BG22: =IFERROR('Rates Table'!BG22*(SPU_Block_1),0)/100 -> 0 | BH22: =IFERROR('Rates Table'!BH22*(SPU_Block_1),0)/100 -> 0 | BI22: =IFERROR('Rates Table'!BI22*(SPU_Block_1),0)/100 -> 0 | BJ22: =IFERROR('Rates Table'!BJ22*(SPU_Block_1),0)/100 -> 0 | BK22: =IFERROR('Rates Table'!BK22*(SPU_Block_1),0)/100 -> 0 | BL22: =IFERROR('Rates Table'!BL22*(SPU_Block_1),0)/100 -> 0 | BM22: =IFERROR('Rates Table'!BM22*(SPU_Block_1),0)/100 -> 0 | BN22: =IFERROR('Rates Table'!BN22*(SPU_Block_1),0)/100 -> 0 | BO22: =IFERROR('Rates Table'!BO22*(SPU_Block_1),0)/100 -> 0
C23: Energy - Block 2 | D23: c/kWh | E23: 0 | F23: =IFERROR('Rates Table'!F23*(SPU_Block_2),0)/100 -> 0 | G23: =IFERROR('Rates Table'!G23*(SPU_Block_2),0)/100 -> 0 | H23: =IFERROR('Rates Table'!H23*(SPU_Block_2),0)/100 -> 0 | I23: =IFERROR('Rates Table'!I23*(SPU_Block_2),0)/100 -> 0 | J23: =IFERROR('Rates Table'!J23*(SPU_Block_2),0)/100 -> 0 | K23: =IFERROR('Rates Table'!K23*(SPU_Block_2),0)/100 -> 0 | L23: =IFERROR('Rates Table'!L23*(SPU_Block_2),0)/100 -> 0 | M23: =IFERROR('Rates Table'!M23*(SPU_Block_2),0)/100 -> 0 | N23: =IFERROR('Rates Table'!N23*(SPU_Block_2),0)/100 -> 0 | O23: =IFERROR('Rates Table'!O23*(SPU_Block_2),0)/100 -> 0 | P23: =IFERROR('Rates Table'!P23*(SPU_Block_2),0)/100 -> 0 | Q23: =IFERROR('Rates Table'!Q23*(SPU_Block_2),0)/100 -> 0 | R23: =IFERROR('Rates Table'!R23*(SPU_Block_2),0)/100 -> 0 | S23: =IFERROR('Rates Table'!S23*(SPU_Block_2),0)/100 -> 0 | T23: =IFERROR('Rates Table'!T23*(SPU_Block_2),0)/100 -> 0 | U23: =IFERROR('Rates Table'!U23*(SPU_Block_2),0)/100 -> 0 | V23: =IFERROR('Rates Table'!V23*(SPU_Block_2),0)/100 -> 0 | W23: =IFERROR('Rates Table'!W23*(SPU_Block_2),0)/100 -> 0 | X23: =IFERROR('Rates Table'!X23*(SPU_Block_2),0)/100 -> 0 | Y23: =IFERROR('Rates Table'!Y23*(SPU_Block_2),0)/100 -> 0 | Z23: =IFERROR('Rates Table'!Z23*(SPU_Block_2),0)/100 -> 0 | AB23: =IFERROR('Rates Table'!AB23*(SPU_Block_2),0)/100 -> 0 | AC23: =IFERROR('Rates Table'!AC23*(SPU_Block_2),0)/100 -> 0 | AD23: =IFERROR('Rates Table'!AD23*(SPU_Block_2),0)/100 -> 0 | AE23: =IFERROR('Rates Table'!AF23*(SPU_Block_2),0)/100 -> 0 | AF23: =IFERROR('Rates Table'!AF23*(SPU_Block_2),0)/100 -> 0 | AG23: =IFERROR('Rates Table'!AG23*(SPU_Block_2),0)/100 -> 0 | AH23: =IFERROR('Rates Table'!AH23*(SPU_Block_2),0)/100 -> 0 | AI23: =IFERROR('Rates Table'!AI23*(SPU_Block_2),0)/100 -> 0 | AK23: 0 | AL23: =IFERROR('Rates Table'!AL23*(SPU_Block_2),0)/100 -> 0 | AM23: =IFERROR('Rates Table'!AM23*(SPU_Block_2),0)/100 -> 0 | AN23: =IFERROR('Rates Table'!AN23*(SPU_Block_2),0)/100 -> 0 | AO23: =IFERROR('Rates Table'!AO23*(SPU_Block_2),0)/100 -> 0 | AP23: =IFERROR('Rates Table'!AP23*(SPU_Block_2),0)/100 -> 0 | AQ23: =IFERROR('Rates Table'!AQ23*(SPU_Block_2),0)/100 -> 0 | AR23: =IFERROR('Rates Table'!AR23*(SPU_Block_2),0)/100 -> 0 | AS23: =IFERROR('Rates Table'!AS23*(SPU_Block_2),0)/100 -> 0 | AT23: =IFERROR('Rates Table'!AT23*(SPU_Block_2),0)/100 -> 0 | AU23: =IFERROR('Rates Table'!AU23*(SPU_Block_2),0)/100 -> 0 | AV23: =IFERROR('Rates Table'!AV23*(SPU_Block_2),0)/100 -> 0 | AW23: =IFERROR('Rates Table'!AW23*(SPU_Block_2),0)/100 -> 0 | AX23: =IFERROR('Rates Table'!AX23*(SPU_Block_2),0)/100 -> 0 | AY23: =IFERROR('Rates Table'!AY23*(SPU_Block_2),0)/100 -> 0 | AZ23: =IFERROR('Rates Table'!AZ23*(SPU_Block_2),0)/100 -> 0 | BA23: =IFERROR('Rates Table'!BA23*(SPU_Block_2),0)/100 -> 0 | BB23: =IFERROR('Rates Table'!BB23*(SPU_Block_2),0)/100 -> 0 | BC23: =IFERROR('Rates Table'!BC23*(SPU_Block_2),0)/100 -> 0 | BD23: =IFERROR('Rates Table'!BD23*(SPU_Block_2),0)/100 -> 0 | BE23: =IFERROR('Rates Table'!BE23*(SPU_Block_2),0)/100 -> 0 | BF23: =IFERROR('Rates Table'!BF23*(SPU_Block_2),0)/100 -> 0 | BG23: =IFERROR('Rates Table'!BG23*(SPU_Block_2),0)/100 -> 0 | BH23: =IFERROR('Rates Table'!BH23*(SPU_Block_2),0)/100 -> 0 | BI23: =IFERROR('Rates Table'!BI23*(SPU_Block_2),0)/100 -> 0 | BJ23: =IFERROR('Rates Table'!BJ23*(SPU_Block_2),0)/100 -> 0 | BK23: =IFERROR('Rates Table'!BK23*(SPU_Block_2),0)/100 -> 0 | BL23: =IFERROR('Rates Table'!BL23*(SPU_Block_2),0)/100 -> 0 | BM23: =IFERROR('Rates Table'!BM23*(SPU_Block_2),0)/100 -> 0 | BN23: =IFERROR('Rates Table'!BN23*(SPU_Block_2),0)/100 -> 0 | BO23: =IFERROR('Rates Table'!BO23*(SPU_Block_2),0)/100 -> 0
C24: Generation capacity charge | D24: R/POD/day | AK24: 60.225 | AL24: =IFERROR('Rates Table'!AL24*PODs*ESKOM_Total_days,0) -> 60.225 | AM24: =IFERROR('Rates Table'!AM24*PODs*ESKOM_Total_days,0) -> 89.72916667 | AN24: =IFERROR('Rates Table'!AN24*PODs*ESKOM_Total_days,0) -> 224.1708333 | AO24: =IFERROR('Rates Table'!AO24*PODs*ESKOM_Total_days,0) -> 0 | AP24: =IFERROR('Rates Table'!AP24*PODs*ESKOM_Total_days,0) -> 0 | AQ24: =IFERROR('Rates Table'!AQ24*PODs*ESKOM_Total_days,0) -> 0 | AR24: =IFERROR('Rates Table'!AR24*PODs*ESKOM_Total_days,0) -> 21.9 | AS24: =IFERROR('Rates Table'!AS24*PODs*ESKOM_Total_days,0) -> 38.62916667 | AT24: =IFERROR('Rates Table'!AT24*PODs*ESKOM_Total_days,0) -> 94.29166667 | AU24: =IFERROR('Rates Table'!AU24*PODs*ESKOM_Total_days,0) -> 14.29583333 | AV24: =IFERROR('Rates Table'!AV24*PODs*ESKOM_Total_days,0) -> 145.3916667 | AW24: =IFERROR('Rates Table'!AW24*PODs*ESKOM_Total_days,0) -> 82.42916667 | AX24: =IFERROR('Rates Table'!AX24*PODs*ESKOM_Total_days,0) -> 163.3375 | AY24: =IFERROR('Rates Table'!AY24*PODs*ESKOM_Total_days,0) -> 319.375 | AZ24: =IFERROR('Rates Table'!AZ24*PODs*ESKOM_Total_days,0) -> 54.14166667 | BA24: =IFERROR('Rates Table'!BA24*PODs*ESKOM_Total_days,0) -> 0 | BB24: =IFERROR('Rates Table'!BB24*PODs*ESKOM_Total_days,0) -> 0 | BC24: =IFERROR('Rates Table'!BC24*PODs*ESKOM_Total_days,0) -> 0 | BD24: =IFERROR('Rates Table'!BD24*PODs*ESKOM_Total_days,0) -> 0 | BE24: =IFERROR('Rates Table'!BE24*PODs*ESKOM_Total_days,0) -> 0 | BF24: =IFERROR('Rates Table'!BF24*PODs*ESKOM_Total_days,0) -> 0 | BG24: =IFERROR('Rates Table'!BG24*PODs*ESKOM_Total_days,0) -> 0 | BH24: =IFERROR('Rates Table'!BH24*PODs*ESKOM_Total_days,0) -> 0 | BI24: =IFERROR('Rates Table'!BI24*PODs*ESKOM_Total_days,0) -> 0 | BJ24: =IFERROR('Rates Table'!BJ24*PODs*ESKOM_Total_days,0) -> 0 | BK24: =IFERROR('Rates Table'!BK24*PODs*ESKOM_Total_days,0) -> 0 | BL24: =IFERROR('Rates Table'!BL24*PODs*ESKOM_Total_days,0) -> 21.9 | BM24: =IFERROR('Rates Table'!BM24*PODs*ESKOM_Total_days,0) -> 38.62916667 | BN24: =IFERROR('Rates Table'!BN24*PODs*ESKOM_Total_days,0) -> 94.29166667 | BO24: =IFERROR('Rates Table'!BO24*PODs*ESKOM_Total_days,0) -> 14.29583333
C25: Legacy charge | D25: c/kWh | AK25: 0 | AL25: =IFERROR('Rates Table'!AL25*(SPU_Annual_Total_Energy),0)/100 -> 0 | AM25: =IFERROR('Rates Table'!AM25*(SPU_Annual_Total_Energy),0)/100 -> 0 | AN25: =IFERROR('Rates Table'!AN25*(SPU_Annual_Total_Energy),0)/100 -> 0 | AO25: =IFERROR('Rates Table'!AO25*(SPU_Annual_Total_Energy),0)/100 -> 0 | AP25: =IFERROR('Rates Table'!AP25*(SPU_Annual_Total_Energy),0)/100 -> 0 | AQ25: =IFERROR('Rates Table'!AQ25*(SPU_Annual_Total_Energy),0)/100 -> 0 | AR25: =IFERROR('Rates Table'!AR25*(SPU_Annual_Total_Energy),0)/100 -> 0 | AS25: =IFERROR('Rates Table'!AS25*(SPU_Annual_Total_Energy),0)/100 -> 0 | AT25: =IFERROR('Rates Table'!AT25*(SPU_Annual_Total_Energy),0)/100 -> 0 | AU25: =IFERROR('Rates Table'!AU25*(SPU_Annual_Total_Energy),0)/100 -> 0 | AV25: =IFERROR('Rates Table'!AV25*(SPU_Annual_Total_Energy),0)/100 -> 0 | AW25: =IFERROR('Rates Table'!AW25*(SPU_Annual_Total_Energy),0)/100 -> 0 | AX25: =IFERROR('Rates Table'!AX25*(SPU_Annual_Total_Energy),0)/100 -> 0 | AY25: =IFERROR('Rates Table'!AY25*(SPU_Annual_Total_Energy),0)/100 -> 0 | AZ25: =IFERROR('Rates Table'!AZ25*(SPU_Annual_Total_Energy),0)/100 -> 0 | BA25: =IFERROR('Rates Table'!BA25*(SPU_Annual_Total_Energy),0)/100 -> 0 | BB25: =IFERROR('Rates Table'!BB25*(SPU_Annual_Total_Energy),0)/100 -> 0 | BC25: =IFERROR('Rates Table'!BC25*(SPU_Annual_Total_Energy),0)/100 -> 0 | BD25: =IFERROR('Rates Table'!BD25*(SPU_Annual_Total_Energy),0)/100 -> 0 | BE25: =IFERROR('Rates Table'!BE25*(SPU_Annual_Total_Energy),0)/100 -> 0 | BF25: =IFERROR('Rates Table'!BF25*(SPU_Annual_Total_Energy),0)/100 -> 0 | BG25: =IFERROR('Rates Table'!BG25*(SPU_Annual_Total_Energy),0)/100 -> 0 | BH25: =IFERROR('Rates Table'!BH25*(SPU_Annual_Total_Energy),0)/100 -> 0 | BI25: =IFERROR('Rates Table'!BI25*(SPU_Annual_Total_Energy),0)/100 -> 0 | BJ25: =IFERROR('Rates Table'!BJ25*(SPU_Annual_Total_Energy),0)/100 -> 0 | BK25: =IFERROR('Rates Table'!BK25*(SPU_Annual_Total_Energy),0)/100 -> 0 | BL25: =IFERROR('Rates Table'!BL25*(Homeflex_Total_Energy),0)/100 -> 0 | BM25: =IFERROR('Rates Table'!BM25*(Homeflex_Total_Energy),0)/100 -> 0 | BN25: =IFERROR('Rates Table'!BN25*(Homeflex_Total_Energy),0)/100 -> 0 | BO25: =IFERROR('Rates Table'!BO25*(Homeflex_Total_Energy),0)/100 -> 0
B27: Total energy charges | E27: =SUM(E18:E25) -> 0 | F27: =SUM(F18:F25) -> 0 | G27: 0 | H27: 0 | I27: 0 | J27: 0 | K27: 0 | L27: 0 | M27: 0 | N27: 0 | O27: 0 | P27: 0 | Q27: 0 | R27: 0 | S27: 0 | T27: 0 | U27: 0 | V27: 0 | W27: 0 | X27: 0 | Y27: 0 | Z27: =SUM(Z18:Z25) -> 0 | AB27: =SUM(AB18:AB25) -> 0 | AC27: 0 | AD27: 0 | AE27: 0 | AF27: 0 | AG27: 0 | AH27: 0 | AI27: 0 | AK27: =SUM(AK18:AK25) -> 60.225 | AL27: =SUM(AL18:AL25) -> 60.225 | AM27: 89.72916667 | AN27: 224.1708333 | AO27: 0 | AP27: 0 | AQ27: 0 | AR27: 21.9 | AS27: 38.62916667 | AT27: 94.29166667 | AU27: 14.29583333 | AV27: 145.3916667 | AW27: 82.42916667 | AX27: 163.3375 | AY27: 319.375 | AZ27: 54.14166667 | BA27: 0 | BB27: 0 | BC27: 0 | BD27: 0 | BE27: 0 | BF27: =SUM(BF18:BF25) -> 0 | BG27: =SUM(BG18:BG25) -> 0 | BH27: 0 | BI27: 0 | BJ27: 0 | BK27: =SUM(BK18:BK25) -> 0 | BL27: 21.9 | BM27: 38.62916667 | BN27: 94.29166667 | BO27: 14.29583333
B29: Other charges | D29: Units | E29: =E$8 -> 2024/25 Rates | F29: =F$8 -> 2024/25 Rates | G29: 2024/25 Rates | H29: 2024/25 Rates | I29: 2024/25 Rates | J29: 2024/25 Rates | K29: 2024/25 Rates | L29: 2024/25 Rates | M29: 2024/25 Rates | N29: 2024/25 Rates | O29: 2024/25 Rates | P29: 2024/25 Rates | Q29: 2024/25 Rates | R29: 2024/25 Rates | S29: 2024/25 Rates | T29: 2024/25 Rates | U29: 2024/25 Rates | V29: 2024/25 Rates | W29: 2024/25 Rates | X29: 2024/25 Rates | Y29: 2024/25 Rates | Z29: 2024/25 Rates | AA29: 2024/25 Rates | AB29: 2024/25 Rates | AC29: 2024/25 Rates | AD29: 2024/25 Rates | AE29: 2024/25 Rates | AF29: 2024/25 Rates | AG29: 2024/25 Rates | AH29: 2024/25 Rates | AI29: 2024/25 Rates | AK29: =AK$8 -> 2025/26 Rates | AL29: =AL$8 -> 2025/26 Rates | AM29: 2025/26 Rates | AN29: 2025/26 Rates | AO29: 2025/26 Rates | AP29: 2025/26 Rates | AQ29: 2025/26 Rates | AR29: 2025/26 Rates | AS29: 2025/26 Rates | AT29: 2025/26 Rates | AU29: 2025/26 Rates | AV29: 2025/26 Rates | AW29: 2025/26 Rates | AX29: 2025/26 Rates | AY29: 2025/26 Rates | AZ29: 2025/26 Rates | BA29: 2025/26 Rates | BB29: 2025/26 Rates | BC29: 2025/26 Rates | BD29: 2025/26 Rates | BE29: 2025/26 Rates | BF29: 2025/26 Rates | BG29: 2025/26 Rates | BH29: 2025/26 Rates | BI29: 2025/26 Rates | BJ29: 2025/26 Rates | BK29: 2025/26 Rates | BL29: 2025/26 Rates | BM29: 2025/26 Rates | BN29: 2025/26 Rates | BO29: 2025/26 Rates
C31: Ancillary service charge | D31: c/kWh | E31: =SUMIFS(F31:AI31,$F$7:$AI$7,$F$2) -> 0 | F31: =IFERROR(SPU_Annual_Total_Energy*'Rates Table'!F31,0)/100 -> 0 | G31: =IFERROR(SPU_Annual_Total_Energy*'Rates Table'!G31,0)/100 -> 0 | H31: =IFERROR(SPU_Annual_Total_Energy*'Rates Table'!H31,0)/100 -> 0 | I31: =IFERROR(SPU_Annual_Total_Energy*'Rates Table'!I31,0)/100 -> 0 | J31: =IFERROR(SPU_Annual_Total_Energy*'Rates Table'!J31,0)/100 -> 0 | K31: =IFERROR(SPU_Annual_Total_Energy*'Rates Table'!K31,0)/100 -> 0 | L31: =IFERROR(SPU_Annual_Total_Energy*'Rates Table'!L31,0)/100 -> 0 | M31: =IFERROR(SPU_Annual_Total_Energy*'Rates Table'!M31,0)/100 -> 0 | N31: =IFERROR(SPU_Annual_Total_Energy*'Rates Table'!N31,0)/100 -> 0 | O31: =IFERROR(SPU_Annual_Total_Energy*'Rates Table'!O31,0)/100 -> 0 | P31: =IFERROR(SPU_Annual_Total_Energy*'Rates Table'!P31,0)/100 -> 0 | Q31: =IFERROR(SPU_Annual_Total_Energy*'Rates Table'!Q31,0)/100 -> 0 | R31: =IFERROR(SPU_Annual_Total_Energy*'Rates Table'!R31,0)/100 -> 0 | S31: =IFERROR(SPU_Annual_Total_Energy*'Rates Table'!S31,0)/100 -> 0 | T31: =IFERROR(SPU_Annual_Total_Energy*'Rates Table'!T31,0)/100 -> 0 | U31: =IFERROR(SPU_Annual_Total_Energy*'Rates Table'!U31,0)/100 -> 0 | V31: =IFERROR(SPU_Annual_Total_Energy*'Rates Table'!V31,0)/100 -> 0 | W31: =IFERROR(SPU_Annual_Total_Energy*'Rates Table'!W31,0)/100 -> 0 | X31: =IFERROR(SPU_Annual_Total_Energy*'Rates Table'!X31,0)/100 -> 0 | Y31: =IFERROR(SPU_Annual_Total_Energy*'Rates Table'!Y31,0)/100 -> 0 | Z31: =IFERROR(SPU_Annual_Total_Energy*'Rates Table'!Z31,0)/100 -> 0 | AB31: =IFERROR(SPU_Annual_Total_Energy*'Rates Table'!AB31,0)/100 -> 0 | AC31: =IFERROR(SPU_Annual_Total_Energy*'Rates Table'!AC31,0)/100 -> 0 | AD31: =IFERROR(SPU_Annual_Total_Energy*'Rates Table'!AD31,0)/100 -> 0 | AE31: =IFERROR(SPU_Annual_Total_Energy*'Rates Table'!AF31,0)/100 -> 0 | AF31: =IFERROR(Homeflex_Total_Energy*'Rates Table'!AF31,0)/100 -> 0 | AG31: =IFERROR(Homeflex_Total_Energy*'Rates Table'!AG31,0)/100 -> 0 | AH31: =IFERROR(Homeflex_Total_Energy*'Rates Table'!AH31,0)/100 -> 0 | AI31: =IFERROR(Homeflex_Total_Energy*'Rates Table'!AI31,0)/100 -> 0 | AK31: =SUMIFS(AL31:BO31,$F$7:$AI$7,Selected_Tariff_ID) -> 0 | AL31: =IFERROR(SPU_Annual_Total_Energy*'Rates Table'!AL31,0)/100 -> 0 | AM31: =IFERROR(SPU_Annual_Total_Energy*'Rates Table'!AM31,0)/100 -> 0 | AN31: =IFERROR(SPU_Annual_Total_Energy*'Rates Table'!AN31,0)/100 -> 0 | AO31: =IFERROR(SPU_Annual_Total_Energy*'Rates Table'!AO31,0)/100 -> 0 | AP31: =IFERROR(SPU_Annual_Total_Energy*'Rates Table'!AP31,0)/100 -> 0 | AQ31: =IFERROR(SPU_Annual_Total_Energy*'Rates Table'!AQ31,0)/100 -> 0 | AR31: =IFERROR(SPU_Annual_Total_Energy*'Rates Table'!AR31,0)/100 -> 0 | AS31: =IFERROR(SPU_Annual_Total_Energy*'Rates Table'!AS31,0)/100 -> 0 | AT31: =IFERROR(SPU_Annual_Total_Energy*'Rates Table'!AT31,0)/100 -> 0 | AU31: =IFERROR(SPU_Annual_Total_Energy*'Rates Table'!AU31,0)/100 -> 0 | AV31: =IFERROR(SPU_Annual_Total_Energy*'Rates Table'!AV31,0)/100 -> 0 | AW31: =IFERROR(SPU_Annual_Total_Energy*'Rates Table'!AW31,0)/100 -> 0 | AX31: =IFERROR(SPU_Annual_Total_Energy*'Rates Table'!AX31,0)/100 -> 0 | AY31: =IFERROR(SPU_Annual_Total_Energy*'Rates Table'!AY31,0)/100 -> 0 | AZ31: =IFERROR(SPU_Annual_Total_Energy*'Rates Table'!AZ31,0)/100 -> 0 | BA31: =IFERROR(SPU_Annual_Total_Energy*'Rates Table'!BA31,0)/100 -> 0 | BB31: =IFERROR(SPU_Annual_Total_Energy*'Rates Table'!BB31,0)/100 -> 0 | BC31: =IFERROR(SPU_Annual_Total_Energy*'Rates Table'!BC31,0)/100 -> 0 | BD31: =IFERROR(SPU_Annual_Total_Energy*'Rates Table'!BD31,0)/100 -> 0 | BE31: =IFERROR(SPU_Annual_Total_Energy*'Rates Table'!BE31,0)/100 -> 0 | BF31: =IFERROR(SPU_Annual_Total_Energy*'Rates Table'!BF31,0)/100 -> 0 | BG31: =IFERROR(SPU_Annual_Total_Energy*'Rates Table'!BG31,0)/100 -> 0 | BH31: =IFERROR(SPU_Annual_Total_Energy*'Rates Table'!BH31,0)/100 -> 0 | BI31: =IFERROR(SPU_Annual_Total_Energy*'Rates Table'!BI31,0)/100 -> 0 | BJ31: =IFERROR(SPU_Annual_Total_Energy*'Rates Table'!BJ31,0)/100 -> 0 | BK31: =IFERROR(SPU_Annual_Total_Energy*'Rates Table'!BK31,0)/100 -> 0 | BL31: =IFERROR(Homeflex_Total_Energy*'Rates Table'!BL31,0)/100 -> 0 | BM31: =IFERROR(Homeflex_Total_Energy*'Rates Table'!BM31,0)/100 -> 0 | BN31: =IFERROR(Homeflex_Total_Energy*'Rates Table'!BN31,0)/100 -> 0 | BO31: =IFERROR(Homeflex_Total_Energy*'Rates Table'!BO31,0)/100 -> 0
C32: Service charge | D32: =IF(Table_1=1,"R/day","R/day") -> R/day | E32: =SUMIFS(F32:AI32,$F$7:$AI$7,$F$2) -> 1116.595833 | F32: =IFERROR('Rates Table'!F32*PODs*ESKOM_Total_days,0) -> 1116.595833 | G32: =IFERROR('Rates Table'!G32*PODs*ESKOM_Total_days,0) -> 1116.595833 | H32: =IFERROR('Rates Table'!H32*PODs*ESKOM_Total_days,0) -> 1116.595833 | I32: =IFERROR('Rates Table'!I32*PODs*ESKOM_Total_days,0) -> 0 | J32: =IFERROR('Rates Table'!J32*PODs*ESKOM_Total_days,0) -> 0 | K32: =IFERROR('Rates Table'!K32*PODs*ESKOM_Total_days,0) -> 0 | L32: =IFERROR('Rates Table'!L32*PODs*ESKOM_Total_days,0) -> 0 | M32: =IFERROR('Rates Table'!M32*PODs*ESKOM_Total_days,0) -> 0 | N32: =IFERROR('Rates Table'!N32*PODs*ESKOM_Total_days,0) -> 0 | O32: =IFERROR('Rates Table'!O32*PODs*ESKOM_Total_days,0) -> 0 | P32: =IFERROR('Rates Table'!P32*PODs*ESKOM_Total_days,0) -> 0 | Q32: =IFERROR('Rates Table'!Q32*PODs*ESKOM_Total_days,0) -> 1406.770833 | R32: =IFERROR('Rates Table'!R32*PODs*ESKOM_Total_days,0) -> 1406.770833 | S32: =IFERROR('Rates Table'!S32*PODs*ESKOM_Total_days,0) -> 1406.770833 | T32: =IFERROR('Rates Table'!T32*PODs*ESKOM_Total_days,0) -> 0 | U32: =IFERROR('Rates Table'!U32*PODs*ESKOM_Total_days,0) -> 3016.725 | V32: =IFERROR('Rates Table'!V32*PODs*ESKOM_Total_days,0) -> 0 | W32: =IFERROR('Rates Table'!W32*PODs*ESKOM_Total_days,0) -> 0 | X32: =IFERROR('Rates Table'!X32*PODs*ESKOM_Total_days,0) -> 0 | Y32: =IFERROR('Rates Table'!Y32*PODs*ESKOM_Total_days,0) -> 0 | Z32: =IFERROR('Rates Table'!Z32*PODs*ESKOM_Total_days,0) -> 333.3666667 | AB32: =IFERROR('Rates Table'!AB32*PODs*ESKOM_Total_days,0) -> 0 | AC32: =IFERROR('Rates Table'!AC32*PODs*ESKOM_Total_days,0) -> 0 | AD32: =IFERROR('Rates Table'!AD32*PODs*ESKOM_Total_days,0) -> 0 | AE32: =IFERROR('Rates Table'!AF32*PODs*ESKOM_Total_days,0) -> 0 | AF32: =IFERROR('Rates Table'!AF32*PODs*ESKOM_Total_days,0) -> 0 | AG32: =IFERROR('Rates Table'!AG32*PODs*ESKOM_Total_days,0) -> 0 | AH32: =IFERROR('Rates Table'!AH32*PODs*ESKOM_Total_days,0) -> 0 | AI32: =IFERROR('Rates Table'!AI32*PODs*ESKOM_Total_days,0) -> 0 | AK32: =SUMIFS(AL32:BO32,$F$7:$AI$7,Selected_Tariff_ID) -> 447.125 | AL32: =IFERROR('Rates Table'!AL32*PODs*ESKOM_Total_days,0) -> 447.125 | AM32: =IFERROR('Rates Table'!AM32*PODs*ESKOM_Total_days,0) -> 447.125 | AN32: =IFERROR('Rates Table'!AN32*PODs*ESKOM_Total_days,0) -> 447.125 | AO32: =IFERROR('Rates Table'!AO32*PODs*ESKOM_Total_days,0) -> 0 | AP32: =IFERROR('Rates Table'!AP32*PODs*ESKOM_Total_days,0) -> 0 | AQ32: =IFERROR('Rates Table'!AQ32*PODs*ESKOM_Total_days,0) -> 0 | AR32: =IFERROR('Rates Table'!AR32*PODs*ESKOM_Total_days,0) -> 99.4625 | AS32: =IFERROR('Rates Table'!AS32*PODs*ESKOM_Total_days,0) -> 99.4625 | AT32: =IFERROR('Rates Table'!AT32*PODs*ESKOM_Total_days,0) -> 99.4625 | AU32: =IFERROR('Rates Table'!AU32*PODs*ESKOM_Total_days,0) -> 99.4625 | AV32: =IFERROR('Rates Table'!AV32*PODs*ESKOM_Total_days,0) -> 99.4625 | AW32: =IFERROR('Rates Table'!AW32*PODs*ESKOM_Total_days,0) -> 745.2083333 | AX32: =IFERROR('Rates Table'!AX32*PODs*ESKOM_Total_days,0) -> 745.2083333 | AY32: =IFERROR('Rates Table'!AY32*PODs*ESKOM_Total_days,0) -> 745.2083333 | AZ32: =IFERROR('Rates Table'!AZ32*PODs*ESKOM_Total_days,0) -> 0 | BA32: =IFERROR('Rates Table'!BA32*PODs*ESKOM_Total_days,0) -> 2646.25 | BB32: =IFERROR('Rates Table'!BB32*PODs*ESKOM_Total_days,0) -> 0 | BC32: =IFERROR('Rates Table'!BC32*PODs*ESKOM_Total_days,0) -> 0 | BD32: =IFERROR('Rates Table'!BD32*PODs*ESKOM_Total_days,0) -> 0 | BE32: =IFERROR('Rates Table'!BE32*PODs*ESKOM_Total_days,0) -> 0 | BF32: =IFERROR('Rates Table'!BF32*PODs*ESKOM_Total_days,0) -> 982.4583333 | BG32: =IFERROR('Rates Table'!BG32*PODs*ESKOM_Total_days,0) -> 0 | BH32: =IFERROR('Rates Table'!BH32*PODs*ESKOM_Total_days,0) -> 0 | BI32: =IFERROR('Rates Table'!BI32*PODs*ESKOM_Total_days,0) -> 0 | BJ32: =IFERROR('Rates Table'!BJ32*PODs*ESKOM_Total_days,0) -> 0 | BK32: =IFERROR('Rates Table'!BK32*PODs*ESKOM_Total_days,0) -> 0 | BL32: =IFERROR('Rates Table'!BL32*PODs*ESKOM_Total_days,0) -> 99.4625 | BM32: =IFERROR('Rates Table'!BM32*PODs*ESKOM_Total_days,0) -> 99.4625 | BN32: =IFERROR('Rates Table'!BN32*PODs*ESKOM_Total_days,0) -> 99.4625 | BO32: =IFERROR('Rates Table'!BO32*PODs*ESKOM_Total_days,0) -> 99.4625
C33: Electrification and rural subsidy | D33: c/kWh | E33: =SUMIFS(F33:AI33,$F$7:$AI$7,$F$2) -> 0 | AK33: =SUMIFS(AL33:BO33,$F$7:$AI$7,Selected_Tariff_ID) -> 0 | AL33: =IFERROR(SPU_Annual_Total_Energy*'Rates Table'!AL33,0)/100 -> 0 | AM33: =IFERROR(SPU_Annual_Total_Energy*'Rates Table'!AM33,0)/100 -> 0 | AN33: =IFERROR(SPU_Annual_Total_Energy*'Rates Table'!AN33,0)/100 -> 0 | AO33: =IFERROR(SPU_Annual_Total_Energy*'Rates Table'!AO33,0)/100 -> 0 | AP33: =IFERROR(SPU_Annual_Total_Energy*'Rates Table'!AP33,0)/100 -> 0 | AQ33: =IFERROR(SPU_Annual_Total_Energy*'Rates Table'!AQ33,0)/100 -> 0 | AR33: =IFERROR(SPU_Annual_Total_Energy*'Rates Table'!AR33,0)/100 -> 0 | AS33: =IFERROR(SPU_Annual_Total_Energy*'Rates Table'!AS33,0)/100 -> 0 | AT33: =IFERROR(SPU_Annual_Total_Energy*'Rates Table'!AT33,0)/100 -> 0 | AU33: =IFERROR(SPU_Annual_Total_Energy*'Rates Table'!AU33,0)/100 -> 0 | AV33: =IFERROR(SPU_Annual_Total_Energy*'Rates Table'!AV33,0)/100 -> 0 | AW33: =IFERROR(SPU_Annual_Total_Energy*'Rates Table'!AW33,0)/100 -> 0 | AX33: =IFERROR(SPU_Annual_Total_Energy*'Rates Table'!AX33,0)/100 -> 0 | AY33: =IFERROR(SPU_Annual_Total_Energy*'Rates Table'!AY33,0)/100 -> 0 | AZ33: =IFERROR(SPU_Annual_Total_Energy*'Rates Table'!AZ33,0)/100 -> 0 | BA33: =IFERROR(SPU_Annual_Total_Energy*'Rates Table'!BA33,0)/100 -> 0 | BB33: =IFERROR(SPU_Annual_Total_Energy*'Rates Table'!BB33,0)/100 -> 0 | BC33: =IFERROR(SPU_Annual_Total_Energy*'Rates Table'!BC33,0)/100 -> 0 | BD33: =IFERROR(SPU_Annual_Total_Energy*'Rates Table'!BD33,0)/100 -> 0 | BE33: =IFERROR(SPU_Annual_Total_Energy*'Rates Table'!BE33,0)/100 -> 0 | BF33: =IFERROR(SPU_Annual_Total_Energy*'Rates Table'!BF33,0)/100 -> 0 | BG33: =IFERROR(SPU_Annual_Total_Energy*'Rates Table'!BG33,0)/100 -> 0 | BH33: =IFERROR(SPU_Annual_Total_Energy*'Rates Table'!BH33,0)/100 -> 0 | BI33: =IFERROR(SPU_Annual_Total_Energy*'Rates Table'!BI33,0)/100 -> 0 | BJ33: =IFERROR(SPU_Annual_Total_Energy*'Rates Table'!BJ33,0)/100 -> 0 | BK33: =IFERROR(SPU_Annual_Total_Energy*'Rates Table'!BK33,0)/100 -> 0 | BL33: =IFERROR(Homeflex_Total_Energy*'Rates Table'!BL33,0)/100 -> 0 | BM33: =IFERROR(Homeflex_Total_Energy*'Rates Table'!BM33,0)/100 -> 0 | BN33: =IFERROR(Homeflex_Total_Energy*'Rates Table'!BN33,0)/100 -> 0 | BO33: =IFERROR(Homeflex_Total_Energy*'Rates Table'!BO33,0)/100 -> 0
B35: Total other charges | E35: =SUM(E30:E33) -> 1116.595833 | F35: =SUM(F30:F33) -> 1116.595833 | G35: 1116.595833 | H35: 1116.595833 | I35: 0 | J35: 0 | K35: 0 | L35: 0 | M35: 0 | N35: 0 | O35: 0 | P35: 0 | Q35: 1406.770833 | R35: 1406.770833 | S35: 1406.770833 | T35: 0 | U35: 3016.725 | V35: 0 | W35: 0 | X35: 0 | Y35: 0 | Z35: =SUM(Z30:Z33) -> 333.3666667 | AA35: =SUM(AA30:AA33) -> 0 | AB35: 0 | AC35: 0 | AD35: 0 | AE35: 0 | AF35: 0 | AG35: 0 | AH35: 0 | AI35: 0 | AK35: =SUM(AK30:AK33) -> 447.125 | AL35: =SUM(AL30:AL33) -> 447.125 | AM35: 447.125 | AN35: 447.125 | AO35: 0 | AP35: 0 | AQ35: 0 | AR35: 99.4625 | AS35: 99.4625 | AT35: 99.4625 | AU35: 99.4625 | AV35: 99.4625 | AW35: 745.2083333 | AX35: 745.2083333 | AY35: 745.2083333 | AZ35: 0 | BA35: 2646.25 | BB35: 0 | BC35: 0 | BD35: 0 | BE35: 0 | BF35: =SUM(BF30:BF33) -> 982.4583333 | BG35: =SUM(BG30:BG33) -> 0 | BH35: 0 | BI35: 0 | BJ35: 0 | BK35: =SUM(BK30:BK33) -> 0 | BL35: 99.4625 | BM35: 99.4625 | BN35: 99.4625 | BO35: 99.4625
B37: Total excl VAT | E37: =E35+E27+E14 -> 2408.391667 | F37: 2408.391667 | G37: 3293.516667 | H37: 4877.3125 | I37: 0 | J37: 0 | K37: 0 | L37: 319.9833333 | M37: 599.5125 | N37: 1237.654167 | O37: 195.5791667 | P37: 2029.4 | Q37: 3100.370833 | R37: 4010.133333 | S37: 5568.9875 | T37: 1348.675 | U37: =U35+U27+U14 -> 3016.725 | V37: 0 | W37: 0 | X37: 0 | Y37: 0 | Z37: =Z35+Z27+Z14 -> 333.3666667 | AA37: =AA35+AA27+AA14 -> 0 | AB37: 0 | AC37: 0 | AD37: 0 | AE37: 319.9833333 | AF37: 319.9833333 | AG37: =AG35+AG27+AG14 -> 599.5125 | AH37: =AH35+AH27+AH14 -> 1237.654167 | AI37: =AI35+AI27+AI14 -> 195.5791667 | AK37: =AK35+AK27+AK14 -> 1126.025 | AL37: =AL35+AL27+AL14 -> 1126.025 | AM37: 1455.741667 | AN37: 2964.104167 | AO37: 0 | AP37: 0 | AQ37: 0 | AR37: 490.3166667 | AS37: 961.4708333 | AT37: 1952.445833 | AU37: 367.7375 | AV37: 244.8541667 | AW37: 2719.554167 | AX37: 3858.658333 | AY37: 5788.9 | AZ37: 1450.875 | BA37: =BA35+BA27+BA14 -> 2646.25 | BB37: 0 | BC37: 0 | BD37: 0 | BE37: 0 | BF37: =BF35+BF27+BF14 -> 982.4583333 | BG37: =BG35+BG27+BG14 -> 0 | BH37: 0 | BI37: 0 | BJ37: 0 | BK37: =BK35+BK27+BK14 -> 0 | BL37: 490.3166667 | BM37: =BM35+BM27+BM14 -> 961.4708333 | BN37: =BN35+BN27+BN14 -> 1952.445833 | BO37: =BO35+BO27+BO14 -> 367.7375
B38: VAT | D38: ='Monthly Average Bill'!D51 -> 0.15 | E38: =E37*$D38 -> 361.25875 | F38: =F37*$D38 -> 361.25875 | G38: 494.0275 | H38: 731.596875 | I38: 0 | J38: 0 | K38: 0 | L38: 47.9975 | M38: 89.926875 | N38: 185.648125 | O38: 29.336875 | P38: 304.41 | Q38: 465.055625 | R38: 601.52 | S38: 835.348125 | T38: 202.30125 | U38: =U37*$D38 -> 452.50875 | V38: 0 | W38: 0 | X38: 0 | Y38: 0 | Z38: =Z37*$D38 -> 50.005 | AA38: =AA37*$D38 -> 0 | AB38: 0 | AC38: 0 | AD38: 0 | AE38: 47.9975 | AF38: 47.9975 | AG38: =AG37*$D38 -> 89.926875 | AH38: =AH37*$D38 -> 185.648125 | AI38: =AI37*$D38 -> 29.336875 | AK38: =AK37*$D38 -> 168.90375 | AL38: 168.90375 | AM38: 218.36125 | AN38: 444.615625 | AO38: 0 | AP38: 0 | AQ38: 0 | AR38: 73.5475 | AS38: 144.220625 | AT38: 292.866875 | AU38: 55.160625 | AV38: 36.728125 | AW38: 407.933125 | AX38: 578.79875 | AY38: 868.335 | AZ38: 217.63125 | BA38: =BA37*$D38 -> 396.9375 | BB38: 0 | BC38: 0 | BD38: 0 | BE38: 0 | BF38: =BF37*$D38 -> 147.36875 | BG38: =BG37*$D38 -> 0 | BH38: 0 | BI38: 0 | BJ38: 0 | BK38: =BK37*$D38 -> 0 | BL38: 73.5475 | BM38: =BM37*$D38 -> 144.220625 | BN38: =BN37*$D38 -> 292.866875 | BO38: =BO37*$D38 -> 55.160625
B40: Total account | E40: =SUM(E37:E38) -> 2769.650417 | F40: =SUM(F37:F38) -> 2769.650417 | G40: 3787.544167 | H40: 5608.909375 | I40: 0 | J40: 0 | K40: 0 | L40: 367.9808333 | M40: 689.439375 | N40: 1423.302292 | O40: 224.9160417 | P40: 2333.81 | Q40: 3565.426458 | R40: 4611.653333 | S40: 6404.335625 | T40: 1550.97625 | U40: =SUM(U37:U38) -> 3469.23375 | V40: 0 | W40: 0 | X40: 0 | Y40: 0 | Z40: =SUM(Z37:Z38) -> 383.3716667 | AA40: =SUM(AA37:AA38) -> 0 | AB40: 0 | AC40: 0 | AD40: 0 | AE40: 367.9808333 | AF40: 367.9808333 | AG40: =SUM(AG37:AG38) -> 689.439375 | AH40: =SUM(AH37:AH38) -> 1423.302292 | AI40: =SUM(AI37:AI38) -> 224.9160417 | AK40: =SUM(AK37:AK38) -> 1294.92875 | AL40: =SUM(AL37:AL38) -> 1294.92875 | AM40: 1674.102917 | AN40: 3408.719792 | AO40: 0 | AP40: 0 | AQ40: 0 | AR40: 563.8641667 | AS40: 1105.691458 | AT40: 2245.312708 | AU40: 422.898125 | AV40: 281.5822917 | AW40: 3127.487292 | AX40: 4437.457083 | AY40: 6657.235 | AZ40: 1668.50625 | BA40: =SUM(BA37:BA38) -> 3043.1875 | BB40: 0 | BC40: 0 | BD40: 0 | BE40: 0 | BF40: =SUM(BF37:BF38) -> 1129.827083 | BG40: =SUM(BG37:BG38) -> 0 | BH40: 0 | BI40: 0 | BJ40: 0 | BK40: =SUM(BK37:BK38) -> 0 | BL40: 563.8641667 | BM40: =SUM(BM37:BM38) -> 1105.691458 | BN40: =SUM(BN37:BN38) -> 2245.312708 | BO40: =SUM(BO37:BO38) -> 422.898125
B42: Average price c/kWh | E42: =SUMIFS(F42:AI42,$F$7:$AI$7,$F$2) ->  | F42: =F37/SPU_Annual_Total_Energy*100 ->  | H42: =H37/SPU_Annual_Total_Energy*100 ->  | U42: =U37/SPU_Annual_Total_Energy*100 ->  | Z42: =Z37/SPU_Annual_Total_Energy*100 ->  | AG42: =AG37/SPU_Annual_Total_Energy*100 ->  | AH42: =AH37/SPU_Annual_Total_Energy*100 ->  | AI42: =AI37/SPU_Annual_Total_Energy*100 ->  | AK42: =SUMIFS(AL42:BO42,$F$7:$AI$7,Selected_Tariff_ID) ->  | AL42: =AL37/SPU_Annual_Total_Energy*100 ->  | BA42: =BA37/SPU_Annual_Total_Energy*100 ->  | BF42: =BF37/SPU_Annual_Total_Energy*100 ->  | BG42: =BG37/SPU_Annual_Total_Energy*100 ->  | BK42: =BK37/SPU_Annual_Total_Energy*100 ->  | BM42: =BM37/SPU_Annual_Total_Energy*100 ->  | BN42: =BN37/SPU_Annual_Total_Energy*100 ->  | BO42: =BO37/SPU_Annual_Total_Energy*100 -> 
B44: Check tables
C45: Table 1: 1 = LPU, 0 = SPU | E45: =SUMIFS(F45:AI45,$F$7:$AI$7,$F$2) -> 0 | F45: ='Rates Table'!F44 -> 0 | G45: ='Rates Table'!G44 -> 0 | H45: ='Rates Table'!H44 -> 0 | I45: ='Rates Table'!I44 -> 0 | J45: ='Rates Table'!J44 -> 0 | K45: ='Rates Table'!K44 -> 0 | L45: ='Rates Table'!L44 -> 0 | M45: ='Rates Table'!M44 -> 0 | N45: ='Rates Table'!N44 -> 0 | O45: ='Rates Table'!O44 -> 0 | P45: ='Rates Table'!P44 -> 0 | Q45: ='Rates Table'!Q44 -> 0 | R45: ='Rates Table'!R44 -> 0 | S45: ='Rates Table'!S44 -> 0 | T45: ='Rates Table'!T44 -> 0 | U45: ='Rates Table'!U44 -> 0 | V45: ='Rates Table'!V44 -> 0 | W45: ='Rates Table'!W44 -> 0 | X45: ='Rates Table'!X44 -> 0 | Y45: ='Rates Table'!Y44 -> 0 | Z45: ='Rates Table'!Z44 -> 0 | AA45: ='Rates Table'!AA44 -> 0 | AB45: ='Rates Table'!AB44 -> 0 | AC45: ='Rates Table'!AC44 -> 0 | AD45: ='Rates Table'!AD44 -> 0 | AE45: ='Rates Table'!AF44 -> 0 | AF45: ='Rates Table'!AF44 -> 0 | AG45: ='Rates Table'!AG44 -> 0 | AH45: ='Rates Table'!AH44 -> 0 | AI45: ='Rates Table'!AI44 -> 0 | AK45: =SUMIFS(AL45:BO45,$F$7:$AI$7,Selected_Tariff_ID) -> 0 | AL45: =F45 -> 0 | AM45: 0 | AN45: 0 | AO45: 0 | AP45: 0 | AQ45: 0 | AR45: 0 | AS45: 0 | AT45: 0 | AU45: 0 | AV45: =P45 -> 0 | AW45: 0 | AX45: 0 | AY45: 0 | AZ45: 0 | BA45: 0 | BB45: 0 | BC45: 0 | BD45: 0 | BE45: 0 | BF45: =Z45 -> 0 | BG45: 0 | BH45: 0 | BI45: 0 | BJ45: 0 | BK45: 0 | BL45: =AF45 -> 0 | BM45: 0 | BN45: 0 | BO45: 0
C46: Tariff Type | E46: =Selected_Tariff_Type -> Urban | F46: =INDEX(Full_Tariff_Type,F$7,) -> Urban | G46: Urban | H46: Urban | I46: Urban | J46: Urban | K46: Urban | L46: Urban | M46: Urban | N46: Urban | O46: Urban | P46: Urban | Q46: Rural | R46: Rural | S46: Rural | T46: Rural | U46: Rural | V46: Rural | W46: Rural | X46: Urban | Y46: Urban | Z46: Urban | AA46: Urban | AB46: Urban | AC46: Urban | AD46: Urban | AE46: Urban | AF46: Urban | AG46: Urban | AH46: Urban | AI46: Urban | AK46: =Selected_Tariff_Type -> Urban | AL46: Urban | AM46: Urban | AN46: Urban | AO46: Urban | AP46: Urban | AQ46: Urban | AR46: Urban | AS46: Urban | AT46: Urban | AU46: Urban | AV46: Urban | AW46: Rural | AX46: Rural | AY46: Rural | AZ46: Rural | BA46: Rural | BB46: Rural | BC46: Rural | BD46: Urban | BE46: Urban | BF46: Urban | BG46: Urban | BH46: Urban | BI46: Urban | BJ46: Urban | BK46: Urban | BL46: Urban | BM46: Urban | BN46: Urban | BO46: Urban

Sheet Workings Low (hidden)
E2: =Inputs!G21 -> Businessrate 1 | F2: =MATCH(E2,Full_Tariff_List,0) -> 1
B4: Calculations by Tariff
B6: Tariffs | E6: =E2 -> Businessrate 1 | F6: =INDEX(Full_Tariff_List,F$7,) -> Businessrate 1 | G6: Businessrate 2 | H6: Businessrate 3 | I6: Businessrate 4 | J6: Homelight 20A | K6: Homelight 60A | L6: Homepower 1 | M6: Homepower 2 | N6: Homepower 3 | O6: Homepower 4 | P6: Homepower Bulk | Q6: Landrate 1 | R6: Landrate 2 | S6: Landrate 3 | T6: Landrate 4 | U6: Landrate Dx | V6: Landlight 20A | W6: Landlight 60A | X6: Public Lighting All Night | Y6: Public Lighting 24 Hours | Z6: Public Lighting Urban Fixed | AA6: Municflex | AB6: Municrate 1 | AC6: Municrate 2 | AD6: Municrate 3 | AE6: Municrate 4 | AF6: Homeflex 1 | AG6: Homeflex 2 | AH6: Homeflex 3 | AI6: Homeflex 4 | AK6: =Selected_Base_Tariff -> Businessrate 1 | AL6: =F6 -> Businessrate 1 | AM6: Businessrate 2 | AN6: Businessrate 3 | AO6: Businessrate 4 | AP6: Homelight 20A | AQ6: Homelight 60A | AR6: Homepower 1 | AS6: Homepower 2 | AT6: Homepower 3 | AU6: =O6 -> Homepower 4 | AV6: Homepower Bulk | AW6: Landrate 1 | AX6: Landrate 2 | AY6: Landrate 3 | AZ6: Landrate 4 | BA6: Landrate Dx | BB6: Landlight 20A | BC6: Landlight 60A | BD6: Public Lighting All Night | BE6: =Y6 -> Public Lighting 24 Hours | BF6: Public Lighting Urban Fixed | BG6: =AA6 -> Municflex | BH6: Municrate 1 | BI6: Municrate 2 | BJ6: Municrate 3 | BK6: Municrate 4 | BL6: =AF6 -> Homeflex 1 | BM6: Homeflex 2 | BN6: Homeflex 3 | BO6: Homeflex 4
E7: =F2 -> 1 | F7: 1 | G7: =F7+1 -> 2 | H7: =G7+1 -> 3 | I7: 4 | J7: 5 | K7: 6 | L7: 7 | M7: 8 | N7: 9 | O7: 10 | P7: 11 | Q7: 12 | R7: 13 | S7: 14 | T7: 15 | U7: 16 | V7: 17 | W7: 18 | X7: 19 | Y7: 20 | Z7: 21 | AA7: 28 | AB7: =AA7+1 -> 29 | AC7: =AB7+1 -> 30 | AD7: =AC7+1 -> 31 | AE7: =AD7+1 -> 32 | AF7: 33 | AG7: =AF7+1 -> 34 | AH7: =AG7+1 -> 35 | AI7: =AH7+1 -> 36 | AK7: 1 | AL7: 1 | AM7: 2 | AN7: 3 | AO7: 4 | AP7: 5 | AQ7: 6 | AR7: 7 | AS7: 8 | AT7: 9 | AU7: 10 | AV7: 11 | AW7: 12 | AX7: 13 | AY7: 14 | AZ7: 15 | BA7: 16 | BB7: 17 | BC7: 18 | BD7: 19 | BE7: 20 | BF7: 21 | BG7: 28 | BH7: =BG7+1 -> 29 | BI7: =BH7+1 -> 30 | BJ7: 31 | BK7: 32 | BL7: 33 | BM7: 34 | BN7: 35 | BO7: 36
B8: Network charges | D8: Units | E8: =Current_Period&" Rates" -> 2024/25 Rates | F8: =E8 -> 2024/25 Rates | G8: =F8 -> 2024/25 Rates | H8: 2024/25 Rates | I8: 2024/25 Rates | J8: 2024/25 Rates | K8: 2024/25 Rates | L8: 2024/25 Rates | M8: 2024/25 Rates | N8: 2024/25 Rates | O8: 2024/25 Rates | P8: 2024/25 Rates | Q8: 2024/25 Rates | R8: 2024/25 Rates | S8: 2024/25 Rates | T8: 2024/25 Rates | U8: 2024/25 Rates | V8: 2024/25 Rates | W8: 2024/25 Rates | X8: 2024/25 Rates | Y8: 2024/25 Rates | Z8: 2024/25 Rates | AA8: 2024/25 Rates | AB8: =AA8 -> 2024/25 Rates | AC8: =AB8 -> 2024/25 Rates | AD8: =AC8 -> 2024/25 Rates | AE8: =AD8 -> 2024/25 Rates | AF8: =Y8 -> 2024/25 Rates | AG8: 2024/25 Rates | AH8: 2024/25 Rates | AI8: 2024/25 Rates | AK8: =New_Period&" Rates" -> 2025/26 Rates | AL8: =AK8 -> 2025/26 Rates | AM8: =AL8 -> 2025/26 Rates | AN8: 2025/26 Rates | AO8: 2025/26 Rates | AP8: 2025/26 Rates | AQ8: 2025/26 Rates | AR8: 2025/26 Rates | AS8: 2025/26 Rates | AT8: 2025/26 Rates | AU8: 2025/26 Rates | AV8: 2025/26 Rates | AW8: 2025/26 Rates | AX8: 2025/26 Rates | AY8: 2025/26 Rates | AZ8: 2025/26 Rates | BA8: 2025/26 Rates | BB8: 2025/26 Rates | BC8: 2025/26 Rates | BD8: 2025/26 Rates | BE8: 2025/26 Rates | BF8: 2025/26 Rates | BG8: 2025/26 Rates | BH8: =BG8 -> 2025/26 Rates | BI8: =BH8 -> 2025/26 Rates | BJ8: =BI8 -> 2025/26 Rates | BK8: =BJ8 -> 2025/26 Rates | BL8: =BE8 -> 2025/26 Rates | BM8: 2025/26 Rates | BN8: 2025/26 Rates | BO8: 2025/26 Rates
C10: Distribution network demand charge | D10: c/kWh | E10: =SUMIFS(F10:AI10,$F$7:$AI$7,$F$2) -> 0 | F10: =IFERROR('Rates Table'!F10*SPU_Annual_Total_Energy,0)/100 -> 0 | G10: =IFERROR('Rates Table'!G10*SPU_Annual_Total_Energy,0)/100 -> 0 | H10: =IFERROR('Rates Table'!H10*SPU_Annual_Total_Energy,0)/100 -> 0 | I10: =IFERROR('Rates Table'!I10*SPU_Annual_Total_Energy,0)/100 -> 0 | J10: =IFERROR('Rates Table'!J10*SPU_Annual_Total_Energy,0)/100 -> 0 | K10: =IFERROR('Rates Table'!K10*SPU_Annual_Total_Energy,0)/100 -> 0 | L10: =IFERROR('Rates Table'!L10*SPU_Annual_Total_Energy,0)/100 -> 0 | M10: =IFERROR('Rates Table'!M10*SPU_Annual_Total_Energy,0)/100 -> 0 | N10: =IFERROR('Rates Table'!N10*SPU_Annual_Total_Energy,0)/100 -> 0 | O10: =IFERROR('Rates Table'!O10*SPU_Annual_Total_Energy,0)/100 -> 0 | P10: =IFERROR('Rates Table'!P10*SPU_Annual_Total_Energy,0)/100 -> 0 | Q10: =IFERROR('Rates Table'!Q10*SPU_Annual_Total_Energy,0)/100 -> 0 | R10: =IFERROR('Rates Table'!R10*SPU_Annual_Total_Energy,0)/100 -> 0 | S10: =IFERROR('Rates Table'!S10*SPU_Annual_Total_Energy,0)/100 -> 0 | T10: =IFERROR('Rates Table'!T10*SPU_Annual_Total_Energy,0)/100 -> 0 | U10: =IFERROR('Rates Table'!U10*SPU_Annual_Total_Energy,0)/100 -> 0 | V10: =IFERROR('Rates Table'!V10*SPU_Annual_Total_Energy,0)/100 -> 0 | W10: =IFERROR('Rates Table'!W10*SPU_Annual_Total_Energy,0)/100 -> 0 | X10: =IFERROR('Rates Table'!X10*SPU_Annual_Total_Energy,0)/100 -> 0 | Y10: =IFERROR('Rates Table'!Y10*SPU_Annual_Total_Energy,0)/100 -> 0 | Z10: =IFERROR('Rates Table'!Z10*SPU_Annual_Total_Energy,0)/100 -> 0 | AB10: =IFERROR('Rates Table'!AB10*SPU_Annual_Total_Energy,0)/100 -> 0 | AC10: =IFERROR('Rates Table'!AC10*SPU_Annual_Total_Energy,0)/100 -> 0 | AD10: =IFERROR('Rates Table'!AD10*SPU_Annual_Total_Energy,0)/100 -> 0 | AE10: =IFERROR('Rates Table'!AF10*SPU_Annual_Total_Energy,0)/100 -> 0 | AF10: =IFERROR('Rates Table'!AF10*SPU_Annual_Total_Energy,0)/100 -> 0 | AG10: =IFERROR('Rates Table'!AG10*SPU_Annual_Total_Energy,0)/100 -> 0 | AH10: =IFERROR('Rates Table'!AH10*SPU_Annual_Total_Energy,0)/100 -> 0 | AI10: =IFERROR('Rates Table'!AI10*SPU_Annual_Total_Energy,0)/100 -> 0 | AK10: =SUMIFS(AL10:BO10,$F$7:$AI$7,Selected_Tariff_ID) -> 0 | AL10: =IFERROR('Rates Table'!AL10*SPU_Annual_Total_Energy,0)/100 -> 0 | AM10: =IFERROR('Rates Table'!AM10*SPU_Annual_Total_Energy,0)/100 -> 0 | AN10: =IFERROR('Rates Table'!AN10*SPU_Annual_Total_Energy,0)/100 -> 0 | AO10: =IFERROR('Rates Table'!AO10*SPU_Annual_Total_Energy,0)/100 -> 0 | AP10: =IFERROR('Rates Table'!AP10*SPU_Annual_Total_Energy,0)/100 -> 0 | AQ10: =IFERROR('Rates Table'!AQ10*SPU_Annual_Total_Energy,0)/100 -> 0 | AR10: =IFERROR('Rates Table'!AR10*SPU_Annual_Total_Energy,0)/100 -> 0 | AS10: =IFERROR('Rates Table'!AS10*SPU_Annual_Total_Energy,0)/100 -> 0 | AT10: =IFERROR('Rates Table'!AT10*SPU_Annual_Total_Energy,0)/100 -> 0 | AU10: =IFERROR('Rates Table'!AU10*SPU_Annual_Total_Energy,0)/100 -> 0 | AV10: =IFERROR('Rates Table'!AV10*SPU_Annual_Total_Energy,0)/100 -> 0 | AW10: =IFERROR('Rates Table'!AW10*SPU_Annual_Total_Energy,0)/100 -> 0 | AX10: =IFERROR('Rates Table'!AX10*SPU_Annual_Total_Energy,0)/100 -> 0 | AY10: =IFERROR('Rates Table'!AY10*SPU_Annual_Total_Energy,0)/100 -> 0 | AZ10: =IFERROR('Rates Table'!AZ10*SPU_Annual_Total_Energy,0)/100 -> 0 | BA10: =IFERROR('Rates Table'!BA10*SPU_Annual_Total_Energy,0)/100 -> 0 | BB10: =IFERROR('Rates Table'!BB10*SPU_Annual_Total_Energy,0)/100 -> 0 | BC10: =IFERROR('Rates Table'!BC10*SPU_Annual_Total_Energy,0)/100 -> 0 | BD10: =IFERROR('Rates Table'!BD10*SPU_Annual_Total_Energy,0)/100 -> 0 | BE10: =IFERROR('Rates Table'!BE10*SPU_Annual_Total_Energy,0)/100 -> 0 | BF10: =IFERROR('Rates Table'!BF10*SPU_Annual_Total_Energy,0)/100 -> 0 | BH10: =IFERROR('Rates Table'!BH10*SPU_Annual_Total_Energy,0)/100 -> 0 | BI10: =IFERROR('Rates Table'!BI10*SPU_Annual_Total_Energy,0)/100 -> 0 | BJ10: =IFERROR('Rates Table'!BJ10*SPU_Annual_Total_Energy,0)/100 -> 0 | BK10: =IFERROR('Rates Table'!BK10*SPU_Annual_Total_Energy,0)/100 -> 0 | BL10: =IFERROR('Rates Table'!BL10*Homeflex_Total_Energy,0)/100 -> 0 | BM10: =IFERROR('Rates Table'!BM10*Homeflex_Total_Energy,0)/100 -> 0 | BN10: =IFERROR('Rates Table'!BN10*Homeflex_Total_Energy,0)/100 -> 0 | BO10: =IFERROR('Rates Table'!BO10*Homeflex_Total_Energy,0)/100 -> 0
C11: Network demand charge, Ancillary service charge and retail | D11: c/kWh | E11: =SUMIFS(F11:AI11,$F$7:$AI$7,$F$2) -> 0 | AF11: =IFERROR('Rates Table'!AF11*SPU_Annual_Total_Energy,0)/100 -> 0 | AG11: =IFERROR('Rates Table'!AG11*SPU_Annual_Total_Energy,0)/100 -> 0 | AH11: =IFERROR('Rates Table'!AH11*SPU_Annual_Total_Energy,0)/100 -> 0 | AI11: =IFERROR('Rates Table'!AI11*SPU_Annual_Total_Energy,0)/100 -> 0 | AK11: =SUMIFS(AL11:BO11,$F$7:$AI$7,Selected_Tariff_ID) -> 0 | BL11: =IFERROR('Rates Table'!BL11*Homeflex_Total_Energy,0)/100 -> 0 | BM11: =IFERROR('Rates Table'!BM11*Homeflex_Total_Energy,0)/100 -> 0 | BN11: =IFERROR('Rates Table'!BN11*Homeflex_Total_Energy,0)/100 -> 0 | BO11: =IFERROR('Rates Table'!BO11*Homeflex_Total_Energy,0)/100 -> 0
C12: Network capacity charge | D12: =IF(Table_1=1,"R/kVA","R/day") -> R/day | E12: =SUMIFS(F12:AI12,$F$7:$AI$7,$F$2) -> 1291.795833 | F12: =IFERROR('Rates Table'!F12*PODs*ESKOM_Total_days,0) -> 1291.795833 | G12: =IFERROR('Rates Table'!G12*PODs*ESKOM_Total_days,0) -> 2176.920833 | H12: =IFERROR('Rates Table'!H12*PODs*ESKOM_Total_days,0) -> 3760.716667 | I12: =IFERROR('Rates Table'!I12*PODs*ESKOM_Total_days,0) -> 0 | J12: =IFERROR('Rates Table'!J12*PODs*ESKOM_Total_days,0) -> 0 | K12: =IFERROR('Rates Table'!K12*PODs*ESKOM_Total_days,0) -> 0 | L12: =IFERROR('Rates Table'!L12*PODs*ESKOM_Total_days,0) -> 319.9833333 | M12: =IFERROR('Rates Table'!M12*PODs*ESKOM_Total_days,0) -> 599.5125 | N12: =IFERROR('Rates Table'!N12*PODs*ESKOM_Total_days,0) -> 1237.654167 | O12: =IFERROR('Rates Table'!O12*PODs*ESKOM_Total_days,0) -> 195.5791667 | P12: =IFERROR('Rates Table'!P12*PODs*ESKOM_Total_days,0) -> 2029.4 | Q12: =IFERROR('Rates Table'!Q12*PODs*ESKOM_Total_days,0) -> 1693.6 | R12: =IFERROR('Rates Table'!R12*PODs*ESKOM_Total_days,0) -> 2603.3625 | S12: =IFERROR('Rates Table'!S12*PODs*ESKOM_Total_days,0) -> 4162.216667 | T12: =IFERROR('Rates Table'!T12*PODs*ESKOM_Total_days,0) -> 1348.675 | U12: =IFERROR('Rates Table'!U12*PODs*ESKOM_Total_days,0) -> 0 | V12: =IFERROR('Rates Table'!V12*PODs*ESKOM_Total_days,0) -> 0 | W12: =IFERROR('Rates Table'!W12*PODs*ESKOM_Total_days,0) -> 0 | X12: =IFERROR('Rates Table'!X12*PODs*ESKOM_Total_days,0) -> 0 | Y12: =IFERROR('Rates Table'!Y12*PODs*ESKOM_Total_days,0) -> 0 | Z12: =IFERROR('Rates Table'!Z12*PODs*ESKOM_Total_days,0) -> 0 | AB12: =IFERROR('Rates Table'!AB12*PODs*ESKOM_Total_days,0) -> 0 | AC12: =IFERROR('Rates Table'!AC12*PODs*ESKOM_Total_days,0) -> 0 | AD12: =IFERROR('Rates Table'!AD12*PODs*ESKOM_Total_days,0) -> 0 | AE12: =IFERROR('Rates Table'!AF12*PODs*ESKOM_Total_days,0) -> 319.9833333 | AF12: =IFERROR('Rates Table'!AF12*PODs*ESKOM_Total_days,0) -> 319.9833333 | AG12: =IFERROR('Rates Table'!AG12*PODs*ESKOM_Total_days,0) -> 599.5125 | AH12: =IFERROR('Rates Table'!AH12*PODs*ESKOM_Total_days,0) -> 1237.654167 | AI12: =IFERROR('Rates Table'!AI12*PODs*ESKOM_Total_days,0) -> 195.5791667 | AK12: =SUMIFS(AL12:BO12,$F$7:$AI$7,Selected_Tariff_ID) -> 618.675 | AL12: =IFERROR('Rates Table'!AL12*PODs*ESKOM_Total_days,0) -> 618.675 | AM12: =IFERROR('Rates Table'!AM12*PODs*ESKOM_Total_days,0) -> 918.8875 | AN12: =IFERROR('Rates Table'!AN12*PODs*ESKOM_Total_days,0) -> 2292.808333 | AO12: =IFERROR('Rates Table'!AO12*PODs*ESKOM_Total_days,0) -> 0 | AP12: =IFERROR('Rates Table'!AP12*PODs*ESKOM_Total_days,0) -> 0 | AQ12: =IFERROR('Rates Table'!AQ12*PODs*ESKOM_Total_days,0) -> 0 | AR12: =IFERROR('Rates Table'!AR12*PODs*ESKOM_Total_days,0) -> 368.9541667 | AS12: =IFERROR('Rates Table'!AS12*PODs*ESKOM_Total_days,0) -> 823.3791667 | AT12: =IFERROR('Rates Table'!AT12*PODs*ESKOM_Total_days,0) -> 1758.691667 | AU12: =IFERROR('Rates Table'!AU12*PODs*ESKOM_Total_days,0) -> 253.9791667 | AV12: =IFERROR('Rates Table'!AV12*PODs*ESKOM_Total_days,0) -> 0 | AW12: =IFERROR('Rates Table'!AW12*PODs*ESKOM_Total_days,0) -> 1891.916667 | AX12: =IFERROR('Rates Table'!AX12*PODs*ESKOM_Total_days,0) -> 2950.1125 | AY12: =IFERROR('Rates Table'!AY12*PODs*ESKOM_Total_days,0) -> 4724.316667 | AZ12: =IFERROR('Rates Table'!AZ12*PODs*ESKOM_Total_days,0) -> 1396.733333 | BA12: =IFERROR('Rates Table'!BA12*PODs*ESKOM_Total_days,0) -> 0 | BB12: =IFERROR('Rates Table'!BB12*PODs*ESKOM_Total_days,0) -> 0 | BC12: =IFERROR('Rates Table'!BC12*PODs*ESKOM_Total_days,0) -> 0 | BD12: =IFERROR('Rates Table'!BD12*PODs*ESKOM_Total_days,0) -> 0 | BE12: =IFERROR('Rates Table'!BE12*PODs*ESKOM_Total_days,0) -> 0 | BF12: =IFERROR('Rates Table'!BF12*PODs*ESKOM_Total_days,0) -> 0 | BH12: =IFERROR('Rates Table'!BH12*PODs*ESKOM_Total_days,0) -> 0 | BI12: =IFERROR('Rates Table'!BI12*PODs*ESKOM_Total_days,0) -> 0 | BJ12: =IFERROR('Rates Table'!BJ12*PODs*ESKOM_Total_days,0) -> 0 | BK12: =IFERROR('Rates Table'!BK12*PODs*ESKOM_Total_days,0) -> 0 | BL12: =IFERROR('Rates Table'!BL12*PODs*ESKOM_Total_days,0) -> 368.9541667 | BM12: =IFERROR('Rates Table'!BM12*PODs*ESKOM_Total_days,0) -> 823.3791667 | BN12: =IFERROR('Rates Table'!BN12*PODs*ESKOM_Total_days,0) -> 1758.691667 | BO12: =IFERROR('Rates Table'!BO12*PODs*ESKOM_Total_days,0) -> 253.9791667
B14: Total network charges | E14: =SUM(E10:E12) -> 1291.795833 | F14: 1291.795833 | G14: 2176.920833 | H14: 3760.716667 | I14: 0 | J14: 0 | K14: 0 | L14: 319.9833333 | M14: 599.5125 | N14: 1237.654167 | O14: 195.5791667 | P14: 2029.4 | Q14: 1693.6 | R14: 2603.3625 | S14: 4162.216667 | T14: 1348.675 | U14: 0 | V14: 0 | W14: 0 | X14: 0 | Y14: 0 | Z14: =SUM(Z10:Z12) -> 0 | AB14: =SUM(AB10:AB12) -> 0 | AC14: 0 | AD14: 0 | AE14: 319.9833333 | AF14: 319.9833333 | AG14: 599.5125 | AH14: 1237.654167 | AI14: 195.5791667 | AK14: =SUM(AK10:AK12) -> 618.675 | AL14: 618.675 | AM14: 918.8875 | AN14: 2292.808333 | AO14: 0 | AP14: 0 | AQ14: 0 | AR14: 368.9541667 | AS14: 823.3791667 | AT14: 1758.691667 | AU14: 253.9791667 | AV14: 0 | AW14: 1891.916667 | AX14: 2950.1125 | AY14: 4724.316667 | AZ14: 1396.733333 | BA14: 0 | BB14: 0 | BC14: 0 | BD14: 0 | BE14: 0 | BF14: =SUM(BF10:BF12) -> 0 | BH14: =SUM(BH10:BH12) -> 0 | BI14: 0 | BJ14: 0 | BK14: =SUM(BK10:BK12) -> 0 | BL14: 368.9541667 | BM14: 823.3791667 | BN14: 1758.691667 | BO14: 253.9791667
B16: Energy charges | D16: Units | E16: =E$8 -> 2024/25 Rates | F16: =F$8 -> 2024/25 Rates | G16: 2024/25 Rates | H16: 2024/25 Rates | I16: 2024/25 Rates | J16: 2024/25 Rates | K16: 2024/25 Rates | L16: 2024/25 Rates | M16: 2024/25 Rates | N16: 2024/25 Rates | O16: 2024/25 Rates | P16: 2024/25 Rates | Q16: 2024/25 Rates | R16: 2024/25 Rates | S16: 2024/25 Rates | T16: 2024/25 Rates | U16: 2024/25 Rates | V16: 2024/25 Rates | W16: 2024/25 Rates | X16: 2024/25 Rates | Y16: 2024/25 Rates | Z16: 2024/25 Rates | AA16: 2024/25 Rates | AB16: 2024/25 Rates | AC16: 2024/25 Rates | AD16: 2024/25 Rates | AE16: 2024/25 Rates | AF16: 2024/25 Rates | AG16: 2024/25 Rates | AH16: 2024/25 Rates | AI16: 2024/25 Rates | AK16: =AK$8 -> 2025/26 Rates | AL16: =AL$8 -> 2025/26 Rates | AM16: 2025/26 Rates | AN16: 2025/26 Rates | AO16: 2025/26 Rates | AP16: 2025/26 Rates | AQ16: 2025/26 Rates | AR16: 2025/26 Rates | AS16: 2025/26 Rates | AT16: 2025/26 Rates | AU16: 2025/26 Rates | AV16: 2025/26 Rates | AW16: 2025/26 Rates | AX16: 2025/26 Rates | AY16: 2025/26 Rates | AZ16: 2025/26 Rates | BA16: 2025/26 Rates | BB16: 2025/26 Rates | BC16: 2025/26 Rates | BD16: 2025/26 Rates | BE16: 2025/26 Rates | BF16: 2025/26 Rates | BG16: 2025/26 Rates | BH16: 2025/26 Rates | BI16: 2025/26 Rates | BJ16: 2025/26 Rates | BK16: 2025/26 Rates | BL16: 2025/26 Rates | BM16: 2025/26 Rates | BN16: 2025/26 Rates | BO16: 2025/26 Rates
C18: Energy | D18: c/kWh | E18: =SUMIFS(F18:AI18,$F$7:$AI$7,$F$2) -> 0 | F18: =IFERROR('Rates Table'!F18*(SPU_Annual_Total_Energy),0)/100 -> 0 | G18: =IFERROR('Rates Table'!G18*(SPU_Annual_Total_Energy),0)/100 -> 0 | H18: =IFERROR('Rates Table'!H18*(SPU_Annual_Total_Energy),0)/100 -> 0 | I18: =IFERROR('Rates Table'!I18*(SPU_Annual_Total_Energy),0)/100 -> 0 | J18: =IFERROR('Rates Table'!J18*(SPU_Annual_Total_Energy),0)/100 -> 0 | K18: =IFERROR('Rates Table'!K18*(SPU_Annual_Total_Energy),0)/100 -> 0 | L18: =IFERROR('Rates Table'!L18*(SPU_Annual_Total_Energy),0)/100 -> 0 | M18: =IFERROR('Rates Table'!M18*(SPU_Annual_Total_Energy),0)/100 -> 0 | N18: =IFERROR('Rates Table'!N18*(SPU_Annual_Total_Energy),0)/100 -> 0 | O18: =IFERROR('Rates Table'!O18*(SPU_Annual_Total_Energy),0)/100 -> 0 | P18: =IFERROR('Rates Table'!P18*(SPU_Annual_Total_Energy),0)/100 -> 0 | Q18: =IFERROR('Rates Table'!Q18*(SPU_Annual_Total_Energy),0)/100 -> 0 | R18: =IFERROR('Rates Table'!R18*(SPU_Annual_Total_Energy),0)/100 -> 0 | S18: =IFERROR('Rates Table'!S18*(SPU_Annual_Total_Energy),0)/100 -> 0 | T18: =IFERROR('Rates Table'!T18*(SPU_Annual_Total_Energy),0)/100 -> 0 | U18: =IFERROR('Rates Table'!U18*(SPU_Annual_Total_Energy),0)/100 -> 0 | V18: =IFERROR('Rates Table'!V18*(SPU_Annual_Total_Energy),0)/100 -> 0 | W18: =IFERROR('Rates Table'!W18*(SPU_Annual_Total_Energy),0)/100 -> 0 | X18: =IFERROR('Rates Table'!X18*(SPU_Annual_Total_Energy),0)/100 -> 0 | Y18: =IFERROR('Rates Table'!Y18*(SPU_Annual_Total_Energy),0)/100 -> 0 | Z18: =IFERROR('Rates Table'!Z18*(SPU_Annual_Total_Energy),0)/100 -> 0 | AB18: =IFERROR('Rates Table'!AB18*(SPU_Annual_Total_Energy),0)/100 -> 0 | AC18: =IFERROR('Rates Table'!AC18*(SPU_Annual_Total_Energy),0)/100 -> 0 | AD18: =IFERROR('Rates Table'!AD18*(SPU_Annual_Total_Energy),0)/100 -> 0 | AE18: =IFERROR('Rates Table'!AF18*(SPU_Annual_Total_Energy),0)/100 -> 0 | AF18: =IFERROR('Rates Table'!AF18*(SPU_Annual_Total_Energy),0)/100 -> 0 | AG18: =IFERROR('Rates Table'!AG18*(SPU_Annual_Total_Energy),0)/100 -> 0 | AH18: =IFERROR('Rates Table'!AH18*(SPU_Annual_Total_Energy),0)/100 -> 0 | AI18: =IFERROR('Rates Table'!AI18*(SPU_Annual_Total_Energy),0)/100 -> 0 | AK18: =SUMIFS(AL18:BO18,$F$7:$AI$7,Selected_Tariff_ID) -> 0 | AL18: =IFERROR('Rates Table'!AL18*(SPU_Annual_Total_Energy),0)/100 -> 0 | AM18: =IFERROR('Rates Table'!AM18*(SPU_Annual_Total_Energy),0)/100 -> 0 | AN18: =IFERROR('Rates Table'!AN18*(SPU_Annual_Total_Energy),0)/100 -> 0 | AO18: =IFERROR('Rates Table'!AO18*(SPU_Annual_Total_Energy),0)/100 -> 0 | AP18: =IFERROR('Rates Table'!AP18*(SPU_Annual_Total_Energy),0)/100 -> 0 | AQ18: =IFERROR('Rates Table'!AQ18*(SPU_Annual_Total_Energy),0)/100 -> 0 | AR18: =IFERROR('Rates Table'!AR18*(SPU_Annual_Total_Energy),0)/100 -> 0 | AS18: =IFERROR('Rates Table'!AS18*(SPU_Annual_Total_Energy),0)/100 -> 0 | AT18: =IFERROR('Rates Table'!AT18*(SPU_Annual_Total_Energy),0)/100 -> 0 | AU18: =IFERROR('Rates Table'!AU18*(SPU_Annual_Total_Energy),0)/100 -> 0 | AV18: =IFERROR('Rates Table'!AV18*(SPU_Annual_Total_Energy),0)/100 -> 0 | AW18: =IFERROR('Rates Table'!AW18*(SPU_Annual_Total_Energy),0)/100 -> 0 | AX18: =IFERROR('Rates Table'!AX18*(SPU_Annual_Total_Energy),0)/100 -> 0 | AY18: =IFERROR('Rates Table'!AY18*(SPU_Annual_Total_Energy),0)/100 -> 0 | AZ18: =IFERROR('Rates Table'!AZ18*(SPU_Annual_Total_Energy),0)/100 -> 0 | BA18: =IFERROR('Rates Table'!BA18*(SPU_Annual_Total_Energy),0)/100 -> 0 | BB18: =IFERROR('Rates Table'!BB18*(SPU_Annual_Total_Energy),0)/100 -> 0 | BC18: =IFERROR('Rates Table'!BC18*(SPU_Annual_Total_Energy),0)/100 -> 0 | BD18: =IFERROR('Rates Table'!BD18*(SPU_Annual_Total_Energy),0)/100 -> 0 | BE18: =IFERROR('Rates Table'!BE18*(SPU_Annual_Total_Energy),0)/100 -> 0 | BF18: =IFERROR('Rates Table'!BF18*(SPU_Annual_Total_Energy),0)/100 -> 0 | BH18: =IFERROR('Rates Table'!BH18*(SPU_Annual_Total_Energy),0)/100 -> 0 | BI18: =IFERROR('Rates Table'!BI18*(SPU_Annual_Total_Energy),0)/100 -> 0 | BJ18: =IFERROR('Rates Table'!BJ18*(SPU_Annual_Total_Energy),0)/100 -> 0 | BK18: =IFERROR('Rates Table'!BK18*(SPU_Annual_Total_Energy),0)/100 -> 0 | BL18: =IFERROR('Rates Table'!BL18*(Homeflex_Total_Energy),0)/100 -> 0 | BM18: =IFERROR('Rates Table'!BM18*(Homeflex_Total_Energy),0)/100 -> 0 | BN18: =IFERROR('Rates Table'!BN18*(Homeflex_Total_Energy),0)/100 -> 0 | BO18: =IFERROR('Rates Table'!BO18*(Homeflex_Total_Energy),0)/100 -> 0
C19: Peak consumption | D19: c/kWh | E19: 0 | AF19: =IFERROR('Rates Table'!AF19*(Homeflex_Peak_Energy_Low),0)/100 -> 0 | AG19: =IFERROR('Rates Table'!AG19*(Homeflex_Peak_Energy_Low),0)/100 -> 0 | AH19: =IFERROR('Rates Table'!AH19*(Homeflex_Peak_Energy_Low),0)/100 -> 0 | AI19: =IFERROR('Rates Table'!AI19*(Homeflex_Peak_Energy_Low),0)/100 -> 0 | AK19: 0 | BL19: =IFERROR('Rates SPU - New'!$L$29*(Homeflex_Peak_Energy_Low),0)/100 -> 0 | BM19: =IFERROR('Rates SPU - New'!$L$29*(Homeflex_Peak_Energy_Low),0)/100 -> 0 | BN19: =IFERROR('Rates SPU - New'!$L$29*(Homeflex_Peak_Energy_Low),0)/100 -> 0 | BO19: =IFERROR('Rates SPU - New'!$L$29*(Homeflex_Peak_Energy_Low),0)/100 -> 0
C20: Standard consumption | D20: c/kWh | E20: 0 | AF20: =IFERROR('Rates Table'!AF20*(Homeflex_Standard_Energy_Low),0)/100 -> 0 | AG20: =IFERROR('Rates Table'!AG20*(Homeflex_Standard_Energy_Low),0)/100 -> 0 | AH20: =IFERROR('Rates Table'!AH20*(Homeflex_Standard_Energy_Low),0)/100 -> 0 | AI20: =IFERROR('Rates Table'!AI20*(Homeflex_Standard_Energy_Low),0)/100 -> 0 | AK20: 0 | BL20: =IFERROR('Rates SPU - New'!$M$30*(Homeflex_Standard_Energy_Low),0)/100 -> 0 | BM20: =IFERROR('Rates SPU - New'!$M$30*(Homeflex_Standard_Energy_Low),0)/100 -> 0 | BN20: =IFERROR('Rates SPU - New'!$M$30*(Homeflex_Standard_Energy_Low),0)/100 -> 0 | BO20: =IFERROR('Rates SPU - New'!$M$30*(Homeflex_Standard_Energy_Low),0)/100 -> 0
C21: Off-Peak consumption | D21: c/kWh | E21: 0 | AF21: =IFERROR('Rates Table'!AF21*(Homeflex_OffPeak_Energy_Low),0)/100 -> 0 | AG21: =IFERROR('Rates Table'!AG21*(Homeflex_OffPeak_Energy_Low),0)/100 -> 0 | AH21: =IFERROR('Rates Table'!AH21*(Homeflex_OffPeak_Energy_Low),0)/100 -> 0 | AI21: =IFERROR('Rates Table'!AI21*(Homeflex_OffPeak_Energy_Low),0)/100 -> 0 | AK21: 0 | BL21: =IFERROR('Rates SPU - New'!$N$30*(Homeflex_OffPeak_Energy_Low),0)/100 -> 0 | BM21: =IFERROR('Rates SPU - New'!$N$30*(Homeflex_OffPeak_Energy_Low),0)/100 -> 0 | BN21: =IFERROR('Rates SPU - New'!$N$30*(Homeflex_OffPeak_Energy_Low),0)/100 -> 0 | BO21: =IFERROR('Rates SPU - New'!$N$30*(Homeflex_OffPeak_Energy_Low),0)/100 -> 0
C22: Energy - Block 1 | D22: c/kWh | E22: 0 | F22: =IFERROR('Rates Table'!F22*(SPU_Block_1),0)/100 -> 0 | G22: =IFERROR('Rates Table'!G22*(SPU_Block_1),0)/100 -> 0 | H22: =IFERROR('Rates Table'!H22*(SPU_Block_1),0)/100 -> 0 | I22: =IFERROR('Rates Table'!I22*(SPU_Block_1),0)/100 -> 0 | J22: =IFERROR('Rates Table'!J22*(SPU_Block_1),0)/100 -> 0 | K22: =IFERROR('Rates Table'!K22*(SPU_Block_1),0)/100 -> 0 | L22: =IFERROR('Rates Table'!L22*(SPU_Block_1),0)/100 -> 0 | M22: =IFERROR('Rates Table'!M22*(SPU_Block_1),0)/100 -> 0 | N22: =IFERROR('Rates Table'!N22*(SPU_Block_1),0)/100 -> 0 | O22: =IFERROR('Rates Table'!O22*(SPU_Block_1),0)/100 -> 0 | P22: =IFERROR('Rates Table'!P22*(SPU_Block_1),0)/100 -> 0 | Q22: =IFERROR('Rates Table'!Q22*(SPU_Block_1),0)/100 -> 0 | R22: =IFERROR('Rates Table'!R22*(SPU_Block_1),0)/100 -> 0 | S22: =IFERROR('Rates Table'!S22*(SPU_Block_1),0)/100 -> 0 | T22: =IFERROR('Rates Table'!T22*(SPU_Block_1),0)/100 -> 0 | U22: =IFERROR('Rates Table'!U22*(SPU_Block_1),0)/100 -> 0 | V22: =IFERROR('Rates Table'!V22*(SPU_Block_1),0)/100 -> 0 | W22: =IFERROR('Rates Table'!W22*(SPU_Block_1),0)/100 -> 0 | X22: =IFERROR('Rates Table'!X22*(SPU_Block_1),0)/100 -> 0 | Y22: =IFERROR('Rates Table'!Y22*(SPU_Block_1),0)/100 -> 0 | Z22: =IFERROR('Rates Table'!Z22*(SPU_Block_1),0)/100 -> 0 | AB22: =IFERROR('Rates Table'!AB22*(SPU_Block_1),0)/100 -> 0 | AC22: =IFERROR('Rates Table'!AC22*(SPU_Block_1),0)/100 -> 0 | AD22: =IFERROR('Rates Table'!AD22*(SPU_Block_1),0)/100 -> 0 | AE22: =IFERROR('Rates Table'!AF22*(SPU_Block_1),0)/100 -> 0 | AF22: =IFERROR('Rates Table'!AF22*(SPU_Block_1),0)/100 -> 0 | AG22: =IFERROR('Rates Table'!AG22*(SPU_Block_1),0)/100 -> 0 | AH22: =IFERROR('Rates Table'!AH22*(SPU_Block_1),0)/100 -> 0 | AI22: =IFERROR('Rates Table'!AI22*(SPU_Block_1),0)/100 -> 0 | AK22: 0 | AL22: =IFERROR('Rates Table'!AL22*(SPU_Block_1),0)/100 -> 0 | AM22: =IFERROR('Rates Table'!AM22*(SPU_Block_1),0)/100 -> 0 | AN22: =IFERROR('Rates Table'!AN22*(SPU_Block_1),0)/100 -> 0 | AO22: =IFERROR('Rates Table'!AO22*(SPU_Block_1),0)/100 -> 0 | AP22: =IFERROR('Rates Table'!AP22*(SPU_Block_1),0)/100 -> 0 | AQ22: =IFERROR('Rates Table'!AQ22*(SPU_Block_1),0)/100 -> 0 | AR22: =IFERROR('Rates Table'!AR22*(SPU_Block_1),0)/100 -> 0 | AS22: =IFERROR('Rates Table'!AS22*(SPU_Block_1),0)/100 -> 0 | AT22: =IFERROR('Rates Table'!AT22*(SPU_Block_1),0)/100 -> 0 | AU22: =IFERROR('Rates Table'!AU22*(SPU_Block_1),0)/100 -> 0 | AV22: =IFERROR('Rates Table'!AV22*(SPU_Block_1),0)/100 -> 0 | AW22: =IFERROR('Rates Table'!AW22*(SPU_Block_1),0)/100 -> 0 | AX22: =IFERROR('Rates Table'!AX22*(SPU_Block_1),0)/100 -> 0 | AY22: =IFERROR('Rates Table'!AY22*(SPU_Block_1),0)/100 -> 0 | AZ22: =IFERROR('Rates Table'!AZ22*(SPU_Block_1),0)/100 -> 0 | BA22: =IFERROR('Rates Table'!BA22*(SPU_Block_1),0)/100 -> 0 | BB22: =IFERROR('Rates Table'!BB22*(SPU_Block_1),0)/100 -> 0 | BC22: =IFERROR('Rates Table'!BC22*(SPU_Block_1),0)/100 -> 0 | BD22: =IFERROR('Rates Table'!BD22*(SPU_Block_1),0)/100 -> 0 | BE22: =IFERROR('Rates Table'!BE22*(SPU_Block_1),0)/100 -> 0 | BF22: =IFERROR('Rates Table'!BF22*(SPU_Block_1),0)/100 -> 0 | BH22: =IFERROR('Rates Table'!BH22*(SPU_Block_1),0)/100 -> 0 | BI22: =IFERROR('Rates Table'!BI22*(SPU_Block_1),0)/100 -> 0 | BJ22: =IFERROR('Rates Table'!BJ22*(SPU_Block_1),0)/100 -> 0 | BK22: =IFERROR('Rates Table'!BK22*(SPU_Block_1),0)/100 -> 0 | BL22: =IFERROR('Rates Table'!BL22*(SPU_Block_1),0)/100 -> 0 | BM22: =IFERROR('Rates Table'!BM22*(SPU_Block_1),0)/100 -> 0 | BN22: =IFERROR('Rates Table'!BN22*(SPU_Block_1),0)/100 -> 0 | BO22: =IFERROR('Rates Table'!BO22*(SPU_Block_1),0)/100 -> 0
C23: Energy - Block 2 | D23: c/kWh | E23: 0 | F23: =IFERROR('Rates Table'!F23*(SPU_Block_2),0)/100 -> 0 | G23: =IFERROR('Rates Table'!G23*(SPU_Block_2),0)/100 -> 0 | H23: =IFERROR('Rates Table'!H23*(SPU_Block_2),0)/100 -> 0 | I23: =IFERROR('Rates Table'!I23*(SPU_Block_2),0)/100 -> 0 | J23: =IFERROR('Rates Table'!J23*(SPU_Block_2),0)/100 -> 0 | K23: =IFERROR('Rates Table'!K23*(SPU_Block_2),0)/100 -> 0 | L23: =IFERROR('Rates Table'!L23*(SPU_Block_2),0)/100 -> 0 | M23: =IFERROR('Rates Table'!M23*(SPU_Block_2),0)/100 -> 0 | N23: =IFERROR('Rates Table'!N23*(SPU_Block_2),0)/100 -> 0 | O23: =IFERROR('Rates Table'!O23*(SPU_Block_2),0)/100 -> 0 | P23: =IFERROR('Rates Table'!P23*(SPU_Block_2),0)/100 -> 0 | Q23: =IFERROR('Rates Table'!Q23*(SPU_Block_2),0)/100 -> 0 | R23: =IFERROR('Rates Table'!R23*(SPU_Block_2),0)/100 -> 0 | S23: =IFERROR('Rates Table'!S23*(SPU_Block_2),0)/100 -> 0 | T23: =IFERROR('Rates Table'!T23*(SPU_Block_2),0)/100 -> 0 | U23: =IFERROR('Rates Table'!U23*(SPU_Block_2),0)/100 -> 0 | V23: =IFERROR('Rates Table'!V23*(SPU_Block_2),0)/100 -> 0 | W23: =IFERROR('Rates Table'!W23*(SPU_Block_2),0)/100 -> 0 | X23: =IFERROR('Rates Table'!X23*(SPU_Block_2),0)/100 -> 0 | Y23: =IFERROR('Rates Table'!Y23*(SPU_Block_2),0)/100 -> 0 | Z23: =IFERROR('Rates Table'!Z23*(SPU_Block_2),0)/100 -> 0 | AB23: =IFERROR('Rates Table'!AB23*(SPU_Block_2),0)/100 -> 0 | AC23: =IFERROR('Rates Table'!AC23*(SPU_Block_2),0)/100 -> 0 | AD23: =IFERROR('Rates Table'!AD23*(SPU_Block_2),0)/100 -> 0 | AE23: =IFERROR('Rates Table'!AF23*(SPU_Block_2),0)/100 -> 0 | AF23: =IFERROR('Rates Table'!AF23*(SPU_Block_2),0)/100 -> 0 | AG23: =IFERROR('Rates Table'!AG23*(SPU_Block_2),0)/100 -> 0 | AH23: =IFERROR('Rates Table'!AH23*(SPU_Block_2),0)/100 -> 0 | AI23: =IFERROR('Rates Table'!AI23*(SPU_Block_2),0)/100 -> 0 | AK23: 0 | AL23: =IFERROR('Rates Table'!AL23*(SPU_Block_2),0)/100 -> 0 | AM23: =IFERROR('Rates Table'!AM23*(SPU_Block_2),0)/100 -> 0 | AN23: =IFERROR('Rates Table'!AN23*(SPU_Block_2),0)/100 -> 0 | AO23: =IFERROR('Rates Table'!AO23*(SPU_Block_2),0)/100 -> 0 | AP23: =IFERROR('Rates Table'!AP23*(SPU_Block_2),0)/100 -> 0 | AQ23: =IFERROR('Rates Table'!AQ23*(SPU_Block_2),0)/100 -> 0 | AR23: =IFERROR('Rates Table'!AR23*(SPU_Block_2),0)/100 -> 0 | AS23: =IFERROR('Rates Table'!AS23*(SPU_Block_2),0)/100 -> 0 | AT23: =IFERROR('Rates Table'!AT23*(SPU_Block_2),0)/100 -> 0 | AU23: =IFERROR('Rates Table'!AU23*(SPU_Block_2),0)/100 -> 0 | AV23: =IFERROR('Rates Table'!AV23*(SPU_Block_2),0)/100 -> 0 | AW23: =IFERROR('Rates Table'!AW23*(SPU_Block_2),0)/100 -> 0 | AX23: =IFERROR('Rates Table'!AX23*(SPU_Block_2),0)/100 -> 0 | AY23: =IFERROR('Rates Table'!AY23*(SPU_Block_2),0)/100 -> 0 | AZ23: =IFERROR('Rates Table'!AZ23*(SPU_Block_2),0)/100 -> 0 | BA23: =IFERROR('Rates Table'!BA23*(SPU_Block_2),0)/100 -> 0 | BB23: =IFERROR('Rates Table'!BB23*(SPU_Block_2),0)/100 -> 0 | BC23: =IFERROR('Rates Table'!BC23*(SPU_Block_2),0)/100 -> 0 | BD23: =IFERROR('Rates Table'!BD23*(SPU_Block_2),0)/100 -> 0 | BE23: =IFERROR('Rates Table'!BE23*(SPU_Block_2),0)/100 -> 0 | BF23: =IFERROR('Rates Table'!BF23*(SPU_Block_2),0)/100 -> 0 | BH23: =IFERROR('Rates Table'!BH23*(SPU_Block_2),0)/100 -> 0 | BI23: =IFERROR('Rates Table'!BI23*(SPU_Block_2),0)/100 -> 0 | BJ23: =IFERROR('Rates Table'!BJ23*(SPU_Block_2),0)/100 -> 0 | BK23: =IFERROR('Rates Table'!BK23*(SPU_Block_2),0)/100 -> 0 | BL23: =IFERROR('Rates Table'!BL23*(SPU_Block_2),0)/100 -> 0 | BM23: =IFERROR('Rates Table'!BM23*(SPU_Block_2),0)/100 -> 0 | BN23: =IFERROR('Rates Table'!BN23*(SPU_Block_2),0)/100 -> 0 | BO23: =IFERROR('Rates Table'!BO23*(SPU_Block_2),0)/100 -> 0
C24: Generation capacity charge | D24: R/POD/day | AL24: =IFERROR('Rates Table'!AL24*PODs*ESKOM_Total_days,0) -> 60.225 | AM24: =IFERROR('Rates Table'!AM24*PODs*ESKOM_Total_days,0) -> 89.72916667 | AN24: =IFERROR('Rates Table'!AN24*PODs*ESKOM_Total_days,0) -> 224.1708333 | AO24: =IFERROR('Rates Table'!AO24*PODs*ESKOM_Total_days,0) -> 0 | AP24: =IFERROR('Rates Table'!AP24*PODs*ESKOM_Total_days,0) -> 0 | AQ24: =IFERROR('Rates Table'!AQ24*PODs*ESKOM_Total_days,0) -> 0 | AR24: =IFERROR('Rates Table'!AR24*PODs*ESKOM_Total_days,0) -> 21.9 | AS24: =IFERROR('Rates Table'!AS24*PODs*ESKOM_Total_days,0) -> 38.62916667 | AT24: =IFERROR('Rates Table'!AT24*PODs*ESKOM_Total_days,0) -> 94.29166667 | AU24: =IFERROR('Rates Table'!AU24*PODs*ESKOM_Total_days,0) -> 14.29583333 | AV24: =IFERROR('Rates Table'!AV24*PODs*ESKOM_Total_days,0) -> 145.3916667 | AW24: =IFERROR('Rates Table'!AW24*PODs*ESKOM_Total_days,0) -> 82.42916667 | AX24: =IFERROR('Rates Table'!AX24*PODs*ESKOM_Total_days,0) -> 163.3375 | AY24: =IFERROR('Rates Table'!AY24*PODs*ESKOM_Total_days,0) -> 319.375 | AZ24: =IFERROR('Rates Table'!AZ24*PODs*ESKOM_Total_days,0) -> 54.14166667 | BA24: =IFERROR('Rates Table'!BA24*PODs*ESKOM_Total_days,0) -> 0 | BB24: =IFERROR('Rates Table'!BB24*PODs*ESKOM_Total_days,0) -> 0 | BC24: =IFERROR('Rates Table'!BC24*PODs*ESKOM_Total_days,0) -> 0 | BD24: =IFERROR('Rates Table'!BD24*PODs*ESKOM_Total_days,0) -> 0 | BE24: =IFERROR('Rates Table'!BE24*PODs*ESKOM_Total_days,0) -> 0 | BF24: =IFERROR('Rates Table'!BF24*PODs*ESKOM_Total_days,0) -> 0 | BH24: =IFERROR('Rates Table'!BH24*PODs*ESKOM_Total_days,0) -> 0 | BI24: =IFERROR('Rates Table'!BI24*PODs*ESKOM_Total_days,0) -> 0 | BJ24: =IFERROR('Rates Table'!BJ24*PODs*ESKOM_Total_days,0) -> 0 | BK24: =IFERROR('Rates Table'!BK24*PODs*ESKOM_Total_days,0) -> 0 | BL24: =IFERROR('Rates Table'!BL24*PODs*ESKOM_Total_days,0) -> 21.9 | BM24: =IFERROR('Rates Table'!BM24*PODs*ESKOM_Total_days,0) -> 38.62916667 | BN24: =IFERROR('Rates Table'!BN24*PODs*ESKOM_Total_days,0) -> 94.29166667 | BO24: =IFERROR('Rates Table'!BO24*PODs*ESKOM_Total_days,0) -> 14.29583333
C25: Legacy charge | D25: c/kWh | AL25: =IFERROR('Rates Table'!AL25*(SPU_Annual_Total_Energy),0)/100 -> 0 | AM25: =IFERROR('Rates Table'!AM25*(SPU_Annual_Total_Energy),0)/100 -> 0 | AN25: =IFERROR('Rates Table'!AN25*(SPU_Annual_Total_Energy),0)/100 -> 0 | AO25: =IFERROR('Rates Table'!AO25*(SPU_Annual_Total_Energy),0)/100 -> 0 | AP25: =IFERROR('Rates Table'!AP25*(SPU_Annual_Total_Energy),0)/100 -> 0 | AQ25: =IFERROR('Rates Table'!AQ25*(SPU_Annual_Total_Energy),0)/100 -> 0 | AR25: =IFERROR('Rates Table'!AR25*(SPU_Annual_Total_Energy),0)/100 -> 0 | AS25: =IFERROR('Rates Table'!AS25*(SPU_Annual_Total_Energy),0)/100 -> 0 | AT25: =IFERROR('Rates Table'!AT25*(SPU_Annual_Total_Energy),0)/100 -> 0 | AU25: =IFERROR('Rates Table'!AU25*(SPU_Annual_Total_Energy),0)/100 -> 0 | AV25: =IFERROR('Rates Table'!AV25*(SPU_Annual_Total_Energy),0)/100 -> 0 | AW25: =IFERROR('Rates Table'!AW25*(SPU_Annual_Total_Energy),0)/100 -> 0 | AX25: =IFERROR('Rates Table'!AX25*(SPU_Annual_Total_Energy),0)/100 -> 0 | AY25: =IFERROR('Rates Table'!AY25*(SPU_Annual_Total_Energy),0)/100 -> 0 | AZ25: =IFERROR('Rates Table'!AZ25*(SPU_Annual_Total_Energy),0)/100 -> 0 | BA25: =IFERROR('Rates Table'!BA25*(SPU_Annual_Total_Energy),0)/100 -> 0 | BB25: =IFERROR('Rates Table'!BB25*(SPU_Annual_Total_Energy),0)/100 -> 0 | BC25: =IFERROR('Rates Table'!BC25*(SPU_Annual_Total_Energy),0)/100 -> 0 | BD25: =IFERROR('Rates Table'!BD25*(SPU_Annual_Total_Energy),0)/100 -> 0 | BE25: =IFERROR('Rates Table'!BE25*(SPU_Annual_Total_Energy),0)/100 -> 0 | BF25: =IFERROR('Rates Table'!BF25*(SPU_Annual_Total_Energy),0)/100 -> 0 | BH25: =IFERROR('Rates Table'!BH25*(SPU_Annual_Total_Energy),0)/100 -> 0 | BI25: =IFERROR('Rates Table'!BI25*(SPU_Annual_Total_Energy),0)/100 -> 0 | BJ25: =IFERROR('Rates Table'!BJ25*(SPU_Annual_Total_Energy),0)/100 -> 0 | BK25: =IFERROR('Rates Table'!BK25*(SPU_Annual_Total_Energy),0)/100 -> 0 | BL25: =IFERROR('Rates Table'!BL25*(Homeflex_Total_Energy),0)/100 -> 0 | BM25: =IFERROR('Rates Table'!BM25*(Homeflex_Total_Energy),0)/100 -> 0 | BN25: =IFERROR('Rates Table'!BN25*(Homeflex_Total_Energy),0)/100 -> 0 | BO25: =IFERROR('Rates Table'!BO25*(Homeflex_Total_Energy),0)/100 -> 0
B27: Total energy charges | E27: =SUM(E18:E25) -> 0 | F27: =SUM(F18:F25) -> 0 | G27: 0 | H27: 0 | I27: 0 | J27: 0 | K27: 0 | L27: 0 | M27: 0 | N27: 0 | O27: 0 | P27: 0 | Q27: 0 | R27: 0 | S27: 0 | T27: 0 | U27: 0 | V27: 0 | W27: 0 | X27: 0 | Y27: 0 | Z27: =SUM(Z18:Z25) -> 0 | AB27: =SUM(AB18:AB25) -> 0 | AC27: 0 | AD27: 0 | AE27: 0 | AF27: 0 | AG27: 0 | AH27: 0 | AI27: 0 | AK27: =SUM(AK18:AK25) -> 0 | AL27: =SUM(AL18:AL25) -> 60.225 | AM27: 89.72916667 | AN27: 224.1708333 | AO27: 0 | AP27: 0 | AQ27: 0 | AR27: 21.9 | AS27: 38.62916667 | AT27: 94.29166667 | AU27: 14.29583333 | AV27: 145.3916667 | AW27: 82.42916667 | AX27: 163.3375 | AY27: 319.375 | AZ27: 54.14166667 | BA27: 0 | BB27: 0 | BC27: 0 | BD27: 0 | BE27: 0 | BF27: =SUM(BF18:BF25) -> 0 | BH27: =SUM(BH18:BH25) -> 0 | BI27: 0 | BJ27: 0 | BK27: =SUM(BK18:BK25) -> 0 | BL27: 21.9 | BM27: 38.62916667 | BN27: 94.29166667 | BO27: 14.29583333
B29: Other charges | D29: Units | E29: =E$8 -> 2024/25 Rates | F29: =F$8 -> 2024/25 Rates | G29: 2024/25 Rates | H29: 2024/25 Rates | I29: 2024/25 Rates | J29: 2024/25 Rates | K29: 2024/25 Rates | L29: 2024/25 Rates | M29: 2024/25 Rates | N29: 2024/25 Rates | O29: 2024/25 Rates | P29: 2024/25 Rates | Q29: 2024/25 Rates | R29: 2024/25 Rates | S29: 2024/25 Rates | T29: 2024/25 Rates | U29: 2024/25 Rates | V29: 2024/25 Rates | W29: 2024/25 Rates | X29: 2024/25 Rates | Y29: 2024/25 Rates | Z29: 2024/25 Rates | AA29: 2024/25 Rates | AB29: 2024/25 Rates | AC29: 2024/25 Rates | AD29: 2024/25 Rates | AE29: 2024/25 Rates | AF29: 2024/25 Rates | AG29: 2024/25 Rates | AH29: 2024/25 Rates | AI29: 2024/25 Rates | AK29: =AK$8 -> 2025/26 Rates | AL29: =AL$8 -> 2025/26 Rates | AM29: 2025/26 Rates | AN29: 2025/26 Rates | AO29: 2025/26 Rates | AP29: 2025/26 Rates | AQ29: 2025/26 Rates | AR29: 2025/26 Rates | AS29: 2025/26 Rates | AT29: 2025/26 Rates | AU29: 2025/26 Rates | AV29: 2025/26 Rates | AW29: 2025/26 Rates | AX29: 2025/26 Rates | AY29: 2025/26 Rates | AZ29: 2025/26 Rates | BA29: 2025/26 Rates | BB29: 2025/26 Rates | BC29: 2025/26 Rates | BD29: 2025/26 Rates | BE29: 2025/26 Rates | BF29: 2025/26 Rates | BG29: 2025/26 Rates | BH29: 2025/26 Rates | BI29: 2025/26 Rates | BJ29: 2025/26 Rates | BK29: 2025/26 Rates | BL29: 2025/26 Rates | BM29: 2025/26 Rates | BN29: 2025/26 Rates | BO29: 2025/26 Rates
C31: Ancillary service charge | D31: c/kWh | E31: =SUMIFS(F31:AI31,$F$7:$AI$7,$F$2) -> 0 | F31: =IFERROR(SPU_Annual_Total_Energy*'Rates Table'!F31,0)/100 -> 0 | G31: =IFERROR(SPU_Annual_Total_Energy*'Rates Table'!G31,0)/100 -> 0 | H31: =IFERROR(SPU_Annual_Total_Energy*'Rates Table'!H31,0)/100 -> 0 | I31: =IFERROR(SPU_Annual_Total_Energy*'Rates Table'!I31,0)/100 -> 0 | J31: =IFERROR(SPU_Annual_Total_Energy*'Rates Table'!J31,0)/100 -> 0 | K31: =IFERROR(SPU_Annual_Total_Energy*'Rates Table'!K31,0)/100 -> 0 | L31: =IFERROR(SPU_Annual_Total_Energy*'Rates Table'!L31,0)/100 -> 0 | M31: =IFERROR(SPU_Annual_Total_Energy*'Rates Table'!M31,0)/100 -> 0 | N31: =IFERROR(SPU_Annual_Total_Energy*'Rates Table'!N31,0)/100 -> 0 | O31: =IFERROR(SPU_Annual_Total_Energy*'Rates Table'!O31,0)/100 -> 0 | P31: =IFERROR(SPU_Annual_Total_Energy*'Rates Table'!P31,0)/100 -> 0 | Q31: =IFERROR(SPU_Annual_Total_Energy*'Rates Table'!Q31,0)/100 -> 0 | R31: =IFERROR(SPU_Annual_Total_Energy*'Rates Table'!R31,0)/100 -> 0 | S31: =IFERROR(SPU_Annual_Total_Energy*'Rates Table'!S31,0)/100 -> 0 | T31: =IFERROR(SPU_Annual_Total_Energy*'Rates Table'!T31,0)/100 -> 0 | U31: =IFERROR(SPU_Annual_Total_Energy*'Rates Table'!U31,0)/100 -> 0 | V31: =IFERROR(SPU_Annual_Total_Energy*'Rates Table'!V31,0)/100 -> 0 | W31: =IFERROR(SPU_Annual_Total_Energy*'Rates Table'!W31,0)/100 -> 0 | X31: =IFERROR(SPU_Annual_Total_Energy*'Rates Table'!X31,0)/100 -> 0 | Y31: =IFERROR(SPU_Annual_Total_Energy*'Rates Table'!Y31,0)/100 -> 0 | Z31: =IFERROR(SPU_Annual_Total_Energy*'Rates Table'!Z31,0)/100 -> 0 | AB31: =IFERROR(SPU_Annual_Total_Energy*'Rates Table'!AB31,0)/100 -> 0 | AC31: =IFERROR(SPU_Annual_Total_Energy*'Rates Table'!AC31,0)/100 -> 0 | AD31: =IFERROR(SPU_Annual_Total_Energy*'Rates Table'!AD31,0)/100 -> 0 | AE31: =IFERROR(SPU_Annual_Total_Energy*'Rates Table'!AF31,0)/100 -> 0 | AF31: =IFERROR(SPU_Annual_Total_Energy*'Rates Table'!AF31,0)/100 -> 0 | AG31: =IFERROR(SPU_Annual_Total_Energy*'Rates Table'!AG31,0)/100 -> 0 | AH31: =IFERROR(SPU_Annual_Total_Energy*'Rates Table'!AH31,0)/100 -> 0 | AI31: =IFERROR(SPU_Annual_Total_Energy*'Rates Table'!AI31,0)/100 -> 0 | AK31: =SUMIFS(AL31:BO31,$F$7:$AI$7,Selected_Tariff_ID) -> 0 | AL31: =IFERROR(SPU_Annual_Total_Energy*'Rates Table'!AL31,0)/100 -> 0 | AM31: =IFERROR(SPU_Annual_Total_Energy*'Rates Table'!AM31,0)/100 -> 0 | AN31: =IFERROR(SPU_Annual_Total_Energy*'Rates Table'!AN31,0)/100 -> 0 | AO31: =IFERROR(SPU_Annual_Total_Energy*'Rates Table'!AO31,0)/100 -> 0 | AP31: =IFERROR(SPU_Annual_Total_Energy*'Rates Table'!AP31,0)/100 -> 0 | AQ31: =IFERROR(SPU_Annual_Total_Energy*'Rates Table'!AQ31,0)/100 -> 0 | AR31: =IFERROR(SPU_Annual_Total_Energy*'Rates Table'!AR31,0)/100 -> 0 | AS31: =IFERROR(SPU_Annual_Total_Energy*'Rates Table'!AS31,0)/100 -> 0 | AT31: =IFERROR(SPU_Annual_Total_Energy*'Rates Table'!AT31,0)/100 -> 0 | AU31: =IFERROR(SPU_Annual_Total_Energy*'Rates Table'!AU31,0)/100 -> 0 | AV31: =IFERROR(SPU_Annual_Total_Energy*'Rates Table'!AV31,0)/100 -> 0 | AW31: =IFERROR(SPU_Annual_Total_Energy*'Rates Table'!AW31,0)/100 -> 0 | AX31: =IFERROR(SPU_Annual_Total_Energy*'Rates Table'!AX31,0)/100 -> 0 | AY31: =IFERROR(SPU_Annual_Total_Energy*'Rates Table'!AY31,0)/100 -> 0 | AZ31: =IFERROR(SPU_Annual_Total_Energy*'Rates Table'!AZ31,0)/100 -> 0 | BA31: =IFERROR(SPU_Annual_Total_Energy*'Rates Table'!BA31,0)/100 -> 0 | BB31: =IFERROR(SPU_Annual_Total_Energy*'Rates Table'!BB31,0)/100 -> 0 | BC31: =IFERROR(SPU_Annual_Total_Energy*'Rates Table'!BC31,0)/100 -> 0 | BD31: =IFERROR(SPU_Annual_Total_Energy*'Rates Table'!BD31,0)/100 -> 0 | BE31: =IFERROR(SPU_Annual_Total_Energy*'Rates Table'!BE31,0)/100 -> 0 | BF31: =IFERROR(SPU_Annual_Total_Energy*'Rates Table'!BF31,0)/100 -> 0 | BH31: =IFERROR(SPU_Annual_Total_Energy*'Rates Table'!BH31,0)/100 -> 0 | BI31: =IFERROR(SPU_Annual_Total_Energy*'Rates Table'!BI31,0)/100 -> 0 | BJ31: =IFERROR(SPU_Annual_Total_Energy*'Rates Table'!BJ31,0)/100 -> 0 | BK31: =IFERROR(SPU_Annual_Total_Energy*'Rates Table'!BK31,0)/100 -> 0 | BL31: =IFERROR(Homeflex_Total_Energy*'Rates Table'!BL31,0)/100 -> 0 | BM31: =IFERROR(Homeflex_Total_Energy*'Rates Table'!BM31,0)/100 -> 0 | BN31: =IFERROR(Homeflex_Total_Energy*'Rates Table'!BN31,0)/100 -> 0 | BO31: =IFERROR(Homeflex_Total_Energy*'Rates Table'!BO31,0)/100 -> 0
C32: Service charge | D32: =IF(Table_1=1,"R/day","R/day") -> R/day | E32: =SUMIFS(F32:AI32,$F$7:$AI$7,$F$2) -> 1116.595833 | F32: =IFERROR('Rates Table'!F32*PODs*ESKOM_Total_days,0) -> 1116.595833 | G32: =IFERROR('Rates Table'!G32*PODs*ESKOM_Total_days,0) -> 1116.595833 | H32: =IFERROR('Rates Table'!H32*PODs*ESKOM_Total_days,0) -> 1116.595833 | I32: =IFERROR('Rates Table'!I32*PODs*ESKOM_Total_days,0) -> 0 | J32: =IFERROR('Rates Table'!J32*PODs*ESKOM_Total_days,0) -> 0 | K32: =IFERROR('Rates Table'!K32*PODs*ESKOM_Total_days,0) -> 0 | L32: =IFERROR('Rates Table'!L32*PODs*ESKOM_Total_days,0) -> 0 | M32: =IFERROR('Rates Table'!M32*PODs*ESKOM_Total_days,0) -> 0 | N32: =IFERROR('Rates Table'!N32*PODs*ESKOM_Total_days,0) -> 0 | O32: =IFERROR('Rates Table'!O32*PODs*ESKOM_Total_days,0) -> 0 | P32: =IFERROR('Rates Table'!P32*PODs*ESKOM_Total_days,0) -> 0 | Q32: =IFERROR('Rates Table'!Q32*PODs*ESKOM_Total_days,0) -> 1406.770833 | R32: =IFERROR('Rates Table'!R32*PODs*ESKOM_Total_days,0) -> 1406.770833 | S32: =IFERROR('Rates Table'!S32*PODs*ESKOM_Total_days,0) -> 1406.770833 | T32: =IFERROR('Rates Table'!T32*PODs*ESKOM_Total_days,0) -> 0 | U32: =IFERROR('Rates Table'!U32*PODs*ESKOM_Total_days,0) -> 3016.725 | V32: =IFERROR('Rates Table'!V32*PODs*ESKOM_Total_days,0) -> 0 | W32: =IFERROR('Rates Table'!W32*PODs*ESKOM_Total_days,0) -> 0 | X32: =IFERROR('Rates Table'!X32*PODs*ESKOM_Total_days,0) -> 0 | Y32: =IFERROR('Rates Table'!Y32*PODs*ESKOM_Total_days,0) -> 0 | Z32: =IFERROR('Rates Table'!Z32*PODs*ESKOM_Total_days,0) -> 333.3666667 | AB32: =IFERROR('Rates Table'!AB32*PODs*ESKOM_Total_days,0) -> 0 | AC32: =IFERROR('Rates Table'!AC32*PODs*ESKOM_Total_days,0) -> 0 | AD32: =IFERROR('Rates Table'!AD32*PODs*ESKOM_Total_days,0) -> 0 | AE32: =IFERROR('Rates Table'!AF32*PODs*ESKOM_Total_days,0) -> 0 | AF32: =IFERROR('Rates Table'!AF32*PODs*ESKOM_Total_days,0) -> 0 | AG32: =IFERROR('Rates Table'!AG32*PODs*ESKOM_Total_days,0) -> 0 | AH32: =IFERROR('Rates Table'!AH32*PODs*ESKOM_Total_days,0) -> 0 | AI32: =IFERROR('Rates Table'!AI32*PODs*ESKOM_Total_days,0) -> 0 | AK32: =SUMIFS(AL32:BO32,$F$7:$AI$7,Selected_Tariff_ID) -> 447.125 | AL32: =IFERROR('Rates Table'!AL32*PODs*ESKOM_Total_days,0) -> 447.125 | AM32: =IFERROR('Rates Table'!AM32*PODs*ESKOM_Total_days,0) -> 447.125 | AN32: =IFERROR('Rates Table'!AN32*PODs*ESKOM_Total_days,0) -> 447.125 | AO32: =IFERROR('Rates Table'!AO32*PODs*ESKOM_Total_days,0) -> 0 | AP32: =IFERROR('Rates Table'!AP32*PODs*ESKOM_Total_days,0) -> 0 | AQ32: =IFERROR('Rates Table'!AQ32*PODs*ESKOM_Total_days,0) -> 0 | AR32: =IFERROR('Rates Table'!AR32*PODs*ESKOM_Total_days,0) -> 99.4625 | AS32: =IFERROR('Rates Table'!AS32*PODs*ESKOM_Total_days,0) -> 99.4625 | AT32: =IFERROR('Rates Table'!AT32*PODs*ESKOM_Total_days,0) -> 99.4625 | AU32: =IFERROR('Rates Table'!AU32*PODs*ESKOM_Total_days,0) -> 99.4625 | AV32: =IFERROR('Rates Table'!AV32*PODs*ESKOM_Total_days,0) -> 99.4625 | AW32: =IFERROR('Rates Table'!AW32*PODs*ESKOM_Total_days,0) -> 745.2083333 | AX32: =IFERROR('Rates Table'!AX32*PODs*ESKOM_Total_days,0) -> 745.2083333 | AY32: =IFERROR('Rates Table'!AY32*PODs*ESKOM_Total_days,0) -> 745.2083333 | AZ32: =IFERROR('Rates Table'!AZ32*PODs*ESKOM_Total_days,0) -> 0 | BA32: =IFERROR('Rates Table'!BA32*PODs*ESKOM_Total_days,0) -> 2646.25 | BB32: =IFERROR('Rates Table'!BB32*PODs*ESKOM_Total_days,0) -> 0 | BC32: =IFERROR('Rates Table'!BC32*PODs*ESKOM_Total_days,0) -> 0 | BD32: =IFERROR('Rates Table'!BD32*PODs*ESKOM_Total_days,0) -> 0 | BE32: =IFERROR('Rates Table'!BE32*PODs*ESKOM_Total_days,0) -> 0 | BF32: =IFERROR('Rates Table'!BF32*PODs*ESKOM_Total_days,0) -> 982.4583333 | BH32: =IFERROR('Rates Table'!BH32*PODs*ESKOM_Total_days,0) -> 0 | BI32: =IFERROR('Rates Table'!BI32*PODs*ESKOM_Total_days,0) -> 0 | BJ32: =IFERROR('Rates Table'!BJ32*PODs*ESKOM_Total_days,0) -> 0 | BK32: =IFERROR('Rates Table'!BK32*PODs*ESKOM_Total_days,0) -> 0 | BL32: =IFERROR('Rates Table'!BL32*PODs*ESKOM_Total_days,0) -> 99.4625 | BM32: =IFERROR('Rates Table'!BM32*PODs*ESKOM_Total_days,0) -> 99.4625 | BN32: =IFERROR('Rates Table'!BN32*PODs*ESKOM_Total_days,0) -> 99.4625 | BO32: =IFERROR('Rates Table'!BO32*PODs*ESKOM_Total_days,0) -> 99.4625
C33: Electrification and rural subsidy | D33: c/kWh | E33: =SUMIFS(F33:AI33,$F$7:$AI$7,$F$2) -> 0 | AK33: =SUMIFS(AL33:BO33,$F$7:$AI$7,Selected_Tariff_ID) -> 0 | AL33: =IFERROR(SPU_Annual_Total_Energy*'Rates Table'!AL33,0)/100 -> 0 | AM33: =IFERROR(SPU_Annual_Total_Energy*'Rates Table'!AM33,0)/100 -> 0 | AN33: =IFERROR(SPU_Annual_Total_Energy*'Rates Table'!AN33,0)/100 -> 0 | AO33: =IFERROR(SPU_Annual_Total_Energy*'Rates Table'!AO33,0)/100 -> 0 | AP33: =IFERROR(SPU_Annual_Total_Energy*'Rates Table'!AP33,0)/100 -> 0 | AQ33: =IFERROR(SPU_Annual_Total_Energy*'Rates Table'!AQ33,0)/100 -> 0 | AR33: =IFERROR(SPU_Annual_Total_Energy*'Rates Table'!AR33,0)/100 -> 0 | AS33: =IFERROR(SPU_Annual_Total_Energy*'Rates Table'!AS33,0)/100 -> 0 | AT33: =IFERROR(SPU_Annual_Total_Energy*'Rates Table'!AT33,0)/100 -> 0 | AU33: =IFERROR(SPU_Annual_Total_Energy*'Rates Table'!AU33,0)/100 -> 0 | AV33: =IFERROR(SPU_Annual_Total_Energy*'Rates Table'!AV33,0)/100 -> 0 | AW33: =IFERROR(SPU_Annual_Total_Energy*'Rates Table'!AW33,0)/100 -> 0 | AX33: =IFERROR(SPU_Annual_Total_Energy*'Rates Table'!AX33,0)/100 -> 0 | AY33: =IFERROR(SPU_Annual_Total_Energy*'Rates Table'!AY33,0)/100 -> 0 | AZ33: =IFERROR(SPU_Annual_Total_Energy*'Rates Table'!AZ33,0)/100 -> 0 | BA33: =IFERROR(SPU_Annual_Total_Energy*'Rates Table'!BA33,0)/100 -> 0 | BB33: =IFERROR(SPU_Annual_Total_Energy*'Rates Table'!BB33,0)/100 -> 0 | BC33: =IFERROR(SPU_Annual_Total_Energy*'Rates Table'!BC33,0)/100 -> 0 | BD33: =IFERROR(SPU_Annual_Total_Energy*'Rates Table'!BD33,0)/100 -> 0 | BE33: =IFERROR(SPU_Annual_Total_Energy*'Rates Table'!BE33,0)/100 -> 0 | BF33: =IFERROR(SPU_Annual_Total_Energy*'Rates Table'!BF33,0)/100 -> 0 | BH33: =IFERROR(SPU_Annual_Total_Energy*'Rates Table'!BH33,0)/100 -> 0 | BI33: =IFERROR(SPU_Annual_Total_Energy*'Rates Table'!BI33,0)/100 -> 0 | BJ33: =IFERROR(SPU_Annual_Total_Energy*'Rates Table'!BJ33,0)/100 -> 0 | BK33: =IFERROR(SPU_Annual_Total_Energy*'Rates Table'!BK33,0)/100 -> 0 | BL33: =IFERROR(Homeflex_Total_Energy*'Rates Table'!BL33,0)/100 -> 0 | BM33: =IFERROR(Homeflex_Total_Energy*'Rates Table'!BM33,0)/100 -> 0 | BN33: =IFERROR(Homeflex_Total_Energy*'Rates Table'!BN33,0)/100 -> 0 | BO33: =IFERROR(Homeflex_Total_Energy*'Rates Table'!BO33,0)/100 -> 0
B35: Total other charges | E35: =SUM(E30:E33) -> 1116.595833 | F35: =SUM(F30:F33) -> 1116.595833 | G35: 1116.595833 | H35: 1116.595833 | I35: 0 | J35: 0 | K35: 0 | L35: 0 | M35: 0 | N35: 0 | O35: 0 | P35: 0 | Q35: 1406.770833 | R35: 1406.770833 | S35: 1406.770833 | T35: 0 | U35: 3016.725 | V35: 0 | W35: 0 | X35: 0 | Y35: 0 | Z35: =SUM(Z30:Z33) -> 333.3666667 | AB35: =SUM(AB30:AB33) -> 0 | AC35: 0 | AD35: 0 | AE35: 0 | AF35: 0 | AG35: 0 | AH35: 0 | AI35: 0 | AK35: =SUM(AK30:AK33) -> 447.125 | AL35: =SUM(AL30:AL33) -> 447.125 | AM35: 447.125 | AN35: 447.125 | AO35: 0 | AP35: 0 | AQ35: 0 | AR35: 99.4625 | AS35: 99.4625 | AT35: 99.4625 | AU35: 99.4625 | AV35: 99.4625 | AW35: 745.2083333 | AX35: 745.2083333 | AY35: 745.2083333 | AZ35: 0 | BA35: 2646.25 | BB35: 0 | BC35: 0 | BD35: 0 | BE35: 0 | BF35: =SUM(BF30:BF33) -> 982.4583333 | BH35: =SUM(BH30:BH33) -> 0 | BI35: 0 | BJ35: 0 | BK35: =SUM(BK30:BK33) -> 0 | BL35: 99.4625 | BM35: 99.4625 | BN35: 99.4625 | BO35: 99.4625
B37: Total excl VAT | E37: =E35+E27+E14 -> 2408.391667 | F37: 2408.391667 | G37: 3293.516667 | H37: 4877.3125 | I37: 0 | J37: 0 | K37: 0 | L37: 319.9833333 | M37: 599.5125 | N37: 1237.654167 | O37: 195.5791667 | P37: 2029.4 | Q37: 3100.370833 | R37: 4010.133333 | S37: 5568.9875 | T37: 1348.675 | U37: 3016.725 | V37: 0 | W37: 0 | X37: 0 | Y37: 0 | Z37: =Z35+Z27+Z14 -> 333.3666667 | AB37: =AB35+AB27+AB14 -> 0 | AC37: 0 | AD37: 0 | AE37: 319.9833333 | AF37: 319.9833333 | AG37: 599.5125 | AH37: 1237.654167 | AI37: 195.5791667 | AK37: =AK35+AK27+AK14 -> 1065.8 | AL37: 1126.025 | AM37: 1455.741667 | AN37: 2964.104167 | AO37: 0 | AP37: 0 | AQ37: 0 | AR37: 490.3166667 | AS37: 961.4708333 | AT37: 1952.445833 | AU37: 367.7375 | AV37: 244.8541667 | AW37: 2719.554167 | AX37: 3858.658333 | AY37: 5788.9 | AZ37: 1450.875 | BA37: 2646.25 | BB37: 0 | BC37: 0 | BD37: 0 | BE37: 0 | BF37: =BF35+BF27+BF14 -> 982.4583333 | BH37: =BH35+BH27+BH14 -> 0 | BI37: 0 | BJ37: 0 | BK37: =BK35+BK27+BK14 -> 0 | BL37: 490.3166667 | BM37: 961.4708333 | BN37: 1952.445833 | BO37: 367.7375
B38: VAT | D38: ='Monthly Average Bill'!D51 -> 0.15 | E38: =E37*$D38 -> 361.25875 | F38: =F37*$D38 -> 361.25875 | G38: 494.0275 | H38: 731.596875 | I38: 0 | J38: 0 | K38: 0 | L38: 47.9975 | M38: 89.926875 | N38: 185.648125 | O38: 29.336875 | P38: 304.41 | Q38: 465.055625 | R38: 601.52 | S38: 835.348125 | T38: 202.30125 | U38: 452.50875 | V38: 0 | W38: 0 | X38: 0 | Y38: 0 | Z38: =Z37*$D38 -> 50.005 | AB38: =AB37*$D38 -> 0 | AC38: 0 | AD38: 0 | AE38: 47.9975 | AF38: 47.9975 | AG38: 89.926875 | AH38: 185.648125 | AI38: 29.336875 | AK38: =AK37*$D38 -> 159.87 | AL38: =AL37*$D38 -> 168.90375 | AM38: 218.36125 | AN38: 444.615625 | AO38: 0 | AP38: 0 | AQ38: 0 | AR38: 73.5475 | AS38: 144.220625 | AT38: 292.866875 | AU38: 55.160625 | AV38: 36.728125 | AW38: 407.933125 | AX38: 578.79875 | AY38: 868.335 | AZ38: 217.63125 | BA38: 396.9375 | BB38: 0 | BC38: 0 | BD38: 0 | BE38: 0 | BF38: =BF37*$D38 -> 147.36875 | BH38: =BH37*$D38 -> 0 | BI38: 0 | BJ38: 0 | BK38: =BK37*$D38 -> 0 | BL38: 73.5475 | BM38: 144.220625 | BN38: 292.866875 | BO38: 55.160625
B40: Total account | E40: =SUM(E37:E38) -> 2769.650417 | F40: =SUM(F37:F38) -> 2769.650417 | G40: 3787.544167 | H40: 5608.909375 | I40: 0 | J40: 0 | K40: 0 | L40: 367.9808333 | M40: 689.439375 | N40: 1423.302292 | O40: 224.9160417 | P40: 2333.81 | Q40: 3565.426458 | R40: 4611.653333 | S40: 6404.335625 | T40: 1550.97625 | U40: 3469.23375 | V40: 0 | W40: 0 | X40: 0 | Y40: 0 | Z40: =SUM(Z37:Z38) -> 383.3716667 | AA40: =SUM(AA37:AA38) -> 0 | AB40: =SUM(AB37:AB38) -> 0 | AC40: 0 | AD40: 0 | AE40: 367.9808333 | AF40: 367.9808333 | AG40: 689.439375 | AH40: 1423.302292 | AI40: 224.9160417 | AK40: =SUM(AK37:AK38) -> 1225.67 | AL40: =SUM(AL37:AL38) -> 1294.92875 | AM40: 1674.102917 | AN40: 3408.719792 | AO40: 0 | AP40: 0 | AQ40: 0 | AR40: 563.8641667 | AS40: 1105.691458 | AT40: 2245.312708 | AU40: 422.898125 | AV40: 281.5822917 | AW40: 3127.487292 | AX40: 4437.457083 | AY40: 6657.235 | AZ40: 1668.50625 | BA40: 3043.1875 | BB40: 0 | BC40: 0 | BD40: 0 | BE40: 0 | BF40: =SUM(BF37:BF38) -> 1129.827083 | BG40: =SUM(BG37:BG38) -> 0 | BH40: =SUM(BH37:BH38) -> 0 | BI40: 0 | BJ40: 0 | BK40: =SUM(BK37:BK38) -> 0 | BL40: 563.8641667 | BM40: 1105.691458 | BN40: 2245.312708 | BO40: 422.898125
B42: Average price c/kWh | E42: =SUMIFS(F42:AI42,$F$7:$AI$7,$F$2) ->  | F42: =F37/SPU_Annual_Total_Energy*100 ->  | H42: =H37/SPU_Annual_Total_Energy*100 ->  | Z42: =Z37/SPU_Annual_Total_Energy*100 ->  | AA42: =AA37/SPU_Annual_Total_Energy*100 ->  | AB42: =AB37/SPU_Annual_Total_Energy*100 ->  | AD42: =AD37/SPU_Annual_Total_Energy*100 ->  | AE42: =AE37/SPU_Annual_Total_Energy*100 ->  | AK42: =SUMIFS(AL42:BO42,$F$7:$AI$7,Selected_Tariff_ID) ->  | AL42: =AL37/SPU_Annual_Total_Energy*100 ->  | BF42: =BF37/SPU_Annual_Total_Energy*100 ->  | BG42: =BG37/SPU_Annual_Total_Energy*100 ->  | BH42: =BH37/SPU_Annual_Total_Energy*100 ->  | BK42: =BK37/SPU_Annual_Total_Energy*100 -> 
B44: Check tables
C45: Table 1: 1 = LPU, 0 = SPU | E45: =SUMIFS(F45:AI45,$F$7:$AI$7,$F$2) -> 0 | F45: ='Rates Table'!F44 -> 0 | G45: ='Rates Table'!G44 -> 0 | H45: ='Rates Table'!H44 -> 0 | I45: ='Rates Table'!I44 -> 0 | J45: ='Rates Table'!J44 -> 0 | K45: ='Rates Table'!K44 -> 0 | L45: ='Rates Table'!L44 -> 0 | M45: ='Rates Table'!M44 -> 0 | N45: ='Rates Table'!N44 -> 0 | O45: ='Rates Table'!O44 -> 0 | P45: ='Rates Table'!P44 -> 0 | Q45: ='Rates Table'!Q44 -> 0 | R45: ='Rates Table'!R44 -> 0 | S45: ='Rates Table'!S44 -> 0 | T45: ='Rates Table'!T44 -> 0 | U45: ='Rates Table'!U44 -> 0 | V45: ='Rates Table'!V44 -> 0 | W45: ='Rates Table'!W44 -> 0 | X45: ='Rates Table'!X44 -> 0 | Y45: ='Rates Table'!Y44 -> 0 | Z45: ='Rates Table'!Z44 -> 0 | AA45: ='Rates Table'!AA44 -> 0 | AB45: ='Rates Table'!AB44 -> 0 | AC45: ='Rates Table'!AC44 -> 0 | AD45: ='Rates Table'!AD44 -> 0 | AE45: ='Rates Table'!AF44 -> 0 | AF45: ='Rates Table'!AF44 -> 0 | AG45: ='Rates Table'!AG44 -> 0 | AH45: ='Rates Table'!AH44 -> 0 | AI45: ='Rates Table'!AI44 -> 0 | AK45: =SUMIFS(AL45:BO45,$F$7:$AI$7,Selected_Tariff_ID) -> 0 | AL45: =F45 -> 0 | AM45: 0 | AN45: 0 | AO45: 0 | AP45: 0 | AQ45: 0 | AR45: 0 | AS45: 0 | AT45: 0 | AU45: 0 | AV45: =P45 -> 0 | AW45: 0 | AX45: 0 | AY45: 0 | AZ45: 0 | BA45: 0 | BB45: 0 | BC45: 0 | BD45: 0 | BE45: 0 | BF45: =Z45 -> 0 | BG45: 0 | BH45: 0 | BI45: 0 | BJ45: 0 | BK45: 0 | BL45: =AF45 -> 0 | BM45: 0 | BN45: 0 | BO45: 0
C46: Tariff Type | E46: =Selected_Tariff_Type -> Urban | F46: =INDEX(Full_Tariff_Type,F$7,) -> Urban | G46: Urban | H46: Urban | I46: Urban | J46: Urban | K46: Urban | L46: Urban | M46: Urban | N46: Urban | O46: Urban | P46: Urban | Q46: Rural | R46: Rural | S46: Rural | T46: Rural | U46: Rural | V46: Rural | W46: Rural | X46: Urban | Y46: Urban | Z46: Urban | AA46: Urban | AB46: Urban | AC46: Urban | AD46: Urban | AE46: Urban | AF46: Urban | AG46: Urban | AH46: Urban | AI46: Urban | AK46: =Selected_Tariff_Type -> Urban | AL46: Urban | AM46: Urban | AN46: Urban | AO46: Urban | AP46: Urban | AQ46: Urban | AR46: Urban | AS46: Urban | AT46: Urban | AU46: Urban | AV46: Urban | AW46: Rural | AX46: Rural | AY46: Rural | AZ46: Rural | BA46: Rural | BB46: Rural | BC46: Rural | BD46: Urban | BE46: Urban | BF46: Urban | BG46: Urban | BH46: Urban | BI46: Urban | BJ46: Urban | BK46: Urban | BL46: Urban | BM46: Urban | BN46: Urban | BO46: Urban

Sheet Rates SPU - New (hidden)
C4: ="Small Power User | Tariff Inputs | "&New_Period -> Small Power User | Tariff Inputs | 2025/26
U5: Dx NAC
C6: Rates - All Other | I6: kWhHP | J6: kWhHS | K6: kWhHO | L6: kWhLP | M6: kWhLS | N6: kWhLO | O6: kWhRBlock1 | P6: kWhRBlock4 | Q6: kWhHP | R6: Reliab | S6: DxNDC Energy | T6: DxNDC Energy | U6: NAC POD | V6: SerS | X6: ERS | Y6: GCC | Z6: Legacy
C7: Tariff | D7: Tariff Category | E7: Type | F7: Column1 | G7: Code | H7: Matrix Code | I7: High - Peak | J7: High - Standard | K7: High-Off Peak | L7: Low - Peak | M7: Low - Standard | N7: Low-Off Peak | O7: Energy charge Block 1 [c/kWh] | P7: Energy charge Block 2 [c/kWh] | Q7: Energy charge [c/kWh] | R7: Ancillary service charge [c/kWh] | S7: Network demand charge [c/kWh] | T7: Network demand charge, Ancillary service charge and retail [c/kWh] | U7: Network capacity charge [R/POD/day] | V7: Service and administration charge [R/POD/day] | W7: Environmental levy charge [c/kWh] | X7: Electrification and rural subsidy [c/kWh] | Y7: Generation capacity charge [R/POD/day] | Z7: Legacy charge [c/kWh] | AC7: check
C8: Businessrate 1 | D8: Non-Local Authority | G8: =C8&"_"&D8 -> Businessrate 1_Non-Local Authority | H8: =INDEX(Matrix_Tariff_Map,MATCH(C8,Matrix_Model_Tariffs,0),2)&IFERROR(INDEX(Matrix_Transmission_Map,MATCH(E8,Matrix_Model_Transmission,0),2),0)&IFERROR(INDEX(Matrix_Voltage_Map,MATCH(F8,Matrix_Model_Voltage,0),2),1)&INDEX(Matrix_Category_Map,MATCH(D8,Matrix_Model_Category,0),2) -> B101N | I8: 0 | J8: 0 | K8: 0 | L8: 0 | M8: 0 | N8: 0 | O8: 0 | P8: 0 | Q8: 224.93 | R8: 0.41 | S8: 14.54 | U8: 20.34 | V8: 14.7 | W8: n/a | X8: 4.94 | Y8: 1.98 | Z8: 0
C9: Businessrate 2 | D9: Non-Local Authority | G9: =C9&"_"&D9 -> Businessrate 2_Non-Local Authority | H9: B201N | I9: 0 | J9: 0 | K9: 0 | L9: 0 | M9: 0 | N9: 0 | O9: 0 | P9: 0 | Q9: 224.93 | R9: 0.41 | S9: 14.54 | U9: 30.21 | V9: 14.7 | W9: n/a | X9: 4.94 | Y9: 2.95 | Z9: 0
C10: Businessrate 3 | D10: Non-Local Authority | G10: =C10&"_"&D10 -> Businessrate 3_Non-Local Authority | H10: B301N | I10: 0 | J10: 0 | K10: 0 | L10: 0 | M10: 0 | N10: 0 | O10: 0 | P10: 0 | Q10: 224.93 | R10: 0.41 | S10: 14.54 | U10: 75.38 | V10: 14.7 | W10: n/a | X10: 4.94 | Y10: 7.37 | Z10: 0
C11: Businessrate 4 | D11: Non-Local Authority | G11: =C11&"_"&D11 -> Businessrate 4_Non-Local Authority | H11: B401N | I11: 0 | J11: 0 | K11: 0 | L11: 0 | M11: 0 | N11: 0 | O11: 0 | P11: 0 | Q11: 350.09 | R11: 0.41 | S11: 14.54 | U11: 0 | V11: 0 | W11: n/a | X11: 4.94 | Y11: 0 | Z11: 0
C12: Homepower Bulk | D12: Non-Local Authority | G12: =C12&"_"&D12 -> Homepower Bulk_Non-Local Authority | H12: HB01N | I12: 0 | J12: 0 | K12: 0 | L12: 0 | M12: 0 | N12: 0 | O12: 0 | P12: 0 | Q12: 268.78 | R12: 0.41 | S12: 26.37 | U12: 0 | V12: 3.27 | W12: n/a | X12: 0 | Y12: 4.78 | Z12: 0
C13: Homepower 1 | D13: Non-Local Authority | G13: =C13&"_"&D13 -> Homepower 1_Non-Local Authority | H13: H101N | I13: 0 | J13: 0 | K13: 0 | L13: 0 | M13: 0 | N13: 0 | Q13: 268.78 | R13: 0.41 | S13: 26.37 | U13: 12.13 | V13: 3.27 | W13: n/a | X13: 0 | Y13: 0.72 | Z13: 0
C14: Homepower 2 | D14: Non-Local Authority | G14: Homepower 2_Non-Local Authority | H14: H201N | I14: 0 | J14: 0 | K14: 0 | L14: 0 | M14: 0 | N14: 0 | Q14: 268.78 | R14: 0.41 | S14: 26.37 | U14: 27.07 | V14: 3.27 | W14: n/a | X14: 0 | Y14: 1.27 | Z14: 0
C15: Homepower 3 | D15: Non-Local Authority | G15: Homepower 3_Non-Local Authority | H15: H301N | I15: 0 | J15: 0 | K15: 0 | L15: 0 | M15: 0 | N15: 0 | Q15: 268.78 | R15: 0.41 | S15: 26.37 | U15: 57.82 | V15: 3.27 | W15: n/a | X15: 0 | Y15: 3.1 | Z15: 0
C16: Homepower 4 | D16: Non-Local Authority | G16: Homepower 4_Non-Local Authority | H16: H401N | I16: 0 | J16: 0 | K16: 0 | L16: 0 | M16: 0 | N16: 0 | Q16: 268.78 | R16: 0.41 | S16: 26.37 | U16: 8.35 | V16: 3.27 | W16: n/a | X16: 0 | Y16: 0.47 | Z16: 0
C17: Homelight 20A | D17: Non-Local Authority | G17: Homelight 20A_Non-Local Authority | H17: HL2001N | I17: 0 | J17: 0 | K17: 0 | L17: 0 | M17: 0 | N17: 0 | Q17: 216.11 | R17: 0 | S17: 0 | U17: 0 | V17: 0 | W17: n/a | X17: 0 | Y17: 0 | Z17: 0
C18: Homelight 60A | D18: Non-Local Authority | G18: Homelight 60A_Non-Local Authority | H18: HL6001N | I18: 0 | J18: 0 | K18: 0 | L18: 0 | M18: 0 | N18: 0 | Q18: 274.72 | R18: 0 | S18: 0 | U18: 0 | V18: 0 | W18: n/a | X18: 0 | Y18: 0 | Z18: 0
C19: Landrate 1 | D19: Non-Local Authority | G19: Landrate 1_Non-Local Authority | H19: L101N | I19: 0 | J19: 0 | K19: 0 | L19: 0 | M19: 0 | N19: 0 | O19: 0 | P19: 0 | Q19: 224.93 | R19: 0.41 | S19: 61.66 | U19: 62.2 | V19: 24.5 | W19: n/a | X19: 0 | Y19: 2.71 | Z19: 0
C20: Landrate 2 | D20: Non-Local Authority | G20: Landrate 2_Non-Local Authority | H20: L201N | I20: 0 | J20: 0 | K20: 0 | L20: 0 | M20: 0 | N20: 0 | O20: 0 | P20: 0 | Q20: 224.93 | R20: 0.41 | S20: 61.66 | U20: 96.99 | V20: 24.5 | W20: n/a | X20: 0 | Y20: 5.37 | Z20: 0
C21: Landrate 3 | D21: Non-Local Authority | G21: Landrate 3_Non-Local Authority | H21: L301N | I21: 0 | J21: 0 | K21: 0 | L21: 0 | M21: 0 | N21: 0 | O21: 0 | P21: 0 | Q21: 224.93 | R21: 0.41 | S21: 61.66 | U21: 155.32 | V21: 24.5 | W21: n/a | X21: 0 | Y21: 10.5 | Z21: 0
C22: Landrate 4 | D22: Non-Local Authority | G22: Landrate 4_Non-Local Authority | H22: L401N | I22: 0 | J22: 0 | K22: 0 | L22: 0 | M22: 0 | N22: 0 | O22: 0 | P22: 0 | Q22: 369.32 | R22: 0.41 | S22: 61.66 | U22: 45.92 | V22: 0 | W22: n/a | X22: 0 | Y22: 1.78 | Z22: 0
C23: Landrate Dx | D23: Non-Local Authority | G23: Landrate Dx_Non-Local Authority | H23: Ld01N | I23: 0 | J23: 0 | K23: 0 | L23: 0 | M23: 0 | N23: 0 | O23: 0 | P23: 0 | Q23: 0 | R23: 0 | S23: 0 | U23: 0 | V23: 87 | W23: n/a | X23: 0 | Y23: 0 | Z23: 0
C24: Landlight 20A | D24: Non-Local Authority | G24: =C24&"_"&D24 -> Landlight 20A_Non-Local Authority | H24: =INDEX(Matrix_Tariff_Map,MATCH(C24,Matrix_Model_Tariffs,0),2)&IFERROR(INDEX(Matrix_Transmission_Map,MATCH(E24,Matrix_Model_Transmission,0),2),0)&IFERROR(INDEX(Matrix_Voltage_Map,MATCH(F24,Matrix_Model_Voltage,0),2),1)&INDEX(Matrix_Category_Map,MATCH(D24,Matrix_Model_Category,0),2) -> Lt2001N | I24: 0 | J24: 0 | K24: 0 | L24: 0 | M24: 0 | N24: 0 | O24: 0 | P24: 0 | Q24: 603.54 | R24: 0 | S24: 0 | U24: 0 | V24: 0 | W24: n/a | X24: 0 | Y24: 0 | Z24: 0
C25: Landlight 60A | D25: Non-Local Authority | G25: Landlight 60A_Non-Local Authority | H25: Lt6001N | I25: 0 | J25: 0 | K25: 0 | L25: 0 | M25: 0 | N25: 0 | O25: 0 | P25: 0 | Q25: 836 | R25: 0 | S25: 0 | U25: 0 | V25: 0 | W25: n/a | X25: 0 | Y25: 0 | Z25: 0
C26: Public Lighting All Night | D26: Non-Local Authority | G26: Public Lighting All Night_Non-Local Authority | H26: Pa01N | I26: 0 | J26: 0 | K26: 0 | L26: 0 | M26: 0 | N26: 0 | O26: 0 | P26: 0 | Q26: 242.11 | R26: 0 | S26: 0 | U26: 0 | V26: 0 | W26: n/a | X26: 0 | Y26: 0 | Z26: 0
C27: Public Lighting 24 Hours | D27: Non-Local Authority | G27: Public Lighting 24 Hours_Non-Local Authority | H27: Pu01N | I27: 0 | J27: 0 | K27: 0 | L27: 0 | M27: 0 | N27: 0 | O27: 0 | P27: 0 | Q27: 232.22 | R27: 0 | S27: 0 | U27: 0 | V27: 0 | W27: n/a | X27: 0 | Y27: 0 | Z27: 0
C28: Public Lighting Urban Fixed | D28: Non-Local Authority | G28: Public Lighting Urban Fixed_Non-Local Authority | H28: Pt01N | I28: 0 | J28: 0 | K28: 0 | L28: 0 | M28: 0 | N28: 0 | O28: 0 | P28: 0 | Q28: 0 | R28: 0 | S28: 0 | U28: 0 | V28: 32.3 | W28: n/a | X28: 0 | Y28: 0 | Z28: 0
C29: Homeflex 1 | D29: Non-Local Authority | G29: Homeflex 1_Non-Local Authority | H29: HF101N | I29: 706.97 | J29: 216.31 | K29: 159.26 | L29: 329.28 | M29: 204.9 | N29: 159.26 | O29: n/a | P29: n/a | Q29: n/a | R29: 0.41 | S29: 26.37 | T29: 0 | U29: 12.13 | V29: 3.27 | W29: n/a | X29: 0 | Y29: 0.72 | Z29: 22.78
C30: Homeflex 2 | D30: Non-Local Authority | G30: Homeflex 2_Non-Local Authority | H30: HF201N | I30: 706.97 | J30: 216.31 | K30: 159.26 | L30: 329.28 | M30: 204.9 | N30: 159.26 | O30: n/a | P30: n/a | Q30: n/a | R30: 0.41 | S30: 26.37 | T30: 0 | U30: 27.07 | V30: 3.27 | W30: n/a | X30: 0 | Y30: 1.27 | Z30: 22.78
C31: Homeflex 3 | D31: Non-Local Authority | G31: Homeflex 3_Non-Local Authority | H31: HF301N | I31: 706.97 | J31: 216.31 | K31: 159.26 | L31: 329.28 | M31: 204.9 | N31: 159.26 | O31: n/a | P31: n/a | Q31: n/a | R31: 0.41 | S31: 26.37 | T31: 0 | U31: 57.82 | V31: 3.27 | W31: n/a | X31: 0 | Y31: 3.1 | Z31: 22.78
C32: Homeflex 4 | D32: Non-Local Authority | G32: Homeflex 4_Non-Local Authority | H32: HF401N | I32: 706.97 | J32: 216.31 | K32: 159.26 | L32: 329.28 | M32: 204.9 | N32: 159.26 | O32: n/a | P32: n/a | Q32: n/a | R32: 0.41 | S32: 26.37 | T32: 0 | U32: 8.35 | V32: 3.27 | W32: n/a | X32: 0 | Y32: 0.47 | Z32: 22.78
C33: Municrate 1 | D33: Local Authority | G33: Municrate 1_Local Authority | H33: Mr101Y | I33: 0 | J33: 0 | K33: 0 | L33: 0 | M33: 0 | N33: 0 | O33: 0 | P33: 0 | Q33: 229.79 | R33: 0.41 | S33: 43.6 | U33: 34.06 | V33: 18.81 | W33: n/a | X33: n/a | Y33: 2.17 | Z33: n/a
C34: Municrate 2 | D34: Local Authority | G34: Municrate 2_Local Authority | H34: Mr201Y | I34: 0 | J34: 0 | K34: 0 | L34: 0 | M34: 0 | N34: 0 | O34: 0 | P34: 0 | Q34: 229.79 | R34: 0.41 | S34: 43.6 | U34: 69.01 | V34: 18.81 | W34: n/a | X34: n/a | Y34: 4.01 | Z34: n/a
C35: Municrate 3 | D35: Local Authority | G35: Municrate 3_Local Authority | H35: Mr301Y | I35: 0 | J35: 0 | K35: 0 | L35: 0 | M35: 0 | N35: 0 | O35: 0 | P35: 0 | Q35: 229.79 | R35: 0.41 | S35: 43.6 | U35: 138.21 | V35: 18.81 | W35: n/a | X35: n/a | Y35: 8.46 | Z35: n/a
C36: Municrate 4 | D36: Local Authority | G36: Municrate 4_Local Authority | H36: Mr401Y | I36: 0 | J36: 0 | K36: 0 | L36: 0 | M36: 0 | N36: 0 | O36: 0 | P36: 0 | Q36: 349.28 | R36: 0.41 | S36: 43.6 | U36: 0 | V36: 0 | W36: n/a | X36: n/a | Y36: 0 | Z36: n/a
C37: Homepower Bulk | D37: Local Authority | G37: Homepower Bulk_Local Authority | H37: HB01Y | I37: 0 | J37: 0 | K37: 0 | L37: 0 | M37: 0 | N37: 0 | O37: 0 | P37: 0 | Q37: 229.79 | R37: 0.41 | S37: 43.6 | U37: 138.21 | V37: 18.81 | W37: n/a | X37: n/a | Y37: n/a | Z37: n/a
C38: =C13 -> Homepower 1 | D38: Local Authority | G38: =C38&"_"&D38 -> Homepower 1_Local Authority | H38: Mr101Y | I38: 0 | J38: 0 | K38: 0 | L38: 0 | M38: 0 | N38: 0 | O38: 0 | P38: 0 | Q38: 229.79 | R38: 0.41 | S38: 43.6 | U38: 34.06 | V38: 18.81 | W38: n/a | X38: n/a | Y38: n/a | Z38: n/a
C39: Homepower 2 | D39: Local Authority | G39: Homepower 2_Local Authority | H39: Mr201Y | I39: 0 | J39: 0 | K39: 0 | L39: 0 | M39: 0 | N39: 0 | O39: 0 | P39: 0 | Q39: 229.79 | R39: 0.41 | S39: 43.6 | U39: 69.01 | V39: 18.81 | W39: n/a | X39: n/a | Y39: n/a | Z39: n/a
C40: Homepower 3 | D40: Local Authority | G40: Homepower 3_Local Authority | H40: Mr301Y | I40: 0 | J40: 0 | K40: 0 | L40: 0 | M40: 0 | N40: 0 | O40: 0 | P40: 0 | Q40: 229.79 | R40: 0.41 | S40: 43.6 | U40: 138.21 | V40: 18.81 | W40: n/a | X40: n/a | Y40: n/a | Z40: n/a
C41: Homepower 4 | D41: Local Authority | G41: Homepower 4_Local Authority | H41: Mr401Y | I41: 0 | J41: 0 | K41: 0 | L41: 0 | M41: 0 | N41: 0 | O41: 0 | P41: 0 | Q41: 349.28 | R41: 0.41 | S41: 43.6 | U41: 0 | V41: 0 | W41: n/a | X41: n/a | Y41: n/a | Z41: n/a
C42: Homelight 20A | D42: Local Authority | G42: Homelight 20A_Local Authority | H42: HL2001Y | I42: 0 | J42: 0 | K42: 0 | L42: 0 | M42: 0 | N42: 0 | O42: 0 | P42: 0 | Q42: 349.28 | R42: 0.41 | S42: 43.6 | U42: 0 | V42: 0 | W42: n/a | X42: n/a | Y42: n/a | Z42: n/a
C43: Homelight 60A | D43: Local Authority | G43: Homelight 60A_Local Authority | H43: HL6001Y | I43: 0 | J43: 0 | K43: 0 | L43: 0 | M43: 0 | N43: 0 | O43: 0 | P43: 0 | Q43: 349.28 | R43: 0.41 | S43: 43.6 | U43: 0 | V43: 0 | W43: n/a | X43: n/a | Y43: n/a | Z43: n/a
C44: Landrate 1 | D44: Local Authority | G44: Landrate 1_Local Authority | H44: Mr101Y | I44: 0 | J44: 0 | K44: 0 | L44: 0 | M44: 0 | N44: 0 | O44: 0 | P44: 0 | Q44: 229.79 | R44: 0.41 | S44: 43.6 | U44: 34.06 | V44: 18.81 | W44: n/a | X44: n/a | Y44: n/a | Z44: n/a
C45: Landrate 2 | D45: Local Authority | G45: Landrate 2_Local Authority | H45: Mr201Y | I45: 0 | J45: 0 | K45: 0 | L45: 0 | M45: 0 | N45: 0 | O45: 0 | P45: 0 | Q45: 229.79 | R45: 0.41 | S45: 43.6 | U45: 69.01 | V45: 18.81 | W45: n/a | X45: n/a | Y45: n/a | Z45: n/a
C46: Landrate 3 | D46: Local Authority | G46: Landrate 3_Local Authority | H46: Mr301Y | I46: 0 | J46: 0 | K46: 0 | L46: 0 | M46: 0 | N46: 0 | O46: 0 | P46: 0 | Q46: 229.79 | R46: 0.41 | S46: 43.6 | U46: 138.21 | V46: 18.81 | W46: n/a | X46: n/a | Y46: n/a | Z46: n/a
C47: Landrate 4 | D47: Local Authority | G47: Landrate 4_Local Authority | H47: Mr401Y | I47: 0 | J47: 0 | K47: 0 | L47: 0 | M47: 0 | N47: 0 | O47: 0 | P47: 0 | Q47: 349.28 | R47: 0.41 | S47: 43.6 | U47: 0 | V47: 0 | W47: n/a | X47: n/a | Y47: n/a | Z47: n/a
C48: Landrate Dx | D48: Local Authority | G48: =C48&"_"&D48 -> Landrate Dx_Local Authority | H48: Ld01Y | I48: 0 | J48: 0 | K48: 0 | L48: 0 | M48: 0 | N48: 0 | O48: 0 | P48: 0 | Q48: 0 | R48: 0 | S48: 0 | U48: 0 | V48: 31.54468223 | W48: n/a | X48: n/a | Y48: n/a | Z48: n/a
C49: Public Lighting All Night | D49: Local Authority | G49: =C49&"_"&D49 -> Public Lighting All Night_Local Authority | H49: =INDEX(Matrix_Tariff_Map,MATCH(C49,Matrix_Model_Tariffs,0),2)&IFERROR(INDEX(Matrix_Transmission_Map,MATCH(E49,Matrix_Model_Transmission,0),2),0)&IFERROR(INDEX(Matrix_Voltage_Map,MATCH(F49,Matrix_Model_Voltage,0),2),1)&INDEX(Matrix_Category_Map,MATCH(D49,Matrix_Model_Category,0),2) -> Pa01Y | I49: 0 | J49: 0 | K49: 0 | L49: 0 | M49: 0 | N49: 0 | O49: 0 | P49: 0 | Q49: 257.35 | R49: 0 | S49: 0 | U49: 0 | V49: 0 | W49: n/a | X49: n/a | Y49: n/a | Z49: n/a
C50: Public Lighting 24 Hours | D50: Local Authority | G50: =C50&"_"&D50 -> Public Lighting 24 Hours_Local Authority | H50: =INDEX(Matrix_Tariff_Map,MATCH(C50,Matrix_Model_Tariffs,0),2)&IFERROR(INDEX(Matrix_Transmission_Map,MATCH(E50,Matrix_Model_Transmission,0),2),0)&IFERROR(INDEX(Matrix_Voltage_Map,MATCH(F50,Matrix_Model_Voltage,0),2),1)&INDEX(Matrix_Category_Map,MATCH(D50,Matrix_Model_Category,0),2) -> Pu01Y | I50: 0 | J50: 0 | K50: 0 | L50: 0 | M50: 0 | N50: 0 | O50: 0 | P50: 0 | Q50: 227.81 | R50: 0 | S50: 0 | U50: 0 | V50: 0 | W50: n/a | X50: n/a | Y50: n/a | Z50: n/a
C51: Public Lighting Urban Fixed | D51: Local Authority | G51: =C51&"_"&D51 -> Public Lighting Urban Fixed_Local Authority | H51: =INDEX(Matrix_Tariff_Map,MATCH(C51,Matrix_Model_Tariffs,0),2)&IFERROR(INDEX(Matrix_Transmission_Map,MATCH(E51,Matrix_Model_Transmission,0),2),0)&IFERROR(INDEX(Matrix_Voltage_Map,MATCH(F51,Matrix_Model_Voltage,0),2),1)&INDEX(Matrix_Category_Map,MATCH(D51,Matrix_Model_Category,0),2) -> Pt01Y | I51: 0 | J51: 0 | K51: 0 | L51: 0 | M51: 0 | N51: 0 | O51: 0 | P51: 0 | Q51: 0 | R51: 0 | S51: 0 | U51: 0 | V51: 31.54468223 | W51: n/a | X51: n/a | Y51: n/a | Z51: n/a

Sheet Rates SPU - Current (hidden)
C4: ="Small Power User | Tariff Inputs | "&Current_Period -> Small Power User | Tariff Inputs | 2024/25
U5: Dx NAC
C6: Rates - All Other | I6: kWhHP | J6: kWhHS | K6: kWhHO | L6: kWhLP | M6: kWhLS | N6: kWhLO | O6: kWhRBlock1 | P6: kWhRBlock4 | Q6: kWhHP | R6: Reliab | S6: DxNDC Energy | T6: DxNDC Energy | U6: NAC POD | V6: SerS
C7: Tariff | D7: Tariff Category | E7: Type | F7: Column1 | G7: Code | H7: Matrix Code | I7: High - Peak | J7: High - Standard | K7: High-Off Peak | L7: Low - Peak | M7: Low - Standard | N7: Low-Off Peak | O7: Energy charge Block 1 [c/kWh] | P7: Energy charge Block 2 [c/kWh] | Q7: Energy charge [c/kWh] | R7: Ancillary service charge [c/kWh] | S7: Network demand charge [c/kWh] | T7: Network demand charge, Ancillary service charge and retail [c/kWh] | U7: Network capacity charge [R/POD/day] | V7: Service and administration charge [R/POD/day] | W7: Environmental levy charge [c/kWh]
C8: Businessrate 1 | D8: Non-Local Authority | G8: =C8&"_"&D8 -> Businessrate 1_Non-Local Authority | H8: =INDEX(Matrix_Tariff_Map,MATCH(C8,Matrix_Model_Tariffs,0),2)&IFERROR(INDEX(Matrix_Transmission_Map,MATCH(E8,Matrix_Model_Transmission,0),2),0)&IFERROR(INDEX(Matrix_Voltage_Map,MATCH(F8,Matrix_Model_Voltage,0),2),1)&INDEX(Matrix_Category_Map,MATCH(D8,Matrix_Model_Category,0),2) -> B101N | I8: 0 | J8: 0 | K8: 0 | L8: 0 | M8: 0 | N8: 0 | O8: 0 | P8: 0 | Q8: 209.5 | R8: 0.8 | S8: 29.57 | U8: 42.47 | V8: 36.71 | W8: n/a
C9: Businessrate 2 | D9: Non-Local Authority | G9: =C9&"_"&D9 -> Businessrate 2_Non-Local Authority | H9: B201N | I9: 0 | J9: 0 | K9: 0 | L9: 0 | M9: 0 | N9: 0 | O9: 0 | P9: 0 | Q9: 209.5 | R9: 0.8 | S9: 29.57 | U9: 71.57 | V9: 36.71 | W9: n/a
C10: Businessrate 3 | D10: Non-Local Authority | G10: =C10&"_"&D10 -> Businessrate 3_Non-Local Authority | H10: B301N | I10: 0 | J10: 0 | K10: 0 | L10: 0 | M10: 0 | N10: 0 | O10: 0 | P10: 0 | Q10: 209.5 | R10: 0.8 | S10: 29.57 | U10: 123.64 | V10: 36.71 | W10: n/a
C11: Businessrate 4 | D11: Non-Local Authority | G11: =C11&"_"&D11 -> Businessrate 4_Non-Local Authority | H11: B401N | I11: 0 | J11: 0 | K11: 0 | L11: 0 | M11: 0 | N11: 0 | O11: 0 | P11: 0 | Q11: 563.81 | R11: 0.8 | S11: 29.57 | U11: 0 | V11: 0 | W11: n/a
C12: Homepower Bulk | D12: Non-Local Authority | G12: =C12&"_"&D12 -> Homepower Bulk_Non-Local Authority | H12: HB01N | I12: 0 | J12: 0 | K12: 0 | L12: 0 | M12: 0 | N12: 0 | O12: 0 | P12: 0 | Q12: 322.39 | R12: 0 | S12: 0 | U12: 66.72 | V12: 0 | W12: n/a
C13: Homepower 1 | D13: Non-Local Authority | G13: =C13&"_"&D13 -> Homepower 1_Non-Local Authority | H13: H101N | I13: 0 | J13: 0 | K13: 0 | L13: 0 | M13: 0 | N13: 0 | O13: 245.54 | P13: 387.72 | Q13: 0 | R13: 0 | S13: 0 | U13: 10.52 | V13: 0 | W13: n/a
C14: Homepower 2 | D14: Non-Local Authority | G14: Homepower 2_Non-Local Authority | H14: H201N | I14: 0 | J14: 0 | K14: 0 | L14: 0 | M14: 0 | N14: 0 | O14: 245.54 | P14: 378.05 | Q14: 0 | R14: 0 | S14: 0 | U14: 19.71 | V14: 0 | W14: n/a
C15: Homepower 3 | D15: Non-Local Authority | G15: Homepower 3_Non-Local Authority | H15: H301N | I15: 0 | J15: 0 | K15: 0 | L15: 0 | M15: 0 | N15: 0 | O15: 245.54 | P15: 378.05 | Q15: 0 | R15: 0 | S15: 0 | U15: 40.69 | V15: 0 | W15: n/a
C16: Homepower 4 | D16: Non-Local Authority | G16: Homepower 4_Non-Local Authority | H16: H401N | I16: 0 | J16: 0 | K16: 0 | L16: 0 | M16: 0 | N16: 0 | O16: 245.54 | P16: 394.86 | Q16: 0 | R16: 0 | S16: 0 | U16: 6.43 | V16: 0 | W16: n/a
C17: Homelight 20A | D17: Non-Local Authority | G17: Homelight 20A_Non-Local Authority | H17: HL2001N | I17: 0 | J17: 0 | K17: 0 | L17: 0 | M17: 0 | N17: 0 | O17: 190.28 | P17: 215.62 | Q17: 0 | R17: 0 | S17: 0 | U17: 0 | V17: 0 | W17: n/a
C18: Homelight 60A | D18: Non-Local Authority | G18: Homelight 60A_Non-Local Authority | H18: HL6001N | I18: 0 | J18: 0 | K18: 0 | L18: 0 | M18: 0 | N18: 0 | O18: 232.31 | P18: 394.86 | Q18: 0 | R18: 0 | S18: 0 | U18: 0 | V18: 0 | W18: n/a
C19: Landrate 1 | D19: Non-Local Authority | G19: Landrate 1_Non-Local Authority | H19: L101N | I19: 0 | J19: 0 | K19: 0 | L19: 0 | M19: 0 | N19: 0 | O19: 0 | P19: 0 | Q19: 208.48 | R19: 0.8 | S19: 52.09 | U19: 55.68 | V19: 46.25 | W19: n/a
C20: Landrate 2 | D20: Non-Local Authority | G20: Landrate 2_Non-Local Authority | H20: L201N | I20: 0 | J20: 0 | K20: 0 | L20: 0 | M20: 0 | N20: 0 | O20: 0 | P20: 0 | Q20: 208.48 | R20: 0.8 | S20: 52.09 | U20: 85.59 | V20: 46.25 | W20: n/a
C21: Landrate 3 | D21: Non-Local Authority | G21: Landrate 3_Non-Local Authority | H21: L301N | I21: 0 | J21: 0 | K21: 0 | L21: 0 | M21: 0 | N21: 0 | O21: 0 | P21: 0 | Q21: 208.48 | R21: 0.8 | S21: 52.09 | U21: 136.84 | V21: 46.25 | W21: n/a
C22: Landrate 4 | D22: Non-Local Authority | G22: Landrate 4_Non-Local Authority | H22: L401N | I22: 0 | J22: 0 | K22: 0 | L22: 0 | M22: 0 | N22: 0 | O22: 0 | P22: 0 | Q22: 450.29 | R22: 0.8 | S22: 52.09 | U22: 44.34 | V22: 0 | W22: n/a
C23: Landrate Dx | D23: Non-Local Authority | G23: Landrate Dx_Non-Local Authority | H23: Ld01N | I23: 0 | J23: 0 | K23: 0 | L23: 0 | M23: 0 | N23: 0 | O23: 0 | P23: 0 | Q23: 0 | R23: 0 | S23: 0 | U23: 0 | V23: 99.18 | W23: n/a
C24: Landlight 20A | D24: Non-Local Authority | G24: =C24&"_"&D24 -> Landlight 20A_Non-Local Authority | H24: Lt2001N | I24: 0 | J24: 0 | K24: 0 | L24: 0 | M24: 0 | N24: 0 | O24: 0 | P24: 0 | Q24: 599.48 | R24: 0 | S24: 0 | U24: 0 | V24: 0 | W24: n/a
C25: Landlight 60A | D25: Non-Local Authority | G25: Landlight 60A_Non-Local Authority | H25: =INDEX(Matrix_Tariff_Map,MATCH(C25,Matrix_Model_Tariffs,0),2)&IFERROR(INDEX(Matrix_Transmission_Map,MATCH(E25,Matrix_Model_Transmission,0),2),0)&IFERROR(INDEX(Matrix_Voltage_Map,MATCH(F25,Matrix_Model_Voltage,0),2),1)&INDEX(Matrix_Category_Map,MATCH(D25,Matrix_Model_Category,0),2) -> Lt6001N | I25: 0 | J25: 0 | K25: 0 | L25: 0 | M25: 0 | N25: 0 | O25: 0 | P25: 0 | Q25: 772.81 | R25: 0 | S25: 0 | U25: 0 | V25: 0 | W25: n/a
C26: Public Lighting All Night | D26: Non-Local Authority | G26: Public Lighting All Night_Non-Local Authority | H26: Pa01N | I26: 0 | J26: 0 | K26: 0 | L26: 0 | M26: 0 | N26: 0 | O26: 0 | P26: 0 | Q26: 166.73 | R26: 0 | S26: 0 | U26: 0 | V26: 0 | W26: n/a
C27: Public Lighting 24 Hours | D27: Non-Local Authority | G27: Public Lighting 24 Hours_Non-Local Authority | H27: Pu01N | I27: 0 | J27: 0 | K27: 0 | L27: 0 | M27: 0 | N27: 0 | O27: 0 | P27: 0 | Q27: 223.24 | R27: 0 | S27: 0 | U27: 0 | V27: 0 | W27: n/a
C28: Public Lighting Urban Fixed | D28: Non-Local Authority | G28: Public Lighting Urban Fixed_Non-Local Authority | H28: Pt01N | I28: 0 | J28: 0 | K28: 0 | L28: 0 | M28: 0 | N28: 0 | O28: 0 | P28: 0 | Q28: 0 | R28: 0 | S28: 0 | U28: 0 | V28: 10.96 | W28: n/a
C29: Homeflex 1 | D29: Non-Local Authority | G29: Homeflex 1_Non-Local Authority | H29: HF101N | I29: 611.94 | J29: 186.18 | K29: 101.66 | L29: 200.38 | M29: 138.26 | N29: 88.15 | O29: 0 | P29: 0 | Q29: 0 | R29: 0 | T29: 126.39 | U29: 10.52 | W29: n/a
C30: Homeflex 2 | D30: Non-Local Authority | G30: Homeflex 2_Non-Local Authority | H30: HF201N | I30: 611.94 | J30: 186.18 | K30: 101.66 | L30: 200.38 | M30: 138.26 | N30: 88.15 | O30: 0 | P30: 0 | Q30: 0 | R30: 0 | T30: 126.39 | U30: 19.71 | W30: n/a
C31: Homeflex 3 | D31: Non-Local Authority | G31: Homeflex 3_Non-Local Authority | H31: HF301N | I31: 611.94 | J31: 186.18 | K31: 101.66 | L31: 200.38 | M31: 138.26 | N31: 88.15 | O31: 0 | P31: 0 | Q31: 0 | R31: 0 | T31: 126.39 | U31: 40.69 | W31: n/a
C32: Homeflex 4 | D32: Non-Local Authority | G32: Homeflex 4_Non-Local Authority | H32: HF401N | I32: 611.94 | J32: 186.18 | K32: 101.66 | L32: 200.38 | M32: 138.26 | N32: 88.15 | O32: 0 | P32: 0 | Q32: 0 | R32: 0 | T32: 126.39 | U32: 6.43 | W32: n/a
C33: =C8 -> Businessrate 1 | D33: Local Authority | G33: Businessrate 1_Local Authority | H33: B101Y | I33: 0 | J33: 0 | K33: 0 | L33: 0 | M33: 0 | N33: 0 | O33: 0 | P33: 0 | Q33: 217.08 | R33: 0.82 | S33: 30.1 | U33: 43.14 | V33: 36.94 | W33: n/a
C34: Businessrate 2 | D34: Local Authority | G34: Businessrate 2_Local Authority | H34: B201Y | I34: 0 | J34: 0 | K34: 0 | L34: 0 | M34: 0 | N34: 0 | O34: 0 | P34: 0 | Q34: 217.08 | R34: 0.82 | S34: 30.1 | U34: 72.76 | V34: 36.94 | W34: n/a
C35: Businessrate 3 | D35: Local Authority | G35: Businessrate 3_Local Authority | H35: B301Y | I35: 0 | J35: 0 | K35: 0 | L35: 0 | M35: 0 | N35: 0 | O35: 0 | P35: 0 | Q35: 217.08 | R35: 0.82 | S35: 30.1 | U35: 125.73 | V35: 36.94 | W35: n/a
C36: Businessrate 4 | D36: Local Authority | G36: Businessrate 4_Local Authority | H36: B401Y | I36: 0 | J36: 0 | K36: 0 | L36: 0 | M36: 0 | N36: 0 | O36: 0 | P36: 0 | Q36: 584.17 | R36: 0.82 | S36: 30.1 | U36: 0 | V36: 0 | W36: n/a
C37: Homepower Bulk | D37: Local Authority | G37: Homepower Bulk_Local Authority | H37: HB01Y | I37: 0 | J37: 0 | K37: 0 | L37: 0 | M37: 0 | N37: 0 | O37: 0 | P37: 0 | Q37: 0 | R37: 0 | S37: 0 | U37: 0 | V37: 0 | W37: n/a
C38: Homepower 1 | D38: Local Authority | G38: =C38&"_"&D38 -> Homepower 1_Local Authority | H38: H101Y | I38: 0 | J38: 0 | K38: 0 | L38: 0 | M38: 0 | N38: 0 | O38: 248.51 | P38: 392.39 | Q38: 0 | R38: 0 | S38: 0 | U38: 10.63 | V38: 0 | W38: n/a
C39: Homepower 2 | D39: Local Authority | G39: Homepower 2_Local Authority | H39: H201Y | I39: 0 | J39: 0 | K39: 0 | L39: 0 | M39: 0 | N39: 0 | O39: 248.51 | P39: 382.55 | Q39: 0 | R39: 0 | S39: 0 | U39: 19.94 | V39: 0 | W39: n/a
C40: Homepower 3 | D40: Local Authority | G40: Homepower 3_Local Authority | H40: H301Y | I40: 0 | J40: 0 | K40: 0 | L40: 0 | M40: 0 | N40: 0 | O40: 248.51 | P40: 382.55 | Q40: 0 | R40: 0 | S40: 0 | U40: 41.2 | V40: 0 | W40: n/a
C41: Homepower 4 | D41: Local Authority | G41: Homepower 4_Local Authority | H41: H401Y | I41: 0 | J41: 0 | K41: 0 | L41: 0 | M41: 0 | N41: 0 | O41: 248.51 | P41: 399.61 | Q41: 0 | R41: 0 | S41: 0 | U41: 6.52 | V41: 0 | W41: n/a
C42: Homelight 20A | D42: Local Authority | G42: Homelight 20A_Local Authority | H42: HL2001Y | I42: 0 | J42: 0 | K42: 0 | L42: 0 | M42: 0 | N42: 0 | O42: 0 | P42: 0 | Q42: 0 | R42: 0 | S42: 0 | U42: 0 | V42: 0 | W42: n/a
C43: Homelight 60A | D43: Local Authority | G43: Homelight 60A_Local Authority | H43: HL6001Y | I43: 0 | J43: 0 | K43: 0 | L43: 0 | M43: 0 | N43: 0 | O43: 0 | P43: 0 | Q43: 0 | R43: 0 | S43: 0 | U43: 0 | V43: 0 | W43: n/a
C44: Landrate 1 | D44: Local Authority | G44: Landrate 1_Local Authority | H44: L101Y | I44: 0 | J44: 0 | K44: 0 | L44: 0 | M44: 0 | N44: 0 | O44: 0 | P44: 0 | Q44: 216.01 | R44: 0.82 | S44: 53.25 | U44: 56.87 | V44: 46.54 | W44: n/a
C45: Landrate 2 | D45: Local Authority | G45: Landrate 2_Local Authority | H45: L201Y | I45: 0 | J45: 0 | K45: 0 | L45: 0 | M45: 0 | N45: 0 | O45: 0 | P45: 0 | Q45: 216.01 | R45: 0.82 | S45: 53.25 | U45: 87.4 | V45: 46.54 | W45: n/a
C46: Landrate 3 | D46: Local Authority | G46: Landrate 3_Local Authority | H46: L301Y | I46: 0 | J46: 0 | K46: 0 | L46: 0 | M46: 0 | N46: 0 | O46: 0 | P46: 0 | Q46: 216.01 | R46: 0.82 | S46: 53.25 | U46: 139.77 | V46: 46.54 | W46: n/a
C47: Landrate 4 | D47: Local Authority | G47: Landrate 4_Local Authority | H47: L401Y | I47: 0 | J47: 0 | K47: 0 | L47: 0 | M47: 0 | N47: 0 | O47: 0 | P47: 0 | Q47: 466.55 | R47: 0.82 | S47: 53.25 | U47: 45.29 | V47: 0 | W47: n/a
C48: Landrate Dx | D48: Local Authority | G48: =C48&"_"&D48 -> Landrate Dx_Local Authority | H48: Ld01Y | I48: 0 | J48: 0 | K48: 0 | L48: 0 | M48: 0 | N48: 0 | O48: 0 | P48: 0 | Q48: 0 | R48: 0 | S48: 0 | U48: 0 | V48: 100.71 | W48: n/a
C49: Public Lighting All Night | D49: Local Authority | G49: =C49&"_"&D49 -> Public Lighting All Night_Local Authority | H49: =INDEX(Matrix_Tariff_Map,MATCH(C49,Matrix_Model_Tariffs,0),2)&IFERROR(INDEX(Matrix_Transmission_Map,MATCH(E49,Matrix_Model_Transmission,0),2),0)&IFERROR(INDEX(Matrix_Voltage_Map,MATCH(F49,Matrix_Model_Voltage,0),2),1)&INDEX(Matrix_Category_Map,MATCH(D49,Matrix_Model_Category,0),2) -> Pa01Y | I49: 0 | J49: 0 | K49: 0 | L49: 0 | M49: 0 | N49: 0 | O49: 0 | P49: 0 | Q49: 175.23 | R49: 0 | S49: 0 | U49: 0 | V49: 0 | W49: n/a
C50: Public Lighting 24 Hours | D50: Local Authority | G50: =C50&"_"&D50 -> Public Lighting 24 Hours_Local Authority | H50: =INDEX(Matrix_Tariff_Map,MATCH(C50,Matrix_Model_Tariffs,0),2)&IFERROR(INDEX(Matrix_Transmission_Map,MATCH(E50,Matrix_Model_Transmission,0),2),0)&IFERROR(INDEX(Matrix_Voltage_Map,MATCH(F50,Matrix_Model_Voltage,0),2),1)&INDEX(Matrix_Category_Map,MATCH(D50,Matrix_Model_Category,0),2) -> Pu01Y | I50: 0 | J50: 0 | K50: 0 | L50: 0 | M50: 0 | N50: 0 | O50: 0 | P50: 0 | Q50: 234.64 | R50: 0 | S50: 0 | U50: 0 | V50: 0 | W50: n/a
C51: Public Lighting Urban Fixed | D51: Local Authority | G51: =C51&"_"&D51 -> Public Lighting Urban Fixed_Local Authority | H51: =INDEX(Matrix_Tariff_Map,MATCH(C51,Matrix_Model_Tariffs,0),2)&IFERROR(INDEX(Matrix_Transmission_Map,MATCH(E51,Matrix_Model_Transmission,0),2),0)&IFERROR(INDEX(Matrix_Voltage_Map,MATCH(F51,Matrix_Model_Voltage,0),2),1)&INDEX(Matrix_Category_Map,MATCH(D51,Matrix_Model_Category,0),2) -> Pt01Y | I51: 0 | J51: 0 | K51: 0 | L51: 0 | M51: 0 | N51: 0 | O51: 0 | P51: 0 | Q51: 0 | R51: 0 | S51: 0 | U51: 0 | V51: 11.52 | W51: n/a

Sheet Mapping (hidden)
B4: Mapping
B7: Model Tariffs | C7: Matrix Code | D7: Munic RTP Tariff | F7: Model Transmission Zone | G7: Matrix Code
B8: =Lists!B17 -> Businessrate 1 | C8: B1 | D8: Municrate 1 | F8: Not Applicable | G8: 0
B9: =Lists!B18 -> Businessrate 2 | C9: B2 | D9: Municrate 2 | F9: =Lists!C94 -> [0 - 300km] | G9: 0
B10: =Lists!B19 -> Businessrate 3 | C10: B3 | D10: Municrate 3 | F10: =Lists!C95 -> [301 - 600km] | G10: 1
B11: =Lists!B20 -> Businessrate 4 | C11: B4 | D11: Municrate 4 | F11: =Lists!C96 -> [601 - 900km] | G11: 2
B12: =Lists!B21 -> Homelight 20A | C12: HL20 | F12: =Lists!C97 -> [> 900km] | G12: 3
B13: =Lists!B22 -> Homelight 60A | C13: HL60
B14: =Lists!B23 -> Homepower 1 | C14: H1 | D14: Municrate 1
B15: =Lists!B24 -> Homepower 2 | C15: H2 | D15: Municrate 2 | F15: Model Voltage | G15: Matrix Code
B16: =Lists!B25 -> Homepower 3 | C16: H3 | D16: Municrate 3 | F16: =Lists!C77 -> < 500V | G16: 1
B17: =Lists!B26 -> Homepower 4 | C17: H4 | D17: Municrate 4 | F17: =Lists!C78 -> ≥ 500V & < 66kV | G17: 2
B18: =Lists!B27 -> Homepower Bulk | C18: HB | F18: =Lists!C79 -> ≥ 66kV & ≤ 132kV | G18: 3
B19: =Lists!B28 -> Landrate 1 | C19: L1 | D19: Municrate 1 | F19: =Lists!C80 -> > 132kV | G19: 4
B20: =Lists!B29 -> Landrate 2 | C20: L2 | D20: Municrate 2
B21: =Lists!B30 -> Landrate 3 | C21: L3 | D21: Municrate 3 | F21: Model Category | G21: Matrix Code
B22: =Lists!B31 -> Landrate 4 | C22: L4 | D22: Municrate 4 | F22: =Lists!L37 -> Non-Local Authority | G22: N
B23: =Lists!B32 -> Landrate Dx | C23: Ld | F23: =Lists!L38 -> Local Authority | G23: Y
B24: Landlight 20A | C24: Lt20
B25: Landlight 60A | C25: Lt60
B26: Public Lighting All Night | C26: Pa | D26: Public Lighting All Night
B27: Public Lighting 24 Hours | C27: Pu | D27: Public Lighting 24 Hours
B28: Public Lighting Urban Fixed | C28: Pt | D28: Public Lighting Urban Fixed
B29: =Lists!B38 -> Megaflex | C29: Me
B30: =Lists!B39 -> Miniflex | C30: Mi
B31: =Lists!B40 -> Nightsave Large | C31: NL
B32: =Lists!B41 -> Nightsave Rural | C32: NR
B33: =Lists!B42 -> Nightsave Small | C33: NS
B34: =Lists!B43 -> Ruraflex | C34: Ru
B35: Municflex | C35: Mf
B36: Municrate 1 | C36: Mr1
B37: Municrate 2 | C37: Mr2
B38: Municrate 3 | C38: Mr3
B39: Municrate 4 | C39: Mr4
B40: Homeflex 1 | C40: HF1
B41: Homeflex 2 | C41: HF2
B42: Homeflex 3 | C42: HF3
B43: Homeflex 4 | C43: HF4

Sheet Lists (hidden)
B4: Model Lists
B6: Selections | C6: Dropbox ID | D6: Description | E6: ID | K6: Description | L6: Dates | M6: Units | O6: Customer Category | P6: Tariff Category ID
B7: Selected Tariff Category | C7: 1 | D7: =INDEX(Tariff_Category_List,Dropdown_Category) -> Non-Local Authority | E7: =MATCH(D7,Tariff_Category_List,0) -> 1 | F7: =Selected_Tariff_Category_ID -> 1 | K7: ESKOM Financial Year End | L7: 2026-03-31 | M7: dd-mmm-yy | O7: Small Power User | P7: 1
B8: Selected Customer Category | C8: 1 | D8: =INDEX(Customer_Category_List,Dropdown_Customer) -> Small Power User | E8: =MATCH(D8,Customer_Category_List,0) -> 1 | K8: Municipality Financial Year End | L8: =EOMONTH(ESKOM_Period,3) -> 2026-06-30 | M8: dd-mmm-yy | O8: Large Power User | P8: 2
B9: Selected Supply Size | C9: 1 | D9: =INDEX(Capacity_List,Dropdown_Supply) -> 5kVA, 16kVA, 20A or 60A | E9: =MATCH(D9,Capacity_List,0) -> 1 | K9: Current Period | L9: 2024/25
B10: Selected Base Tariff | C10: 1 | D10: =INDEX(Supply_Tariff_List,MIN(Dropdown_Tariff,Supply_Tariff_List_Count),0) -> Businessrate 1 | E10: =MATCH(D10,Full_Tariff_List,0) -> 1 | K10: New Period | L10: 2025/26 | O10: SPU Capacity | P10: Capacity ID
B11: Selected Tariff Type | D11: ='Monthly Average Bill'!D15 -> Urban | E11: =IF(Selected_Tariff_Type="Rural",2,1) -> 1 | K11: Total Days | L11: 30.41666667 | O11: 5kVA, 16kVA, 20A or 60A | P11: 1
B12: Selected Supply Voltage | C12: 1 | D12: =INDEX(Voltage_List,MIN(Dropdown_Voltage,Voltage_List_Count)) -> < 500V | E12: =MATCH(D12,Voltage_List,0) -> 1 | O12: 25kVA | P12: 2
B13: Selected transmission zone | C13: 1 | D13: =INDEX(Transmission_List,MIN(Dropdown_Zone,Transmission_List_Count)) -> Not Applicable | E13: =MATCH(D13,Transmission_List,0) -> 1 | K13: VAT | L13: 0.15 | O13: 32kVA | P13: 3
B14: Time of Use Toggle | E14: =IF(Selected_Customer_Category_ID=1,0,1) -> 0 | O14: 50kVA | P14: 4
O15: >50kVA | P15: 5
B16: Tariffs | C16: Base Tariff | D16: Tariff Variant | E16: Type | F16: Base Tariff ID | G16: Tariff ID | H16: RTP Tariff | J16: Base Tariffs | K16: Type | L16: Long Type | M16: Base Tariff ID
B17: =IF(D17="",C17,C17&" "&D17) -> Businessrate 1 | C17: Businessrate | D17: 1 | E17: =INDEX(Base_Tariff_Type,F17) -> Urban | F17: =MATCH(C17,Base_Tariff_List,0) -> 1 | G17: 1 | H17: Municrate 1 | J17: Businessrate | K17: Urban | L17: Commercial Urban | M17: 1
B18: =IF(D18="",C18,C18&" "&D18) -> Businessrate 2 | C18: Businessrate | D18: 2 | E18: Urban | F18: 1 | G18: 2 | H18: Municrate 2 | J18: Homelight | K18: Urban | L18: Residential Urban | M18: 2
B19: Businessrate 3 | C19: Businessrate | D19: 3 | E19: Urban | F19: 1 | G19: 3 | H19: Municrate 3 | J19: Homepower | K19: Urban | L19: Residential Urban | M19: 3
B20: Businessrate 4 | C20: Businessrate | D20: 4 | E20: Urban | F20: 1 | G20: 4 | H20: Municrate 4 | J20: Landrate | K20: Rural | L20: Rural | M20: 4 | O20: LPU Capacity | P20: Capacity ID
B21: Homelight 20A | C21: Homelight | D21: 20A | E21: Urban | F21: 2 | G21: 5 | J21: Megaflex | K21: Urban | L21: Commercial Urban | M21: 5 | O21: ≤100kVA | P21: 1
B22: Homelight 60A | C22: Homelight | D22: 60A | E22: Urban | F22: 2 | G22: 6 | J22: Miniflex | K22: Urban | L22: Commercial Urban | M22: 6 | O22: >100kVA & ≤500kVA | P22: 2
B23: Homepower 1 | C23: Homepower | D23: 1 | E23: Urban | F23: 3 | G23: 7 | H23: Municrate 1 | J23: Nightsave Large | K23: Urban | L23: Commercial Urban | M23: 7 | O23: >500kVA & ≤1MVA | P23: 3
B24: Homepower 2 | C24: Homepower | D24: 2 | E24: Urban | F24: 3 | G24: 8 | H24: Municrate 2 | J24: Nightsave Rural | K24: Rural | L24: Rural | M24: 8 | O24: >1MVA & ≤5MVA | P24: 4
B25: Homepower 3 | C25: Homepower | D25: 3 | E25: Urban | F25: 3 | G25: 9 | H25: Municrate 3 | J25: Nightsave Small | K25: Urban | L25: Commercial Urban | M25: 9 | O25: >5MVA | P25: 5
B26: Homepower 4 | C26: Homepower | D26: 4 | E26: Urban | F26: 3 | G26: 10 | H26: Municrate 4 | J26: Ruraflex | K26: Rural | L26: Rural | M26: 10 | O26: Key customer | P26: 6
B27: Homepower Bulk | C27: Homepower | D27: Bulk | E27: Urban | F27: 3 | G27: 11 | J27: Public Lighting | K27: Urban | L27: Commercial Urban | M27: 11
B28: Landrate 1 | C28: Landrate | D28: 1 | E28: Rural | F28: 4 | G28: 12 | H28: Municrate 1 | J28: Municflex | K28: Urban | L28: Commercial Urban | M28: 12 | O28: Capacity | P28: Capacity ID
B29: Landrate 2 | C29: Landrate | D29: 2 | E29: Rural | F29: 4 | G29: 13 | H29: Municrate 2 | J29: Municrate | K29: Urban | L29: Residential Urban | M29: 13 | O29: =IFERROR(IF(Selected_Customer_Category_ID=1,INDEX(Capacity_SPU_List,P29,0),INDEX(Capacity_LPU_List,P29,0)),"") -> 5kVA, 16kVA, 20A or 60A | P29: 1
B30: Landrate 3 | C30: Landrate | D30: 3 | E30: Rural | F30: 4 | G30: 14 | H30: Municrate 3 | J30: Homeflex | K30: Urban | L30: Residential Urban | M30: 14 | O30: 25kVA | P30: 2
B31: Landrate 4 | C31: Landrate | D31: 4 | E31: Rural | F31: 4 | G31: 15 | H31: Municrate 4 | O31: 32kVA | P31: 3
B32: Landrate Dx | C32: Landrate | D32: Dx | E32: Rural | F32: 4 | G32: 16 | O32: 50kVA | P32: 4
B33: Landlight 20A | C33: Landrate | D33: Dx | E33: =INDEX(Base_Tariff_Type,F33) -> Rural | F33: =MATCH(C33,Base_Tariff_List,0) -> 4 | G33: 17 | O33: >50kVA | P33: 5
B34: Landlight 60A | C34: Landrate | D34: Dx | E34: =INDEX(Base_Tariff_Type,F34) -> Rural | F34: =MATCH(C34,Base_Tariff_List,0) -> 4 | G34: 18 | P34: 6
B35: Public Lighting All Night | C35: Public Lighting | D35: All Night | E35: =INDEX(Base_Tariff_Type,F35) -> Urban | F35: 11 | G35: 19 | H35: Public Lighting All Night
B36: Public Lighting 24 Hours | C36: Public Lighting | D36: 24 Hours | E36: =INDEX(Base_Tariff_Type,F36) -> Urban | F36: 11 | G36: 20 | H36: Public Lighting 24 Hours | L36: Tariff Category | M36: Tariff Category ID | O36: Capacity List Count | P36: =IF(Selected_Customer_Category_ID=1,COUNTA(Capacity_SPU_List),COUNTA(Capacity_LPU_List)) -> 5
B37: Public Lighting Urban Fixed | C37: Public Lighting | D37: Urban Fixed | E37: =INDEX(Base_Tariff_Type,F37) -> Urban | F37: 11 | G37: 21 | H37: Public Lighting Urban Fixed | L37: Non-Local Authority | M37: 1
B38: =IF(D38="",C38,C38&" "&D38) -> Megaflex | C38: Megaflex | E38: =INDEX(Base_Tariff_Type,F38) -> Urban | F38: =MATCH(C38,Base_Tariff_List,0) -> 5 | G38: 22 | L38: Local Authority | M38: 2
B39: Miniflex | C39: Miniflex | E39: Urban | F39: 6 | G39: 23
B40: Nightsave Large | C40: Nightsave Large | E40: Urban | F40: 7 | G40: 24
B41: Nightsave Rural | C41: Nightsave Rural | E41: Rural | F41: 8 | G41: 25 | L41: Tariffs | M41: Block 1 kWh
B42: Nightsave Small | C42: Nightsave Small | E42: Urban | F42: 9 | G42: 26 | L42: Homelight 20A | M42: 350
B43: Ruraflex | C43: Ruraflex | E43: Rural | F43: 10 | G43: 27 | L43: Homelight 60A | M43: 600
B44: Municflex | C44: Municflex | E44: Urban | F44: 12 | G44: 28 | L44: Homepower | M44: 600
B45: Municrate 1 | C45: Municrate | D45: 1 | E45: Urban | F45: 13 | G45: 29
B46: Municrate 2 | C46: Municrate | D46: 2 | E46: Urban | F46: 13 | G46: 30
B47: Municrate 3 | C47: Municrate | D47: 3 | E47: Urban | F47: 13 | G47: 31
B48: Municrate 4 | C48: Municrate | D48: 4 | E48: Urban | F48: 13 | G48: 32
B49: Homeflex 1 | C49: Homeflex | D49: 1 | E49: Urban | F49: 14 | G49: 33
B50: Homeflex 2 | C50: Homeflex | D50: 2 | E50: Urban | F50: 14 | G50: 34
B51: Homeflex 3 | C51: Homeflex | D51: 3 | E51: Urban | F51: 14 | G51: 35
B52: Homeflex 4 | C52: Homeflex | D52: 4 | E52: Urban | F52: 14 | G52: 36
B55: Selection Tables | C55: LPU Selections | K55: SPU Selections | R55: Non Munic
B56: =IF(Selected_Customer_Category_ID=1,INDEX(K56:P56,0,Selected_Supply_Size_ID),INDEX(C56:I56,Selected_Supply_Size_ID)) -> 5kVA, 16kVA, 20A or 60A | C56: =$O21 -> ≤100kVA | D56: =$O22 -> >100kVA & ≤500kVA | E56: =$O23 -> >500kVA & ≤1MVA | F56: =$O24 -> >1MVA & ≤5MVA | G56: =$O25 -> >5MVA | I56: =$O26 -> Key customer | K56: =$O11 -> 5kVA, 16kVA, 20A or 60A | L56: =$O12 -> 25kVA | M56: =$O13 -> 32kVA | N56: =$O14 -> 50kVA | O56: =$O15 -> >50kVA | R56: =$O21 -> ≤100kVA | S56: =$O22 -> >100kVA & ≤500kVA | T56: =$O23 -> >500kVA & ≤1MVA | U56: =$O24 -> >1MVA & ≤5MVA | V56: =$O25 -> >5MVA | W56: =$O26 -> Key customer | Y56: =$O11 -> 5kVA, 16kVA, 20A or 60A | Z56: =$O12 -> 25kVA | AA56: =$O13 -> 32kVA | AB56: =$O14 -> 50kVA | AC56: =$O15 -> >50kVA
B57: =INDEX(K57:O57,0,Selected_Supply_Size_ID) -> Businessrate 1 | C57: Ruraflex | D57: Ruraflex | E57: Ruraflex | F57: Ruraflex | G57: Ruraflex | I57: =F57 -> Ruraflex | K57: =IF(IF(Dropdown_Category = 1, Y57, Y85) = 0, "", IF(Dropdown_Category = 1, Y57, Y85)) -> Businessrate 1 | L57: =IF(IF(Dropdown_Category = 1, Z57, Z85) = 0, "", IF(Dropdown_Category = 1, Z57, Z85)) -> Businessrate 1 | M57: =IF(IF(Dropdown_Category = 1, AA57, AA85) = 0, "", IF(Dropdown_Category = 1, AA57, AA85)) -> Businessrate 1 | N57: =IF(IF(Dropdown_Category = 1, AB57, AB85) = 0, "", IF(Dropdown_Category = 1, AB57, AB85)) -> Businessrate 2 | O57: =IF(IF(Dropdown_Category = 1, AC57, AC85) = 0, "", IF(Dropdown_Category = 1, AC57, AC85)) -> Businessrate 2 | R57: Ruraflex | S57: Ruraflex | T57: Ruraflex | U57: Ruraflex | V57: Ruraflex | W57: =U57 -> Ruraflex | Y57: Businessrate 1 | Z57: Businessrate 1 | AA57: Businessrate 1 | AB57: Businessrate 2 | AC57: Businessrate 2
B58: Businessrate 4 | C58: Miniflex | D58: Miniflex | E58: Miniflex | F58: Miniflex | G58: Nightsave Large | I58: Nightsave Large | K58: Businessrate 4 | L58: Businessrate 4 | M58: Businessrate 4 | N58: Homepower 2 | O58: Businessrate 3 | R58: Miniflex | S58: Miniflex | T58: Miniflex | U58: Miniflex | V58: Nightsave Large | W58: Nightsave Large | Y58: Businessrate 4 | Z58: Businessrate 4 | AA58: Businessrate 4 | AB58: Homepower 2 | AC58: Businessrate 3
B59: Homepower 4 | C59: Nightsave Small | D59: Nightsave Small | E59: Nightsave Small | F59: Nightsave Large | G59: Megaflex | I59: Megaflex | K59: Homepower 4 | L59: Homepower 1 | M59: Homepower 1 | N59: Landrate 2 | O59: Homepower 2 | R59: Nightsave Small | S59: Nightsave Small | T59: Nightsave Small | U59: Nightsave Large | V59: Megaflex | W59: Megaflex | Y59: Homepower 4 | Z59: Homepower 1 | AA59: Homepower 1 | AB59: Landrate 2 | AC59: Homepower 2
B60: Homelight 20A | C60: Nightsave Rural | D60: Nightsave Rural | E60: Nightsave Rural | F60: Megaflex | G60: Nightsave Rural | I60: Nightsave Rural | K60: Homelight 20A | L60: Landrate 1 | M60: Landrate 1 | N60: Homepower Bulk | O60: Homepower 3 | R60: Nightsave Rural | S60: Nightsave Rural | T60: Nightsave Rural | U60: Megaflex | V60: Nightsave Rural | W60: Nightsave Rural | Y60: Homelight 20A | Z60: Landrate 1 | AA60: Landrate 1 | AB60: Homepower Bulk | AC60: Homepower 3
B61: Homelight 60A | C61: Homepower Bulk | D61: Homepower Bulk | E61: Homepower Bulk | F61: Nightsave Rural | K61: Homelight 60A | L61: Homeflex 1 | M61: Homeflex 1 | N61: Homeflex 2 | O61: Landrate 2 | R61: Homepower Bulk | S61: Homepower Bulk | T61: Homepower Bulk | U61: Nightsave Rural | Y61: Homelight 60A | Z61: Homeflex 1 | AA61: Homeflex 1 | AB61: Homeflex 2 | AC61: Landrate 2
B62: Homeflex 4 | K62: Homeflex 4 | O62: Landrate 3 | Y62: Homeflex 4 | AC62: Landrate 3
B63: Landrate 1 | K63: Landrate 1 | O63: Homepower Bulk | Y63: Landrate 1 | AC63: Homepower Bulk
B64: Landrate 4 | K64: Landrate 4 | O64: Homeflex 2 | Y64: Landrate 4 | AC64: Homeflex 2
B65: Landrate Dx | K65: Landrate Dx | O65: Homeflex 3 | Y65: Landrate Dx | AC65: Homeflex 3
B66: Landlight 20A | K66: Landlight 20A | Y66: Landlight 20A
B67: Landlight 60A | K67: Landlight 60A | Y67: Landlight 60A
B68: Public Lighting All Night | K68: Public Lighting All Night | Y68: Public Lighting All Night
B69: Public Lighting 24 Hours | K69: Public Lighting 24 Hours | Y69: Public Lighting 24 Hours
B70: Public Lighting Urban Fixed | K70: Public Lighting Urban Fixed | Y70: Public Lighting Urban Fixed
B73: =INDEX(K73:O73,0,Selected_Supply_Size_ID) -> 14 | C73: =COUNTA(C57:C70) -> 5 | D73: =COUNTA(D57:D70) -> 5 | E73: =COUNTA(E57:E70) -> 5 | F73: =COUNTA(F57:F70) -> 5 | G73: =COUNTA(G57:G70) -> 4 | I73: =COUNTA(I57:I70) -> 4 | K73: =COUNTA(K57:K70) -> 14 | L73: =COUNTA(L57:L70) -> 14 | M73: =COUNTA(M57:M70) -> 14 | N73: =COUNTA(N57:N70) -> 14 | O73: =COUNTA(O57:O70) -> 14
B76: LPU Voltage | C76: Urban | D76: Rural | K76: Compare Tables | L76: SPU | M76: ID | N76: Base Tariff ID | O76: Long Type
B77: =INDEX($C77:$D77,Selected_Tariff_Type_ID) -> < 500V | C77: < 500V | D77: < 500V | K77: =(IF(Selected_Customer_Category_ID=1,L77,B57)) -> Businessrate 1 | L77: =B57 -> Businessrate 1 | M77: 1 | N77: =IFERROR(INDEX($F$17:$F$52,MATCH(K77,Full_Tariff_List,0),0),0) -> 1 | O77: =IFERROR(INDEX($L$17:$L$30,MATCH(N77,$M$17:$M$30,0),0),0) -> Commercial Urban
B78: =INDEX($C78:$D78,Selected_Tariff_Type_ID) -> ≥ 500V & < 66kV | C78: ≥ 500V & < 66kV | D78: ≥ 500V & < 66kV | K78: Businessrate 4 | L78: =B58 -> Businessrate 4 | M78: 2 | N78: 1 | O78: =IFERROR(INDEX($L$17:$L$30,MATCH(N78,$M$17:$M$30,0),0),0) -> Commercial Urban
B79: =INDEX($C79:$D79,Selected_Tariff_Type_ID) -> ≥ 66kV & ≤ 132kV | C79: ≥ 66kV & ≤ 132kV | K79: Homepower 4 | L79: =B59 -> Homepower 4 | M79: 3 | N79: 3 | O79: =IFERROR(INDEX($L$17:$L$30,MATCH(N79,$M$17:$M$30,0),0),0) -> Residential Urban
B80: =INDEX($C80:$D80,Selected_Tariff_Type_ID) -> > 132kV | C80: > 132kV | K80: Homelight 20A | L80: =B60 -> Homelight 20A | M80: 4 | N80: 2 | O80: =IFERROR(INDEX($L$17:$L$30,MATCH(N80,$M$17:$M$30,0),0),0) -> Residential Urban
K81: Homelight 60A | L81: =B61 -> Homelight 60A | M81: 5 | N81: 2 | O81: =IFERROR(INDEX($L$17:$L$30,MATCH(N81,$M$17:$M$30,0),0),0) -> Residential Urban | R81: =COUNTA(R57:R70) -> 5 | S81: =COUNTA(S57:S70) -> 5 | T81: 5 | U81: 5 | V81: 4 | W81: 4 | X81: 0 | Y81: 14 | Z81: 5 | AA81: 5 | AB81: 5 | AC81: 9
B82: =INDEX($C82:$D82,Selected_Tariff_Type_ID) -> 4 | C82: =COUNTA(C77:C80) -> 4 | D82: =COUNTA(D77:D80) -> 2 | K82: Landrate 1 | L82: =B63 -> Landrate 1 | M82: 6 | N82: 4 | O82: =IFERROR(INDEX($L$17:$L$30,MATCH(N82,$M$17:$M$30,0),0),0) -> Rural
K83: Landrate 4 | L83: Landrate 4 | M83: 7 | N83: 4 | O83: Rural | R83: Munic
B84: Voltage | C84: LPU | D84: SPU | E84: Voltage ID | K84: Landrate Dx | L84: Landrate Dx | M84: 8 | N84: 4 | O84: Rural | R84: =R56 -> ≤100kVA | S84: >100kVA & ≤500kVA | T84: >500kVA & ≤1MVA | U84: >1MVA & ≤5MVA | V84: >5MVA | W84: Key customer | X84: 0 | Y84: 5kVA, 16kVA, 20A or 60A | Z84: 25kVA | AA84: 32kVA | AB84: 50kVA | AC84: >50kVA
B85: =IF(Selected_Customer_Category_ID=1,D85,C85) -> < 500V | C85: =B77 -> < 500V | D85: < 500V | E85: 1 | K85: Landlight 20A | L85: Landlight 20A | M85: 9 | N85: 4 | O85: Rural | R85: Municflex | S85: Municflex | T85: Municflex | U85: Municflex | V85: Municflex | W85: Municflex | Y85: Municrate 1 | Z85: Municrate 1 | AA85: Municrate 1 | AB85: Municrate 2 | AC85: Municrate 2
B86: =IF(Selected_Customer_Category_ID=1,D86,C86) -> ≥ 500V & < 66kV | C86: =B78 -> ≥ 500V & < 66kV | D86: ≥ 500V & < 66kV | E86: 2 | K86: Landlight 60A | L86: Landlight 60A | M86: 10 | N86: 4 | O86: Rural | Y86: Municrate 4 | Z86: Municrate 4 | AA86: Municrate 4 | AC86: Municrate 3
B87: =IF(Selected_Customer_Category_ID=1,D87,C87) -> 0 | C87: =B79 -> ≥ 66kV & ≤ 132kV | E87: 3 | K87: Public Lighting All Night | L87: Public Lighting All Night | M87: 11 | N87: 11 | O87: Commercial Urban | Y87: Public Lighting All Night | Z87: Public Lighting 24 Hours | AA87: Public Lighting 24 Hours
B88: =IF(Selected_Customer_Category_ID=1,D88,C88) -> 0 | C88: =B80 -> > 132kV | E88: 4 | K88: Public Lighting 24 Hours | L88: Public Lighting 24 Hours | M88: 12 | N88: 11 | O88: Commercial Urban | Y88: Public Lighting 24 Hours | Z88: Public Lighting All Night | AA88: Public Lighting All Night
K89: Homeflex 4 | L89: =B62 -> Homeflex 4 | M89: 13 | N89: 14 | O89: Residential Urban | Y89: Public Lighting Urban Fixed
K90: Public Lighting Urban Fixed | L90: =B70 -> Public Lighting Urban Fixed | M90: 14 | N90: 11 | O90: Commercial Urban
B91: =IF(Selected_Customer_Category_ID=1,D91,C91) -> 2 | C91: =B82 -> 4 | D91: =COUNTA(D85:D88) -> 2 | K91: =IF(Selected_Customer_Category_ID=1,L91,B73) -> 14 | L91: =Supply_Tariff_List_Count -> 14
B93: Transmission zone | C93: LPU | D93: SPU | E93: Transmission Zone ID | K93: Selected Tariff in Compare | L93: =MATCH(Selected_Base_Tariff,Compare_Tariff_List,0) -> 1
B94: =IF(Selected_Customer_Category_ID=1,D94,C94) -> Not Applicable | C94: [0 - 300km] | D94: Not Applicable | E94: 0
B95: =IF(Selected_Customer_Category_ID=1,D95,C95) -> 0 | C95: [301 - 600km] | E95: 1
B96: =IF(Selected_Customer_Category_ID=1,D96,C96) -> 0 | C96: [601 - 900km] | E96: 2
B97: =IF(Selected_Customer_Category_ID=1,D97,C97) -> 0 | C97: [> 900km] | E97: 3
B99: =IF(Selected_Customer_Category_ID=1,D99,C99) -> 1 | C99: =COUNTA(C94:C97) -> 4 | D99: =COUNTA(D94:D97) -> 1 | K99: Compare_Tariff_List
B102: Months | C102: Month ID | D102: Season
B104: =DATE(YEAR(Period)-1,2,) -> 2025-01-31 | C104: 1 | D104: Low Demand
B105: =EOMONTH(B104,1) -> 2025-02-28 | C105: 2 | D105: Low Demand
B106: =EOMONTH(B105,1) -> 2025-03-31 | C106: 3 | D106: High Demand
B107: 2025-04-30 | C107: 4 | D107: Low Demand
B108: 2025-05-31 | C108: 5 | D108: Low Demand | R108: =COUNTA(R86:R98) -> 0 | S108: 0 | T108: 0 | U108: 0 | V108: 0 | W108: 0 | Y108: =COUNTA(Y86:Y98) -> 4 | Z108: =COUNTA(Z86:Z98) -> 3 | AA108: =COUNTA(AA86:AA98) -> 3 | AB108: =COUNTA(AB86:AB98) -> 0 | AC108: =COUNTA(AC86:AC98) -> 1
B109: 2025-06-30 | C109: 6 | D109: High Demand
B110: 2025-07-31 | C110: 7 | D110: High Demand
B111: 2025-08-31 | C111: 8 | D111: High Demand
B112: 2025-09-30 | C112: 9 | D112: Low Demand
B113: 2025-10-31 | C113: 10 | D113: Low Demand
B114: 2025-11-30 | C114: 11 | D114: Low Demand
B115: 2025-12-31 | C115: 12 | D115: Low Demand

Sheet Notes on updates (hidden)
C2: Notes on updates | E2: Sheet | G2: Status
B3: 2015/16 | C3: ] | D3: Need to add SPU tariffs
D4: Public Lighting All Night | G4: Done
D5: Public Lighting 24 Hours
D6: Public Lighting Urban Fixed
D7: Landlight
C9: ] | D9: Rates
D10: Update the New with 2015/16 rates | G10: 2014-12-05
D11: Update the Current with 2014/15 rates | G11: 2014-12-05
C13: ] | D13: SPU
D14: Activate the Tx zone. This is needed for LPU tariff conversions | G14: 2014-12-05
C16: ] | D16: Tariff component name changes
D17: Change the Distribution network access charge NAC) to Distribution network capacity charge (NCC) | G17: 2015-10-14
B19: 2016/17 | C19: ] | D19: Need to add SPU tariffs
D20: Landlight 20A | E20: Mapping Lists | G20: 2016-02-22
D21: Landlight 60A | E21: Mapping Lists | G21: 2016-02-22
C23: ] | D23: Rates
D24: Update the New with 2016/17 rates | E24: Rates SPU - New | G24: 2016-03-02
D25: Update the Current with 2015/16 rates | E25: Rates SPU - Current | G25: 2016-03-02
D26: Tested & validated by RPM's & super-users | G26: 2016-02-15
D27: Tested & validated by PI team | G27: 2016-02-16
B29: 2017/18
C30: ] | D30: Rates
D31: Update the New with 2017/18 rates | E31: Rates SPU - New | G31: 2017-03-10
D32: Update the Current with 2016/17 rates | E32: Rates SPU - Current | G32: 2017-03-10
D33: Tested & validated by RPM's & super-users
D34: Tested & validated by PI team
B36: 2018/19
C37: ] | D37: Rates
D38: Update the New with 2018/19 rates | E38: Rates SPU - New | G38: 2018-02-22
D39: Update the Current with 2017/18 rates | E39: Rates SPU - Current | G39: 2018-02-22
D40: Update VAT rate to 15% | E40: Rates SPU - Current | G40: 2018-02-22
D41: Tested & validated by RPM's & super-users
D42: Tested & validated by PI team
B44: 2019/20
C45: ] | D45: Rates
D46: Update the New with 2019/20 rates | E46: Rates SPU - New | G46: 2019-03-11
D47: Update the Current with 2018/19 rates | E47: Rates SPU - Current | G47: 2019-03-11
D48: Update Eskom financial year [Range K7] | E48: Lists | G48: 2019-03-11
D49: Tested & validated by RPM's & super-users
D50: Tested & validated by PI team
B52: 2020/21
C53: ] | D53: Rates
D54: Update the New with 2020/21 rates | E54: Rates SPU - New | G54: 2020-03-10
D55: Update the Current with 2019/20 rates | E55: Rates SPU - Current | G55: 2020-03-10
D56: Update Eskom financial year [Range K7] | E56: Lists | G56: 2020-03-10
D57: Tested & validated by RPM's & super-users
D58: Tested & validated by PI team
B60: RTP 2019/20
C61: ] | D61: Rates
D62: Update the New with RTP 2019/20 rates | E62: Rates SPU - New | G62: 2020-06-22
D63: Update the Current with 2019/20 rates | E63: Rates SPU - Current | G63: 2020-06-22
D64: Update Eskom financial year [Range K7] | E64: Lists | F64: Add RTP tariffs Row 44 - 48 Range Q56 - AB107 | G64: 2020-06-22
D67: Tested & validated by PI team | F67: Feedback on | G67: 2020-07-06
D68: Tested & validated by Core Workgroup | F68: Send out on | G68: 2020-07-06
D69: Update for Public Lighting Urban Fixed | G69: 2020-07-17
B71: RTP 2021/22
C72: ] | D72: Rates
D73: Update the New with RTP 2021/22 rates | E73: Rates SPU - New | G73: 2022-08-11
D74: Update the Current with 2021/22 rates | E74: Rates SPU - Current | G74: 2022-08-11
D75: Update Eskom financial year [Range K7] | E75: Lists | G75: 2022-08-11
D76: Add RTP Generation capacity charge | E76: Rates SPU - New | G76: 2022-08-11
E77: Workings | G77: 2022-08-11
E78: Rates Table | G78: 2022-08-11
E79: Monthly Average Bill | G79: 2022-08-11
E80: Tariff Comparison | G80: 2022-08-11
B82: RTP 2023/24
C83: ] | D83: Rates
D84: Update the New with RTP 2023/24 rates | E84: Rates SPU - New | G84: 2022-12-12
D85: Update the Current with 2023/24 rates | E85: Rates SPU - Current | G85: 2022-12-12
D86: Update Eskom financial year [Range K7] | E86: Lists | G86: 2022-12-12
D87: Add RTP Generation capacity charge | E87: Rates SPU - New | G87: 2022-12-12
E88: Workings | G88: 2022-12-12
E89: Rates Table | G89: 2022-12-12
E90: Monthly Average Bill | G90: 2022-12-12
E91: Tariff Comparison | G91: 2022-12-12
B93: RTP 2024/25
C94: ] | D94: Rates
D95: Update the New with RTP 2024/25 rates | E95: Rates SPU - New | G95: 2024-07-30
D96: Update the Current with 2024/25 rates | E96: Rates SPU - Current | G96: 2024-07-30
D97: Update Eskom financial year [Range K7] | E97: Lists | G97: 2024-07-30
D98: Add RTP Generation capacity charge | E98: Rates SPU - New | G98: 2024-07-30
D99: Add RTP Legacy charge | E99: Workings | G99: 2024-07-30
E100: Rates Table | G100: 2024-07-30
E101: Monthly Average Bill | G101: 2024-07-30
E102: Tariff Comparison | G102: 2024-07-30
D104: Include Homeflex default profile | E104: Inputs | G104: 2024-07-31
B110: 2025/26
C111: ] | D111: Rates
D112: Update the New with 2025/26 rates | E112: Rates SPU - New | G112: 2025-03-12
D113: Update the Current with 2025/26 rates | E113: Rates SPU - Current | G113: 2025-03-12
D114: Update Eskom financial year [Range K7] | E114: Lists | G114: 2025-03-12
B117: 2025/26
C118: ] | D118: Included previous tariff | E118: Inputs | G118: 2025-03-20
